Workbook

Sheet Instructions
F6: RMS
F9: Race Management System Version 2.1 - March 17
F10: 1) Set up
G11: Use the Set-Up tab to select the events and write in team names. You can also put the venue names to make things clearer when typing in results.
F15: 1) Entries
G16: Entries go in the Entries Stage N tabs. Ensure names are spelt the same across the three stages. Make sure expected times are entered as nn:nn or nn:nn.00. Relays go in the relays tab.
F20: 2) Start Sheets
G21: If PB's are entered in the 'Entries' tab, the 'Start Sheets' tab will automatically place athletes into seeded heats. Control the seeding by modifying the 'Rank' column. Withdraw athletes by removing their event in the entries tab
F25: 3) Results
G26: Enter the results under the event specific tabs. Enter the athlete number and result only. Then scroll to the right and award team points. Series points are collated automatically in the athlete series tab. Team results are collated automatically in the Team Series Tab.
J33: Copyright © James Findon 2017

Sheet Set-Up
B3: Teams | F3: League Events | M3: Full event list
Y4: Events
B6: Teams | C6: Team Name | D6: Relay Bib | F6: Track | H6: Field + others | X6: =IF(Y6="","",MAX(X$5:X5)+1) -> 1 | Y6: =IF(G8="Y",F8,"") -> 100
B7: Team A | C7: LSE | D7: LSE | F7: Event | G7: Included? Y/N | H7: Event | I7: Included? Y/N | M7: =IFERROR(INDEX($Y$6:$Y$41,MATCH(ROW()-ROW($M$6),$X$6:$X$41,0)),"") -> 100 | X7: =IF(Y7="","",MAX(X$5:X6)+1) -> 2 | Y7: 100H
B8: Team B | C8: King's | D8: KCL | F8: 100 | G8: Y | H8: HJ | I8: Y | M8: =IFERROR(INDEX($Y$6:$Y$41,MATCH(ROW()-ROW($M$6),$X$6:$X$41,0)),"") -> 100H | X8: =IF(Y8="","",MAX(X$5:X7)+1) -> 3 | Y8: 110H
B9: Team C | C9: Essex | D9: ESSX | F9: 100H | G9: Y | H9: TJ | I9: Y | M9: =IFERROR(INDEX($Y$6:$Y$41,MATCH(ROW()-ROW($M$6),$X$6:$X$41,0)),"") -> 110H | X9: =IF(Y9="","",MAX(X$5:X8)+1) -> 4 | Y9: 200
B10: Team D | C10: RHUL | D10: RHUL | F10: 110H | G10: Y | H10: LJ | I10: Y | M10: =IFERROR(INDEX($Y$6:$Y$41,MATCH(ROW()-ROW($M$6),$X$6:$X$41,0)),"") -> 200 | X10: =IF(Y10="","",MAX(X$5:X9)+1) -> 5 | Y10: 400
B11: Team E | C11: UCL | D11: UCL | F11: 200 | G11: Y | H11: PV | I11: N | M11: =IFERROR(INDEX($Y$6:$Y$41,MATCH(ROW()-ROW($M$6),$X$6:$X$41,0)),"") -> 400 | X11: =IF(Y11="","",MAX(X$5:X10)+1) -> 6 | Y11: 400H
B12: Team F | C12: Imperial | D12: ICL | F12: 400 | G12: Y | H12: SP | I12: Y | M12: =IFERROR(INDEX($Y$6:$Y$41,MATCH(ROW()-ROW($M$6),$X$6:$X$41,0)),"") -> 400H | X12: =IF(Y12="","",MAX(X$5:X11)+1) -> 7 | Y12: 800
B13: Team G | C13: QMUL | D13: QMUL | F13: 400H | G13: Y | H13: JT | I13: Y | M13: =IFERROR(INDEX($Y$6:$Y$41,MATCH(ROW()-ROW($M$6),$X$6:$X$41,0)),"") -> 800 | X13: =IF(Y13="","",MAX(X$5:X12)+1) -> 8 | Y13: 1500
B14: Team H | C14: SMU | D14: SMU | F14: 800 | G14: Y | H14: Hammer | I14: N | M14: =IFERROR(INDEX($Y$6:$Y$41,MATCH(ROW()-ROW($M$6),$X$6:$X$41,0)),"") -> 1500 | X14: =IF(Y14="","",MAX(X$5:X13)+1) -> 
B15: Team I | C15: Brunel | D15: BRU | F15: 1500 | G15: Y | H15: Discus | I15: Y | M15: =IFERROR(INDEX($Y$6:$Y$41,MATCH(ROW()-ROW($M$6),$X$6:$X$41,0)),"") -> 2000SC | X15: =IF(Y15="","",MAX(X$5:X14)+1) -> 9 | Y15: 2000SC
B16: Team J | C16: Guests | D16: GUEST | F16: 1Mile | G16: N | H16: Club | I16: N | M16: =IFERROR(INDEX($Y$6:$Y$41,MATCH(ROW()-ROW($M$6),$X$6:$X$41,0)),"") -> 3000SC | X16: =IF(Y16="","",MAX(X$5:X15)+1) -> 
B17: Team K | C17: UEL | D17: UEL | F17: 2000SC | G17: Y | H17: Event 1 | I17: N | M17: =IFERROR(INDEX($Y$6:$Y$41,MATCH(ROW()-ROW($M$6),$X$6:$X$41,0)),"") -> 5000 | X17: =IF(Y17="","",MAX(X$5:X16)+1) -> 10 | Y17: 3000SC
B18: Team L | C18: UofL | D18: UL | F18: 3000 | G18: N | H18: Event 2 | I18: N | M18: =IFERROR(INDEX($Y$6:$Y$41,MATCH(ROW()-ROW($M$6),$X$6:$X$41,0)),"") -> 10000 | X18: =IF(Y18="","",MAX(X$5:X17)+1) -> 11 | Y18: 5000
B19: Team M | F19: 3000SC | G19: Y | H19: Event 3 | I19: N | M19: =IFERROR(INDEX($Y$6:$Y$41,MATCH(ROW()-ROW($M$6),$X$6:$X$41,0)),"") -> 4X100 | X19: =IF(Y19="","",MAX(X$5:X18)+1) -> 12 | Y19: 10000
B20: Team N | C20: STG | D20: STG | F20: 5000 | G20: Y | H20: Event 4 | I20: N | M20: =IFERROR(INDEX($Y$6:$Y$41,MATCH(ROW()-ROW($M$6),$X$6:$X$41,0)),"") -> 4X400 | X20: =IF(Y20="","",MAX(X$5:X19)+1) -> 13 | Y20: 4X100
B21: Team O | F21: 10000 | G21: Y | H21: Event 5 | I21: N | M21: =IFERROR(INDEX($Y$6:$Y$41,MATCH(ROW()-ROW($M$6),$X$6:$X$41,0)),"") -> Medley | X21: =IF(Y21="","",MAX(X$5:X20)+1) -> 14 | Y21: 4X400
B22: Team P | F22: 4X100 | G22: Y | H22: Event 6 | I22: N | M22: =IFERROR(INDEX($Y$6:$Y$41,MATCH(ROW()-ROW($M$6),$X$6:$X$41,0)),"") -> HJ | X22: =IF(Y22="","",MAX(X$5:X21)+1) -> 15 | Y22: Medley
B23: Team Q | F23: 4X400 | G23: Y | H23: Event 7 | I23: N | M23: =IFERROR(INDEX($Y$6:$Y$41,MATCH(ROW()-ROW($M$6),$X$6:$X$41,0)),"") -> TJ | X23: =IF(Y23="","",MAX(X$5:X22)+1) -> 16 | Y23: =IF(I8="Y",H8,"") -> HJ
B24: Team R | F24: Medley | G24: Y | H24: Event 8 | I24: N | M24: =IFERROR(INDEX($Y$6:$Y$41,MATCH(ROW()-ROW($M$6),$X$6:$X$41,0)),"") -> LJ | X24: =IF(Y24="","",MAX(X$5:X23)+1) -> 17 | Y24: TJ
B25: Team S | F25: Multi | G25: Y | H25: Event 9 | I25: N | M25: =IFERROR(INDEX($Y$6:$Y$41,MATCH(ROW()-ROW($M$6),$X$6:$X$41,0)),"") -> SP | X25: =IF(Y25="","",MAX(X$5:X24)+1) -> 18 | Y25: LJ
B26: Team T | M26: =IFERROR(INDEX($Y$6:$Y$41,MATCH(ROW()-ROW($M$6),$X$6:$X$41,0)),"") -> JT | X26: =IF(Y26="","",MAX(X$5:X25)+1) -> 
A27: Relay stops here for now> | B27: Team U | M27: =IFERROR(INDEX($Y$6:$Y$41,MATCH(ROW()-ROW($M$6),$X$6:$X$41,0)),"") -> Discus | X27: =IF(Y27="","",MAX(X$5:X26)+1) -> 19 | Y27: SP
B28: Team V | F28: Venues | M28: =IFERROR(INDEX($Y$6:$Y$41,MATCH(ROW()-ROW($M$6),$X$6:$X$41,0)),"") ->  | X28: =IF(Y28="","",MAX(X$5:X27)+1) -> 20 | Y28: JT
B29: Team W | M29: =IFERROR(INDEX($Y$6:$Y$41,MATCH(ROW()-ROW($M$6),$X$6:$X$41,0)),"") ->  | X29: =IF(Y29="","",MAX(X$5:X28)+1) -> 
B30: Team X | M30: =IFERROR(INDEX($Y$6:$Y$41,MATCH(ROW()-ROW($M$6),$X$6:$X$41,0)),"") ->  | X30: =IF(Y30="","",MAX(X$5:X29)+1) -> 21 | Y30: Discus
B31: Team Y | F31: Meet 1 | G31: St Mary's | M31: =IFERROR(INDEX($Y$6:$Y$41,MATCH(ROW()-ROW($M$6),$X$6:$X$41,0)),"") ->  | X31: =IF(Y31="","",MAX(X$5:X30)+1) -> 
B32: Team Z | F32: Meet 2 | G32: Newham | M32: =IFERROR(INDEX($Y$6:$Y$41,MATCH(ROW()-ROW($M$6),$X$6:$X$41,0)),"") ->  | X32: =IF(Y32="","",MAX(X$5:X31)+1) ->  | Y32: =IF(I17="Y",H17,"") -> 
B33: Team AA | F33: Meet 3 | G33: Battersea | M33: =IFERROR(INDEX($Y$6:$Y$41,MATCH(ROW()-ROW($M$6),$X$6:$X$41,0)),"") ->  | X33: =IF(Y33="","",MAX(X$5:X32)+1) -> 
B34: Team AB | M34: =IFERROR(INDEX($Y$6:$Y$41,MATCH(ROW()-ROW($M$6),$X$6:$X$41,0)),"") ->  | X34: =IF(Y34="","",MAX(X$5:X33)+1) -> 
B35: Team AC | M35: =IFERROR(INDEX($Y$6:$Y$41,MATCH(ROW()-ROW($M$6),$X$6:$X$41,0)),"") ->  | X35: =IF(Y35="","",MAX(X$5:X34)+1) -> 
B36: Team AD | M36: =IFERROR(INDEX($Y$6:$Y$41,MATCH(ROW()-ROW($M$6),$X$6:$X$41,0)),"") ->  | X36: =IF(Y36="","",MAX(X$5:X35)+1) -> 
B37: Team AE | M37: =IFERROR(INDEX($Y$6:$Y$41,MATCH(ROW()-ROW($M$6),$X$6:$X$41,0)),"") ->  | X37: =IF(Y37="","",MAX(X$5:X36)+1) -> 
M38: =IFERROR(INDEX($Y$6:$Y$41,MATCH(ROW()-ROW($M$6),$X$6:$X$41,0)),"") ->  | X38: =IF(Y38="","",MAX(X$5:X37)+1) -> 
M39: =IFERROR(INDEX($Y$6:$Y$41,MATCH(ROW()-ROW($M$6),$X$6:$X$41,0)),"") ->  | X39: =IF(Y39="","",MAX(X$5:X38)+1) -> 
M40: =IFERROR(INDEX($Y$6:$Y$41,MATCH(ROW()-ROW($M$6),$X$6:$X$41,0)),"") ->  | X40: =IF(Y40="","",MAX(X$5:X39)+1) -> 
M41: =IFERROR(INDEX($Y$6:$Y$41,MATCH(ROW()-ROW($M$6),$X$6:$X$41,0)),"") -> 
M42: =IFERROR(INDEX($Y$6:$Y$41,MATCH(ROW()-ROW($M$6),$X$6:$X$41,0)),"") -> 
M43: =IFERROR(INDEX($Y$6:$Y$41,MATCH(ROW()-ROW($M$6),$X$6:$X$41,0)),"") -> 

Sheet Team Series
E1: LUCA Outdoor Series
J2: Stage 1 | O2: Stage 2 | T2: Stage 3
E4: Series Championship | J4: Series Championship | O4: Series Championship | T4: Series Championship
D5: Standing | F5: Team | G5: Points | I5: Standing | K5: Team | L5: Points | N5: Standing | P5: Team | Q5: Points | S5: Standing | U5: Team | V5: Points
D6: =IF(G7="",E6,IF(G6=G7,"1=","1")) -> 1 | E6: 1 | F6: =IFERROR(VLOOKUP(E6,$I$44:$K$74,3,FALSE),"") -> UCL | G6: =IFERROR(VLOOKUP(E6,$I$44:$K$74,2,FALSE),"") -> 181 | I6: =IF(L7="",J6,IF(L6=L7,"1=","1")) -> 1 | J6: 1 | K6: =IFERROR(VLOOKUP(J6,$C$44:$K$74,9,FALSE),"") -> UCL | L6: =IFERROR(VLOOKUP(J6,$C$44:$D$74,2,FALSE),"") -> 181 | N6: =IF(Q7="",O6,IF(Q6=Q7,"1=","1")) -> 1 | O6: 1 | P6: =IFERROR(VLOOKUP(O6,$E$44:$K$74,7,FALSE),"") ->  | Q6: =IFERROR(VLOOKUP(O6,$E$44:$F$74,2,FALSE),"") ->  | S6: =IF(V7="",T6,IF(V6=V7,"1=","1")) -> 1 | T6: 1 | U6: =IFERROR(VLOOKUP(T6,$G$44:$K$74,5,FALSE),"") ->  | V6: =IFERROR(VLOOKUP(T6,$G$44:$H$74,2,FALSE),"") -> 
D7: =IF(G7="",E7,IF(G6=G7,"1=",IF(G7=G8,"2=","2"))) -> 2 | E7: 2 | F7: =IFERROR(VLOOKUP(E7,$I$44:$K$74,3,FALSE),"") -> King's | G7: =IFERROR(VLOOKUP(E7,$I$44:$K$74,2,FALSE),"") -> 130 | I7: =IF(L7="",J7,IF(L6=L7,"1=",IF(L7=L8,"2=","2"))) -> 2 | J7: 2 | K7: =IFERROR(VLOOKUP(J7,$C$44:$K$74,9,FALSE),"") -> King's | L7: =IFERROR(VLOOKUP(J7,$C$44:$D$74,2,FALSE),"") -> 130 | N7: =IF(Q7="",O7,IF(Q6=Q7,"1=",IF(Q7=Q8,"2=","2"))) -> 2 | O7: 2 | P7: =IFERROR(VLOOKUP(O7,$E$44:$K$74,7,FALSE),"") ->  | Q7: =IFERROR(VLOOKUP(O7,$E$44:$F$74,2,FALSE),"") ->  | S7: =IF(V7="",T7,IF(V6=V7,"1=",IF(V7=V8,"2=","2"))) -> 2 | T7: 2 | U7: =IFERROR(VLOOKUP(T7,$G$44:$K$74,5,FALSE),"") ->  | V7: =IFERROR(VLOOKUP(T7,$G$44:$H$74,2,FALSE),"") -> 
D8: =IF(G8="",E8,IF(G7=G8,"2=",IF(G8=G9,"3=","3"))) -> 3 | E8: 3 | F8: LSE | G8: 104 | I8: =IF(L8="",J8,IF(L7=L8,"2=",IF(L8=L9,"3=","3"))) -> 3 | J8: 3 | K8: LSE | L8: 104 | N8: =IF(Q8="",O8,IF(Q7=Q8,"2=",IF(Q8=Q9,"3=","3"))) -> 3 | O8: 3 | S8: =IF(V8="",T8,IF(V7=V8,"2=",IF(V8=V9,"3=","3"))) -> 3 | T8: 3
D9: =IF(G9="",E9,IF(G8=G9,"3=",IF(G9=G10,"4=",E9))) -> 4 | E9: 4 | F9: SMU | G9: 83 | I9: =IF(L9="",J9,IF(L8=L9,"3=",IF(L9=L10,"4=",J9))) -> 4 | J9: 4 | K9: SMU | L9: 83 | N9: =IF(Q9="",O9,IF(Q8=Q9,"3=",IF(Q9=Q10,"4=",O9))) -> 4 | O9: 4 | S9: =IF(V9="",T9,IF(V8=V9,"3=",IF(V9=V10,"4=",T9))) -> 4 | T9: 4
D10: =IF(G10="",E10,IF(G9=G10,"4=",IF(G10=G11,"5=",E10))) -> 5 | E10: 5 | F10: Imperial | G10: 57 | I10: =IF(L10="",J10,IF(L9=L10,"4=",IF(L10=L11,"5=",J10))) -> 5 | J10: 5 | K10: Imperial | L10: 57 | N10: =IF(Q10="",O10,IF(Q9=Q10,"4=",IF(Q10=Q11,"5=",O10))) -> 5 | O10: 5 | S10: =IF(V10="",T10,IF(V9=V10,"4=",IF(V10=V11,"5=",T10))) -> 5 | T10: 5
D11: =IF(G11="",E11,IF(G10=G11,"5=",IF(G11=G12,"6=",E11))) -> 6 | E11: 6 | F11: Essex | G11: 34 | I11: =IF(L11="",J11,IF(L10=L11,"5=",IF(L11=L12,"6=",J11))) -> 6 | J11: 6 | K11: Essex | L11: 34 | N11: =IF(Q11="",O11,IF(Q10=Q11,"5=",IF(Q11=Q12,"6=",O11))) -> 6 | O11: 6 | S11: =IF(V11="",T11,IF(V10=V11,"5=",IF(V11=V12,"6=",T11))) -> 6 | T11: 6
D12: =IF(G12="",E12,IF(G11=G12,"6=",IF(G12=G13,"7=",E12))) -> 7 | E12: 7 | F12: QMUL | G12: 28 | I12: =IF(L12="",J12,IF(L11=L12,"6=",IF(L12=L13,"7=",J12))) -> 7 | J12: 7 | K12: QMUL | L12: 28 | N12: =IF(Q12="",O12,IF(Q11=Q12,"6=",IF(Q12=Q13,"7=",O12))) -> 7 | O12: 7 | S12: =IF(V12="",T12,IF(V11=V12,"6=",IF(V12=V13,"7=",T12))) -> 7 | T12: 7
D13: =IF(G13="",E13,IF(G12=G13,"7=",IF(G13=G14,"8=",E13))) -> 8 | E13: 8 | F13: Brunel | G13: 21 | I13: =IF(L13="",J13,IF(L12=L13,"7=",IF(L13=L14,"8=",J13))) -> 8 | J13: 8 | K13: Brunel | L13: 21 | N13: =IF(Q13="",O13,IF(Q12=Q13,"7=",IF(Q13=Q14,"8=",O13))) -> 8 | O13: 8 | S13: =IF(V13="",T13,IF(V12=V13,"7=",IF(V13=V14,"8=",T13))) -> 8 | T13: 8
D14: =IF(G14="",E14,IF(G13=G14,"8=",IF(G14=G15,"9=",E14))) -> 9 | E14: 9 | F14: RHUL | G14: 14 | I14: =IF(L14="",J14,IF(L13=L14,"8=",IF(L14=L15,"9=",J14))) -> 9 | J14: 9 | K14: RHUL | L14: 14 | N14: =IF(Q14="",O14,IF(Q13=Q14,"8=",IF(Q14=Q15,"9=",O14))) -> 9 | O14: 9 | S14: =IF(V14="",T14,IF(V13=V14,"8=",IF(V14=V15,"9=",T14))) -> 9 | T14: 9
D15: =IF(G15="",E15,IF(G14=G15,"9=",IF(G15=G16,"10=",E15))) -> 10 | E15: 10 | F15: UofL | G15: 7 | I15: =IF(L15="",J15,IF(L14=L15,"9=",IF(L15=L16,"10=",J15))) -> 10 | J15: 10 | K15: UofL | L15: 7 | N15: =IF(Q15="",O15,IF(Q14=Q15,"9=",IF(Q15=Q16,"10=",O15))) -> 10 | O15: 10 | S15: =IF(V15="",T15,IF(V14=V15,"9=",IF(V15=V16,"10=",T15))) -> 10 | T15: 10
D16: =IF(G16="",E16,IF(G15=G16,"10=",IF(G16=G17,"11=",E16))) -> 11 | E16: 11 | F16: STG | G16: 5 | I16: =IF(L16="",J16,IF(L15=L16,"10=",IF(L16=L17,"11=",J16))) -> 11 | J16: 11 | K16: STG | L16: 5 | N16: =IF(Q16="",O16,IF(Q15=Q16,"10=",IF(Q16=Q17,"11=",O16))) -> 11 | O16: 11 | S16: =IF(V16="",T16,IF(V15=V16,"10=",IF(V16=V17,"11=",T16))) -> 11 | T16: 11
D17: =IF(G17="",E17,IF(G16=G17,"11=",IF(G17=G18,"12=",E17))) -> 12 | E17: 12 | F17: UEL | G17: 1 | I17: =IF(L17="",J17,IF(L16=L17,"11=",IF(L17=L18,"12=",J17))) -> 12 | J17: 12 | K17: UEL | L17: 1 | N17: =IF(Q17="",O17,IF(Q16=Q17,"11=",IF(Q17=Q18,"12=",O17))) -> 12 | O17: 12 | S17: =IF(V17="",T17,IF(V16=V17,"11=",IF(V17=V18,"12=",T17))) -> 12 | T17: 12
D18: =IF(G18="",E18,IF(G17=G18,"12=",IF(G18=G19,"13=",E18))) -> 13 | E18: 13 | I18: =IF(L18="",J18,IF(L17=L18,"12=",IF(L18=L19,"13=",J18))) -> 13 | J18: 13 | N18: =IF(Q18="",O18,IF(Q17=Q18,"12=",IF(Q18=Q19,"13=",O18))) -> 13 | O18: 13 | S18: =IF(V18="",T18,IF(V17=V18,"12=",IF(V18=V19,"13=",T18))) -> 13 | T18: 13
D19: =IF(G19="",E19,IF(G18=G19,"13=",IF(G19=G20,"14=",E19))) -> 14 | E19: 14 | I19: =IF(L19="",J19,IF(L18=L19,"13=",IF(L19=L20,"14=",J19))) -> 14 | J19: 14 | N19: =IF(Q19="",O19,IF(Q18=Q19,"13=",IF(Q19=Q20,"14=",O19))) -> 14 | O19: 14 | S19: =IF(V19="",T19,IF(V18=V19,"13=",IF(V19=V20,"14=",T19))) -> 14 | T19: 14
D20: =IF(G20="",E20,IF(G19=G20,"14=",IF(G20=G21,"15=",E20))) -> 15 | E20: 15 | I20: =IF(L20="",J20,IF(L19=L20,"14=",IF(L20=L21,"15=",J20))) -> 15 | J20: 15 | N20: =IF(Q20="",O20,IF(Q19=Q20,"14=",IF(Q20=Q21,"15=",O20))) -> 15 | O20: 15 | S20: =IF(V20="",T20,IF(V19=V20,"14=",IF(V20=V21,"15=",T20))) -> 15 | T20: 15
D21: =IF(G21="",E21,IF(G20=G21,"15=",IF(G21=G22,"16=",E21))) -> 16 | E21: 16 | I21: =IF(L21="",J21,IF(L20=L21,"15=",IF(L21=L22,"16=",J21))) -> 16 | J21: 16 | N21: =IF(Q21="",O21,IF(Q20=Q21,"15=",IF(Q21=Q22,"16=",O21))) -> 16 | O21: 16 | S21: =IF(V21="",T21,IF(V20=V21,"15=",IF(V21=V22,"16=",T21))) -> 16 | T21: 16
D22: =IF(G22="",E22,IF(G21=G22,"16=",IF(G22=G23,"17=",E22))) -> 17 | E22: 17 | I22: =IF(L22="",J22,IF(L21=L22,"16=",IF(L22=L23,"17=",J22))) -> 17 | J22: 17 | N22: =IF(Q22="",O22,IF(Q21=Q22,"16=",IF(Q22=Q23,"17=",O22))) -> 17 | O22: 17 | S22: =IF(V22="",T22,IF(V21=V22,"16=",IF(V22=V23,"17=",T22))) -> 17 | T22: 17
D23: =IF(G23="",E23,IF(G22=G23,"17=",IF(G23=G24,"18=",E23))) -> 18 | E23: 18 | I23: =IF(L23="",J23,IF(L22=L23,"17=",IF(L23=L24,"18=",J23))) -> 18 | J23: 18 | N23: =IF(Q23="",O23,IF(Q22=Q23,"17=",IF(Q23=Q24,"18=",O23))) -> 18 | O23: 18 | S23: =IF(V23="",T23,IF(V22=V23,"17=",IF(V23=V24,"18=",T23))) -> 18 | T23: 18
D24: =IF(G24="",E24,IF(G23=G24,"18=",IF(G24=G25,"19=",E24))) -> 19 | E24: 19 | I24: =IF(L24="",J24,IF(L23=L24,"18=",IF(L24=L25,"19=",J24))) -> 19 | J24: 19 | N24: =IF(Q24="",O24,IF(Q23=Q24,"18=",IF(Q24=Q25,"19=",O24))) -> 19 | O24: 19 | S24: =IF(V24="",T24,IF(V23=V24,"18=",IF(V24=V25,"19=",T24))) -> 19 | T24: 19
D25: =IF(G25="",E25,IF(G24=G25,"19=",IF(G25=G26,"20=",E25))) -> 20 | E25: 20 | I25: =IF(L25="",J25,IF(L24=L25,"19=",IF(L25=L26,"20=",J25))) -> 20 | J25: 20 | N25: =IF(Q25="",O25,IF(Q24=Q25,"19=",IF(Q25=Q26,"20=",O25))) -> 20 | O25: 20 | S25: =IF(V25="",T25,IF(V24=V25,"19=",IF(V25=V26,"20=",T25))) -> 20 | T25: 20
D26: =IF(G26="",E26,IF(G25=G26,"20=",IF(G26=G27,"21=",E26))) -> 21 | E26: 21 | I26: =IF(L26="",J26,IF(L25=L26,"20=",IF(L26=L27,"21=",J26))) -> 21 | J26: 21 | N26: =IF(Q26="",O26,IF(Q25=Q26,"20=",IF(Q26=Q27,"21=",O26))) -> 21 | O26: 21 | S26: =IF(V26="",T26,IF(V25=V26,"20=",IF(V26=V27,"21=",T26))) -> 21 | T26: 21
D27: =IF(G27="",E27,IF(G26=G27,"21=",IF(G27=G28,"22=",E27))) -> 22 | E27: 22 | I27: =IF(L27="",J27,IF(L26=L27,"21=",IF(L27=L28,"22=",J27))) -> 22 | J27: 22 | N27: =IF(Q27="",O27,IF(Q26=Q27,"21=",IF(Q27=Q28,"22=",O27))) -> 22 | O27: 22 | S27: =IF(V27="",T27,IF(V26=V27,"21=",IF(V27=V28,"22=",T27))) -> 22 | T27: 22
D28: =IF(G28="",E28,IF(G27=G28,"22=",IF(G28=G29,"23=",E28))) -> 23 | E28: 23 | I28: =IF(L28="",J28,IF(L27=L28,"22=",IF(L28=L29,"23=",J28))) -> 23 | J28: 23 | N28: =IF(Q28="",O28,IF(Q27=Q28,"22=",IF(Q28=Q29,"23=",O28))) -> 23 | O28: 23 | S28: =IF(V28="",T28,IF(V27=V28,"22=",IF(V28=V29,"23=",T28))) -> 23 | T28: 23
D29: =IF(G29="",E29,IF(G28=G29,"23=",IF(G29=G30,"24=",E29))) -> 24 | E29: 24 | I29: =IF(L29="",J29,IF(L28=L29,"23=",IF(L29=L30,"24=",J29))) -> 24 | J29: 24 | N29: =IF(Q29="",O29,IF(Q28=Q29,"23=",IF(Q29=Q30,"24=",O29))) -> 24 | O29: 24 | S29: =IF(V29="",T29,IF(V28=V29,"23=",IF(V29=V30,"24=",T29))) -> 24 | T29: 24
D30: =IF(G30="",E30,IF(G29=G30,"24=",IF(G30=G31,"25=",E30))) -> 25 | E30: 25 | I30: =IF(L30="",J30,IF(L29=L30,"24=",IF(L30=L31,"25=",J30))) -> 25 | J30: 25 | N30: =IF(Q30="",O30,IF(Q29=Q30,"24=",IF(Q30=Q31,"25=",O30))) -> 25 | O30: 25 | S30: =IF(V30="",T30,IF(V29=V30,"24=",IF(V30=V31,"25=",T30))) -> 25 | T30: 25
D31: =IF(G31="",E31,IF(G30=G31,"25=",IF(G31=G32,"26=",E31))) -> 26 | E31: 26 | I31: =IF(L31="",J31,IF(L30=L31,"25=",IF(L31=L32,"26=",J31))) -> 26 | J31: 26 | N31: =IF(Q31="",O31,IF(Q30=Q31,"25=",IF(Q31=Q32,"26=",O31))) -> 26 | O31: 26 | S31: =IF(V31="",T31,IF(V30=V31,"25=",IF(V31=V32,"26=",T31))) -> 26 | T31: 26
D32: =IF(G32="",E32,IF(G31=G32,"26=",IF(G32=G33,"27=",E32))) -> 27 | E32: 27 | I32: =IF(L32="",J32,IF(L31=L32,"26=",IF(L32=L33,"27=",J32))) -> 27 | J32: 27 | N32: =IF(Q32="",O32,IF(Q31=Q32,"26=",IF(Q32=Q33,"27=",O32))) -> 27 | O32: 27 | S32: =IF(V32="",T32,IF(V31=V32,"26=",IF(V32=V33,"27=",T32))) -> 27 | T32: 27
D33: =IF(G33="",E33,IF(G32=G33,"26=",IF(G33=G34,"27=",E33))) -> 28 | E33: 28 | I33: =IF(L33="",J33,IF(L32=L33,"26=",IF(L33=L34,"27=",J33))) -> 28 | J33: 28 | N33: =IF(Q33="",O33,IF(Q32=Q33,"26=",IF(Q33=Q34,"27=",O33))) -> 28 | O33: 28 | S33: =IF(V33="",T33,IF(V32=V33,"26=",IF(V33=V34,"27=",T33))) -> 28 | T33: 28
D34: =IF(G34="",E34,IF(G33=G34,"26=",IF(G34=G35,"27=",E34))) -> 29 | E34: 29 | I34: =IF(L34="",J34,IF(L33=L34,"26=",IF(L34=L35,"27=",J34))) -> 29 | J34: 29 | N34: =IF(Q34="",O34,IF(Q33=Q34,"26=",IF(Q34=Q35,"27=",O34))) -> 29 | O34: 29 | S34: =IF(V34="",T34,IF(V33=V34,"26=",IF(V34=V35,"27=",T34))) -> 29 | T34: 29
D35: =IF(G35="",E35,IF(G34=G35,"26=",IF(G35=G36,"27=",E35))) -> 30 | E35: 30 | I35: =IF(L35="",J35,IF(L34=L35,"26=",IF(L35=L36,"27=",J35))) -> 30 | J35: 30 | N35: =IF(Q35="",O35,IF(Q34=Q35,"26=",IF(Q35=Q36,"27=",O35))) -> 30 | O35: 30 | S35: =IF(V35="",T35,IF(V34=V35,"26=",IF(V35=V36,"27=",T35))) -> 30 | T35: 30
D36: =IF(G36="",E36,IF(G35=G36,"26=",IF(G36=G37,"27=",E36))) -> 31 | E36: 31 | I36: =IF(L36="",J36,IF(L35=L36,"26=",IF(L36=L37,"27=",J36))) -> 31 | J36: 31 | N36: =IF(Q36="",O36,IF(Q35=Q36,"26=",IF(Q36=Q37,"27=",O36))) -> 31 | O36: 31 | S36: =IF(V36="",T36,IF(V35=V36,"26=",IF(V36=V37,"27=",T36))) -> 31 | T36: 31
C38: IFERROR(IF(W4="M",(RANK(X4,X$4:X$503,1)+COUNTIF(X$4:X4,X4)-1),""),)
A41: Total points and positions Calculator
A43: Team | B43: Name | C43: Stage 1 Pos | D43: Stage 1 Points | E43: Stage 2 pos | F43: Stage 2 Points | G43: Stage 3 pos | H43: Stage 3 points | I43: Position | J43: Total Points | K43: Team
A44: Team A | B44: =IFERROR(VLOOKUP(A44,'Set-Up'!$B$7:$C$37,2,FALSE),"") -> LSE | C44: =(IF(D44>0,(RANK(D44,$D$44:$D$74,0)+COUNTIF($D$44:D44,D44)-1),"")) -> 3 | D44: =C80 -> 104 | E44: =IF(F44>0,RANK(F44,$F$44:$F$74)+COUNTIF($F$44:F44,F44)-1,"") ->  | F44: =C119 -> 0 | G44: =IF(H44>0,RANK(H44,$H$44:$H$74)+COUNTIF($H$44:H44,H44)-1,"") ->  | H44: =C158 -> 0 | I44: =IF(J44>0,RANK(J44,$J$44:$J$74)+COUNTIF($J$44:J44,J44)-1,"") -> 3 | J44: =D44+F44+H44 -> 104 | K44: =B44 -> LSE
A45: Team B | B45: =IFERROR(VLOOKUP(A45,'Set-Up'!$B$7:$C$37,2,FALSE),"") -> King's | C45: =IFERROR(IF(D45>0,(RANK(D45,$D$44:$D$74)+COUNTIF($D$44:D45,D45)-1),""),) -> 2 | D45: =C81 -> 130 | E45: =IF(F45>0,RANK(F45,$F$44:$F$74)+COUNTIF($F$44:F45,F45)-1,"") ->  | F45: =C120 -> 0 | G45: =IF(H45>0,RANK(H45,$H$44:$H$74)+COUNTIF($H$44:H45,H45)-1,"") ->  | H45: =C159 -> 0 | I45: =IF(J45>0,RANK(J45,$J$44:$J$74)+COUNTIF($J$44:J45,J45)-1,"") -> 2 | J45: 130 | K45: =B45 -> King's
A46: Team C | B46: =IFERROR(VLOOKUP(A46,'Set-Up'!$B$7:$C$37,2,FALSE),"") -> Essex | C46: =IFERROR(IF(D46>0,(RANK(D46,$D$44:$D$74)+COUNTIF($D$44:D46,D46)-1),""),) -> 6 | D46: 34 | E46: =IF(F46>0,RANK(F46,$F$44:$F$74)+COUNTIF($F$44:F46,F46)-1,"") ->  | F46: 0 | G46: =IF(H46>0,RANK(H46,$H$44:$H$74)+COUNTIF($H$44:H46,H46)-1,"") ->  | H46: 0 | I46: =IF(J46>0,RANK(J46,$J$44:$J$74)+COUNTIF($J$44:J46,J46)-1,"") -> 6 | J46: 34 | K46: Essex
A47: Team D | B47: =IFERROR(VLOOKUP(A47,'Set-Up'!$B$7:$C$37,2,FALSE),"") -> RHUL | C47: =IFERROR(IF(D47>0,(RANK(D47,$D$44:$D$74)+COUNTIF($D$44:D47,D47)-1),""),) -> 9 | D47: 14 | E47: =IF(F47>0,RANK(F47,$F$44:$F$74)+COUNTIF($F$44:F47,F47)-1,"") ->  | F47: 0 | G47: =IF(H47>0,RANK(H47,$H$44:$H$74)+COUNTIF($H$44:H47,H47)-1,"") ->  | H47: 0 | I47: =IF(J47>0,RANK(J47,$J$44:$J$74)+COUNTIF($J$44:J47,J47)-1,"") -> 9 | J47: 14 | K47: RHUL
A48: Team E | B48: =IFERROR(VLOOKUP(A48,'Set-Up'!$B$7:$C$37,2,FALSE),"") -> UCL | C48: =IFERROR(IF(D48>0,(RANK(D48,$D$44:$D$74)+COUNTIF($D$44:D48,D48)-1),""),) -> 1 | D48: 181 | E48: =IF(F48>0,RANK(F48,$F$44:$F$74)+COUNTIF($F$44:F48,F48)-1,"") ->  | F48: 0 | G48: =IF(H48>0,RANK(H48,$H$44:$H$74)+COUNTIF($H$44:H48,H48)-1,"") ->  | H48: 0 | I48: =IF(J48>0,RANK(J48,$J$44:$J$74)+COUNTIF($J$44:J48,J48)-1,"") -> 1 | J48: 181 | K48: UCL
A49: Team F | B49: =IFERROR(VLOOKUP(A49,'Set-Up'!$B$7:$C$37,2,FALSE),"") -> Imperial | C49: =IFERROR(IF(D49>0,(RANK(D49,$D$44:$D$74)+COUNTIF($D$44:D49,D49)-1),""),) -> 5 | D49: 57 | E49: =IF(F49>0,RANK(F49,$F$44:$F$74)+COUNTIF($F$44:F49,F49)-1,"") ->  | F49: 0 | G49: =IF(H49>0,RANK(H49,$H$44:$H$74)+COUNTIF($H$44:H49,H49)-1,"") ->  | H49: 0 | I49: =IF(J49>0,RANK(J49,$J$44:$J$74)+COUNTIF($J$44:J49,J49)-1,"") -> 5 | J49: 57 | K49: Imperial
A50: Team G | B50: =IFERROR(VLOOKUP(A50,'Set-Up'!$B$7:$C$37,2,FALSE),"") -> QMUL | C50: =IFERROR(IF(D50>0,(RANK(D50,$D$44:$D$74)+COUNTIF($D$44:D50,D50)-1),""),) -> 7 | D50: 28 | E50: =IF(F50>0,RANK(F50,$F$44:$F$74)+COUNTIF($F$44:F50,F50)-1,"") ->  | F50: 0 | G50: =IF(H50>0,RANK(H50,$H$44:$H$74)+COUNTIF($H$44:H50,H50)-1,"") ->  | H50: 0 | I50: =IF(J50>0,RANK(J50,$J$44:$J$74)+COUNTIF($J$44:J50,J50)-1,"") -> 7 | J50: 28 | K50: QMUL
A51: Team H | B51: =IFERROR(VLOOKUP(A51,'Set-Up'!$B$7:$C$37,2,FALSE),"") -> SMU | C51: =IFERROR(IF(D51>0,(RANK(D51,$D$44:$D$74)+COUNTIF($D$44:D51,D51)-1),""),) -> 4 | D51: 83 | E51: =IF(F51>0,RANK(F51,$F$44:$F$74)+COUNTIF($F$44:F51,F51)-1,"") ->  | F51: 0 | G51: =IF(H51>0,RANK(H51,$H$44:$H$74)+COUNTIF($H$44:H51,H51)-1,"") ->  | H51: 0 | I51: =IF(J51>0,RANK(J51,$J$44:$J$74)+COUNTIF($J$44:J51,J51)-1,"") -> 4 | J51: 83 | K51: SMU
A52: Team I | B52: =IFERROR(VLOOKUP(A52,'Set-Up'!$B$7:$C$37,2,FALSE),"") -> Brunel | C52: =IFERROR(IF(D52>0,(RANK(D52,$D$44:$D$74)+COUNTIF($D$44:D52,D52)-1),""),) -> 8 | D52: 21 | E52: =IF(F52>0,RANK(F52,$F$44:$F$74)+COUNTIF($F$44:F52,F52)-1,"") ->  | F52: 0 | G52: =IF(H52>0,RANK(H52,$H$44:$H$74)+COUNTIF($H$44:H52,H52)-1,"") ->  | H52: 0 | I52: =IF(J52>0,RANK(J52,$J$44:$J$74)+COUNTIF($J$44:J52,J52)-1,"") -> 8 | J52: 21 | K52: Brunel
A53: Team J | B53: =IFERROR(VLOOKUP(A53,'Set-Up'!$B$7:$C$37,2,FALSE),"") -> Guests | C53: =IFERROR(IF(D53>0,(RANK(D53,$D$44:$D$74)+COUNTIF($D$44:D53,D53)-1),""),) ->  | D53: 0 | E53: =IF(F53>0,RANK(F53,$F$44:$F$74)+COUNTIF($F$44:F53,F53)-1,"") ->  | F53: 0 | G53: =IF(H53>0,RANK(H53,$H$44:$H$74)+COUNTIF($H$44:H53,H53)-1,"") ->  | H53: 0 | I53: =IF(J53>0,RANK(J53,$J$44:$J$74)+COUNTIF($J$44:J53,J53)-1,"") ->  | J53: 0 | K53: Guests
A54: Team K | B54: =IFERROR(VLOOKUP(A54,'Set-Up'!$B$7:$C$37,2,FALSE),"") -> UEL | C54: =IFERROR(IF(D54>0,(RANK(D54,$D$44:$D$74)+COUNTIF($D$44:D54,D54)-1),""),) -> 12 | D54: 1 | E54: =IF(F54>0,RANK(F54,$F$44:$F$74)+COUNTIF($F$44:F54,F54)-1,"") ->  | F54: 0 | G54: =IF(H54>0,RANK(H54,$H$44:$H$74)+COUNTIF($H$44:H54,H54)-1,"") ->  | H54: 0 | I54: =IF(J54>0,RANK(J54,$J$44:$J$74)+COUNTIF($J$44:J54,J54)-1,"") -> 12 | J54: 1 | K54: UEL
A55: Team L | B55: =IFERROR(VLOOKUP(A55,'Set-Up'!$B$7:$C$37,2,FALSE),"") -> UofL | C55: =IFERROR(IF(D55>0,(RANK(D55,$D$44:$D$74)+COUNTIF($D$44:D55,D55)-1),""),) -> 10 | D55: 7 | E55: =IF(F55>0,RANK(F55,$F$44:$F$74)+COUNTIF($F$44:F55,F55)-1,"") ->  | F55: 0 | G55: =IF(H55>0,RANK(H55,$H$44:$H$74)+COUNTIF($H$44:H55,H55)-1,"") ->  | H55: 0 | I55: =IF(J55>0,RANK(J55,$J$44:$J$74)+COUNTIF($J$44:J55,J55)-1,"") -> 10 | J55: 7 | K55: UofL
A56: Team M | B56: =IFERROR(VLOOKUP(A56,'Set-Up'!$B$7:$C$37,2,FALSE),"") -> 0 | C56: =IFERROR(IF(D56>0,(RANK(D56,$D$44:$D$74)+COUNTIF($D$44:D56,D56)-1),""),) ->  | D56: 0 | E56: =IF(F56>0,RANK(F56,$F$44:$F$74)+COUNTIF($F$44:F56,F56)-1,"") ->  | F56: 0 | G56: =IF(H56>0,RANK(H56,$H$44:$H$74)+COUNTIF($H$44:H56,H56)-1,"") ->  | H56: 0 | I56: =IF(J56>0,RANK(J56,$J$44:$J$74)+COUNTIF($J$44:J56,J56)-1,"") ->  | J56: 0 | K56: 0
A57: Team N | B57: =IFERROR(VLOOKUP(A57,'Set-Up'!$B$7:$C$37,2,FALSE),"") -> STG | C57: =IFERROR(IF(D57>0,(RANK(D57,$D$44:$D$74)+COUNTIF($D$44:D57,D57)-1),""),) -> 11 | D57: 5 | E57: =IF(F57>0,RANK(F57,$F$44:$F$74)+COUNTIF($F$44:F57,F57)-1,"") ->  | F57: 0 | G57: =IF(H57>0,RANK(H57,$H$44:$H$74)+COUNTIF($H$44:H57,H57)-1,"") ->  | H57: 0 | I57: =IF(J57>0,RANK(J57,$J$44:$J$74)+COUNTIF($J$44:J57,J57)-1,"") -> 11 | J57: 5 | K57: STG
A58: Team O | B58: =IFERROR(VLOOKUP(A58,'Set-Up'!$B$7:$C$37,2,FALSE),"") -> 0 | C58: =IFERROR(IF(D58>0,(RANK(D58,$D$44:$D$74)+COUNTIF($D$44:D58,D58)-1),""),) ->  | D58: 0 | E58: =IF(F58>0,RANK(F58,$F$44:$F$74)+COUNTIF($F$44:F58,F58)-1,"") ->  | F58: 0 | G58: =IF(H58>0,RANK(H58,$H$44:$H$74)+COUNTIF($H$44:H58,H58)-1,"") ->  | H58: 0 | I58: =IF(J58>0,RANK(J58,$J$44:$J$74)+COUNTIF($J$44:J58,J58)-1,"") ->  | J58: 0 | K58: 0
A59: Team P | B59: =IFERROR(VLOOKUP(A59,'Set-Up'!$B$7:$C$37,2,FALSE),"") -> 0 | C59: =IFERROR(IF(D59>0,(RANK(D59,$D$44:$D$74)+COUNTIF($D$44:D59,D59)-1),""),) ->  | D59: 0 | E59: =IF(F59>0,RANK(F59,$F$44:$F$74)+COUNTIF($F$44:F59,F59)-1,"") ->  | F59: 0 | G59: =IF(H59>0,RANK(H59,$H$44:$H$74)+COUNTIF($H$44:H59,H59)-1,"") ->  | H59: 0 | I59: =IF(J59>0,RANK(J59,$J$44:$J$74)+COUNTIF($J$44:J59,J59)-1,"") ->  | J59: 0 | K59: 0
A60: Team Q | B60: =IFERROR(VLOOKUP(A60,'Set-Up'!$B$7:$C$37,2,FALSE),"") -> 0 | C60: =IFERROR(IF(D60>0,(RANK(D60,$D$44:$D$74)+COUNTIF($D$44:D60,D60)-1),""),) ->  | D60: 0 | E60: =IF(F60>0,RANK(F60,$F$44:$F$74)+COUNTIF($F$44:F60,F60)-1,"") ->  | F60: 0 | G60: =IF(H60>0,RANK(H60,$H$44:$H$74)+COUNTIF($H$44:H60,H60)-1,"") ->  | H60: 0 | I60: =IF(J60>0,RANK(J60,$J$44:$J$74)+COUNTIF($J$44:J60,J60)-1,"") ->  | J60: 0 | K60: 0
A61: Team R | B61: =IFERROR(VLOOKUP(A61,'Set-Up'!$B$7:$C$37,2,FALSE),"") -> 0 | C61: =IFERROR(IF(D61>0,(RANK(D61,$D$44:$D$74)+COUNTIF($D$44:D61,D61)-1),""),) ->  | D61: 0 | E61: =IF(F61>0,RANK(F61,$F$44:$F$74)+COUNTIF($F$44:F61,F61)-1,"") ->  | F61: 0 | G61: =IF(H61>0,RANK(H61,$H$44:$H$74)+COUNTIF($H$44:H61,H61)-1,"") ->  | H61: 0 | I61: =IF(J61>0,RANK(J61,$J$44:$J$74)+COUNTIF($J$44:J61,J61)-1,"") ->  | J61: 0 | K61: 0
A62: Team S | B62: =IFERROR(VLOOKUP(A62,'Set-Up'!$B$7:$C$37,2,FALSE),"") -> 0 | C62: =IFERROR(IF(D62>0,(RANK(D62,$D$44:$D$74)+COUNTIF($D$44:D62,D62)-1),""),) ->  | D62: 0 | E62: =IF(F62>0,RANK(F62,$F$44:$F$74)+COUNTIF($F$44:F62,F62)-1,"") ->  | F62: 0 | G62: =IF(H62>0,RANK(H62,$H$44:$H$74)+COUNTIF($H$44:H62,H62)-1,"") ->  | H62: 0 | I62: =IF(J62>0,RANK(J62,$J$44:$J$74)+COUNTIF($J$44:J62,J62)-1,"") ->  | J62: 0 | K62: 0
A63: Team T | B63: =IFERROR(VLOOKUP(A63,'Set-Up'!$B$7:$C$37,2,FALSE),"") -> 0 | C63: =IFERROR(IF(D63>0,(RANK(D63,$D$44:$D$74)+COUNTIF($D$44:D63,D63)-1),""),) ->  | D63: 0 | E63: =IF(F63>0,RANK(F63,$F$44:$F$74)+COUNTIF($F$44:F63,F63)-1,"") ->  | F63: 0 | G63: =IF(H63>0,RANK(H63,$H$44:$H$74)+COUNTIF($H$44:H63,H63)-1,"") ->  | H63: 0 | I63: =IF(J63>0,RANK(J63,$J$44:$J$74)+COUNTIF($J$44:J63,J63)-1,"") ->  | J63: 0 | K63: 0
A64: Team U | B64: =IFERROR(VLOOKUP(A64,'Set-Up'!$B$7:$C$37,2,FALSE),"") -> 0 | C64: =IFERROR(IF(D64>0,(RANK(D64,$D$44:$D$74)+COUNTIF($D$44:D64,D64)-1),""),) ->  | D64: 0 | E64: =IF(F64>0,RANK(F64,$F$44:$F$74)+COUNTIF($F$44:F64,F64)-1,"") ->  | F64: 0 | G64: =IF(H64>0,RANK(H64,$H$44:$H$74)+COUNTIF($H$44:H64,H64)-1,"") ->  | H64: 0 | I64: =IF(J64>0,RANK(J64,$J$44:$J$74)+COUNTIF($J$44:J64,J64)-1,"") ->  | J64: 0 | K64: 0
A65: Team V | B65: =IFERROR(VLOOKUP(A65,'Set-Up'!$B$7:$C$37,2,FALSE),"") -> 0 | C65: =IFERROR(IF(D65>0,(RANK(D65,$D$44:$D$74)+COUNTIF($D$44:D65,D65)-1),""),) ->  | D65: 0 | E65: =IF(F65>0,RANK(F65,$F$44:$F$74)+COUNTIF($F$44:F65,F65)-1,"") ->  | F65: =C140 -> 0 | G65: =IF(H65>0,RANK(H65,$H$44:$H$74)+COUNTIF($H$44:H65,H65)-1,"") ->  | H65: =C179 -> 0 | I65: =IF(J65>0,RANK(J65,$J$44:$J$74)+COUNTIF($J$44:J65,J65)-1,"") ->  | J65: 0 | K65: 0
A66: Team W | B66: =IFERROR(VLOOKUP(A66,'Set-Up'!$B$7:$C$37,2,FALSE),"") -> 0 | C66: =IFERROR(IF(D66>0,(RANK(D66,$D$44:$D$74)+COUNTIF($D$44:D66,D66)-1),""),) ->  | D66: 0 | E66: =IF(F66>0,RANK(F66,$F$44:$F$74)+COUNTIF($F$44:F66,F66)-1,"") ->  | F66: 0 | G66: =IF(H66>0,RANK(H66,$H$44:$H$74)+COUNTIF($H$44:H66,H66)-1,"") ->  | H66: 0 | I66: =IF(J66>0,RANK(J66,$J$44:$J$74)+COUNTIF($J$44:J66,J66)-1,"") ->  | J66: 0 | K66: 0
A67: Team X | B67: =IFERROR(VLOOKUP(A67,'Set-Up'!$B$7:$C$37,2,FALSE),"") -> 0 | C67: =IFERROR(IF(D67>0,(RANK(D67,$D$44:$D$74)+COUNTIF($D$44:D67,D67)-1),""),) ->  | D67: 0 | E67: =IF(F67>0,RANK(F67,$F$44:$F$74)+COUNTIF($F$44:F67,F67)-1,"") ->  | F67: 0 | G67: =IF(H67>0,RANK(H67,$H$44:$H$74)+COUNTIF($H$44:H67,H67)-1,"") ->  | H67: 0 | I67: =IF(J67>0,RANK(J67,$J$44:$J$74)+COUNTIF($J$44:J67,J67)-1,"") ->  | J67: 0 | K67: 0
A68: Team Y | B68: =IFERROR(VLOOKUP(A68,'Set-Up'!$B$7:$C$37,2,FALSE),"") -> 0 | C68: =IFERROR(IF(D68>0,(RANK(D68,$D$44:$D$74)+COUNTIF($D$44:D68,D68)-1),""),) ->  | D68: 0 | E68: =IF(F68>0,RANK(F68,$F$44:$F$74)+COUNTIF($F$44:F68,F68)-1,"") ->  | F68: 0 | G68: =IF(H68>0,RANK(H68,$H$44:$H$74)+COUNTIF($H$44:H68,H68)-1,"") ->  | H68: 0 | I68: =IF(J68>0,RANK(J68,$J$44:$J$74)+COUNTIF($J$44:J68,J68)-1,"") ->  | J68: 0 | K68: 0
A69: Team Z | B69: =IFERROR(VLOOKUP(A69,'Set-Up'!$B$7:$C$37,2,FALSE),"") -> 0 | C69: =IFERROR(IF(D69>0,(RANK(D69,$D$44:$D$74)+COUNTIF($D$44:D69,D69)-1),""),) ->  | D69: 0 | E69: =IF(F69>0,RANK(F69,$F$44:$F$74)+COUNTIF($F$44:F69,F69)-1,"") ->  | F69: 0 | G69: =IF(H69>0,RANK(H69,$H$44:$H$74)+COUNTIF($H$44:H69,H69)-1,"") ->  | H69: 0 | I69: =IF(J69>0,RANK(J69,$J$44:$J$74)+COUNTIF($J$44:J69,J69)-1,"") ->  | J69: 0 | K69: 0
A70: Team AA | B70: =IFERROR(VLOOKUP(A70,'Set-Up'!$B$7:$C$37,2,FALSE),"") -> 0 | C70: =IFERROR(IF(D70>0,(RANK(D70,$D$44:$D$74)+COUNTIF($D$44:D70,D70)-1),""),) ->  | D70: 0 | E70: =IF(F70>0,RANK(F70,$F$44:$F$74)+COUNTIF($F$44:F70,F70)-1,"") ->  | F70: 0 | G70: =IF(H70>0,RANK(H70,$H$44:$H$74)+COUNTIF($H$44:H70,H70)-1,"") ->  | H70: 0 | I70: =IF(J70>0,RANK(J70,$J$44:$J$74)+COUNTIF($J$44:J70,J70)-1,"") ->  | J70: 0 | K70: 0
A71: Team AB | B71: =IFERROR(VLOOKUP(A71,'Set-Up'!$B$7:$C$37,2,FALSE),"") -> 0 | C71: =IFERROR(IF(D71>0,(RANK(D71,$D$44:$D$74)+COUNTIF($D$44:D71,D71)-1),""),) ->  | D71: 0 | E71: =IF(F71>0,RANK(F71,$F$44:$F$74)+COUNTIF($F$44:F71,F71)-1,"") ->  | F71: 0 | G71: =IF(H71>0,RANK(H71,$H$44:$H$74)+COUNTIF($H$44:H71,H71)-1,"") ->  | H71: 0 | I71: =IF(J71>0,RANK(J71,$J$44:$J$74)+COUNTIF($J$44:J71,J71)-1,"") ->  | J71: 0 | K71: 0
A72: Team AC | B72: =IFERROR(VLOOKUP(A72,'Set-Up'!$B$7:$C$37,2,FALSE),"") -> 0 | C72: =IFERROR(IF(D72>0,(RANK(D72,$D$44:$D$74)+COUNTIF($D$44:D72,D72)-1),""),) ->  | D72: 0 | E72: =IF(F72>0,RANK(F72,$F$44:$F$74)+COUNTIF($F$44:F72,F72)-1,"") ->  | F72: 0 | G72: =IF(H72>0,RANK(H72,$H$44:$H$74)+COUNTIF($H$44:H72,H72)-1,"") ->  | H72: 0 | I72: =IF(J72>0,RANK(J72,$J$44:$J$74)+COUNTIF($J$44:J72,J72)-1,"") ->  | J72: 0 | K72: 0
A73: Team AD | B73: =IFERROR(VLOOKUP(A73,'Set-Up'!$B$7:$C$37,2,FALSE),"") -> 0 | C73: =IFERROR(IF(D73>0,(RANK(D73,$D$44:$D$74)+COUNTIF($D$44:D73,D73)-1),""),) ->  | D73: 0 | E73: =IF(F73>0,RANK(F73,$F$44:$F$74)+COUNTIF($F$44:F73,F73)-1,"") ->  | F73: 0 | G73: =IF(H73>0,RANK(H73,$H$44:$H$74)+COUNTIF($H$44:H73,H73)-1,"") ->  | H73: 0 | I73: =IF(J73>0,RANK(J73,$J$44:$J$74)+COUNTIF($J$44:J73,J73)-1,"") ->  | J73: 0 | K73: 0
A74: Team AE | B74: =IFERROR(VLOOKUP(A74,'Set-Up'!$B$7:$C$37,2,FALSE),"") -> 0 | C74: =IFERROR(IF(D74>0,(RANK(D74,$D$44:$D$74)+COUNTIF($D$44:D74,D74)-1),""),) ->  | D74: 0 | E74: =IF(F74>0,RANK(F74,$F$44:$F$74)+COUNTIF($F$44:F74,F74)-1,"") ->  | F74: 0 | G74: =IF(H74>0,RANK(H74,$H$44:$H$74)+COUNTIF($H$44:H74,H74)-1,"") ->  | H74: 0 | I74: =IF(J74>0,RANK(J74,$J$44:$J$74)+COUNTIF($J$44:J74,J74)-1,"") ->  | J74: 0 | K74: 0
A76: Stage 1 team points calculator
A78: Team | B78: Name | C78: Total | D78: 100H | E78: 110H | F78: 100 | G78: 200 | H78: 400 | I78: 400H | J78: 800 | K78: 1500 | L78: 1Mile | M78: 2000SC | N78: 3000 | O78: 3000SC | P78: 5000 | Q78: 10000 | R78: 4X100 | S78: 4X400 | T78: Multi | U78: HJ | V78: TJ | W78: LJ | X78: PV | Y78: SP | Z78: JT | AA78: Hammer | AB78: Discus | AC78: Club | AD78: Event 1 | AE78: Event 2 | AF78: Event 3 | AG78: Event 4 | AH78: Event 5 | AI78: Event 6 | AJ78: Event 7 | AK78: Event 8 | AL78: Event 9 | AM78: 100 | AN78: 200 | AO78: 400 | AP78: 400H | AQ78: 800 | AR78: 1500 | AS78: 1Mile | AT78: 2000SC | AU78: 3000 | AV78: 3000SC | AW78: 5000 | AX78: 10000 | AY78: 4X100 | AZ78: 4X400 | BA78: Multi | BB78: HJ | BC78: TJ | BD78: LJ | BE78: PV | BF78: SP | BG78: JT | BH78: Hammer | BI78: Discus | BJ78: Club | BK78: Event 1 | BL78: Event 2 | BM78: Event 3 | BN78: Event 4 | BO78: Event 5 | BP78: Event 6 | BQ78: Event 7 | BR78: Event 8 | BS78: Event 9 | BT78: Medley
A80: Team A | B80: =IFERROR(VLOOKUP(A80,'Set-Up'!$B$7:$C$37,2,FALSE),"") -> LSE | C80: =SUM(D80:BT80) -> 104 | D80: =VLOOKUP($B80,'100H110H'!$AZ$90:$BA$120,2,FALSE) -> 0 | E80: =VLOOKUP(B80,'100H110H'!$AZ$55:$BA$85,2,FALSE) -> 0 | F80: =VLOOKUP($B80,'100'!$AZ$55:$BA$85,2,FALSE) -> 4 | G80: =VLOOKUP($B80,'200'!$AZ$55:$BA$85,2,FALSE) -> 0 | H80: =VLOOKUP($B80,'400'!$AZ$55:$BA$85,2,FALSE) -> 0 | I80: =VLOOKUP($B80,'400H'!$AZ$55:$BA$85,2,FALSE) -> 7 | J80: =VLOOKUP($B80,'800'!$AZ$55:$BA$85,2,FALSE) -> 3 | K80: =VLOOKUP($B80,'1500'!$AZ$55:$BA$85,2,FALSE) -> 3 | M80: =VLOOKUP($B80,'2000SC'!$AZ$55:$BA$85,2,FALSE) -> 0 | N80: =VLOOKUP($B80,'3000'!$AZ$55:$BA$85,2,FALSE) -> 0 | O80: =VLOOKUP($B80,'3000SC'!$AZ$55:$BA$85,2,FALSE) -> 3 | P80: =VLOOKUP($B80,'5000'!$AZ$55:$BA$85,2,FALSE) -> 0 | Q80: =VLOOKUP($B80,'10000'!$AZ$55:$BA$85,2,FALSE) -> 0 | R80: =VLOOKUP($B80, '4X100'!$AS$55:$AT$85,2,FALSE) -> 3 | S80: =VLOOKUP($B80, '4X400'!$AS$55:$AT$85,2,FALSE) -> 5 | U80: =VLOOKUP($B80,HJ!$AY$55:$AZ$85,2,FALSE) -> 5 | V80: =VLOOKUP($B80,TJ!$AZ$55:$BA$85,2,FALSE) -> 0 | W80: =VLOOKUP($B80,LJ!$AZ$55:$BA$85,2,FALSE) -> 1 | Y80: =VLOOKUP($B80,SP!$AZ$55:$BA$85,2,FALSE) -> 4 | Z80: =VLOOKUP($B80,JT!$AZ$55:$BA$85,2,FALSE) -> 9 | AB80: =VLOOKUP($B80,DT!$AZ$55:$BA$85,2,FALSE) -> 5 | AM80: =VLOOKUP($B80,'100'!$AZ$90:$BA$120,2,FALSE) -> 7 | AN80: =VLOOKUP($B80,'200'!$AZ$90:$BA$120,2,FALSE) -> 2 | AO80: =VLOOKUP($B80,'400'!$AZ$90:$BA$120,2,FALSE) -> 0 | AP80: =VLOOKUP($B80,'400H'!$AZ$90:$BA$120,2,FALSE) -> 0 | AQ80: =VLOOKUP($B80,'800'!$AZ$90:$BA$120,2,FALSE) -> 0 | AR80: =VLOOKUP($B80,'1500'!$AZ$90:$BA$120,2,FALSE) -> 0 | AT80: =VLOOKUP($B80,'2000SC'!$AZ$90:$BA$120,2,FALSE) -> 0 | AU80: =VLOOKUP($B80,'3000'!$AZ$90:$BA$120,2,FALSE) -> 0 | AV80: =VLOOKUP($B80,'3000SC'!$AZ$90:$BA$120,2,FALSE) -> 0 | AW80: =VLOOKUP($B80,'5000'!$AZ$90:$BA$120,2,FALSE) -> 0 | AX80: =VLOOKUP($B80,'10000'!$AZ$90:$BA$120,2,FALSE) -> 0 | AY80: =VLOOKUP($B80,'4X100'!$AS$90:$AT$120,2,FALSE) -> 0 | AZ80: =VLOOKUP($B80,'4X400'!$AS$90:$AT$120,2,FALSE) -> 0 | BB80: =VLOOKUP($B80,HJ!$AY$90:$AZ$120,2,FALSE) -> 7 | BC80: =VLOOKUP($B80,TJ!$AZ$90:$BA$120,2,FALSE) -> 7 | BD80: =VLOOKUP($B80,LJ!$AZ$90:$BA$120,2,FALSE) -> 11 | BF80: =VLOOKUP($B80,SP!$AZ$90:$BA$120,2,FALSE) -> 7 | BG80: =VLOOKUP($B80,JT!$AZ$90:$BA$120,2,FALSE) -> 7 | BI80: =VLOOKUP($B80,DT!$AZ$90:$BA$120,2,FALSE) -> 4
A81: Team B | B81: =IFERROR(VLOOKUP(A81,'Set-Up'!$B$7:$C$37,2,FALSE),"") -> King's | C81: =SUM(D81:BT81) -> 130 | D81: =VLOOKUP($B81,'100H110H'!$AZ$90:$BA$120,2,FALSE) -> 7 | E81: =VLOOKUP(B81,'100H110H'!$AZ$55:$BA$85,2,FALSE) -> 0 | F81: =VLOOKUP($B81,'100'!$AZ$55:$BA$85,2,FALSE) -> 4 | G81: =VLOOKUP($B81,'200'!$AZ$55:$BA$85,2,FALSE) -> 6 | H81: =VLOOKUP($B81,'400'!$AZ$55:$BA$85,2,FALSE) -> 2 | I81: =VLOOKUP($B81,'400H'!$AZ$55:$BA$85,2,FALSE) -> 5 | J81: =VLOOKUP($B81,'800'!$AZ$55:$BA$85,2,FALSE) -> 0 | K81: =VLOOKUP($B81,'1500'!$AZ$55:$BA$85,2,FALSE) -> 3 | M81: =VLOOKUP($B81,'2000SC'!$AZ$55:$BA$85,2,FALSE) -> 0 | N81: =VLOOKUP($B81,'3000'!$AZ$55:$BA$85,2,FALSE) -> 0 | O81: =VLOOKUP($B81,'3000SC'!$AZ$55:$BA$85,2,FALSE) -> 5 | P81: =VLOOKUP($B81,'5000'!$AZ$55:$BA$85,2,FALSE) -> 0 | Q81: =VLOOKUP($B81,'10000'!$AZ$55:$BA$85,2,FALSE) -> 0 | R81: =VLOOKUP($B81, '4X100'!$AS$55:$AT$85,2,FALSE) -> 7 | S81: =VLOOKUP($B81, '4X400'!$AS$55:$AT$85,2,FALSE) -> 4 | U81: =VLOOKUP($B81,HJ!$AY$55:$AZ$85,2,FALSE) -> 7 | V81: =VLOOKUP($B81,TJ!$AZ$55:$BA$85,2,FALSE) -> 7 | W81: =VLOOKUP($B81,LJ!$AZ$55:$BA$85,2,FALSE) -> 11 | Y81: =VLOOKUP($B81,SP!$AZ$55:$BA$85,2,FALSE) -> 3 | Z81: =VLOOKUP($B81,JT!$AZ$55:$BA$85,2,FALSE) -> 4 | AB81: =VLOOKUP($B81,DT!$AZ$55:$BA$85,2,FALSE) -> 3 | AM81: =VLOOKUP($B81,'100'!$AZ$90:$BA$120,2,FALSE) -> 2 | AN81: =VLOOKUP($B81,'200'!$AZ$90:$BA$120,2,FALSE) -> 9 | AO81: =VLOOKUP($B81,'400'!$AZ$90:$BA$120,2,FALSE) -> 7 | AP81: =VLOOKUP($B81,'400H'!$AZ$90:$BA$120,2,FALSE) -> 0 | AQ81: =VLOOKUP($B81,'800'!$AZ$90:$BA$120,2,FALSE) -> 0 | AR81: =VLOOKUP($B81,'1500'!$AZ$90:$BA$120,2,FALSE) -> 2 | AT81: =VLOOKUP($B81,'2000SC'!$AZ$90:$BA$120,2,FALSE) -> 0 | AU81: =VLOOKUP($B81,'3000'!$AZ$90:$BA$120,2,FALSE) -> 0 | AV81: =VLOOKUP($B81,'3000SC'!$AZ$90:$BA$120,2,FALSE) -> 0 | AW81: =VLOOKUP($B81,'5000'!$AZ$90:$BA$120,2,FALSE) -> 0 | AX81: =VLOOKUP($B81,'10000'!$AZ$90:$BA$120,2,FALSE) -> 0 | AY81: =VLOOKUP($B81,'4X100'!$AS$90:$AT$120,2,FALSE) -> 5 | AZ81: =VLOOKUP($B81,'4X400'!$AS$90:$AT$120,2,FALSE) -> 5 | BB81: =VLOOKUP($B81,HJ!$AY$90:$AZ$120,2,FALSE) -> 6 | BC81: =VLOOKUP($B81,HJ!$AY$90:$AZ$120,2,FALSE) -> 6 | BD81: =VLOOKUP($B81,LJ!$AZ$90:$BA$120,2,FALSE) -> 3 | BF81: =VLOOKUP($B81,SP!$AZ$90:$BA$120,2,FALSE) -> 4 | BG81: =VLOOKUP($B81,JT!$AZ$90:$BA$120,2,FALSE) -> 0 | BI81: =VLOOKUP($B81,DT!$AZ$90:$BA$120,2,FALSE) -> 3
A82: Team C | B82: =IFERROR(VLOOKUP(A82,'Set-Up'!$B$7:$C$37,2,FALSE),"") -> Essex | C82: 34 | D82: =VLOOKUP($B82,'100H110H'!$AZ$90:$BA$120,2,FALSE) -> 0 | E82: =VLOOKUP(B82,'100H110H'!$AZ$55:$BA$85,2,FALSE) -> 0 | F82: =VLOOKUP($B82,'100'!$AZ$55:$BA$85,2,FALSE) -> 0 | G82: =VLOOKUP($B82,'200'!$AZ$55:$BA$85,2,FALSE) -> 7 | H82: =VLOOKUP($B82,'400'!$AZ$55:$BA$85,2,FALSE) -> 0 | I82: =VLOOKUP($B82,'400H'!$AZ$55:$BA$85,2,FALSE) -> 4 | J82: =VLOOKUP($B82,'800'!$AZ$55:$BA$85,2,FALSE) -> 0 | K82: =VLOOKUP($B82,'1500'!$AZ$55:$BA$85,2,FALSE) -> 0 | M82: =VLOOKUP($B82,'2000SC'!$AZ$55:$BA$85,2,FALSE) -> 0 | N82: =VLOOKUP($B82,'3000'!$AZ$55:$BA$85,2,FALSE) -> 0 | O82: =VLOOKUP($B82,'3000SC'!$AZ$55:$BA$85,2,FALSE) -> 0 | P82: =VLOOKUP($B82,'5000'!$AZ$55:$BA$85,2,FALSE) -> 0 | Q82: =VLOOKUP($B82,'10000'!$AZ$55:$BA$85,2,FALSE) -> 2 | R82: =VLOOKUP($B82, '4X100'!$AS$55:$AT$85,2,FALSE) -> 5 | S82: =VLOOKUP($B82, '4X400'!$AS$55:$AT$85,2,FALSE) -> 0 | U82: =VLOOKUP($B82,HJ!$AY$55:$AZ$85,2,FALSE) -> 0 | V82: =VLOOKUP($B82,TJ!$AZ$55:$BA$85,2,FALSE) -> 0 | W82: =VLOOKUP($B82,LJ!$AZ$55:$BA$85,2,FALSE) -> 0 | Y82: =VLOOKUP($B82,SP!$AZ$55:$BA$85,2,FALSE) -> 0 | Z82: =VLOOKUP($B82,JT!$AZ$55:$BA$85,2,FALSE) -> 0 | AB82: =VLOOKUP($B82,DT!$AZ$55:$BA$85,2,FALSE) -> 0 | AM82: =VLOOKUP($B82,'100'!$AZ$90:$BA$120,2,FALSE) -> 8 | AN82: =VLOOKUP($B82,'200'!$AZ$90:$BA$120,2,FALSE) -> 3 | AO82: =VLOOKUP($B82,'400'!$AZ$90:$BA$120,2,FALSE) -> 0 | AP82: =VLOOKUP($B82,'400H'!$AZ$90:$BA$120,2,FALSE) -> 0 | AQ82: =VLOOKUP($B82,'800'!$AZ$90:$BA$120,2,FALSE) -> 0 | AR82: =VLOOKUP($B82,'1500'!$AZ$90:$BA$120,2,FALSE) -> 0 | AT82: =VLOOKUP($B82,'2000SC'!$AZ$90:$BA$120,2,FALSE) -> 0 | AU82: =VLOOKUP($B82,'3000'!$AZ$90:$BA$120,2,FALSE) -> 0 | AV82: =VLOOKUP($B82,'3000SC'!$AZ$90:$BA$120,2,FALSE) -> 0 | AW82: =VLOOKUP($B82,'5000'!$AZ$90:$BA$120,2,FALSE) -> 0 | AX82: =VLOOKUP($B82,'10000'!$AZ$90:$BA$120,2,FALSE) -> 0 | AY82: =VLOOKUP($B82,'4X100'!$AS$90:$AT$120,2,FALSE) -> 0 | AZ82: =VLOOKUP($B82,'4X400'!$AS$90:$AT$120,2,FALSE) -> 0 | BB82: =VLOOKUP($B82,HJ!$AY$90:$AZ$120,2,FALSE) -> 0 | BC82: =VLOOKUP($B82,HJ!$AY$90:$AZ$120,2,FALSE) -> 0 | BD82: =VLOOKUP($B82,LJ!$AZ$90:$BA$120,2,FALSE) -> 0 | BF82: =VLOOKUP($B82,SP!$AZ$90:$BA$120,2,FALSE) -> 0 | BG82: =VLOOKUP($B82,JT!$AZ$90:$BA$120,2,FALSE) -> 0 | BI82: =VLOOKUP($B82,DT!$AZ$90:$BA$120,2,FALSE) -> 5
A83: Team D | B83: =IFERROR(VLOOKUP(A83,'Set-Up'!$B$7:$C$37,2,FALSE),"") -> RHUL | C83: 14 | D83: =VLOOKUP($B83,'100H110H'!$AZ$90:$BA$120,2,FALSE) -> 0 | E83: =VLOOKUP(B83,'100H110H'!$AZ$55:$BA$85,2,FALSE) -> 0 | F83: =VLOOKUP($B83,'100'!$AZ$55:$BA$85,2,FALSE) -> 0 | G83: =VLOOKUP($B83,'200'!$AZ$55:$BA$85,2,FALSE) -> 2 | H83: =VLOOKUP($B83,'400'!$AZ$55:$BA$85,2,FALSE) -> 0 | I83: =VLOOKUP($B83,'400H'!$AZ$55:$BA$85,2,FALSE) -> 0 | J83: =VLOOKUP($B83,'800'!$AZ$55:$BA$85,2,FALSE) -> 0 | K83: =VLOOKUP($B83,'1500'!$AZ$55:$BA$85,2,FALSE) -> 0 | M83: =VLOOKUP($B83,'2000SC'!$AZ$55:$BA$85,2,FALSE) -> 0 | N83: =VLOOKUP($B83,'3000'!$AZ$55:$BA$85,2,FALSE) -> 0 | O83: =VLOOKUP($B83,'3000SC'!$AZ$55:$BA$85,2,FALSE) -> 0 | P83: =VLOOKUP($B83,'5000'!$AZ$55:$BA$85,2,FALSE) -> 0 | Q83: =VLOOKUP($B83,'10000'!$AZ$55:$BA$85,2,FALSE) -> 0 | R83: =VLOOKUP($B83, '4X100'!$AS$55:$AT$85,2,FALSE) -> 0 | S83: =VLOOKUP($B83, '4X400'!$AS$55:$AT$85,2,FALSE) -> 0 | U83: =VLOOKUP($B83,HJ!$AY$55:$AZ$85,2,FALSE) -> 0 | V83: =VLOOKUP($B83,TJ!$AZ$55:$BA$85,2,FALSE) -> 0 | W83: =VLOOKUP($B83,LJ!$AZ$55:$BA$85,2,FALSE) -> 0 | Y83: =VLOOKUP($B83,SP!$AZ$55:$BA$85,2,FALSE) -> 0 | Z83: =VLOOKUP($B83,JT!$AZ$55:$BA$85,2,FALSE) -> 0 | AB83: =VLOOKUP($B83,DT!$AZ$55:$BA$85,2,FALSE) -> 0 | AM83: =VLOOKUP($B83,'100'!$AZ$90:$BA$120,2,FALSE) -> 4 | AN83: =VLOOKUP($B83,'200'!$AZ$90:$BA$120,2,FALSE) -> 0 | AO83: =VLOOKUP($B83,'400'!$AZ$90:$BA$120,2,FALSE) -> 0 | AP83: =VLOOKUP($B83,'400H'!$AZ$90:$BA$120,2,FALSE) -> 0 | AQ83: =VLOOKUP($B83,'800'!$AZ$90:$BA$120,2,FALSE) -> 0 | AR83: =VLOOKUP($B83,'1500'!$AZ$90:$BA$120,2,FALSE) -> 0 | AT83: =VLOOKUP($B83,'2000SC'!$AZ$90:$BA$120,2,FALSE) -> 0 | AU83: =VLOOKUP($B83,'3000'!$AZ$90:$BA$120,2,FALSE) -> 0 | AV83: =VLOOKUP($B83,'3000SC'!$AZ$90:$BA$120,2,FALSE) -> 0 | AW83: =VLOOKUP($B83,'5000'!$AZ$90:$BA$120,2,FALSE) -> 3 | AX83: =VLOOKUP($B83,'10000'!$AZ$90:$BA$120,2,FALSE) -> 0 | AY83: =VLOOKUP($B83,'4X100'!$AS$90:$AT$120,2,FALSE) -> 0 | AZ83: =VLOOKUP($B83,'4X400'!$AS$90:$AT$120,2,FALSE) -> 0 | BB83: =VLOOKUP($B83,HJ!$AY$90:$AZ$120,2,FALSE) -> 0 | BC83: =VLOOKUP($B83,HJ!$AY$90:$AZ$120,2,FALSE) -> 0 | BD83: =VLOOKUP($B83,LJ!$AZ$90:$BA$120,2,FALSE) -> 5 | BF83: =VLOOKUP($B83,SP!$AZ$90:$BA$120,2,FALSE) -> 0 | BG83: =VLOOKUP($B83,JT!$AZ$90:$BA$120,2,FALSE) -> 0 | BI83: =VLOOKUP($B83,DT!$AZ$90:$BA$120,2,FALSE) -> 0
A84: Team E | B84: =IFERROR(VLOOKUP(A84,'Set-Up'!$B$7:$C$37,2,FALSE),"") -> UCL | C84: 181 | D84: =VLOOKUP($B84,'100H110H'!$AZ$90:$BA$120,2,FALSE) -> 5 | E84: =VLOOKUP(B84,'100H110H'!$AZ$55:$BA$85,2,FALSE) -> 0 | F84: =VLOOKUP($B84,'100'!$AZ$55:$BA$85,2,FALSE) -> 0 | G84: =VLOOKUP($B84,'200'!$AZ$55:$BA$85,2,FALSE) -> 0 | H84: =VLOOKUP($B84,'400'!$AZ$55:$BA$85,2,FALSE) -> 4 | I84: =VLOOKUP($B84,'400H'!$AZ$55:$BA$85,2,FALSE) -> 0 | J84: =VLOOKUP($B84,'800'!$AZ$55:$BA$85,2,FALSE) -> 6 | K84: =VLOOKUP($B84,'1500'!$AZ$55:$BA$85,2,FALSE) -> 4 | M84: =VLOOKUP($B84,'2000SC'!$AZ$55:$BA$85,2,FALSE) -> 0 | N84: =VLOOKUP($B84,'3000'!$AZ$55:$BA$85,2,FALSE) -> 0 | O84: =VLOOKUP($B84,'3000SC'!$AZ$55:$BA$85,2,FALSE) -> 0 | P84: =VLOOKUP($B84,'5000'!$AZ$55:$BA$85,2,FALSE) -> 10 | Q84: =VLOOKUP($B84,'10000'!$AZ$55:$BA$85,2,FALSE) -> 4 | R84: =VLOOKUP($B84, '4X100'!$AS$55:$AT$85,2,FALSE) -> 4 | S84: =VLOOKUP($B84, '4X400'!$AS$55:$AT$85,2,FALSE) -> 7 | U84: =VLOOKUP($B84,HJ!$AY$55:$AZ$85,2,FALSE) -> 0 | V84: =VLOOKUP($B84,TJ!$AZ$55:$BA$85,2,FALSE) -> 5 | W84: =VLOOKUP($B84,LJ!$AZ$55:$BA$85,2,FALSE) -> 5 | Y84: =VLOOKUP($B84,SP!$AZ$55:$BA$85,2,FALSE) -> 5 | Z84: =VLOOKUP($B84,JT!$AZ$55:$BA$85,2,FALSE) -> 5 | AB84: =VLOOKUP($B84,DT!$AZ$55:$BA$85,2,FALSE) -> 1 | AM84: =VLOOKUP($B84,'100'!$AZ$90:$BA$120,2,FALSE) -> 1 | AN84: =VLOOKUP($B84,'200'!$AZ$90:$BA$120,2,FALSE) -> 1 | AO84: =VLOOKUP($B84,'400'!$AZ$90:$BA$120,2,FALSE) -> 4 | AP84: =VLOOKUP($B84,'400H'!$AZ$90:$BA$120,2,FALSE) -> 7 | AQ84: =VLOOKUP($B84,'800'!$AZ$90:$BA$120,2,FALSE) -> 12 | AR84: =VLOOKUP($B84,'1500'!$AZ$90:$BA$120,2,FALSE) -> 10 | AT84: =VLOOKUP($B84,'2000SC'!$AZ$90:$BA$120,2,FALSE) -> 12 | AU84: =VLOOKUP($B84,'3000'!$AZ$90:$BA$120,2,FALSE) -> 0 | AV84: =VLOOKUP($B84,'3000SC'!$AZ$90:$BA$120,2,FALSE) -> 0 | AW84: =VLOOKUP($B84,'5000'!$AZ$90:$BA$120,2,FALSE) -> 4 | AX84: =VLOOKUP($B84,'10000'!$AZ$90:$BA$120,2,FALSE) -> 12 | AY84: =VLOOKUP($B84,'4X100'!$AS$90:$AT$120,2,FALSE) -> 7 | AZ84: =VLOOKUP($B84,'4X400'!$AS$90:$AT$120,2,FALSE) -> 7 | BB84: =VLOOKUP($B84,HJ!$AY$90:$AZ$120,2,FALSE) -> 8 | BC84: =VLOOKUP($B84,HJ!$AY$90:$AZ$120,2,FALSE) -> 8 | BD84: =VLOOKUP($B84,LJ!$AZ$90:$BA$120,2,FALSE) -> 3 | BF84: =VLOOKUP($B84,SP!$AZ$90:$BA$120,2,FALSE) -> 10 | BG84: =VLOOKUP($B84,JT!$AZ$90:$BA$120,2,FALSE) -> 3 | BI84: =VLOOKUP($B84,DT!$AZ$90:$BA$120,2,FALSE) -> 7
A85: Team F | B85: =IFERROR(VLOOKUP(A85,'Set-Up'!$B$7:$C$37,2,FALSE),"") -> Imperial | C85: 57 | D85: =VLOOKUP($B85,'100H110H'!$AZ$90:$BA$120,2,FALSE) -> 0 | E85: =VLOOKUP(B85,'100H110H'!$AZ$55:$BA$85,2,FALSE) -> 0 | F85: =VLOOKUP($B85,'100'!$AZ$55:$BA$85,2,FALSE) -> 5 | G85: =VLOOKUP($B85,'200'!$AZ$55:$BA$85,2,FALSE) -> 0 | H85: =VLOOKUP($B85,'400'!$AZ$55:$BA$85,2,FALSE) -> 0 | I85: =VLOOKUP($B85,'400H'!$AZ$55:$BA$85,2,FALSE) -> 3 | J85: =VLOOKUP($B85,'800'!$AZ$55:$BA$85,2,FALSE) -> 1 | K85: =VLOOKUP($B85,'1500'!$AZ$55:$BA$85,2,FALSE) -> 0 | M85: =VLOOKUP($B85,'2000SC'!$AZ$55:$BA$85,2,FALSE) -> 0 | N85: =VLOOKUP($B85,'3000'!$AZ$55:$BA$85,2,FALSE) -> 0 | O85: =VLOOKUP($B85,'3000SC'!$AZ$55:$BA$85,2,FALSE) -> 0 | P85: =VLOOKUP($B85,'5000'!$AZ$55:$BA$85,2,FALSE) -> 2 | Q85: =VLOOKUP($B85,'10000'!$AZ$55:$BA$85,2,FALSE) -> 7 | R85: =VLOOKUP($B85, '4X100'!$AS$55:$AT$85,2,FALSE) -> 1 | S85: =VLOOKUP($B85, '4X400'!$AS$55:$AT$85,2,FALSE) -> 0 | U85: =VLOOKUP($B85,HJ!$AY$55:$AZ$85,2,FALSE) -> 0 | V85: =VLOOKUP($B85,TJ!$AZ$55:$BA$85,2,FALSE) -> 0 | W85: =VLOOKUP($B85,LJ!$AZ$55:$BA$85,2,FALSE) -> 3 | Y85: =VLOOKUP($B85,SP!$AZ$55:$BA$85,2,FALSE) -> 7 | Z85: =VLOOKUP($B85,JT!$AZ$55:$BA$85,2,FALSE) -> 4 | AB85: =VLOOKUP($B85,DT!$AZ$55:$BA$85,2,FALSE) -> 9 | AM85: =VLOOKUP($B85,'100'!$AZ$90:$BA$120,2,FALSE) -> 0 | AN85: =VLOOKUP($B85,'200'!$AZ$90:$BA$120,2,FALSE) -> 0 | AO85: =VLOOKUP($B85,'400'!$AZ$90:$BA$120,2,FALSE) -> 0 | AP85: =VLOOKUP($B85,'400H'!$AZ$90:$BA$120,2,FALSE) -> 0 | AQ85: =VLOOKUP($B85,'800'!$AZ$90:$BA$120,2,FALSE) -> 4 | AR85: =VLOOKUP($B85,'1500'!$AZ$90:$BA$120,2,FALSE) -> 4 | AT85: =VLOOKUP($B85,'2000SC'!$AZ$90:$BA$120,2,FALSE) -> 0 | AU85: =VLOOKUP($B85,'3000'!$AZ$90:$BA$120,2,FALSE) -> 0 | AV85: =VLOOKUP($B85,'3000SC'!$AZ$90:$BA$120,2,FALSE) -> 0 | AW85: =VLOOKUP($B85,'5000'!$AZ$90:$BA$120,2,FALSE) -> 0 | AX85: =VLOOKUP($B85,'10000'!$AZ$90:$BA$120,2,FALSE) -> 0 | AY85: =VLOOKUP($B85,'4X100'!$AS$90:$AT$120,2,FALSE) -> 0 | AZ85: =VLOOKUP($B85,'4X400'!$AS$90:$AT$120,2,FALSE) -> 0 | BB85: =VLOOKUP($B85,HJ!$AY$90:$AZ$120,2,FALSE) -> 0 | BC85: =VLOOKUP($B85,HJ!$AY$90:$AZ$120,2,FALSE) -> 0 | BD85: =VLOOKUP($B85,LJ!$AZ$90:$BA$120,2,FALSE) -> 0 | BF85: =VLOOKUP($B85,SP!$AZ$90:$BA$120,2,FALSE) -> 0 | BG85: =VLOOKUP($B85,JT!$AZ$90:$BA$120,2,FALSE) -> 4 | BI85: =VLOOKUP($B85,DT!$AZ$90:$BA$120,2,FALSE) -> 3
A86: Team G | B86: =IFERROR(VLOOKUP(A86,'Set-Up'!$B$7:$C$37,2,FALSE),"") -> QMUL | C86: 28 | D86: =VLOOKUP($B86,'100H110H'!$AZ$90:$BA$120,2,FALSE) -> 0 | E86: =VLOOKUP(B86,'100H110H'!$AZ$55:$BA$85,2,FALSE) -> 0 | F86: =VLOOKUP($B86,'100'!$AZ$55:$BA$85,2,FALSE) -> 9 | G86: =VLOOKUP($B86,'200'!$AZ$55:$BA$85,2,FALSE) -> 7 | H86: =VLOOKUP($B86,'400'!$AZ$55:$BA$85,2,FALSE) -> 0 | I86: =VLOOKUP($B86,'400H'!$AZ$55:$BA$85,2,FALSE) -> 0 | J86: =VLOOKUP($B86,'800'!$AZ$55:$BA$85,2,FALSE) -> 0 | K86: =VLOOKUP($B86,'1500'!$AZ$55:$BA$85,2,FALSE) -> 0 | M86: =VLOOKUP($B86,'2000SC'!$AZ$55:$BA$85,2,FALSE) -> 0 | N86: =VLOOKUP($B86,'3000'!$AZ$55:$BA$85,2,FALSE) -> 0 | O86: =VLOOKUP($B86,'3000SC'!$AZ$55:$BA$85,2,FALSE) -> 4 | P86: =VLOOKUP($B86,'5000'!$AZ$55:$BA$85,2,FALSE) -> 0 | Q86: =VLOOKUP($B86,'10000'!$AZ$55:$BA$85,2,FALSE) -> 4 | R86: =VLOOKUP($B86, '4X100'!$AS$55:$AT$85,2,FALSE) -> 2 | S86: =VLOOKUP($B86, '4X400'!$AS$55:$AT$85,2,FALSE) -> 0 | U86: =VLOOKUP($B86,HJ!$AY$55:$AZ$85,2,FALSE) -> 0 | V86: =VLOOKUP($B86,TJ!$AZ$55:$BA$85,2,FALSE) -> 0 | W86: =VLOOKUP($B86,LJ!$AZ$55:$BA$85,2,FALSE) -> 2 | Y86: =VLOOKUP($B86,SP!$AZ$55:$BA$85,2,FALSE) -> 0 | Z86: =VLOOKUP($B86,JT!$AZ$55:$BA$85,2,FALSE) -> 0 | AB86: =VLOOKUP($B86,DT!$AZ$55:$BA$85,2,FALSE) -> 0 | AM86: =VLOOKUP($B86,'100'!$AZ$90:$BA$120,2,FALSE) -> 0 | AN86: =VLOOKUP($B86,'200'!$AZ$90:$BA$120,2,FALSE) -> 0 | AO86: =VLOOKUP($B86,'400'!$AZ$90:$BA$120,2,FALSE) -> 0 | AP86: =VLOOKUP($B86,'400H'!$AZ$90:$BA$120,2,FALSE) -> 0 | AQ86: =VLOOKUP($B86,'800'!$AZ$90:$BA$120,2,FALSE) -> 0 | AR86: =VLOOKUP($B86,'1500'!$AZ$90:$BA$120,2,FALSE) -> 0 | AT86: =VLOOKUP($B86,'2000SC'!$AZ$90:$BA$120,2,FALSE) -> 0 | AU86: =VLOOKUP($B86,'3000'!$AZ$90:$BA$120,2,FALSE) -> 0 | AV86: =VLOOKUP($B86,'3000SC'!$AZ$90:$BA$120,2,FALSE) -> 0 | AW86: =VLOOKUP($B86,'5000'!$AZ$90:$BA$120,2,FALSE) -> 0 | AX86: =VLOOKUP($B86,'10000'!$AZ$90:$BA$120,2,FALSE) -> 0 | AY86: =VLOOKUP($B86,'4X100'!$AS$90:$AT$120,2,FALSE) -> 0 | AZ86: =VLOOKUP($B86,'4X400'!$AS$90:$AT$120,2,FALSE) -> 0 | BB86: =VLOOKUP($B86,HJ!$AY$90:$AZ$120,2,FALSE) -> 0 | BC86: =VLOOKUP($B86,HJ!$AY$90:$AZ$120,2,FALSE) -> 0 | BD86: =VLOOKUP($B86,LJ!$AZ$90:$BA$120,2,FALSE) -> 0 | BF86: =VLOOKUP($B86,SP!$AZ$90:$BA$120,2,FALSE) -> 0 | BG86: =VLOOKUP($B86,JT!$AZ$90:$BA$120,2,FALSE) -> 0 | BI86: =VLOOKUP($B86,DT!$AZ$90:$BA$120,2,FALSE) -> 0
A87: Team H | B87: =IFERROR(VLOOKUP(A87,'Set-Up'!$B$7:$C$37,2,FALSE),"") -> SMU | C87: 83 | D87: =VLOOKUP($B87,'100H110H'!$AZ$90:$BA$120,2,FALSE) -> 0 | E87: =VLOOKUP(B87,'100H110H'!$AZ$55:$BA$85,2,FALSE) -> 0 | F87: =VLOOKUP($B87,'100'!$AZ$55:$BA$85,2,FALSE) -> 0 | G87: =VLOOKUP($B87,'200'!$AZ$55:$BA$85,2,FALSE) -> 0 | H87: =VLOOKUP($B87,'400'!$AZ$55:$BA$85,2,FALSE) -> 12 | I87: =VLOOKUP($B87,'400H'!$AZ$55:$BA$85,2,FALSE) -> 0 | J87: =VLOOKUP($B87,'800'!$AZ$55:$BA$85,2,FALSE) -> 12 | K87: =VLOOKUP($B87,'1500'!$AZ$55:$BA$85,2,FALSE) -> 12 | M87: =VLOOKUP($B87,'2000SC'!$AZ$55:$BA$85,2,FALSE) -> 0 | N87: =VLOOKUP($B87,'3000'!$AZ$55:$BA$85,2,FALSE) -> 0 | O87: =VLOOKUP($B87,'3000SC'!$AZ$55:$BA$85,2,FALSE) -> 0 | P87: =VLOOKUP($B87,'5000'!$AZ$55:$BA$85,2,FALSE) -> 9 | Q87: =VLOOKUP($B87,'10000'!$AZ$55:$BA$85,2,FALSE) -> 0 | R87: =VLOOKUP($B87, '4X100'!$AS$55:$AT$85,2,FALSE) -> 0 | S87: =VLOOKUP($B87, '4X400'!$AS$55:$AT$85,2,FALSE) -> 0 | U87: =VLOOKUP($B87,HJ!$AY$55:$AZ$85,2,FALSE) -> 4 | V87: =VLOOKUP($B87,TJ!$AZ$55:$BA$85,2,FALSE) -> 0 | W87: =VLOOKUP($B87,LJ!$AZ$55:$BA$85,2,FALSE) -> 0 | Y87: =VLOOKUP($B87,SP!$AZ$55:$BA$85,2,FALSE) -> 3 | Z87: =VLOOKUP($B87,JT!$AZ$55:$BA$85,2,FALSE) -> 0 | AB87: =VLOOKUP($B87,DT!$AZ$55:$BA$85,2,FALSE) -> 4 | AM87: =VLOOKUP($B87,'100'!$AZ$90:$BA$120,2,FALSE) -> 0 | AN87: =VLOOKUP($B87,'200'!$AZ$90:$BA$120,2,FALSE) -> 0 | AO87: =VLOOKUP($B87,'400'!$AZ$90:$BA$120,2,FALSE) -> 3 | AP87: =VLOOKUP($B87,'400H'!$AZ$90:$BA$120,2,FALSE) -> 0 | AQ87: =VLOOKUP($B87,'800'!$AZ$90:$BA$120,2,FALSE) -> 0 | AR87: =VLOOKUP($B87,'1500'!$AZ$90:$BA$120,2,FALSE) -> 5 | AT87: =VLOOKUP($B87,'2000SC'!$AZ$90:$BA$120,2,FALSE) -> 0 | AU87: =VLOOKUP($B87,'3000'!$AZ$90:$BA$120,2,FALSE) -> 0 | AV87: =VLOOKUP($B87,'3000SC'!$AZ$90:$BA$120,2,FALSE) -> 0 | AW87: =VLOOKUP($B87,'5000'!$AZ$90:$BA$120,2,FALSE) -> 12 | AX87: =VLOOKUP($B87,'10000'!$AZ$90:$BA$120,2,FALSE) -> 0 | AY87: =VLOOKUP($B87,'4X100'!$AS$90:$AT$120,2,FALSE) -> 0 | AZ87: =VLOOKUP($B87,'4X400'!$AS$90:$AT$120,2,FALSE) -> 0 | BB87: =VLOOKUP($B87,HJ!$AY$90:$AZ$120,2,FALSE) -> 0 | BC87: =VLOOKUP($B87,HJ!$AY$90:$AZ$120,2,FALSE) -> 0 | BD87: =VLOOKUP($B87,LJ!$AZ$90:$BA$120,2,FALSE) -> 0 | BF87: =VLOOKUP($B87,SP!$AZ$90:$BA$120,2,FALSE) -> 0 | BG87: =VLOOKUP($B87,JT!$AZ$90:$BA$120,2,FALSE) -> 7 | BI87: =VLOOKUP($B87,DT!$AZ$90:$BA$120,2,FALSE) -> 0
A88: Team I | B88: =IFERROR(VLOOKUP(A88,'Set-Up'!$B$7:$C$37,2,FALSE),"") -> Brunel | C88: 21 | D88: =VLOOKUP($B88,'100H110H'!$AZ$90:$BA$120,2,FALSE) -> 0 | E88: =VLOOKUP(B88,'100H110H'!$AZ$55:$BA$85,2,FALSE) -> 0 | F88: =VLOOKUP($B88,'100'!$AZ$55:$BA$85,2,FALSE) -> 0 | G88: =VLOOKUP($B88,'200'!$AZ$55:$BA$85,2,FALSE) -> 0 | H88: =VLOOKUP($B88,'400'!$AZ$55:$BA$85,2,FALSE) -> 4 | I88: =VLOOKUP($B88,'400H'!$AZ$55:$BA$85,2,FALSE) -> 0 | J88: =VLOOKUP($B88,'800'!$AZ$55:$BA$85,2,FALSE) -> 0 | K88: =VLOOKUP($B88,'1500'!$AZ$55:$BA$85,2,FALSE) -> 0 | M88: =VLOOKUP($B88,'2000SC'!$AZ$55:$BA$85,2,FALSE) -> 0 | N88: =VLOOKUP($B88,'3000'!$AZ$55:$BA$85,2,FALSE) -> 0 | O88: =VLOOKUP($B88,'3000SC'!$AZ$55:$BA$85,2,FALSE) -> 0 | P88: =VLOOKUP($B88,'5000'!$AZ$55:$BA$85,2,FALSE) -> 1 | Q88: =VLOOKUP($B88,'10000'!$AZ$55:$BA$85,2,FALSE) -> 0 | R88: =VLOOKUP($B88, '4X100'!$AS$55:$AT$85,2,FALSE) -> 0 | S88: =VLOOKUP($B88, '4X400'!$AS$55:$AT$85,2,FALSE) -> 0 | U88: =VLOOKUP($B88,HJ!$AY$55:$AZ$85,2,FALSE) -> 0 | V88: =VLOOKUP($B88,TJ!$AZ$55:$BA$85,2,FALSE) -> 4 | W88: =VLOOKUP($B88,LJ!$AZ$55:$BA$85,2,FALSE) -> 0 | Y88: =VLOOKUP($B88,SP!$AZ$55:$BA$85,2,FALSE) -> 0 | Z88: =VLOOKUP($B88,JT!$AZ$55:$BA$85,2,FALSE) -> 0 | AB88: =VLOOKUP($B88,DT!$AZ$55:$BA$85,2,FALSE) -> 0 | AM88: =VLOOKUP($B88,'100'!$AZ$90:$BA$120,2,FALSE) -> 0 | AN88: =VLOOKUP($B88,'200'!$AZ$90:$BA$120,2,FALSE) -> 7 | AO88: =VLOOKUP($B88,'400'!$AZ$90:$BA$120,2,FALSE) -> 5 | AP88: =VLOOKUP($B88,'400H'!$AZ$90:$BA$120,2,FALSE) -> 0 | AQ88: =VLOOKUP($B88,'800'!$AZ$90:$BA$120,2,FALSE) -> 0 | AR88: =VLOOKUP($B88,'1500'!$AZ$90:$BA$120,2,FALSE) -> 0 | AT88: =VLOOKUP($B88,'2000SC'!$AZ$90:$BA$120,2,FALSE) -> 0 | AU88: =VLOOKUP($B88,'3000'!$AZ$90:$BA$120,2,FALSE) -> 0 | AV88: =VLOOKUP($B88,'3000SC'!$AZ$90:$BA$120,2,FALSE) -> 0 | AW88: =VLOOKUP($B88,'5000'!$AZ$90:$BA$120,2,FALSE) -> 0 | AX88: =VLOOKUP($B88,'10000'!$AZ$90:$BA$120,2,FALSE) -> 0 | AY88: =VLOOKUP($B88,'4X100'!$AS$90:$AT$120,2,FALSE) -> 0 | AZ88: =VLOOKUP($B88,'4X400'!$AS$90:$AT$120,2,FALSE) -> 0 | BB88: =VLOOKUP($B88,HJ!$AY$90:$AZ$120,2,FALSE) -> 0 | BC88: =VLOOKUP($B88,HJ!$AY$90:$AZ$120,2,FALSE) -> 0 | BD88: =VLOOKUP($B88,LJ!$AZ$90:$BA$120,2,FALSE) -> 0 | BF88: =VLOOKUP($B88,SP!$AZ$90:$BA$120,2,FALSE) -> 0 | BG88: =VLOOKUP($B88,JT!$AZ$90:$BA$120,2,FALSE) -> 0 | BI88: =VLOOKUP($B88,DT!$AZ$90:$BA$120,2,FALSE) -> 0
A89: Team J | B89: =IFERROR(VLOOKUP(A89,'Set-Up'!$B$7:$C$37,2,FALSE),"") -> Guests | C89: 0 | D89: =VLOOKUP($B89,'100H110H'!$AZ$90:$BA$120,2,FALSE) -> 0 | E89: =VLOOKUP(B89,'100H110H'!$AZ$55:$BA$85,2,FALSE) -> 0 | F89: =VLOOKUP($B89,'100'!$AZ$55:$BA$85,2,FALSE) -> 0 | G89: =VLOOKUP($B89,'200'!$AZ$55:$BA$85,2,FALSE) -> 0 | H89: =VLOOKUP($B89,'400'!$AZ$55:$BA$85,2,FALSE) -> 0 | I89: =VLOOKUP($B89,'400H'!$AZ$55:$BA$85,2,FALSE) -> 0 | J89: =VLOOKUP($B89,'800'!$AZ$55:$BA$85,2,FALSE) -> 0 | K89: =VLOOKUP($B89,'1500'!$AZ$55:$BA$85,2,FALSE) -> 0 | M89: =VLOOKUP($B89,'2000SC'!$AZ$55:$BA$85,2,FALSE) -> 0 | N89: =VLOOKUP($B89,'3000'!$AZ$55:$BA$85,2,FALSE) -> 0 | O89: =VLOOKUP($B89,'3000SC'!$AZ$55:$BA$85,2,FALSE) -> 0 | P89: =VLOOKUP($B89,'5000'!$AZ$55:$BA$85,2,FALSE) -> 0 | Q89: =VLOOKUP($B89,'10000'!$AZ$55:$BA$85,2,FALSE) -> 0 | R89: =VLOOKUP($B89, '4X100'!$AS$55:$AT$85,2,FALSE) -> 0 | S89: =VLOOKUP($B89, '4X400'!$AS$55:$AT$85,2,FALSE) -> 0 | U89: =VLOOKUP($B89,HJ!$AY$55:$AZ$85,2,FALSE) -> 0 | V89: =VLOOKUP($B89,TJ!$AZ$55:$BA$85,2,FALSE) -> 0 | W89: =VLOOKUP($B89,LJ!$AZ$55:$BA$85,2,FALSE) -> 0 | Y89: =VLOOKUP($B89,SP!$AZ$55:$BA$85,2,FALSE) -> 0 | Z89: =VLOOKUP($B89,JT!$AZ$55:$BA$85,2,FALSE) -> 0 | AB89: =VLOOKUP($B89,DT!$AZ$55:$BA$85,2,FALSE) -> 0 | AM89: =VLOOKUP($B89,'100'!$AZ$90:$BA$120,2,FALSE) -> 0 | AN89: =VLOOKUP($B89,'200'!$AZ$90:$BA$120,2,FALSE) -> 0 | AO89: =VLOOKUP($B89,'400'!$AZ$90:$BA$120,2,FALSE) -> 0 | AP89: =VLOOKUP($B89,'400H'!$AZ$90:$BA$120,2,FALSE) -> 0 | AQ89: =VLOOKUP($B89,'800'!$AZ$90:$BA$120,2,FALSE) -> 0 | AR89: =VLOOKUP($B89,'1500'!$AZ$90:$BA$120,2,FALSE) -> 0 | AT89: =VLOOKUP($B89,'2000SC'!$AZ$90:$BA$120,2,FALSE) -> 0 | AU89: =VLOOKUP($B89,'3000'!$AZ$90:$BA$120,2,FALSE) -> 0 | AV89: =VLOOKUP($B89,'3000SC'!$AZ$90:$BA$120,2,FALSE) -> 0 | AW89: =VLOOKUP($B89,'5000'!$AZ$90:$BA$120,2,FALSE) -> 0 | AX89: =VLOOKUP($B89,'10000'!$AZ$90:$BA$120,2,FALSE) -> 0 | AY89: =VLOOKUP($B89,'4X100'!$AS$90:$AT$120,2,FALSE) -> 0 | AZ89: =VLOOKUP($B89,'4X400'!$AS$90:$AT$120,2,FALSE) -> 0 | BB89: =VLOOKUP($B89,HJ!$AY$90:$AZ$120,2,FALSE) -> 0 | BC89: =VLOOKUP($B89,HJ!$AY$90:$AZ$120,2,FALSE) -> 0 | BD89: =VLOOKUP($B89,LJ!$AZ$90:$BA$120,2,FALSE) -> 0 | BF89: =VLOOKUP($B89,SP!$AZ$90:$BA$120,2,FALSE) -> 0 | BG89: =VLOOKUP($B89,JT!$AZ$90:$BA$120,2,FALSE) -> 0 | BI89: =VLOOKUP($B89,DT!$AZ$90:$BA$120,2,FALSE) -> 0
A90: Team K | B90: =IFERROR(VLOOKUP(A90,'Set-Up'!$B$7:$C$37,2,FALSE),"") -> UEL | C90: 1 | D90: =VLOOKUP($B90,'100H110H'!$AZ$90:$BA$120,2,FALSE) -> 0 | E90: =VLOOKUP(B90,'100H110H'!$AZ$55:$BA$85,2,FALSE) -> 0 | F90: =VLOOKUP($B90,'100'!$AZ$55:$BA$85,2,FALSE) -> 0 | G90: =VLOOKUP($B90,'200'!$AZ$55:$BA$85,2,FALSE) -> 0 | H90: =VLOOKUP($B90,'400'!$AZ$55:$BA$85,2,FALSE) -> 0 | I90: =VLOOKUP($B90,'400H'!$AZ$55:$BA$85,2,FALSE) -> 0 | J90: =VLOOKUP($B90,'800'!$AZ$55:$BA$85,2,FALSE) -> 0 | K90: =VLOOKUP($B90,'1500'!$AZ$55:$BA$85,2,FALSE) -> 0 | M90: =VLOOKUP($B90,'2000SC'!$AZ$55:$BA$85,2,FALSE) -> 0 | N90: =VLOOKUP($B90,'3000'!$AZ$55:$BA$85,2,FALSE) -> 0 | O90: =VLOOKUP($B90,'3000SC'!$AZ$55:$BA$85,2,FALSE) -> 0 | P90: =VLOOKUP($B90,'5000'!$AZ$55:$BA$85,2,FALSE) -> 0 | Q90: =VLOOKUP($B90,'10000'!$AZ$55:$BA$85,2,FALSE) -> 0 | R90: =VLOOKUP($B90, '4X100'!$AS$55:$AT$85,2,FALSE) -> 0 | S90: =VLOOKUP($B90, '4X400'!$AS$55:$AT$85,2,FALSE) -> 0 | U90: =VLOOKUP($B90,HJ!$AY$55:$AZ$85,2,FALSE) -> 0 | V90: =VLOOKUP($B90,TJ!$AZ$55:$BA$85,2,FALSE) -> 0 | W90: =VLOOKUP($B90,LJ!$AZ$55:$BA$85,2,FALSE) -> 0 | Y90: =VLOOKUP($B90,SP!$AZ$55:$BA$85,2,FALSE) -> 0 | Z90: =VLOOKUP($B90,JT!$AZ$55:$BA$85,2,FALSE) -> 0 | AB90: =VLOOKUP($B90,DT!$AZ$55:$BA$85,2,FALSE) -> 0 | AM90: =VLOOKUP($B90,'100'!$AZ$90:$BA$120,2,FALSE) -> 0 | AN90: =VLOOKUP($B90,'200'!$AZ$90:$BA$120,2,FALSE) -> 0 | AO90: =VLOOKUP($B90,'400'!$AZ$90:$BA$120,2,FALSE) -> 0 | AP90: =VLOOKUP($B90,'400H'!$AZ$90:$BA$120,2,FALSE) -> 0 | AQ90: =VLOOKUP($B90,'800'!$AZ$90:$BA$120,2,FALSE) -> 0 | AR90: =VLOOKUP($B90,'1500'!$AZ$90:$BA$120,2,FALSE) -> 1 | AT90: =VLOOKUP($B90,'2000SC'!$AZ$90:$BA$120,2,FALSE) -> 0 | AU90: =VLOOKUP($B90,'3000'!$AZ$90:$BA$120,2,FALSE) -> 0 | AV90: =VLOOKUP($B90,'3000SC'!$AZ$90:$BA$120,2,FALSE) -> 0 | AW90: =VLOOKUP($B90,'5000'!$AZ$90:$BA$120,2,FALSE) -> 0 | AX90: =VLOOKUP($B90,'10000'!$AZ$90:$BA$120,2,FALSE) -> 0 | AY90: =VLOOKUP($B90,'4X100'!$AS$90:$AT$120,2,FALSE) -> 0 | AZ90: =VLOOKUP($B90,'4X400'!$AS$90:$AT$120,2,FALSE) -> 0 | BB90: =VLOOKUP($B90,HJ!$AY$90:$AZ$120,2,FALSE) -> 0 | BC90: =VLOOKUP($B90,HJ!$AY$90:$AZ$120,2,FALSE) -> 0 | BD90: =VLOOKUP($B90,LJ!$AZ$90:$BA$120,2,FALSE) -> 0 | BF90: =VLOOKUP($B90,SP!$AZ$90:$BA$120,2,FALSE) -> 0 | BG90: =VLOOKUP($B90,JT!$AZ$90:$BA$120,2,FALSE) -> 0 | BI90: =VLOOKUP($B90,DT!$AZ$90:$BA$120,2,FALSE) -> 0
A91: Team L | B91: =IFERROR(VLOOKUP(A91,'Set-Up'!$B$7:$C$37,2,FALSE),"") -> UofL | C91: 7 | D91: =VLOOKUP($B91,'100H110H'!$AZ$90:$BA$120,2,FALSE) -> 0 | E91: =VLOOKUP(B91,'100H110H'!$AZ$55:$BA$85,2,FALSE) -> 0 | F91: =VLOOKUP($B91,'100'!$AZ$55:$BA$85,2,FALSE) -> 0 | G91: =VLOOKUP($B91,'200'!$AZ$55:$BA$85,2,FALSE) -> 0 | H91: =VLOOKUP($B91,'400'!$AZ$55:$BA$85,2,FALSE) -> 0 | I91: =VLOOKUP($B91,'400H'!$AZ$55:$BA$85,2,FALSE) -> 0 | J91: =VLOOKUP($B91,'800'!$AZ$55:$BA$85,2,FALSE) -> 0 | K91: =VLOOKUP($B91,'1500'!$AZ$55:$BA$85,2,FALSE) -> 0 | M91: =VLOOKUP($B91,'2000SC'!$AZ$55:$BA$85,2,FALSE) -> 0 | N91: =VLOOKUP($B91,'3000'!$AZ$55:$BA$85,2,FALSE) -> 0 | O91: =VLOOKUP($B91,'3000SC'!$AZ$55:$BA$85,2,FALSE) -> 7 | P91: =VLOOKUP($B91,'5000'!$AZ$55:$BA$85,2,FALSE) -> 0 | Q91: =VLOOKUP($B91,'10000'!$AZ$55:$BA$85,2,FALSE) -> 0 | R91: =VLOOKUP($B91, '4X100'!$AS$55:$AT$85,2,FALSE) -> 0 | S91: =VLOOKUP($B91, '4X400'!$AS$55:$AT$85,2,FALSE) -> 0 | U91: =VLOOKUP($B91,HJ!$AY$55:$AZ$85,2,FALSE) -> 0 | V91: =VLOOKUP($B91,TJ!$AZ$55:$BA$85,2,FALSE) -> 0 | W91: =VLOOKUP($B91,LJ!$AZ$55:$BA$85,2,FALSE) -> 0 | Y91: =VLOOKUP($B91,SP!$AZ$55:$BA$85,2,FALSE) -> 0 | Z91: =VLOOKUP($B91,JT!$AZ$55:$BA$85,2,FALSE) -> 0 | AB91: =VLOOKUP($B91,DT!$AZ$55:$BA$85,2,FALSE) -> 0 | AM91: =VLOOKUP($B91,'100'!$AZ$90:$BA$120,2,FALSE) -> 0 | AN91: =VLOOKUP($B91,'200'!$AZ$90:$BA$120,2,FALSE) -> 0 | AO91: =VLOOKUP($B91,'400'!$AZ$90:$BA$120,2,FALSE) -> 0 | AP91: =VLOOKUP($B91,'400H'!$AZ$90:$BA$120,2,FALSE) -> 0 | AQ91: =VLOOKUP($B91,'800'!$AZ$90:$BA$120,2,FALSE) -> 0 | AR91: =VLOOKUP($B91,'1500'!$AZ$90:$BA$120,2,FALSE) -> 0 | AT91: =VLOOKUP($B91,'2000SC'!$AZ$90:$BA$120,2,FALSE) -> 0 | AU91: =VLOOKUP($B91,'3000'!$AZ$90:$BA$120,2,FALSE) -> 0 | AV91: =VLOOKUP($B91,'3000SC'!$AZ$90:$BA$120,2,FALSE) -> 0 | AW91: =VLOOKUP($B91,'5000'!$AZ$90:$BA$120,2,FALSE) -> 0 | AX91: =VLOOKUP($B91,'10000'!$AZ$90:$BA$120,2,FALSE) -> 0 | AY91: =VLOOKUP($B91,'4X100'!$AS$90:$AT$120,2,FALSE) -> 0 | AZ91: =VLOOKUP($B91,'4X400'!$AS$90:$AT$120,2,FALSE) -> 0 | BB91: =VLOOKUP($B91,HJ!$AY$90:$AZ$120,2,FALSE) -> 0 | BC91: =VLOOKUP($B91,HJ!$AY$90:$AZ$120,2,FALSE) -> 0 | BD91: =VLOOKUP($B91,LJ!$AZ$90:$BA$120,2,FALSE) -> 0 | BF91: =VLOOKUP($B91,SP!$AZ$90:$BA$120,2,FALSE) -> 0 | BG91: =VLOOKUP($B91,JT!$AZ$90:$BA$120,2,FALSE) -> 0 | BI91: =VLOOKUP($B91,DT!$AZ$90:$BA$120,2,FALSE) -> 0
A92: Team M | B92: =IFERROR(VLOOKUP(A92,'Set-Up'!$B$7:$C$37,2,FALSE),"") -> 0 | C92: 0 | D92: =VLOOKUP($B92,'100H110H'!$AZ$90:$BA$120,2,FALSE) -> 0 | E92: =VLOOKUP(B92,'100H110H'!$AZ$55:$BA$85,2,FALSE) -> 0 | F92: =VLOOKUP($B92,'100'!$AZ$55:$BA$85,2,FALSE) -> 0 | G92: =VLOOKUP($B92,'200'!$AZ$55:$BA$85,2,FALSE) -> 0 | H92: =VLOOKUP($B92,'400'!$AZ$55:$BA$85,2,FALSE) -> 0 | I92: =VLOOKUP($B92,'400H'!$AZ$55:$BA$85,2,FALSE) -> 0 | J92: =VLOOKUP($B92,'800'!$AZ$55:$BA$85,2,FALSE) -> 0 | K92: =VLOOKUP($B92,'1500'!$AZ$55:$BA$85,2,FALSE) -> 0 | M92: =VLOOKUP($B92,'2000SC'!$AZ$55:$BA$85,2,FALSE) -> 0 | N92: =VLOOKUP($B92,'3000'!$AZ$55:$BA$85,2,FALSE) -> 0 | O92: =VLOOKUP($B92,'3000SC'!$AZ$55:$BA$85,2,FALSE) -> 0 | P92: =VLOOKUP($B92,'5000'!$AZ$55:$BA$85,2,FALSE) -> 0 | Q92: =VLOOKUP($B92,'10000'!$AZ$55:$BA$85,2,FALSE) -> 0 | R92: =VLOOKUP($B92, '4X100'!$AS$55:$AT$85,2,FALSE) -> 0 | S92: =VLOOKUP($B92, '4X400'!$AS$55:$AT$85,2,FALSE) -> 0 | U92: =VLOOKUP($B92,HJ!$AY$55:$AZ$85,2,FALSE) -> 0 | V92: =VLOOKUP($B92,TJ!$AZ$55:$BA$85,2,FALSE) -> 0 | W92: =VLOOKUP($B92,LJ!$AZ$55:$BA$85,2,FALSE) -> 0 | Y92: =VLOOKUP($B92,SP!$AZ$55:$BA$85,2,FALSE) -> 0 | Z92: =VLOOKUP($B92,JT!$AZ$55:$BA$85,2,FALSE) -> 0 | AB92: =VLOOKUP($B92,DT!$AZ$55:$BA$85,2,FALSE) -> 0 | AM92: =VLOOKUP($B92,'100'!$AZ$90:$BA$120,2,FALSE) -> 0 | AN92: =VLOOKUP($B92,'200'!$AZ$90:$BA$120,2,FALSE) -> 0 | AO92: =VLOOKUP($B92,'400'!$AZ$90:$BA$120,2,FALSE) -> 0 | AP92: =VLOOKUP($B92,'400H'!$AZ$90:$BA$120,2,FALSE) -> 0 | AQ92: =VLOOKUP($B92,'800'!$AZ$90:$BA$120,2,FALSE) -> 0 | AR92: =VLOOKUP($B92,'1500'!$AZ$90:$BA$120,2,FALSE) -> 0 | AT92: =VLOOKUP($B92,'2000SC'!$AZ$90:$BA$120,2,FALSE) -> 0 | AU92: =VLOOKUP($B92,'3000'!$AZ$90:$BA$120,2,FALSE) -> 0 | AV92: =VLOOKUP($B92,'3000SC'!$AZ$90:$BA$120,2,FALSE) -> 0 | AW92: =VLOOKUP($B92,'5000'!$AZ$90:$BA$120,2,FALSE) -> 0 | AX92: =VLOOKUP($B92,'10000'!$AZ$90:$BA$120,2,FALSE) -> 0 | AY92: =VLOOKUP($B92,'4X100'!$AS$90:$AT$120,2,FALSE) -> 0 | AZ92: =VLOOKUP($B92,'4X400'!$AS$90:$AT$120,2,FALSE) -> 0 | BB92: =VLOOKUP($B92,HJ!$AY$90:$AZ$120,2,FALSE) -> 0 | BC92: =VLOOKUP($B92,HJ!$AY$90:$AZ$120,2,FALSE) -> 0 | BD92: =VLOOKUP($B92,LJ!$AZ$90:$BA$120,2,FALSE) -> 0 | BF92: =VLOOKUP($B92,SP!$AZ$90:$BA$120,2,FALSE) -> 0 | BG92: =VLOOKUP($B92,JT!$AZ$90:$BA$120,2,FALSE) -> 0 | BI92: =VLOOKUP($B92,DT!$AZ$90:$BA$120,2,FALSE) -> 0
A93: Team N | B93: =IFERROR(VLOOKUP(A93,'Set-Up'!$B$7:$C$37,2,FALSE),"") -> STG | C93: 5 | D93: =VLOOKUP($B93,'100H110H'!$AZ$90:$BA$120,2,FALSE) -> 0 | E93: =VLOOKUP(B93,'100H110H'!$AZ$55:$BA$85,2,FALSE) -> 0 | F93: =VLOOKUP($B93,'100'!$AZ$55:$BA$85,2,FALSE) -> 0 | G93: =VLOOKUP($B93,'200'!$AZ$55:$BA$85,2,FALSE) -> 0 | H93: =VLOOKUP($B93,'400'!$AZ$55:$BA$85,2,FALSE) -> 0 | I93: =VLOOKUP($B93,'400H'!$AZ$55:$BA$85,2,FALSE) -> 0 | J93: =VLOOKUP($B93,'800'!$AZ$55:$BA$85,2,FALSE) -> 0 | K93: =VLOOKUP($B93,'1500'!$AZ$55:$BA$85,2,FALSE) -> 0 | M93: =VLOOKUP($B93,'2000SC'!$AZ$55:$BA$85,2,FALSE) -> 0 | N93: =VLOOKUP($B93,'3000'!$AZ$55:$BA$85,2,FALSE) -> 0 | O93: =VLOOKUP($B93,'3000SC'!$AZ$55:$BA$85,2,FALSE) -> 0 | P93: =VLOOKUP($B93,'5000'!$AZ$55:$BA$85,2,FALSE) -> 0 | Q93: =VLOOKUP($B93,'10000'!$AZ$55:$BA$85,2,FALSE) -> 5 | R93: =VLOOKUP($B93, '4X100'!$AS$55:$AT$85,2,FALSE) -> 0 | S93: =VLOOKUP($B93, '4X400'!$AS$55:$AT$85,2,FALSE) -> 0 | U93: =VLOOKUP($B93,HJ!$AY$55:$AZ$85,2,FALSE) -> 0 | V93: =VLOOKUP($B93,TJ!$AZ$55:$BA$85,2,FALSE) -> 0 | W93: =VLOOKUP($B93,LJ!$AZ$55:$BA$85,2,FALSE) -> 0 | Y93: =VLOOKUP($B93,SP!$AZ$55:$BA$85,2,FALSE) -> 0 | Z93: =VLOOKUP($B93,JT!$AZ$55:$BA$85,2,FALSE) -> 0 | AB93: =VLOOKUP($B93,DT!$AZ$55:$BA$85,2,FALSE) -> 0 | AM93: =VLOOKUP($B93,'100'!$AZ$90:$BA$120,2,FALSE) -> 0 | AN93: =VLOOKUP($B93,'200'!$AZ$90:$BA$120,2,FALSE) -> 0 | AO93: =VLOOKUP($B93,'400'!$AZ$90:$BA$120,2,FALSE) -> 0 | AP93: =VLOOKUP($B93,'400H'!$AZ$90:$BA$120,2,FALSE) -> 0 | AQ93: =VLOOKUP($B93,'800'!$AZ$90:$BA$120,2,FALSE) -> 0 | AR93: =VLOOKUP($B93,'1500'!$AZ$90:$BA$120,2,FALSE) -> 0 | AT93: =VLOOKUP($B93,'2000SC'!$AZ$90:$BA$120,2,FALSE) -> 0 | AU93: =VLOOKUP($B93,'3000'!$AZ$90:$BA$120,2,FALSE) -> 0 | AV93: =VLOOKUP($B93,'3000SC'!$AZ$90:$BA$120,2,FALSE) -> 0 | AW93: =VLOOKUP($B93,'5000'!$AZ$90:$BA$120,2,FALSE) -> 0 | AX93: =VLOOKUP($B93,'10000'!$AZ$90:$BA$120,2,FALSE) -> 0 | AY93: =VLOOKUP($B93,'4X100'!$AS$90:$AT$120,2,FALSE) -> 0 | AZ93: =VLOOKUP($B93,'4X400'!$AS$90:$AT$120,2,FALSE) -> 0 | BB93: =VLOOKUP($B93,HJ!$AY$90:$AZ$120,2,FALSE) -> 0 | BC93: =VLOOKUP($B93,HJ!$AY$90:$AZ$120,2,FALSE) -> 0 | BD93: =VLOOKUP($B93,LJ!$AZ$90:$BA$120,2,FALSE) -> 0 | BF93: =VLOOKUP($B93,SP!$AZ$90:$BA$120,2,FALSE) -> 0 | BG93: =VLOOKUP($B93,JT!$AZ$90:$BA$120,2,FALSE) -> 0 | BI93: =VLOOKUP($B93,DT!$AZ$90:$BA$120,2,FALSE) -> 0
A94: Team O | B94: =IFERROR(VLOOKUP(A94,'Set-Up'!$B$7:$C$37,2,FALSE),"") -> 0 | C94: 0 | D94: =VLOOKUP($B94,'100H110H'!$AZ$90:$BA$120,2,FALSE) -> 0 | E94: =VLOOKUP(B94,'100H110H'!$AZ$55:$BA$85,2,FALSE) -> 0 | F94: =VLOOKUP($B94,'100'!$AZ$55:$BA$85,2,FALSE) -> 0 | G94: =VLOOKUP($B94,'200'!$AZ$55:$BA$85,2,FALSE) -> 0 | H94: =VLOOKUP($B94,'400'!$AZ$55:$BA$85,2,FALSE) -> 0 | I94: =VLOOKUP($B94,'400H'!$AZ$55:$BA$85,2,FALSE) -> 0 | J94: =VLOOKUP($B94,'800'!$AZ$55:$BA$85,2,FALSE) -> 0 | K94: =VLOOKUP($B94,'1500'!$AZ$55:$BA$85,2,FALSE) -> 0 | M94: =VLOOKUP($B94,'2000SC'!$AZ$55:$BA$85,2,FALSE) -> 0 | N94: =VLOOKUP($B94,'3000'!$AZ$55:$BA$85,2,FALSE) -> 0 | O94: =VLOOKUP($B94,'3000SC'!$AZ$55:$BA$85,2,FALSE) -> 0 | P94: =VLOOKUP($B94,'5000'!$AZ$55:$BA$85,2,FALSE) -> 0 | Q94: =VLOOKUP($B94,'10000'!$AZ$55:$BA$85,2,FALSE) -> 0 | R94: =VLOOKUP($B94, '4X100'!$AS$55:$AT$85,2,FALSE) -> 0 | S94: =VLOOKUP($B94, '4X400'!$AS$55:$AT$85,2,FALSE) -> 0 | U94: =VLOOKUP($B94,HJ!$AY$55:$AZ$85,2,FALSE) -> 0 | V94: =VLOOKUP($B94,TJ!$AZ$55:$BA$85,2,FALSE) -> 0 | W94: =VLOOKUP($B94,LJ!$AZ$55:$BA$85,2,FALSE) -> 0 | Y94: =VLOOKUP($B94,SP!$AZ$55:$BA$85,2,FALSE) -> 0 | Z94: =VLOOKUP($B94,JT!$AZ$55:$BA$85,2,FALSE) -> 0 | AB94: =VLOOKUP($B94,DT!$AZ$55:$BA$85,2,FALSE) -> 0 | AM94: =VLOOKUP($B94,'100'!$AZ$90:$BA$120,2,FALSE) -> 0 | AN94: =VLOOKUP($B94,'200'!$AZ$90:$BA$120,2,FALSE) -> 0 | AO94: =VLOOKUP($B94,'400'!$AZ$90:$BA$120,2,FALSE) -> 0 | AP94: =VLOOKUP($B94,'400H'!$AZ$90:$BA$120,2,FALSE) -> 0 | AQ94: =VLOOKUP($B94,'800'!$AZ$90:$BA$120,2,FALSE) -> 0 | AR94: =VLOOKUP($B94,'1500'!$AZ$90:$BA$120,2,FALSE) -> 0 | AT94: =VLOOKUP($B94,'2000SC'!$AZ$90:$BA$120,2,FALSE) -> 0 | AU94: =VLOOKUP($B94,'3000'!$AZ$90:$BA$120,2,FALSE) -> 0 | AV94: =VLOOKUP($B94,'3000SC'!$AZ$90:$BA$120,2,FALSE) -> 0 | AW94: =VLOOKUP($B94,'5000'!$AZ$90:$BA$120,2,FALSE) -> 0 | AX94: =VLOOKUP($B94,'10000'!$AZ$90:$BA$120,2,FALSE) -> 0 | AY94: =VLOOKUP($B94,'4X100'!$AS$90:$AT$120,2,FALSE) -> 0 | AZ94: =VLOOKUP($B94,'4X400'!$AS$90:$AT$120,2,FALSE) -> 0 | BB94: =VLOOKUP($B94,HJ!$AY$90:$AZ$120,2,FALSE) -> 0 | BC94: =VLOOKUP($B94,HJ!$AY$90:$AZ$120,2,FALSE) -> 0 | BD94: =VLOOKUP($B94,LJ!$AZ$90:$BA$120,2,FALSE) -> 0 | BF94: =VLOOKUP($B94,SP!$AZ$90:$BA$120,2,FALSE) -> 0 | BG94: =VLOOKUP($B94,JT!$AZ$90:$BA$120,2,FALSE) -> 0 | BI94: =VLOOKUP($B94,DT!$AZ$90:$BA$120,2,FALSE) -> 0
A95: Team P | B95: =IFERROR(VLOOKUP(A95,'Set-Up'!$B$7:$C$37,2,FALSE),"") -> 0 | C95: 0 | D95: =VLOOKUP($B95,'100H110H'!$AZ$90:$BA$120,2,FALSE) -> 0 | E95: =VLOOKUP(B95,'100H110H'!$AZ$55:$BA$85,2,FALSE) -> 0 | F95: =VLOOKUP($B95,'100'!$AZ$55:$BA$85,2,FALSE) -> 0 | G95: =VLOOKUP($B95,'200'!$AZ$55:$BA$85,2,FALSE) -> 0 | H95: =VLOOKUP($B95,'400'!$AZ$55:$BA$85,2,FALSE) -> 0 | I95: =VLOOKUP($B95,'400H'!$AZ$55:$BA$85,2,FALSE) -> 0 | J95: =VLOOKUP($B95,'800'!$AZ$55:$BA$85,2,FALSE) -> 0 | K95: =VLOOKUP($B95,'1500'!$AZ$55:$BA$85,2,FALSE) -> 0 | M95: =VLOOKUP($B95,'2000SC'!$AZ$55:$BA$85,2,FALSE) -> 0 | N95: =VLOOKUP($B95,'3000'!$AZ$55:$BA$85,2,FALSE) -> 0 | O95: =VLOOKUP($B95,'3000SC'!$AZ$55:$BA$85,2,FALSE) -> 0 | P95: =VLOOKUP($B95,'5000'!$AZ$55:$BA$85,2,FALSE) -> 0 | Q95: =VLOOKUP($B95,'10000'!$AZ$55:$BA$85,2,FALSE) -> 0 | R95: =VLOOKUP($B95, '4X100'!$AS$55:$AT$85,2,FALSE) -> 0 | S95: =VLOOKUP($B95, '4X400'!$AS$55:$AT$85,2,FALSE) -> 0 | U95: =VLOOKUP($B95,HJ!$AY$55:$AZ$85,2,FALSE) -> 0 | V95: =VLOOKUP($B95,TJ!$AZ$55:$BA$85,2,FALSE) -> 0 | W95: =VLOOKUP($B95,LJ!$AZ$55:$BA$85,2,FALSE) -> 0 | Y95: =VLOOKUP($B95,SP!$AZ$55:$BA$85,2,FALSE) -> 0 | Z95: =VLOOKUP($B95,JT!$AZ$55:$BA$85,2,FALSE) -> 0 | AB95: =VLOOKUP($B95,DT!$AZ$55:$BA$85,2,FALSE) -> 0 | AM95: =VLOOKUP($B95,'100'!$AZ$90:$BA$120,2,FALSE) -> 0 | AN95: =VLOOKUP($B95,'200'!$AZ$90:$BA$120,2,FALSE) -> 0 | AO95: =VLOOKUP($B95,'400'!$AZ$90:$BA$120,2,FALSE) -> 0 | AP95: =VLOOKUP($B95,'400H'!$AZ$90:$BA$120,2,FALSE) -> 0 | AQ95: =VLOOKUP($B95,'800'!$AZ$90:$BA$120,2,FALSE) -> 0 | AR95: =VLOOKUP($B95,'1500'!$AZ$90:$BA$120,2,FALSE) -> 0 | AT95: =VLOOKUP($B95,'2000SC'!$AZ$90:$BA$120,2,FALSE) -> 0 | AU95: =VLOOKUP($B95,'3000'!$AZ$90:$BA$120,2,FALSE) -> 0 | AV95: =VLOOKUP($B95,'3000SC'!$AZ$90:$BA$120,2,FALSE) -> 0 | AW95: =VLOOKUP($B95,'5000'!$AZ$90:$BA$120,2,FALSE) -> 0 | AX95: =VLOOKUP($B95,'10000'!$AZ$90:$BA$120,2,FALSE) -> 0 | AY95: =VLOOKUP($B95,'4X100'!$AS$90:$AT$120,2,FALSE) -> 0 | AZ95: =VLOOKUP($B95,'4X400'!$AS$90:$AT$120,2,FALSE) -> 0 | BB95: =VLOOKUP($B95,HJ!$AY$90:$AZ$120,2,FALSE) -> 0 | BC95: =VLOOKUP($B95,HJ!$AY$90:$AZ$120,2,FALSE) -> 0 | BD95: =VLOOKUP($B95,LJ!$AZ$90:$BA$120,2,FALSE) -> 0 | BF95: =VLOOKUP($B95,SP!$AZ$90:$BA$120,2,FALSE) -> 0 | BG95: =VLOOKUP($B95,JT!$AZ$90:$BA$120,2,FALSE) -> 0 | BI95: =VLOOKUP($B95,DT!$AZ$90:$BA$120,2,FALSE) -> 0
A96: Team Q | B96: =IFERROR(VLOOKUP(A96,'Set-Up'!$B$7:$C$37,2,FALSE),"") -> 0 | C96: 0 | D96: =VLOOKUP($B96,'100H110H'!$AZ$90:$BA$120,2,FALSE) -> 0 | E96: =VLOOKUP(B96,'100H110H'!$AZ$55:$BA$85,2,FALSE) -> 0 | F96: =VLOOKUP($B96,'100'!$AZ$55:$BA$85,2,FALSE) -> 0 | G96: =VLOOKUP($B96,'200'!$AZ$55:$BA$85,2,FALSE) -> 0 | H96: =VLOOKUP($B96,'400'!$AZ$55:$BA$85,2,FALSE) -> 0 | I96: =VLOOKUP($B96,'400H'!$AZ$55:$BA$85,2,FALSE) -> 0 | J96: =VLOOKUP($B96,'800'!$AZ$55:$BA$85,2,FALSE) -> 0 | K96: =VLOOKUP($B96,'1500'!$AZ$55:$BA$85,2,FALSE) -> 0 | M96: =VLOOKUP($B96,'2000SC'!$AZ$55:$BA$85,2,FALSE) -> 0 | N96: =VLOOKUP($B96,'3000'!$AZ$55:$BA$85,2,FALSE) -> 0 | O96: =VLOOKUP($B96,'3000SC'!$AZ$55:$BA$85,2,FALSE) -> 0 | P96: =VLOOKUP($B96,'5000'!$AZ$55:$BA$85,2,FALSE) -> 0 | Q96: =VLOOKUP($B96,'10000'!$AZ$55:$BA$85,2,FALSE) -> 0 | R96: =VLOOKUP($B96, '4X100'!$AS$55:$AT$85,2,FALSE) -> 0 | S96: =VLOOKUP($B96, '4X400'!$AS$55:$AT$85,2,FALSE) -> 0 | U96: =VLOOKUP($B96,HJ!$AY$55:$AZ$85,2,FALSE) -> 0 | V96: =VLOOKUP($B96,TJ!$AZ$55:$BA$85,2,FALSE) -> 0 | W96: =VLOOKUP($B96,LJ!$AZ$55:$BA$85,2,FALSE) -> 0 | Y96: =VLOOKUP($B96,SP!$AZ$55:$BA$85,2,FALSE) -> 0 | Z96: =VLOOKUP($B96,JT!$AZ$55:$BA$85,2,FALSE) -> 0 | AB96: =VLOOKUP($B96,DT!$AZ$55:$BA$85,2,FALSE) -> 0 | AM96: =VLOOKUP($B96,'100'!$AZ$90:$BA$120,2,FALSE) -> 0 | AN96: =VLOOKUP($B96,'200'!$AZ$90:$BA$120,2,FALSE) -> 0 | AO96: =VLOOKUP($B96,'400'!$AZ$90:$BA$120,2,FALSE) -> 0 | AP96: =VLOOKUP($B96,'400H'!$AZ$90:$BA$120,2,FALSE) -> 0 | AQ96: =VLOOKUP($B96,'800'!$AZ$90:$BA$120,2,FALSE) -> 0 | AR96: =VLOOKUP($B96,'1500'!$AZ$90:$BA$120,2,FALSE) -> 0 | AT96: =VLOOKUP($B96,'2000SC'!$AZ$90:$BA$120,2,FALSE) -> 0 | AU96: =VLOOKUP($B96,'3000'!$AZ$90:$BA$120,2,FALSE) -> 0 | AV96: =VLOOKUP($B96,'3000SC'!$AZ$90:$BA$120,2,FALSE) -> 0 | AW96: =VLOOKUP($B96,'5000'!$AZ$90:$BA$120,2,FALSE) -> 0 | AX96: =VLOOKUP($B96,'10000'!$AZ$90:$BA$120,2,FALSE) -> 0 | AY96: =VLOOKUP($B96,'4X100'!$AS$90:$AT$120,2,FALSE) -> 0 | AZ96: =VLOOKUP($B96,'4X400'!$AS$90:$AT$120,2,FALSE) -> 0 | BB96: =VLOOKUP($B96,HJ!$AY$90:$AZ$120,2,FALSE) -> 0 | BC96: =VLOOKUP($B96,HJ!$AY$90:$AZ$120,2,FALSE) -> 0 | BD96: =VLOOKUP($B96,LJ!$AZ$90:$BA$120,2,FALSE) -> 0 | BF96: =VLOOKUP($B96,SP!$AZ$90:$BA$120,2,FALSE) -> 0 | BG96: =VLOOKUP($B96,JT!$AZ$90:$BA$120,2,FALSE) -> 0 | BI96: =VLOOKUP($B96,DT!$AZ$90:$BA$120,2,FALSE) -> 0
A97: Team R | B97: =IFERROR(VLOOKUP(A97,'Set-Up'!$B$7:$C$37,2,FALSE),"") -> 0 | C97: 0 | D97: =VLOOKUP($B97,'100H110H'!$AZ$90:$BA$120,2,FALSE) -> 0 | E97: =VLOOKUP(B97,'100H110H'!$AZ$55:$BA$85,2,FALSE) -> 0 | F97: =VLOOKUP($B97,'100'!$AZ$55:$BA$85,2,FALSE) -> 0 | G97: =VLOOKUP($B97,'200'!$AZ$55:$BA$85,2,FALSE) -> 0 | H97: =VLOOKUP($B97,'400'!$AZ$55:$BA$85,2,FALSE) -> 0 | I97: =VLOOKUP($B97,'400H'!$AZ$55:$BA$85,2,FALSE) -> 0 | J97: =VLOOKUP($B97,'800'!$AZ$55:$BA$85,2,FALSE) -> 0 | K97: =VLOOKUP($B97,'1500'!$AZ$55:$BA$85,2,FALSE) -> 0 | M97: =VLOOKUP($B97,'2000SC'!$AZ$55:$BA$85,2,FALSE) -> 0 | N97: =VLOOKUP($B97,'3000'!$AZ$55:$BA$85,2,FALSE) -> 0 | O97: =VLOOKUP($B97,'3000SC'!$AZ$55:$BA$85,2,FALSE) -> 0 | P97: =VLOOKUP($B97,'5000'!$AZ$55:$BA$85,2,FALSE) -> 0 | Q97: =VLOOKUP($B97,'10000'!$AZ$55:$BA$85,2,FALSE) -> 0 | R97: =VLOOKUP($B97, '4X100'!$AS$55:$AT$85,2,FALSE) -> 0 | S97: =VLOOKUP($B97, '4X400'!$AS$55:$AT$85,2,FALSE) -> 0 | U97: =VLOOKUP($B97,HJ!$AY$55:$AZ$85,2,FALSE) -> 0 | V97: =VLOOKUP($B97,TJ!$AZ$55:$BA$85,2,FALSE) -> 0 | W97: =VLOOKUP($B97,LJ!$AZ$55:$BA$85,2,FALSE) -> 0 | Y97: =VLOOKUP($B97,SP!$AZ$55:$BA$85,2,FALSE) -> 0 | Z97: =VLOOKUP($B97,JT!$AZ$55:$BA$85,2,FALSE) -> 0 | AB97: =VLOOKUP($B97,DT!$AZ$55:$BA$85,2,FALSE) -> 0 | AM97: =VLOOKUP($B97,'100'!$AZ$90:$BA$120,2,FALSE) -> 0 | AN97: =VLOOKUP($B97,'200'!$AZ$90:$BA$120,2,FALSE) -> 0 | AO97: =VLOOKUP($B97,'400'!$AZ$90:$BA$120,2,FALSE) -> 0 | AP97: =VLOOKUP($B97,'400H'!$AZ$90:$BA$120,2,FALSE) -> 0 | AQ97: =VLOOKUP($B97,'800'!$AZ$90:$BA$120,2,FALSE) -> 0 | AR97: =VLOOKUP($B97,'1500'!$AZ$90:$BA$120,2,FALSE) -> 0 | AT97: =VLOOKUP($B97,'2000SC'!$AZ$90:$BA$120,2,FALSE) -> 0 | AU97: =VLOOKUP($B97,'3000'!$AZ$90:$BA$120,2,FALSE) -> 0 | AV97: =VLOOKUP($B97,'3000SC'!$AZ$90:$BA$120,2,FALSE) -> 0 | AW97: =VLOOKUP($B97,'5000'!$AZ$90:$BA$120,2,FALSE) -> 0 | AX97: =VLOOKUP($B97,'10000'!$AZ$90:$BA$120,2,FALSE) -> 0 | AY97: =VLOOKUP($B97,'4X100'!$AS$90:$AT$120,2,FALSE) -> 0 | AZ97: =VLOOKUP($B97,'4X400'!$AS$90:$AT$120,2,FALSE) -> 0 | BB97: =VLOOKUP($B97,HJ!$AY$90:$AZ$120,2,FALSE) -> 0 | BC97: =VLOOKUP($B97,HJ!$AY$90:$AZ$120,2,FALSE) -> 0 | BD97: =VLOOKUP($B97,LJ!$AZ$90:$BA$120,2,FALSE) -> 0 | BF97: =VLOOKUP($B97,SP!$AZ$90:$BA$120,2,FALSE) -> 0 | BG97: =VLOOKUP($B97,JT!$AZ$90:$BA$120,2,FALSE) -> 0 | BI97: =VLOOKUP($B97,DT!$AZ$90:$BA$120,2,FALSE) -> 0
A98: Team S | B98: =IFERROR(VLOOKUP(A98,'Set-Up'!$B$7:$C$37,2,FALSE),"") -> 0 | C98: 0 | D98: =VLOOKUP($B98,'100H110H'!$AZ$90:$BA$120,2,FALSE) -> 0 | E98: =VLOOKUP(B98,'100H110H'!$AZ$55:$BA$85,2,FALSE) -> 0 | F98: =VLOOKUP($B98,'100'!$AZ$55:$BA$85,2,FALSE) -> 0 | G98: =VLOOKUP($B98,'200'!$AZ$55:$BA$85,2,FALSE) -> 0 | H98: =VLOOKUP($B98,'400'!$AZ$55:$BA$85,2,FALSE) -> 0 | I98: =VLOOKUP($B98,'400H'!$AZ$55:$BA$85,2,FALSE) -> 0 | J98: =VLOOKUP($B98,'800'!$AZ$55:$BA$85,2,FALSE) -> 0 | K98: =VLOOKUP($B98,'1500'!$AZ$55:$BA$85,2,FALSE) -> 0 | M98: =VLOOKUP($B98,'2000SC'!$AZ$55:$BA$85,2,FALSE) -> 0 | N98: =VLOOKUP($B98,'3000'!$AZ$55:$BA$85,2,FALSE) -> 0 | O98: =VLOOKUP($B98,'3000SC'!$AZ$55:$BA$85,2,FALSE) -> 0 | P98: =VLOOKUP($B98,'5000'!$AZ$55:$BA$85,2,FALSE) -> 0 | Q98: =VLOOKUP($B98,'10000'!$AZ$55:$BA$85,2,FALSE) -> 0 | R98: =VLOOKUP($B98, '4X100'!$AS$55:$AT$85,2,FALSE) -> 0 | S98: =VLOOKUP($B98, '4X400'!$AS$55:$AT$85,2,FALSE) -> 0 | U98: =VLOOKUP($B98,HJ!$AY$55:$AZ$85,2,FALSE) -> 0 | V98: =VLOOKUP($B98,TJ!$AZ$55:$BA$85,2,FALSE) -> 0 | W98: =VLOOKUP($B98,LJ!$AZ$55:$BA$85,2,FALSE) -> 0 | Y98: =VLOOKUP($B98,SP!$AZ$55:$BA$85,2,FALSE) -> 0 | Z98: =VLOOKUP($B98,JT!$AZ$55:$BA$85,2,FALSE) -> 0 | AB98: =VLOOKUP($B98,DT!$AZ$55:$BA$85,2,FALSE) -> 0 | AM98: =VLOOKUP($B98,'100'!$AZ$90:$BA$120,2,FALSE) -> 0 | AN98: =VLOOKUP($B98,'200'!$AZ$90:$BA$120,2,FALSE) -> 0 | AO98: =VLOOKUP($B98,'400'!$AZ$90:$BA$120,2,FALSE) -> 0 | AP98: =VLOOKUP($B98,'400H'!$AZ$90:$BA$120,2,FALSE) -> 0 | AQ98: =VLOOKUP($B98,'800'!$AZ$90:$BA$120,2,FALSE) -> 0 | AR98: =VLOOKUP($B98,'1500'!$AZ$90:$BA$120,2,FALSE) -> 0 | AT98: =VLOOKUP($B98,'2000SC'!$AZ$90:$BA$120,2,FALSE) -> 0 | AU98: =VLOOKUP($B98,'3000'!$AZ$90:$BA$120,2,FALSE) -> 0 | AV98: =VLOOKUP($B98,'3000SC'!$AZ$90:$BA$120,2,FALSE) -> 0 | AW98: =VLOOKUP($B98,'5000'!$AZ$90:$BA$120,2,FALSE) -> 0 | AX98: =VLOOKUP($B98,'10000'!$AZ$90:$BA$120,2,FALSE) -> 0 | AY98: =VLOOKUP($B98,'4X100'!$AS$90:$AT$120,2,FALSE) -> 0 | AZ98: =VLOOKUP($B98,'4X400'!$AS$90:$AT$120,2,FALSE) -> 0 | BB98: =VLOOKUP($B98,HJ!$AY$90:$AZ$120,2,FALSE) -> 0 | BC98: =VLOOKUP($B98,HJ!$AY$90:$AZ$120,2,FALSE) -> 0 | BD98: =VLOOKUP($B98,LJ!$AZ$90:$BA$120,2,FALSE) -> 0 | BF98: =VLOOKUP($B98,SP!$AZ$90:$BA$120,2,FALSE) -> 0 | BG98: =VLOOKUP($B98,JT!$AZ$90:$BA$120,2,FALSE) -> 0 | BI98: =VLOOKUP($B98,DT!$AZ$90:$BA$120,2,FALSE) -> 0
A99: Team T | B99: =IFERROR(VLOOKUP(A99,'Set-Up'!$B$7:$C$37,2,FALSE),"") -> 0 | C99: 0 | D99: =VLOOKUP($B99,'100H110H'!$AZ$90:$BA$120,2,FALSE) -> 0 | E99: =VLOOKUP(B99,'100H110H'!$AZ$55:$BA$85,2,FALSE) -> 0 | F99: =VLOOKUP($B99,'100'!$AZ$55:$BA$85,2,FALSE) -> 0 | G99: =VLOOKUP($B99,'200'!$AZ$55:$BA$85,2,FALSE) -> 0 | H99: =VLOOKUP($B99,'400'!$AZ$55:$BA$85,2,FALSE) -> 0 | I99: =VLOOKUP($B99,'400H'!$AZ$55:$BA$85,2,FALSE) -> 0 | J99: =VLOOKUP($B99,'800'!$AZ$55:$BA$85,2,FALSE) -> 0 | K99: =VLOOKUP($B99,'1500'!$AZ$55:$BA$85,2,FALSE) -> 0 | M99: =VLOOKUP($B99,'2000SC'!$AZ$55:$BA$85,2,FALSE) -> 0 | N99: =VLOOKUP($B99,'3000'!$AZ$55:$BA$85,2,FALSE) -> 0 | O99: =VLOOKUP($B99,'3000SC'!$AZ$55:$BA$85,2,FALSE) -> 0 | P99: =VLOOKUP($B99,'5000'!$AZ$55:$BA$85,2,FALSE) -> 0 | Q99: =VLOOKUP($B99,'10000'!$AZ$55:$BA$85,2,FALSE) -> 0 | R99: =VLOOKUP($B99, '4X100'!$AS$55:$AT$85,2,FALSE) -> 0 | S99: =VLOOKUP($B99, '4X400'!$AS$55:$AT$85,2,FALSE) -> 0 | U99: =VLOOKUP($B99,HJ!$AY$55:$AZ$85,2,FALSE) -> 0 | V99: =VLOOKUP($B99,TJ!$AZ$55:$BA$85,2,FALSE) -> 0 | W99: =VLOOKUP($B99,LJ!$AZ$55:$BA$85,2,FALSE) -> 0 | Y99: =VLOOKUP($B99,SP!$AZ$55:$BA$85,2,FALSE) -> 0 | Z99: =VLOOKUP($B99,JT!$AZ$55:$BA$85,2,FALSE) -> 0 | AB99: =VLOOKUP($B99,DT!$AZ$55:$BA$85,2,FALSE) -> 0 | AM99: =VLOOKUP($B99,'100'!$AZ$90:$BA$120,2,FALSE) -> 0 | AN99: =VLOOKUP($B99,'200'!$AZ$90:$BA$120,2,FALSE) -> 0 | AO99: =VLOOKUP($B99,'400'!$AZ$90:$BA$120,2,FALSE) -> 0 | AP99: =VLOOKUP($B99,'400H'!$AZ$90:$BA$120,2,FALSE) -> 0 | AQ99: =VLOOKUP($B99,'800'!$AZ$90:$BA$120,2,FALSE) -> 0 | AR99: =VLOOKUP($B99,'1500'!$AZ$90:$BA$120,2,FALSE) -> 0 | AT99: =VLOOKUP($B99,'2000SC'!$AZ$90:$BA$120,2,FALSE) -> 0 | AU99: =VLOOKUP($B99,'3000'!$AZ$90:$BA$120,2,FALSE) -> 0 | AV99: =VLOOKUP($B99,'3000SC'!$AZ$90:$BA$120,2,FALSE) -> 0 | AW99: =VLOOKUP($B99,'5000'!$AZ$90:$BA$120,2,FALSE) -> 0 | AX99: =VLOOKUP($B99,'10000'!$AZ$90:$BA$120,2,FALSE) -> 0 | AY99: =VLOOKUP($B99,'4X100'!$AS$90:$AT$120,2,FALSE) -> 0 | AZ99: =VLOOKUP($B99,'4X400'!$AS$90:$AT$120,2,FALSE) -> 0 | BB99: =VLOOKUP($B99,HJ!$AY$90:$AZ$120,2,FALSE) -> 0 | BC99: =VLOOKUP($B99,HJ!$AY$90:$AZ$120,2,FALSE) -> 0 | BD99: =VLOOKUP($B99,LJ!$AZ$90:$BA$120,2,FALSE) -> 0 | BF99: =VLOOKUP($B99,SP!$AZ$90:$BA$120,2,FALSE) -> 0 | BG99: =VLOOKUP($B99,JT!$AZ$90:$BA$120,2,FALSE) -> 0 | BI99: =VLOOKUP($B99,DT!$AZ$90:$BA$120,2,FALSE) -> 0
A100: Team U | B100: =IFERROR(VLOOKUP(A100,'Set-Up'!$B$7:$C$37,2,FALSE),"") -> 0 | C100: 0 | D100: =VLOOKUP($B100,'100H110H'!$AZ$90:$BA$120,2,FALSE) -> 0 | E100: =VLOOKUP(B100,'100H110H'!$AZ$55:$BA$85,2,FALSE) -> 0 | F100: =VLOOKUP($B100,'100'!$AZ$55:$BA$85,2,FALSE) -> 0 | G100: =VLOOKUP($B100,'200'!$AZ$55:$BA$85,2,FALSE) -> 0 | H100: =VLOOKUP($B100,'400'!$AZ$55:$BA$85,2,FALSE) -> 0 | I100: =VLOOKUP($B100,'400H'!$AZ$55:$BA$85,2,FALSE) -> 0 | J100: =VLOOKUP($B100,'800'!$AZ$55:$BA$85,2,FALSE) -> 0 | K100: =VLOOKUP($B100,'1500'!$AZ$55:$BA$85,2,FALSE) -> 0 | M100: =VLOOKUP($B100,'2000SC'!$AZ$55:$BA$85,2,FALSE) -> 0 | N100: =VLOOKUP($B100,'3000'!$AZ$55:$BA$85,2,FALSE) -> 0 | O100: =VLOOKUP($B100,'3000SC'!$AZ$55:$BA$85,2,FALSE) -> 0 | P100: =VLOOKUP($B100,'5000'!$AZ$55:$BA$85,2,FALSE) -> 0 | Q100: =VLOOKUP($B100,'10000'!$AZ$55:$BA$85,2,FALSE) -> 0 | R100: =VLOOKUP($B100, '4X100'!$AS$55:$AT$85,2,FALSE) -> 0 | S100: =VLOOKUP($B100, '4X400'!$AS$55:$AT$85,2,FALSE) -> 0 | U100: =VLOOKUP($B100,HJ!$AY$55:$AZ$85,2,FALSE) -> 0 | V100: =VLOOKUP($B100,TJ!$AZ$55:$BA$85,2,FALSE) -> 0 | W100: =VLOOKUP($B100,LJ!$AZ$55:$BA$85,2,FALSE) -> 0 | Y100: =VLOOKUP($B100,SP!$AZ$55:$BA$85,2,FALSE) -> 0 | Z100: =VLOOKUP($B100,JT!$AZ$55:$BA$85,2,FALSE) -> 0 | AB100: =VLOOKUP($B100,DT!$AZ$55:$BA$85,2,FALSE) -> 0 | AM100: =VLOOKUP($B100,'100'!$AZ$90:$BA$120,2,FALSE) -> 0 | AN100: =VLOOKUP($B100,'200'!$AZ$90:$BA$120,2,FALSE) -> 0 | AO100: =VLOOKUP($B100,'400'!$AZ$90:$BA$120,2,FALSE) -> 0 | AP100: =VLOOKUP($B100,'400H'!$AZ$90:$BA$120,2,FALSE) -> 0 | AQ100: =VLOOKUP($B100,'800'!$AZ$90:$BA$120,2,FALSE) -> 0 | AR100: =VLOOKUP($B100,'1500'!$AZ$90:$BA$120,2,FALSE) -> 0 | AT100: =VLOOKUP($B100,'2000SC'!$AZ$90:$BA$120,2,FALSE) -> 0 | AU100: =VLOOKUP($B100,'3000'!$AZ$90:$BA$120,2,FALSE) -> 0 | AV100: =VLOOKUP($B100,'3000SC'!$AZ$90:$BA$120,2,FALSE) -> 0 | AW100: =VLOOKUP($B100,'5000'!$AZ$90:$BA$120,2,FALSE) -> 0 | AX100: =VLOOKUP($B100,'10000'!$AZ$90:$BA$120,2,FALSE) -> 0 | AY100: =VLOOKUP($B100,'4X100'!$AS$90:$AT$120,2,FALSE) -> 0 | AZ100: =VLOOKUP($B100,'4X400'!$AS$90:$AT$120,2,FALSE) -> 0 | BB100: =VLOOKUP($B100,HJ!$AY$90:$AZ$120,2,FALSE) -> 0 | BC100: =VLOOKUP($B100,HJ!$AY$90:$AZ$120,2,FALSE) -> 0 | BD100: =VLOOKUP($B100,LJ!$AZ$90:$BA$120,2,FALSE) -> 0 | BF100: =VLOOKUP($B100,SP!$AZ$90:$BA$120,2,FALSE) -> 0 | BG100: =VLOOKUP($B100,JT!$AZ$90:$BA$120,2,FALSE) -> 0 | BI100: =VLOOKUP($B100,DT!$AZ$90:$BA$120,2,FALSE) -> 0
A101: Team V | B101: =IFERROR(VLOOKUP(A101,'Set-Up'!$B$7:$C$37,2,FALSE),"") -> 0 | C101: 0 | D101: =VLOOKUP($B101,'100H110H'!$AZ$90:$BA$120,2,FALSE) -> 0 | E101: =VLOOKUP(B101,'100H110H'!$AZ$55:$BA$85,2,FALSE) -> 0 | F101: =VLOOKUP($B101,'100'!$AZ$55:$BA$85,2,FALSE) -> 0 | G101: =VLOOKUP($B101,'200'!$AZ$55:$BA$85,2,FALSE) -> 0 | H101: =VLOOKUP($B101,'400'!$AZ$55:$BA$85,2,FALSE) -> 0 | I101: =VLOOKUP($B101,'400H'!$AZ$55:$BA$85,2,FALSE) -> 0 | J101: =VLOOKUP($B101,'800'!$AZ$55:$BA$85,2,FALSE) -> 0 | K101: =VLOOKUP($B101,'1500'!$AZ$55:$BA$85,2,FALSE) -> 0 | M101: =VLOOKUP($B101,'2000SC'!$AZ$55:$BA$85,2,FALSE) -> 0 | N101: =VLOOKUP($B101,'3000'!$AZ$55:$BA$85,2,FALSE) -> 0 | O101: =VLOOKUP($B101,'3000SC'!$AZ$55:$BA$85,2,FALSE) -> 0 | P101: =VLOOKUP($B101,'5000'!$AZ$55:$BA$85,2,FALSE) -> 0 | Q101: =VLOOKUP($B101,'10000'!$AZ$55:$BA$85,2,FALSE) -> 0 | R101: =VLOOKUP($B101, '4X100'!$AS$55:$AT$85,2,FALSE) -> 0 | S101: =VLOOKUP($B101, '4X400'!$AS$55:$AT$85,2,FALSE) -> 0 | U101: =VLOOKUP($B101,HJ!$AY$55:$AZ$85,2,FALSE) -> 0 | V101: =VLOOKUP($B101,TJ!$AZ$55:$BA$85,2,FALSE) -> 0 | W101: =VLOOKUP($B101,LJ!$AZ$55:$BA$85,2,FALSE) -> 0 | Y101: =VLOOKUP($B101,SP!$AZ$55:$BA$85,2,FALSE) -> 0 | Z101: =VLOOKUP($B101,JT!$AZ$55:$BA$85,2,FALSE) -> 0 | AB101: =VLOOKUP($B101,DT!$AZ$55:$BA$85,2,FALSE) -> 0 | AM101: =VLOOKUP($B101,'100'!$AZ$90:$BA$120,2,FALSE) -> 0 | AN101: =VLOOKUP($B101,'200'!$AZ$90:$BA$120,2,FALSE) -> 0 | AO101: =VLOOKUP($B101,'400'!$AZ$90:$BA$120,2,FALSE) -> 0 | AP101: =VLOOKUP($B101,'400H'!$AZ$90:$BA$120,2,FALSE) -> 0 | AQ101: =VLOOKUP($B101,'800'!$AZ$90:$BA$120,2,FALSE) -> 0 | AR101: =VLOOKUP($B101,'1500'!$AZ$90:$BA$120,2,FALSE) -> 0 | AT101: =VLOOKUP($B101,'2000SC'!$AZ$90:$BA$120,2,FALSE) -> 0 | AU101: =VLOOKUP($B101,'3000'!$AZ$90:$BA$120,2,FALSE) -> 0 | AV101: =VLOOKUP($B101,'3000SC'!$AZ$90:$BA$120,2,FALSE) -> 0 | AW101: =VLOOKUP($B101,'5000'!$AZ$90:$BA$120,2,FALSE) -> 0 | AX101: =VLOOKUP($B101,'10000'!$AZ$90:$BA$120,2,FALSE) -> 0 | AY101: =VLOOKUP($B101,'4X100'!$AS$90:$AT$120,2,FALSE) -> 0 | AZ101: =VLOOKUP($B101,'4X400'!$AS$90:$AT$120,2,FALSE) -> 0 | BB101: =VLOOKUP($B101,HJ!$AY$90:$AZ$120,2,FALSE) -> 0 | BC101: =VLOOKUP($B101,HJ!$AY$90:$AZ$120,2,FALSE) -> 0 | BD101: =VLOOKUP($B101,LJ!$AZ$90:$BA$120,2,FALSE) -> 0 | BF101: =VLOOKUP($B101,SP!$AZ$90:$BA$120,2,FALSE) -> 0 | BG101: =VLOOKUP($B101,JT!$AZ$90:$BA$120,2,FALSE) -> 0 | BI101: =VLOOKUP($B101,DT!$AZ$90:$BA$120,2,FALSE) -> 0
A102: Team W | B102: =IFERROR(VLOOKUP(A102,'Set-Up'!$B$7:$C$37,2,FALSE),"") -> 0 | C102: 0 | D102: =VLOOKUP($B102,'100H110H'!$AZ$90:$BA$120,2,FALSE) -> 0 | E102: =VLOOKUP(B102,'100H110H'!$AZ$55:$BA$85,2,FALSE) -> 0 | F102: =VLOOKUP($B102,'100'!$AZ$55:$BA$85,2,FALSE) -> 0 | G102: =VLOOKUP($B102,'200'!$AZ$55:$BA$85,2,FALSE) -> 0 | H102: =VLOOKUP($B102,'400'!$AZ$55:$BA$85,2,FALSE) -> 0 | I102: =VLOOKUP($B102,'400H'!$AZ$55:$BA$85,2,FALSE) -> 0 | J102: =VLOOKUP($B102,'800'!$AZ$55:$BA$85,2,FALSE) -> 0 | K102: =VLOOKUP($B102,'1500'!$AZ$55:$BA$85,2,FALSE) -> 0 | M102: =VLOOKUP($B102,'2000SC'!$AZ$55:$BA$85,2,FALSE) -> 0 | N102: =VLOOKUP($B102,'3000'!$AZ$55:$BA$85,2,FALSE) -> 0 | O102: =VLOOKUP($B102,'3000SC'!$AZ$55:$BA$85,2,FALSE) -> 0 | P102: =VLOOKUP($B102,'5000'!$AZ$55:$BA$85,2,FALSE) -> 0 | Q102: =VLOOKUP($B102,'10000'!$AZ$55:$BA$85,2,FALSE) -> 0 | R102: =VLOOKUP($B102, '4X100'!$AS$55:$AT$85,2,FALSE) -> 0 | S102: =VLOOKUP($B102, '4X400'!$AS$55:$AT$85,2,FALSE) -> 0 | U102: =VLOOKUP($B102,HJ!$AY$55:$AZ$85,2,FALSE) -> 0 | V102: =VLOOKUP($B102,TJ!$AZ$55:$BA$85,2,FALSE) -> 0 | W102: =VLOOKUP($B102,LJ!$AZ$55:$BA$85,2,FALSE) -> 0 | Y102: =VLOOKUP($B102,SP!$AZ$55:$BA$85,2,FALSE) -> 0 | Z102: =VLOOKUP($B102,JT!$AZ$55:$BA$85,2,FALSE) -> 0 | AB102: =VLOOKUP($B102,DT!$AZ$55:$BA$85,2,FALSE) -> 0 | AM102: =VLOOKUP($B102,'100'!$AZ$90:$BA$120,2,FALSE) -> 0 | AN102: =VLOOKUP($B102,'200'!$AZ$90:$BA$120,2,FALSE) -> 0 | AO102: =VLOOKUP($B102,'400'!$AZ$90:$BA$120,2,FALSE) -> 0 | AP102: =VLOOKUP($B102,'400H'!$AZ$90:$BA$120,2,FALSE) -> 0 | AQ102: =VLOOKUP($B102,'800'!$AZ$90:$BA$120,2,FALSE) -> 0 | AR102: =VLOOKUP($B102,'1500'!$AZ$90:$BA$120,2,FALSE) -> 0 | AT102: =VLOOKUP($B102,'2000SC'!$AZ$90:$BA$120,2,FALSE) -> 0 | AU102: =VLOOKUP($B102,'3000'!$AZ$90:$BA$120,2,FALSE) -> 0 | AV102: =VLOOKUP($B102,'3000SC'!$AZ$90:$BA$120,2,FALSE) -> 0 | AW102: =VLOOKUP($B102,'5000'!$AZ$90:$BA$120,2,FALSE) -> 0 | AX102: =VLOOKUP($B102,'10000'!$AZ$90:$BA$120,2,FALSE) -> 0 | AY102: =VLOOKUP($B102,'4X100'!$AS$90:$AT$120,2,FALSE) -> 0 | AZ102: =VLOOKUP($B102,'4X400'!$AS$90:$AT$120,2,FALSE) -> 0 | BB102: =VLOOKUP($B102,HJ!$AY$90:$AZ$120,2,FALSE) -> 0 | BC102: =VLOOKUP($B102,HJ!$AY$90:$AZ$120,2,FALSE) -> 0 | BD102: =VLOOKUP($B102,LJ!$AZ$90:$BA$120,2,FALSE) -> 0 | BF102: =VLOOKUP($B102,SP!$AZ$90:$BA$120,2,FALSE) -> 0 | BG102: =VLOOKUP($B102,JT!$AZ$90:$BA$120,2,FALSE) -> 0 | BI102: =VLOOKUP($B102,DT!$AZ$90:$BA$120,2,FALSE) -> 0
A103: Team X | B103: =IFERROR(VLOOKUP(A103,'Set-Up'!$B$7:$C$37,2,FALSE),"") -> 0 | C103: 0 | D103: =VLOOKUP($B103,'100H110H'!$AZ$90:$BA$120,2,FALSE) -> 0 | E103: =VLOOKUP(B103,'100H110H'!$AZ$55:$BA$85,2,FALSE) -> 0 | F103: =VLOOKUP($B103,'100'!$AZ$55:$BA$85,2,FALSE) -> 0 | G103: =VLOOKUP($B103,'200'!$AZ$55:$BA$85,2,FALSE) -> 0 | H103: =VLOOKUP($B103,'400'!$AZ$55:$BA$85,2,FALSE) -> 0 | I103: =VLOOKUP($B103,'400H'!$AZ$55:$BA$85,2,FALSE) -> 0 | J103: =VLOOKUP($B103,'800'!$AZ$55:$BA$85,2,FALSE) -> 0 | K103: =VLOOKUP($B103,'1500'!$AZ$55:$BA$85,2,FALSE) -> 0 | M103: =VLOOKUP($B103,'2000SC'!$AZ$55:$BA$85,2,FALSE) -> 0 | N103: =VLOOKUP($B103,'3000'!$AZ$55:$BA$85,2,FALSE) -> 0 | O103: =VLOOKUP($B103,'3000SC'!$AZ$55:$BA$85,2,FALSE) -> 0 | P103: =VLOOKUP($B103,'5000'!$AZ$55:$BA$85,2,FALSE) -> 0 | Q103: =VLOOKUP($B103,'10000'!$AZ$55:$BA$85,2,FALSE) -> 0 | R103: =VLOOKUP($B103, '4X100'!$AS$55:$AT$85,2,FALSE) -> 0 | S103: =VLOOKUP($B103, '4X400'!$AS$55:$AT$85,2,FALSE) -> 0 | U103: =VLOOKUP($B103,HJ!$AY$55:$AZ$85,2,FALSE) -> 0 | V103: =VLOOKUP($B103,TJ!$AZ$55:$BA$85,2,FALSE) -> 0 | W103: =VLOOKUP($B103,LJ!$AZ$55:$BA$85,2,FALSE) -> 0 | Y103: =VLOOKUP($B103,SP!$AZ$55:$BA$85,2,FALSE) -> 0 | Z103: =VLOOKUP($B103,JT!$AZ$55:$BA$85,2,FALSE) -> 0 | AB103: =VLOOKUP($B103,DT!$AZ$55:$BA$85,2,FALSE) -> 0 | AM103: =VLOOKUP($B103,'100'!$AZ$90:$BA$120,2,FALSE) -> 0 | AN103: =VLOOKUP($B103,'200'!$AZ$90:$BA$120,2,FALSE) -> 0 | AO103: =VLOOKUP($B103,'400'!$AZ$90:$BA$120,2,FALSE) -> 0 | AP103: =VLOOKUP($B103,'400H'!$AZ$90:$BA$120,2,FALSE) -> 0 | AQ103: =VLOOKUP($B103,'800'!$AZ$90:$BA$120,2,FALSE) -> 0 | AR103: =VLOOKUP($B103,'1500'!$AZ$90:$BA$120,2,FALSE) -> 0 | AT103: =VLOOKUP($B103,'2000SC'!$AZ$90:$BA$120,2,FALSE) -> 0 | AU103: =VLOOKUP($B103,'3000'!$AZ$90:$BA$120,2,FALSE) -> 0 | AV103: =VLOOKUP($B103,'3000SC'!$AZ$90:$BA$120,2,FALSE) -> 0 | AW103: =VLOOKUP($B103,'5000'!$AZ$90:$BA$120,2,FALSE) -> 0 | AX103: =VLOOKUP($B103,'10000'!$AZ$90:$BA$120,2,FALSE) -> 0 | AY103: =VLOOKUP($B103,'4X100'!$AS$90:$AT$120,2,FALSE) -> 0 | AZ103: =VLOOKUP($B103,'4X400'!$AS$90:$AT$120,2,FALSE) -> 0 | BB103: =VLOOKUP($B103,HJ!$AY$90:$AZ$120,2,FALSE) -> 0 | BC103: =VLOOKUP($B103,HJ!$AY$90:$AZ$120,2,FALSE) -> 0 | BD103: =VLOOKUP($B103,LJ!$AZ$90:$BA$120,2,FALSE) -> 0 | BF103: =VLOOKUP($B103,SP!$AZ$90:$BA$120,2,FALSE) -> 0 | BG103: =VLOOKUP($B103,JT!$AZ$90:$BA$120,2,FALSE) -> 0 | BI103: =VLOOKUP($B103,DT!$AZ$90:$BA$120,2,FALSE) -> 0
A104: Team Y | B104: =IFERROR(VLOOKUP(A104,'Set-Up'!$B$7:$C$37,2,FALSE),"") -> 0 | C104: 0 | D104: =VLOOKUP($B104,'100H110H'!$AZ$90:$BA$120,2,FALSE) -> 0 | E104: =VLOOKUP(B104,'100H110H'!$AZ$55:$BA$85,2,FALSE) -> 0 | F104: =VLOOKUP($B104,'100'!$AZ$55:$BA$85,2,FALSE) -> 0 | G104: =VLOOKUP($B104,'200'!$AZ$55:$BA$85,2,FALSE) -> 0 | H104: =VLOOKUP($B104,'400'!$AZ$55:$BA$85,2,FALSE) -> 0 | I104: =VLOOKUP($B104,'400H'!$AZ$55:$BA$85,2,FALSE) -> 0 | J104: =VLOOKUP($B104,'800'!$AZ$55:$BA$85,2,FALSE) -> 0 | K104: =VLOOKUP($B104,'1500'!$AZ$55:$BA$85,2,FALSE) -> 0 | M104: =VLOOKUP($B104,'2000SC'!$AZ$55:$BA$85,2,FALSE) -> 0 | N104: =VLOOKUP($B104,'3000'!$AZ$55:$BA$85,2,FALSE) -> 0 | O104: =VLOOKUP($B104,'3000SC'!$AZ$55:$BA$85,2,FALSE) -> 0 | P104: =VLOOKUP($B104,'5000'!$AZ$55:$BA$85,2,FALSE) -> 0 | Q104: =VLOOKUP($B104,'10000'!$AZ$55:$BA$85,2,FALSE) -> 0 | R104: =VLOOKUP($B104, '4X100'!$AS$55:$AT$85,2,FALSE) -> 0 | S104: =VLOOKUP($B104, '4X400'!$AS$55:$AT$85,2,FALSE) -> 0 | U104: =VLOOKUP($B104,HJ!$AY$55:$AZ$85,2,FALSE) -> 0 | V104: =VLOOKUP($B104,TJ!$AZ$55:$BA$85,2,FALSE) -> 0 | W104: =VLOOKUP($B104,LJ!$AZ$55:$BA$85,2,FALSE) -> 0 | Y104: =VLOOKUP($B104,SP!$AZ$55:$BA$85,2,FALSE) -> 0 | Z104: =VLOOKUP($B104,JT!$AZ$55:$BA$85,2,FALSE) -> 0 | AB104: =VLOOKUP($B104,DT!$AZ$55:$BA$85,2,FALSE) -> 0 | AM104: =VLOOKUP($B104,'100'!$AZ$90:$BA$120,2,FALSE) -> 0 | AN104: =VLOOKUP($B104,'200'!$AZ$90:$BA$120,2,FALSE) -> 0 | AO104: =VLOOKUP($B104,'400'!$AZ$90:$BA$120,2,FALSE) -> 0 | AP104: =VLOOKUP($B104,'400H'!$AZ$90:$BA$120,2,FALSE) -> 0 | AQ104: =VLOOKUP($B104,'800'!$AZ$90:$BA$120,2,FALSE) -> 0 | AR104: =VLOOKUP($B104,'1500'!$AZ$90:$BA$120,2,FALSE) -> 0 | AT104: =VLOOKUP($B104,'2000SC'!$AZ$90:$BA$120,2,FALSE) -> 0 | AU104: =VLOOKUP($B104,'3000'!$AZ$90:$BA$120,2,FALSE) -> 0 | AV104: =VLOOKUP($B104,'3000SC'!$AZ$90:$BA$120,2,FALSE) -> 0 | AW104: =VLOOKUP($B104,'5000'!$AZ$90:$BA$120,2,FALSE) -> 0 | AX104: =VLOOKUP($B104,'10000'!$AZ$90:$BA$120,2,FALSE) -> 0 | AY104: =VLOOKUP($B104,'4X100'!$AS$90:$AT$120,2,FALSE) -> 0 | AZ104: =VLOOKUP($B104,'4X400'!$AS$90:$AT$120,2,FALSE) -> 0 | BB104: =VLOOKUP($B104,HJ!$AY$90:$AZ$120,2,FALSE) -> 0 | BC104: =VLOOKUP($B104,HJ!$AY$90:$AZ$120,2,FALSE) -> 0 | BD104: =VLOOKUP($B104,LJ!$AZ$90:$BA$120,2,FALSE) -> 0 | BF104: =VLOOKUP($B104,SP!$AZ$90:$BA$120,2,FALSE) -> 0 | BG104: =VLOOKUP($B104,JT!$AZ$90:$BA$120,2,FALSE) -> 0 | BI104: =VLOOKUP($B104,DT!$AZ$90:$BA$120,2,FALSE) -> 0
A105: Team Z | B105: =IFERROR(VLOOKUP(A105,'Set-Up'!$B$7:$C$37,2,FALSE),"") -> 0 | C105: 0 | D105: =VLOOKUP($B105,'100H110H'!$AZ$90:$BA$120,2,FALSE) -> 0 | E105: =VLOOKUP(B105,'100H110H'!$AZ$55:$BA$85,2,FALSE) -> 0 | F105: =VLOOKUP($B105,'100'!$AZ$55:$BA$85,2,FALSE) -> 0 | G105: =VLOOKUP($B105,'200'!$AZ$55:$BA$85,2,FALSE) -> 0 | H105: =VLOOKUP($B105,'400'!$AZ$55:$BA$85,2,FALSE) -> 0 | I105: =VLOOKUP($B105,'400H'!$AZ$55:$BA$85,2,FALSE) -> 0 | J105: =VLOOKUP($B105,'800'!$AZ$55:$BA$85,2,FALSE) -> 0 | K105: =VLOOKUP($B105,'1500'!$AZ$55:$BA$85,2,FALSE) -> 0 | M105: =VLOOKUP($B105,'2000SC'!$AZ$55:$BA$85,2,FALSE) -> 0 | N105: =VLOOKUP($B105,'3000'!$AZ$55:$BA$85,2,FALSE) -> 0 | O105: =VLOOKUP($B105,'3000SC'!$AZ$55:$BA$85,2,FALSE) -> 0 | P105: =VLOOKUP($B105,'5000'!$AZ$55:$BA$85,2,FALSE) -> 0 | Q105: =VLOOKUP($B105,'10000'!$AZ$55:$BA$85,2,FALSE) -> 0 | R105: =VLOOKUP($B105, '4X100'!$AS$55:$AT$85,2,FALSE) -> 0 | S105: =VLOOKUP($B105, '4X400'!$AS$55:$AT$85,2,FALSE) -> 0 | U105: =VLOOKUP($B105,HJ!$AY$55:$AZ$85,2,FALSE) -> 0 | V105: =VLOOKUP($B105,TJ!$AZ$55:$BA$85,2,FALSE) -> 0 | W105: =VLOOKUP($B105,LJ!$AZ$55:$BA$85,2,FALSE) -> 0 | Y105: =VLOOKUP($B105,SP!$AZ$55:$BA$85,2,FALSE) -> 0 | Z105: =VLOOKUP($B105,JT!$AZ$55:$BA$85,2,FALSE) -> 0 | AB105: =VLOOKUP($B105,DT!$AZ$55:$BA$85,2,FALSE) -> 0 | AM105: =VLOOKUP($B105,'100'!$AZ$90:$BA$120,2,FALSE) -> 0 | AN105: =VLOOKUP($B105,'200'!$AZ$90:$BA$120,2,FALSE) -> 0 | AO105: =VLOOKUP($B105,'400'!$AZ$90:$BA$120,2,FALSE) -> 0 | AP105: =VLOOKUP($B105,'400H'!$AZ$90:$BA$120,2,FALSE) -> 0 | AQ105: =VLOOKUP($B105,'800'!$AZ$90:$BA$120,2,FALSE) -> 0 | AR105: =VLOOKUP($B105,'1500'!$AZ$90:$BA$120,2,FALSE) -> 0 | AT105: =VLOOKUP($B105,'2000SC'!$AZ$90:$BA$120,2,FALSE) -> 0 | AU105: =VLOOKUP($B105,'3000'!$AZ$90:$BA$120,2,FALSE) -> 0 | AV105: =VLOOKUP($B105,'3000SC'!$AZ$90:$BA$120,2,FALSE) -> 0 | AW105: =VLOOKUP($B105,'5000'!$AZ$90:$BA$120,2,FALSE) -> 0 | AX105: =VLOOKUP($B105,'10000'!$AZ$90:$BA$120,2,FALSE) -> 0 | AY105: =VLOOKUP($B105,'4X100'!$AS$90:$AT$120,2,FALSE) -> 0 | AZ105: =VLOOKUP($B105,'4X400'!$AS$90:$AT$120,2,FALSE) -> 0 | BB105: =VLOOKUP($B105,HJ!$AY$90:$AZ$120,2,FALSE) -> 0 | BC105: =VLOOKUP($B105,HJ!$AY$90:$AZ$120,2,FALSE) -> 0 | BD105: =VLOOKUP($B105,LJ!$AZ$90:$BA$120,2,FALSE) -> 0 | BF105: =VLOOKUP($B105,SP!$AZ$90:$BA$120,2,FALSE) -> 0 | BG105: =VLOOKUP($B105,JT!$AZ$90:$BA$120,2,FALSE) -> 0 | BI105: =VLOOKUP($B105,DT!$AZ$90:$BA$120,2,FALSE) -> 0
A106: Team AA | B106: =IFERROR(VLOOKUP(A106,'Set-Up'!$B$7:$C$37,2,FALSE),"") -> 0 | C106: 0 | D106: =VLOOKUP($B106,'100H110H'!$AZ$90:$BA$120,2,FALSE) -> 0 | E106: =VLOOKUP(B106,'100H110H'!$AZ$55:$BA$85,2,FALSE) -> 0 | F106: =VLOOKUP($B106,'100'!$AZ$55:$BA$85,2,FALSE) -> 0 | G106: =VLOOKUP($B106,'200'!$AZ$55:$BA$85,2,FALSE) -> 0 | H106: =VLOOKUP($B106,'400'!$AZ$55:$BA$85,2,FALSE) -> 0 | I106: =VLOOKUP($B106,'400H'!$AZ$55:$BA$85,2,FALSE) -> 0 | J106: =VLOOKUP($B106,'800'!$AZ$55:$BA$85,2,FALSE) -> 0 | K106: =VLOOKUP($B106,'1500'!$AZ$55:$BA$85,2,FALSE) -> 0 | M106: =VLOOKUP($B106,'2000SC'!$AZ$55:$BA$85,2,FALSE) -> 0 | N106: =VLOOKUP($B106,'3000'!$AZ$55:$BA$85,2,FALSE) -> 0 | O106: =VLOOKUP($B106,'3000SC'!$AZ$55:$BA$85,2,FALSE) -> 0 | P106: =VLOOKUP($B106,'5000'!$AZ$55:$BA$85,2,FALSE) -> 0 | Q106: =VLOOKUP($B106,'10000'!$AZ$55:$BA$85,2,FALSE) -> 0 | R106: =VLOOKUP($B106, '4X100'!$AS$55:$AT$85,2,FALSE) -> 0 | S106: =VLOOKUP($B106, '4X400'!$AS$55:$AT$85,2,FALSE) -> 0 | U106: =VLOOKUP($B106,HJ!$AY$55:$AZ$85,2,FALSE) -> 0 | V106: =VLOOKUP($B106,TJ!$AZ$55:$BA$85,2,FALSE) -> 0 | W106: =VLOOKUP($B106,LJ!$AZ$55:$BA$85,2,FALSE) -> 0 | Y106: =VLOOKUP($B106,SP!$AZ$55:$BA$85,2,FALSE) -> 0 | Z106: =VLOOKUP($B106,JT!$AZ$55:$BA$85,2,FALSE) -> 0 | AB106: =VLOOKUP($B106,DT!$AZ$55:$BA$85,2,FALSE) -> 0 | AM106: =VLOOKUP($B106,'100'!$AZ$90:$BA$120,2,FALSE) -> 0 | AN106: =VLOOKUP($B106,'200'!$AZ$90:$BA$120,2,FALSE) -> 0 | AO106: =VLOOKUP($B106,'400'!$AZ$90:$BA$120,2,FALSE) -> 0 | AP106: =VLOOKUP($B106,'400H'!$AZ$90:$BA$120,2,FALSE) -> 0 | AQ106: =VLOOKUP($B106,'800'!$AZ$90:$BA$120,2,FALSE) -> 0 | AR106: =VLOOKUP($B106,'1500'!$AZ$90:$BA$120,2,FALSE) -> 0 | AT106: =VLOOKUP($B106,'2000SC'!$AZ$90:$BA$120,2,FALSE) -> 0 | AU106: =VLOOKUP($B106,'3000'!$AZ$90:$BA$120,2,FALSE) -> 0 | AV106: =VLOOKUP($B106,'3000SC'!$AZ$90:$BA$120,2,FALSE) -> 0 | AW106: =VLOOKUP($B106,'5000'!$AZ$90:$BA$120,2,FALSE) -> 0 | AX106: =VLOOKUP($B106,'10000'!$AZ$90:$BA$120,2,FALSE) -> 0 | AY106: =VLOOKUP($B106,'4X100'!$AS$90:$AT$120,2,FALSE) -> 0 | AZ106: =VLOOKUP($B106,'4X400'!$AS$90:$AT$120,2,FALSE) -> 0 | BB106: =VLOOKUP($B106,HJ!$AY$90:$AZ$120,2,FALSE) -> 0 | BC106: =VLOOKUP($B106,HJ!$AY$90:$AZ$120,2,FALSE) -> 0 | BD106: =VLOOKUP($B106,LJ!$AZ$90:$BA$120,2,FALSE) -> 0 | BF106: =VLOOKUP($B106,SP!$AZ$90:$BA$120,2,FALSE) -> 0 | BG106: =VLOOKUP($B106,JT!$AZ$90:$BA$120,2,FALSE) -> 0 | BI106: =VLOOKUP($B106,DT!$AZ$90:$BA$120,2,FALSE) -> 0
A107: Team AB | B107: =IFERROR(VLOOKUP(A107,'Set-Up'!$B$7:$C$37,2,FALSE),"") -> 0 | C107: 0 | D107: =VLOOKUP($B107,'100H110H'!$AZ$90:$BA$120,2,FALSE) -> 0 | E107: =VLOOKUP(B107,'100H110H'!$AZ$55:$BA$85,2,FALSE) -> 0 | F107: =VLOOKUP($B107,'100'!$AZ$55:$BA$85,2,FALSE) -> 0 | G107: =VLOOKUP($B107,'200'!$AZ$55:$BA$85,2,FALSE) -> 0 | H107: =VLOOKUP($B107,'400'!$AZ$55:$BA$85,2,FALSE) -> 0 | I107: =VLOOKUP($B107,'400H'!$AZ$55:$BA$85,2,FALSE) -> 0 | J107: =VLOOKUP($B107,'800'!$AZ$55:$BA$85,2,FALSE) -> 0 | K107: =VLOOKUP($B107,'1500'!$AZ$55:$BA$85,2,FALSE) -> 0 | M107: =VLOOKUP($B107,'2000SC'!$AZ$55:$BA$85,2,FALSE) -> 0 | N107: =VLOOKUP($B107,'3000'!$AZ$55:$BA$85,2,FALSE) -> 0 | O107: =VLOOKUP($B107,'3000SC'!$AZ$55:$BA$85,2,FALSE) -> 0 | P107: =VLOOKUP($B107,'5000'!$AZ$55:$BA$85,2,FALSE) -> 0 | Q107: =VLOOKUP($B107,'10000'!$AZ$55:$BA$85,2,FALSE) -> 0 | R107: =VLOOKUP($B107, '4X100'!$AS$55:$AT$85,2,FALSE) -> 0 | S107: =VLOOKUP($B107, '4X400'!$AS$55:$AT$85,2,FALSE) -> 0 | U107: =VLOOKUP($B107,HJ!$AY$55:$AZ$85,2,FALSE) -> 0 | V107: =VLOOKUP($B107,TJ!$AZ$55:$BA$85,2,FALSE) -> 0 | W107: =VLOOKUP($B107,LJ!$AZ$55:$BA$85,2,FALSE) -> 0 | Y107: =VLOOKUP($B107,SP!$AZ$55:$BA$85,2,FALSE) -> 0 | Z107: =VLOOKUP($B107,JT!$AZ$55:$BA$85,2,FALSE) -> 0 | AB107: =VLOOKUP($B107,DT!$AZ$55:$BA$85,2,FALSE) -> 0 | AM107: =VLOOKUP($B107,'100'!$AZ$90:$BA$120,2,FALSE) -> 0 | AN107: =VLOOKUP($B107,'200'!$AZ$90:$BA$120,2,FALSE) -> 0 | AO107: =VLOOKUP($B107,'400'!$AZ$90:$BA$120,2,FALSE) -> 0 | AP107: =VLOOKUP($B107,'400H'!$AZ$90:$BA$120,2,FALSE) -> 0 | AQ107: =VLOOKUP($B107,'800'!$AZ$90:$BA$120,2,FALSE) -> 0 | AR107: =VLOOKUP($B107,'1500'!$AZ$90:$BA$120,2,FALSE) -> 0 | AT107: =VLOOKUP($B107,'2000SC'!$AZ$90:$BA$120,2,FALSE) -> 0 | AU107: =VLOOKUP($B107,'3000'!$AZ$90:$BA$120,2,FALSE) -> 0 | AV107: =VLOOKUP($B107,'3000SC'!$AZ$90:$BA$120,2,FALSE) -> 0 | AW107: =VLOOKUP($B107,'5000'!$AZ$90:$BA$120,2,FALSE) -> 0 | AX107: =VLOOKUP($B107,'10000'!$AZ$90:$BA$120,2,FALSE) -> 0 | AY107: =VLOOKUP($B107,'4X100'!$AS$90:$AT$120,2,FALSE) -> 0 | AZ107: =VLOOKUP($B107,'4X400'!$AS$90:$AT$120,2,FALSE) -> 0 | BB107: =VLOOKUP($B107,HJ!$AY$90:$AZ$120,2,FALSE) -> 0 | BC107: =VLOOKUP($B107,HJ!$AY$90:$AZ$120,2,FALSE) -> 0 | BD107: =VLOOKUP($B107,LJ!$AZ$90:$BA$120,2,FALSE) -> 0 | BF107: =VLOOKUP($B107,SP!$AZ$90:$BA$120,2,FALSE) -> 0 | BG107: =VLOOKUP($B107,JT!$AZ$90:$BA$120,2,FALSE) -> 0 | BI107: =VLOOKUP($B107,DT!$AZ$90:$BA$120,2,FALSE) -> 0
A108: Team AC | B108: =IFERROR(VLOOKUP(A108,'Set-Up'!$B$7:$C$37,2,FALSE),"") -> 0 | C108: 0 | D108: =VLOOKUP($B108,'100H110H'!$AZ$90:$BA$120,2,FALSE) -> 0 | E108: =VLOOKUP(B108,'100H110H'!$AZ$55:$BA$85,2,FALSE) -> 0 | F108: =VLOOKUP($B108,'100'!$AZ$55:$BA$85,2,FALSE) -> 0 | G108: =VLOOKUP($B108,'200'!$AZ$55:$BA$85,2,FALSE) -> 0 | H108: =VLOOKUP($B108,'400'!$AZ$55:$BA$85,2,FALSE) -> 0 | I108: =VLOOKUP($B108,'400H'!$AZ$55:$BA$85,2,FALSE) -> 0 | J108: =VLOOKUP($B108,'800'!$AZ$55:$BA$85,2,FALSE) -> 0 | K108: =VLOOKUP($B108,'1500'!$AZ$55:$BA$85,2,FALSE) -> 0 | M108: =VLOOKUP($B108,'2000SC'!$AZ$55:$BA$85,2,FALSE) -> 0 | N108: =VLOOKUP($B108,'3000'!$AZ$55:$BA$85,2,FALSE) -> 0 | O108: =VLOOKUP($B108,'3000SC'!$AZ$55:$BA$85,2,FALSE) -> 0 | P108: =VLOOKUP($B108,'5000'!$AZ$55:$BA$85,2,FALSE) -> 0 | Q108: =VLOOKUP($B108,'10000'!$AZ$55:$BA$85,2,FALSE) -> 0 | R108: =VLOOKUP($B108, '4X100'!$AS$55:$AT$85,2,FALSE) -> 0 | S108: =VLOOKUP($B108, '4X400'!$AS$55:$AT$85,2,FALSE) -> 0 | U108: =VLOOKUP($B108,HJ!$AY$55:$AZ$85,2,FALSE) -> 0 | V108: =VLOOKUP($B108,TJ!$AZ$55:$BA$85,2,FALSE) -> 0 | W108: =VLOOKUP($B108,LJ!$AZ$55:$BA$85,2,FALSE) -> 0 | Y108: =VLOOKUP($B108,SP!$AZ$55:$BA$85,2,FALSE) -> 0 | Z108: =VLOOKUP($B108,JT!$AZ$55:$BA$85,2,FALSE) -> 0 | AB108: =VLOOKUP($B108,DT!$AZ$55:$BA$85,2,FALSE) -> 0 | AM108: =VLOOKUP($B108,'100'!$AZ$90:$BA$120,2,FALSE) -> 0 | AN108: =VLOOKUP($B108,'200'!$AZ$90:$BA$120,2,FALSE) -> 0 | AO108: =VLOOKUP($B108,'400'!$AZ$90:$BA$120,2,FALSE) -> 0 | AP108: =VLOOKUP($B108,'400H'!$AZ$90:$BA$120,2,FALSE) -> 0 | AQ108: =VLOOKUP($B108,'800'!$AZ$90:$BA$120,2,FALSE) -> 0 | AR108: =VLOOKUP($B108,'1500'!$AZ$90:$BA$120,2,FALSE) -> 0 | AT108: =VLOOKUP($B108,'2000SC'!$AZ$90:$BA$120,2,FALSE) -> 0 | AU108: =VLOOKUP($B108,'3000'!$AZ$90:$BA$120,2,FALSE) -> 0 | AV108: =VLOOKUP($B108,'3000SC'!$AZ$90:$BA$120,2,FALSE) -> 0 | AW108: =VLOOKUP($B108,'5000'!$AZ$90:$BA$120,2,FALSE) -> 0 | AX108: =VLOOKUP($B108,'10000'!$AZ$90:$BA$120,2,FALSE) -> 0 | AY108: =VLOOKUP($B108,'4X100'!$AS$90:$AT$120,2,FALSE) -> 0 | AZ108: =VLOOKUP($B108,'4X400'!$AS$90:$AT$120,2,FALSE) -> 0 | BB108: =VLOOKUP($B108,HJ!$AY$90:$AZ$120,2,FALSE) -> 0 | BC108: =VLOOKUP($B108,HJ!$AY$90:$AZ$120,2,FALSE) -> 0 | BD108: =VLOOKUP($B108,LJ!$AZ$90:$BA$120,2,FALSE) -> 0 | BF108: =VLOOKUP($B108,SP!$AZ$90:$BA$120,2,FALSE) -> 0 | BG108: =VLOOKUP($B108,JT!$AZ$90:$BA$120,2,FALSE) -> 0 | BI108: =VLOOKUP($B108,DT!$AZ$90:$BA$120,2,FALSE) -> 0
A109: Team AD | B109: =IFERROR(VLOOKUP(A109,'Set-Up'!$B$7:$C$37,2,FALSE),"") -> 0 | C109: 0 | D109: =VLOOKUP($B109,'100H110H'!$AZ$90:$BA$120,2,FALSE) -> 0 | E109: =VLOOKUP(B109,'100H110H'!$AZ$55:$BA$85,2,FALSE) -> 0 | F109: =VLOOKUP($B109,'100'!$AZ$55:$BA$85,2,FALSE) -> 0 | G109: =VLOOKUP($B109,'200'!$AZ$55:$BA$85,2,FALSE) -> 0 | H109: =VLOOKUP($B109,'400'!$AZ$55:$BA$85,2,FALSE) -> 0 | I109: =VLOOKUP($B109,'400H'!$AZ$55:$BA$85,2,FALSE) -> 0 | J109: =VLOOKUP($B109,'800'!$AZ$55:$BA$85,2,FALSE) -> 0 | K109: =VLOOKUP($B109,'1500'!$AZ$55:$BA$85,2,FALSE) -> 0 | M109: =VLOOKUP($B109,'2000SC'!$AZ$55:$BA$85,2,FALSE) -> 0 | N109: =VLOOKUP($B109,'3000'!$AZ$55:$BA$85,2,FALSE) -> 0 | O109: =VLOOKUP($B109,'3000SC'!$AZ$55:$BA$85,2,FALSE) -> 0 | P109: =VLOOKUP($B109,'5000'!$AZ$55:$BA$85,2,FALSE) -> 0 | Q109: =VLOOKUP($B109,'10000'!$AZ$55:$BA$85,2,FALSE) -> 0 | R109: =VLOOKUP($B109, '4X100'!$AS$55:$AT$85,2,FALSE) -> 0 | S109: =VLOOKUP($B109, '4X400'!$AS$55:$AT$85,2,FALSE) -> 0 | U109: =VLOOKUP($B109,HJ!$AY$55:$AZ$85,2,FALSE) -> 0 | V109: =VLOOKUP($B109,TJ!$AZ$55:$BA$85,2,FALSE) -> 0 | W109: =VLOOKUP($B109,LJ!$AZ$55:$BA$85,2,FALSE) -> 0 | Y109: =VLOOKUP($B109,SP!$AZ$55:$BA$85,2,FALSE) -> 0 | Z109: =VLOOKUP($B109,JT!$AZ$55:$BA$85,2,FALSE) -> 0 | AB109: =VLOOKUP($B109,DT!$AZ$55:$BA$85,2,FALSE) -> 0 | AM109: =VLOOKUP($B109,'100'!$AZ$90:$BA$120,2,FALSE) -> 0 | AN109: =VLOOKUP($B109,'200'!$AZ$90:$BA$120,2,FALSE) -> 0 | AO109: =VLOOKUP($B109,'400'!$AZ$90:$BA$120,2,FALSE) -> 0 | AP109: =VLOOKUP($B109,'400H'!$AZ$90:$BA$120,2,FALSE) -> 0 | AQ109: =VLOOKUP($B109,'800'!$AZ$90:$BA$120,2,FALSE) -> 0 | AR109: =VLOOKUP($B109,'1500'!$AZ$90:$BA$120,2,FALSE) -> 0 | AT109: =VLOOKUP($B109,'2000SC'!$AZ$90:$BA$120,2,FALSE) -> 0 | AU109: =VLOOKUP($B109,'3000'!$AZ$90:$BA$120,2,FALSE) -> 0 | AV109: =VLOOKUP($B109,'3000SC'!$AZ$90:$BA$120,2,FALSE) -> 0 | AW109: =VLOOKUP($B109,'5000'!$AZ$90:$BA$120,2,FALSE) -> 0 | AX109: =VLOOKUP($B109,'10000'!$AZ$90:$BA$120,2,FALSE) -> 0 | AY109: =VLOOKUP($B109,'4X100'!$AS$90:$AT$120,2,FALSE) -> 0 | AZ109: =VLOOKUP($B109,'4X400'!$AS$90:$AT$120,2,FALSE) -> 0 | BB109: =VLOOKUP($B109,HJ!$AY$90:$AZ$120,2,FALSE) -> 0 | BC109: =VLOOKUP($B109,HJ!$AY$90:$AZ$120,2,FALSE) -> 0 | BD109: =VLOOKUP($B109,LJ!$AZ$90:$BA$120,2,FALSE) -> 0 | BF109: =VLOOKUP($B109,SP!$AZ$90:$BA$120,2,FALSE) -> 0 | BG109: =VLOOKUP($B109,JT!$AZ$90:$BA$120,2,FALSE) -> 0 | BI109: =VLOOKUP($B109,DT!$AZ$90:$BA$120,2,FALSE) -> 0
A110: Team AE | B110: =IFERROR(VLOOKUP(A110,'Set-Up'!$B$7:$C$37,2,FALSE),"") -> 0 | C110: 0 | D110: =VLOOKUP($B110,'100H110H'!$AZ$90:$BA$120,2,FALSE) -> 0 | E110: =VLOOKUP(B110,'100H110H'!$AZ$55:$BA$85,2,FALSE) -> 0 | F110: =VLOOKUP($B110,'100'!$AZ$55:$BA$85,2,FALSE) -> 0 | G110: =VLOOKUP($B110,'200'!$AZ$55:$BA$85,2,FALSE) -> 0 | H110: =VLOOKUP($B110,'400'!$AZ$55:$BA$85,2,FALSE) -> 0 | I110: =VLOOKUP($B110,'400H'!$AZ$55:$BA$85,2,FALSE) -> 0 | J110: =VLOOKUP($B110,'800'!$AZ$55:$BA$85,2,FALSE) -> 0 | K110: =VLOOKUP($B110,'1500'!$AZ$55:$BA$85,2,FALSE) -> 0 | M110: =VLOOKUP($B110,'2000SC'!$AZ$55:$BA$85,2,FALSE) -> 0 | N110: =VLOOKUP($B110,'3000'!$AZ$55:$BA$85,2,FALSE) -> 0 | O110: =VLOOKUP($B110,'3000SC'!$AZ$55:$BA$85,2,FALSE) -> 0 | P110: =VLOOKUP($B110,'5000'!$AZ$55:$BA$85,2,FALSE) -> 0 | Q110: =VLOOKUP($B110,'10000'!$AZ$55:$BA$85,2,FALSE) -> 0 | R110: =VLOOKUP($B110, '4X100'!$AS$55:$AT$85,2,FALSE) -> 0 | S110: =VLOOKUP($B110, '4X400'!$AS$55:$AT$85,2,FALSE) -> 0 | U110: =VLOOKUP($B110,HJ!$AY$55:$AZ$85,2,FALSE) -> 0 | V110: =VLOOKUP($B110,TJ!$AZ$55:$BA$85,2,FALSE) -> 0 | W110: =VLOOKUP($B110,LJ!$AZ$55:$BA$85,2,FALSE) -> 0 | Y110: =VLOOKUP($B110,SP!$AZ$55:$BA$85,2,FALSE) -> 0 | Z110: =VLOOKUP($B110,JT!$AZ$55:$BA$85,2,FALSE) -> 0 | AB110: =VLOOKUP($B110,DT!$AZ$55:$BA$85,2,FALSE) -> 0 | AM110: =VLOOKUP($B110,'100'!$AZ$90:$BA$120,2,FALSE) -> 0 | AN110: =VLOOKUP($B110,'200'!$AZ$90:$BA$120,2,FALSE) -> 0 | AO110: =VLOOKUP($B110,'400'!$AZ$90:$BA$120,2,FALSE) -> 0 | AP110: =VLOOKUP($B110,'400H'!$AZ$90:$BA$120,2,FALSE) -> 0 | AQ110: =VLOOKUP($B110,'800'!$AZ$90:$BA$120,2,FALSE) -> 0 | AR110: =VLOOKUP($B110,'1500'!$AZ$90:$BA$120,2,FALSE) -> 0 | AT110: =VLOOKUP($B110,'2000SC'!$AZ$90:$BA$120,2,FALSE) -> 0 | AU110: =VLOOKUP($B110,'3000'!$AZ$90:$BA$120,2,FALSE) -> 0 | AV110: =VLOOKUP($B110,'3000SC'!$AZ$90:$BA$120,2,FALSE) -> 0 | AW110: =VLOOKUP($B110,'5000'!$AZ$90:$BA$120,2,FALSE) -> 0 | AX110: =VLOOKUP($B110,'10000'!$AZ$90:$BA$120,2,FALSE) -> 0 | AY110: =VLOOKUP($B110,'4X100'!$AS$90:$AT$120,2,FALSE) -> 0 | AZ110: =VLOOKUP($B110,'4X400'!$AS$90:$AT$120,2,FALSE) -> 0 | BB110: =VLOOKUP($B110,HJ!$AY$90:$AZ$120,2,FALSE) -> 0 | BC110: =VLOOKUP($B110,HJ!$AY$90:$AZ$120,2,FALSE) -> 0 | BD110: =VLOOKUP($B110,LJ!$AZ$90:$BA$120,2,FALSE) -> 0 | BF110: =VLOOKUP($B110,SP!$AZ$90:$BA$120,2,FALSE) -> 0 | BG110: =VLOOKUP($B110,JT!$AZ$90:$BA$120,2,FALSE) -> 0 | BI110: =VLOOKUP($B110,DT!$AZ$90:$BA$120,2,FALSE) -> 0
B111: Event total | C111: =SUM(C78:C110) -> 665 | D111: =SUM(D79:D110) -> 12 | E111: 0 | F111: 22 | G111: 22 | H111: 22 | I111: 19 | J111: 22 | K111: 22 | L111: 0 | M111: 0 | N111: 0 | O111: 19 | P111: 22 | Q111: 22 | R111: 22 | S111: =SUM(S79:S110) -> 16 | T111: 0 | U111: 16 | V111: 16 | W111: 22 | X111: 0 | Y111: 22 | Z111: 22 | AA111: 0 | AB111: 22 | AC111: 0 | AD111: =SUM(AD79:AD110) -> 0 | AE111: 0 | AF111: 0 | AG111: 0 | AH111: 0 | AI111: 0 | AJ111: 0 | AK111: 0 | AL111: 0 | AM111: =SUM(AM79:AM110) -> 22 | AN111: 22 | AO111: 19 | AP111: 7 | AQ111: 16 | AR111: 22 | AS111: 0 | AT111: 12 | AU111: 0 | AV111: 0 | AW111: 19 | AX111: 12 | AY111: 12 | AZ111: 12 | BA111: 0 | BB111: 21 | BC111: 21 | BD111: 22 | BE111: 0 | BF111: 21 | BG111: 21 | BH111: 0 | BI111: 22 | BJ111: 0 | BK111: 0 | BL111: 0 | BM111: 0 | BN111: 0 | BO111: 0 | BP111: 0 | BQ111: 0 | BR111: 0 | BS111: 0 | BT111: 0
A115: Stage 2 team points calculator - needs work!
A117: Team | B117: Name | C117: Total | D117: 100H | E117: 110H | F117: 100 | G117: 200 | H117: 400 | I117: 400H | J117: 800 | K117: 1500 | L117: 2K S.C | M117: 3K S.C | N117: 3000 | O117: 5000 | P117: 1 Mile | Q117: 10000 | R117: 4X100 | S117: 4X400 | T117: Multi | U117: Medly Relay | V117: HJ | W117: LJ | X117: TJ | Y117: PV | Z117: SP | AA117: DT | AB117: JT | AC117: HT
A119: Team A | B119: =IFERROR(VLOOKUP(A119,'Set-Up'!$B$7:$C$37,2,FALSE),"") -> LSE | C119: =SUM(D119:AC119) -> 0
A120: Team B | B120: =IFERROR(VLOOKUP(A120,'Set-Up'!$B$7:$C$37,2,FALSE),"") -> King's | C120: 0
A121: Team C | B121: =IFERROR(VLOOKUP(A121,'Set-Up'!$B$7:$C$37,2,FALSE),"") -> Essex | C121: 0
A122: Team D | B122: =IFERROR(VLOOKUP(A122,'Set-Up'!$B$7:$C$37,2,FALSE),"") -> RHUL | C122: 0
A123: Team E | B123: =IFERROR(VLOOKUP(A123,'Set-Up'!$B$7:$C$37,2,FALSE),"") -> UCL | C123: 0
A124: Team F | B124: =IFERROR(VLOOKUP(A124,'Set-Up'!$B$7:$C$37,2,FALSE),"") -> Imperial | C124: 0
A125: Team G | B125: =IFERROR(VLOOKUP(A125,'Set-Up'!$B$7:$C$37,2,FALSE),"") -> QMUL | C125: 0
A126: Team H | B126: =IFERROR(VLOOKUP(A126,'Set-Up'!$B$7:$C$37,2,FALSE),"") -> SMU | C126: 0
A127: Team I | B127: =IFERROR(VLOOKUP(A127,'Set-Up'!$B$7:$C$37,2,FALSE),"") -> Brunel | C127: 0
A128: Team J | B128: =IFERROR(VLOOKUP(A128,'Set-Up'!$B$7:$C$37,2,FALSE),"") -> Guests | C128: 0
A129: Team K | B129: =IFERROR(VLOOKUP(A129,'Set-Up'!$B$7:$C$37,2,FALSE),"") -> UEL | C129: 0
A130: Team L | B130: =IFERROR(VLOOKUP(A130,'Set-Up'!$B$7:$C$37,2,FALSE),"") -> UofL | C130: 0
A131: Team M | B131: =IFERROR(VLOOKUP(A131,'Set-Up'!$B$7:$C$37,2,FALSE),"") -> 0 | C131: 0
A132: Team N | B132: =IFERROR(VLOOKUP(A132,'Set-Up'!$B$7:$C$37,2,FALSE),"") -> STG | C132: 0
A133: Team O | B133: =IFERROR(VLOOKUP(A133,'Set-Up'!$B$7:$C$37,2,FALSE),"") -> 0 | C133: 0
A134: Team P | B134: =IFERROR(VLOOKUP(A134,'Set-Up'!$B$7:$C$37,2,FALSE),"") -> 0 | C134: 0
A135: Team Q | B135: =IFERROR(VLOOKUP(A135,'Set-Up'!$B$7:$C$37,2,FALSE),"") -> 0 | C135: 0
A136: Team R | B136: =IFERROR(VLOOKUP(A136,'Set-Up'!$B$7:$C$37,2,FALSE),"") -> 0 | C136: 0
A137: Team S | B137: =IFERROR(VLOOKUP(A137,'Set-Up'!$B$7:$C$37,2,FALSE),"") -> 0 | C137: 0
A138: Team T | B138: =IFERROR(VLOOKUP(A138,'Set-Up'!$B$7:$C$37,2,FALSE),"") -> 0 | C138: 0
A139: Team U | B139: =IFERROR(VLOOKUP(A139,'Set-Up'!$B$7:$C$37,2,FALSE),"") -> 0 | C139: =SUM(D139:AC139) -> 0
A140: Team V | B140: =IFERROR(VLOOKUP(A140,'Set-Up'!$B$7:$C$37,2,FALSE),"") -> 0 | C140: =SUM(D140:AC140) -> 0
A141: Team W | B141: =IFERROR(VLOOKUP(A141,'Set-Up'!$B$7:$C$37,2,FALSE),"") -> 0 | C141: 0
A142: Team X | B142: =IFERROR(VLOOKUP(A142,'Set-Up'!$B$7:$C$37,2,FALSE),"") -> 0 | C142: 0
A143: Team Y | B143: =IFERROR(VLOOKUP(A143,'Set-Up'!$B$7:$C$37,2,FALSE),"") -> 0 | C143: 0
A144: Team Z | B144: =IFERROR(VLOOKUP(A144,'Set-Up'!$B$7:$C$37,2,FALSE),"") -> 0 | C144: 0
A145: Team AA | B145: =IFERROR(VLOOKUP(A145,'Set-Up'!$B$7:$C$37,2,FALSE),"") -> 0 | C145: 0
A146: Team AB | B146: =IFERROR(VLOOKUP(A146,'Set-Up'!$B$7:$C$37,2,FALSE),"") -> 0 | C146: 0
A147: Team AC | B147: =IFERROR(VLOOKUP(A147,'Set-Up'!$B$7:$C$37,2,FALSE),"") -> 0 | C147: 0
A148: Team AD | B148: =IFERROR(VLOOKUP(A148,'Set-Up'!$B$7:$C$37,2,FALSE),"") -> 0 | C148: 0
A149: Team AE | B149: =IFERROR(VLOOKUP(A149,'Set-Up'!$B$7:$C$37,2,FALSE),"") -> 0 | C149: 0
B150: Event total | C150: =SUM(C117:C149) -> 0 | D150: =SUM(D118:D149) -> 0 | E150: 0 | F150: 0 | G150: 0 | H150: 0 | I150: 0 | J150: 0 | K150: 0 | L150: 0 | M150: 0 | N150: 0 | O150: 0 | P150: 0 | Q150: 0 | R150: 0 | S150: 0 | T150: 0 | U150: 0 | V150: 0 | W150: 0 | X150: 0 | Y150: 0 | Z150: 0 | AA150: 0 | AB150: 0 | AC150: 0
A154: Stage 3 team points calculator - needs work!
A156: Team | B156: Name | C156: Total | D156: 100H | E156: 110H | F156: 100 | G156: 200 | H156: 400 | I156: 400H | J156: 800 | K156: 1500 | L156: 2K S.C | M156: 3K S.C | N156: 3000 | O156: 5000 | P156: 1 Mile | Q156: 10000 | R156: 4X100 | S156: 4X400 | T156: Multi | U156: Medly Relay | V156: HJ | W156: LJ | X156: TJ | Y156: PV | Z156: SP | AA156: DT | AB156: JT | AC156: HT
A158: Team A | B158: =IFERROR(VLOOKUP(A158,'Set-Up'!$B$7:$C$37,2,FALSE),"") -> LSE | C158: =SUM(D158:AC158) -> 0
A159: Team B | B159: =IFERROR(VLOOKUP(A159,'Set-Up'!$B$7:$C$37,2,FALSE),"") -> King's | C159: 0
A160: Team C | B160: =IFERROR(VLOOKUP(A160,'Set-Up'!$B$7:$C$37,2,FALSE),"") -> Essex | C160: 0
A161: Team D | B161: =IFERROR(VLOOKUP(A161,'Set-Up'!$B$7:$C$37,2,FALSE),"") -> RHUL | C161: 0
A162: Team E | B162: =IFERROR(VLOOKUP(A162,'Set-Up'!$B$7:$C$37,2,FALSE),"") -> UCL | C162: 0
A163: Team F | B163: =IFERROR(VLOOKUP(A163,'Set-Up'!$B$7:$C$37,2,FALSE),"") -> Imperial | C163: 0
A164: Team G | B164: =IFERROR(VLOOKUP(A164,'Set-Up'!$B$7:$C$37,2,FALSE),"") -> QMUL | C164: 0
A165: Team H | B165: =IFERROR(VLOOKUP(A165,'Set-Up'!$B$7:$C$37,2,FALSE),"") -> SMU | C165: 0
A166: Team I | B166: =IFERROR(VLOOKUP(A166,'Set-Up'!$B$7:$C$37,2,FALSE),"") -> Brunel | C166: 0
A167: Team J | B167: =IFERROR(VLOOKUP(A167,'Set-Up'!$B$7:$C$37,2,FALSE),"") -> Guests | C167: 0
A168: Team K | B168: =IFERROR(VLOOKUP(A168,'Set-Up'!$B$7:$C$37,2,FALSE),"") -> UEL | C168: 0
A169: Team L | B169: =IFERROR(VLOOKUP(A169,'Set-Up'!$B$7:$C$37,2,FALSE),"") -> UofL | C169: 0
A170: Team M | B170: =IFERROR(VLOOKUP(A170,'Set-Up'!$B$7:$C$37,2,FALSE),"") -> 0 | C170: 0
A171: Team N | B171: =IFERROR(VLOOKUP(A171,'Set-Up'!$B$7:$C$37,2,FALSE),"") -> STG | C171: 0
A172: Team O | B172: =IFERROR(VLOOKUP(A172,'Set-Up'!$B$7:$C$37,2,FALSE),"") -> 0 | C172: 0
A173: Team P | B173: =IFERROR(VLOOKUP(A173,'Set-Up'!$B$7:$C$37,2,FALSE),"") -> 0 | C173: 0
A174: Team Q | B174: =IFERROR(VLOOKUP(A174,'Set-Up'!$B$7:$C$37,2,FALSE),"") -> 0 | C174: 0
A175: Team R | B175: =IFERROR(VLOOKUP(A175,'Set-Up'!$B$7:$C$37,2,FALSE),"") -> 0 | C175: 0
A176: Team S | B176: =IFERROR(VLOOKUP(A176,'Set-Up'!$B$7:$C$37,2,FALSE),"") -> 0 | C176: 0
A177: Team T | B177: =IFERROR(VLOOKUP(A177,'Set-Up'!$B$7:$C$37,2,FALSE),"") -> 0 | C177: 0
A178: Team U | B178: =IFERROR(VLOOKUP(A178,'Set-Up'!$B$7:$C$37,2,FALSE),"") -> 0 | C178: =SUM(D178:AC178) -> 0
A179: Team V | B179: =IFERROR(VLOOKUP(A179,'Set-Up'!$B$7:$C$37,2,FALSE),"") -> 0 | C179: =SUM(D179:AC179) -> 0
A180: Team W | B180: =IFERROR(VLOOKUP(A180,'Set-Up'!$B$7:$C$37,2,FALSE),"") -> 0 | C180: 0
A181: Team X | B181: =IFERROR(VLOOKUP(A181,'Set-Up'!$B$7:$C$37,2,FALSE),"") -> 0 | C181: 0
A182: Team Y | B182: =IFERROR(VLOOKUP(A182,'Set-Up'!$B$7:$C$37,2,FALSE),"") -> 0 | C182: 0
A183: Team Z | B183: =IFERROR(VLOOKUP(A183,'Set-Up'!$B$7:$C$37,2,FALSE),"") -> 0 | C183: 0
A184: Team AA | B184: =IFERROR(VLOOKUP(A184,'Set-Up'!$B$7:$C$37,2,FALSE),"") -> 0 | C184: 0
A185: Team AB | B185: =IFERROR(VLOOKUP(A185,'Set-Up'!$B$7:$C$37,2,FALSE),"") -> 0 | C185: 0
A186: Team AC | B186: =IFERROR(VLOOKUP(A186,'Set-Up'!$B$7:$C$37,2,FALSE),"") -> 0 | C186: 0
A187: Team AD | B187: =IFERROR(VLOOKUP(A187,'Set-Up'!$B$7:$C$37,2,FALSE),"") -> 0 | C187: 0
A188: Team AE | B188: =IFERROR(VLOOKUP(A188,'Set-Up'!$B$7:$C$37,2,FALSE),"") -> 0 | C188: 0
B189: Event total | C189: =SUM(C156:C188) -> 0 | D189: =SUM(D157:D188) -> 0 | E189: 0 | F189: 0 | G189: 0 | H189: 0 | I189: 0 | J189: 0 | K189: 0 | L189: 0 | M189: 0 | N189: 0 | O189: 0 | P189: 0 | Q189: 0 | R189: 0 | S189: 0 | T189: 0 | U189: 0 | V189: 0 | W189: 0 | X189: 0 | Y189: 0 | Z189: 0 | AA189: 0 | AB189: 0 | AC189: 0

Sheet Athlete Series
B3: 110mH Men | J3: 100mH Women | R3: Re-do all ranks to make like 800m green
B5: Standings | J5: Standings
B6: Pos | C6: Name | D6: College | E6: =C28 -> St Mary's | F6: =C37 -> Newham | G6: =C46 -> Battersea | H6: Overall | J6: Pos | K6: Name | L6: College | M6: =K28 -> St Mary's | N6: =K37 -> Newham | O6: =K46 -> Battersea | P6: Overall
B7: 1 | C7: =IFERROR(VLOOKUP(B7,$AJ$31:$AK$48,2,FALSE),"") ->  | D7: =IFERROR(VLOOKUP(C7,'All Series Entries'!$B$3:$C1600,2,FALSE), "") ->  | E7: =IFERROR(VLOOKUP(B7,$AD$31:$AI$48,3,FALSE),"") ->  | F7: =IFERROR(VLOOKUP(B7,$AD$31:$AI$48,4,FALSE),"") ->  | G7: =IFERROR(VLOOKUP(B7,$AD$31:$AI$48,5,FALSE),"") ->  | H7: =IFERROR(VLOOKUP(B7,$AD$31:$AI$48,6,FALSE),"") ->  | J7: 1 | K7: =IFERROR(VLOOKUP(J7,$Z$31:$AA$48,2,FALSE),"") -> Ruth Verhoeff | L7: =IFERROR(VLOOKUP(K7,'All Series Entries'!$B$3:$C1600,2,FALSE), "") -> King's | M7: =IFERROR(VLOOKUP(J7,$T$31:$Y$48,3,FALSE),"") -> 7 | N7: =IFERROR(VLOOKUP(J7,$T$31:$Y$48,4,FALSE),"") -> 0 | O7: =IFERROR(VLOOKUP(J7,$T$31:$Y$48,5,FALSE),"") -> 0 | P7: =IFERROR(VLOOKUP(J7,$T$31:$Y$48,6,FALSE),"") -> 7
B8: 2 | C8: =IFERROR(VLOOKUP(B8,$AJ$31:$AK$48,2,FALSE),"") ->  | D8: =IFERROR(VLOOKUP(C8,'All Series Entries'!$B$3:$C1601,2,FALSE), "") ->  | E8: =IFERROR(VLOOKUP(B8,$AD$31:$AI$48,3,FALSE),"") ->  | F8: =IFERROR(VLOOKUP(B8,$AD$31:$AI$48,4,FALSE),"") ->  | G8: =IFERROR(VLOOKUP(B8,$AD$31:$AI$48,5,FALSE),"") ->  | H8: =IFERROR(VLOOKUP(B8,$AD$31:$AI$48,6,FALSE),"") ->  | J8: 2 | K8: =IFERROR(VLOOKUP(J8,$Z$31:$AA$48,2,FALSE),"") -> Sarah Murphy | L8: =IFERROR(VLOOKUP(K8,'All Series Entries'!$B$3:$C1601,2,FALSE), "") -> UCL | M8: =IFERROR(VLOOKUP(J8,$T$31:$Y$48,3,FALSE),"") -> 5 | N8: =IFERROR(VLOOKUP(J8,$T$31:$Y$48,4,FALSE),"") -> 0 | O8: =IFERROR(VLOOKUP(J8,$T$31:$Y$48,5,FALSE),"") -> 0 | P8: =IFERROR(VLOOKUP(J8,$T$31:$Y$48,6,FALSE),"") -> 5
B9: 3 | D9: =IFERROR(VLOOKUP(C9,'All Series Entries'!$B$3:$C1602,2,FALSE), "") ->  | J9: 3 | L9: =IFERROR(VLOOKUP(K9,'All Series Entries'!$B$3:$C1602,2,FALSE), "") -> 
B10: 4 | D10: =IFERROR(VLOOKUP(C10,'All Series Entries'!$B$3:$C1603,2,FALSE), "") ->  | J10: 4 | L10: =IFERROR(VLOOKUP(K10,'All Series Entries'!$B$3:$C1603,2,FALSE), "") -> 
B11: 5 | D11: =IFERROR(VLOOKUP(C11,'All Series Entries'!$B$3:$C1604,2,FALSE), "") ->  | J11: 5 | L11: =IFERROR(VLOOKUP(K11,'All Series Entries'!$B$3:$C1604,2,FALSE), "") -> 
B12: 6 | D12: =IFERROR(VLOOKUP(C12,'All Series Entries'!$B$3:$C1605,2,FALSE), "") ->  | J12: 6 | L12: =IFERROR(VLOOKUP(K12,'All Series Entries'!$B$3:$C1605,2,FALSE), "") -> 
B13: 7 | D13: =IFERROR(VLOOKUP(C13,'All Series Entries'!$B$3:$C1606,2,FALSE), "") ->  | J13: 7 | L13: =IFERROR(VLOOKUP(K13,'All Series Entries'!$B$3:$C1606,2,FALSE), "") -> 
B14: 8 | D14: =IFERROR(VLOOKUP(C14,'All Series Entries'!$B$3:$C1607,2,FALSE), "") ->  | J14: 8 | L14: =IFERROR(VLOOKUP(K14,'All Series Entries'!$B$3:$C1607,2,FALSE), "") -> 
B15: 9 | D15: =IFERROR(VLOOKUP(C15,'All Series Entries'!$B$3:$C1608,2,FALSE), "") ->  | J15: 9 | L15: =IFERROR(VLOOKUP(K15,'All Series Entries'!$B$3:$C1608,2,FALSE), "") -> 
B16: 10 | D16: =IFERROR(VLOOKUP(C16,'All Series Entries'!$B$3:$C1609,2,FALSE), "") ->  | J16: 10 | L16: =IFERROR(VLOOKUP(K16,'All Series Entries'!$B$3:$C1609,2,FALSE), "") -> 
B17: 11 | D17: =IFERROR(VLOOKUP(C17,'All Series Entries'!$B$3:$C1610,2,FALSE), "") ->  | J17: 11 | L17: =IFERROR(VLOOKUP(K17,'All Series Entries'!$B$3:$C1610,2,FALSE), "") -> 
B18: 12 | D18: =IFERROR(VLOOKUP(C18,'All Series Entries'!$B$3:$C1611,2,FALSE), "") ->  | J18: 12 | L18: =IFERROR(VLOOKUP(K18,'All Series Entries'!$B$3:$C1611,2,FALSE), "") -> 
B19: 13 | D19: =IFERROR(VLOOKUP(C19,'All Series Entries'!$B$3:$C1612,2,FALSE), "") ->  | J19: 13 | L19: =IFERROR(VLOOKUP(K19,'All Series Entries'!$B$3:$C1612,2,FALSE), "") -> 
B20: 14 | D20: =IFERROR(VLOOKUP(C20,'All Series Entries'!$B$3:$C1613,2,FALSE), "") ->  | J20: 14 | L20: =IFERROR(VLOOKUP(K20,'All Series Entries'!$B$3:$C1613,2,FALSE), "") -> 
B21: 15 | D21: =IFERROR(VLOOKUP(C21,'All Series Entries'!$B$3:$C1614,2,FALSE), "") ->  | J21: 15 | L21: =IFERROR(VLOOKUP(K21,'All Series Entries'!$B$3:$C1614,2,FALSE), "") -> 
B22: 16 | D22: =IFERROR(VLOOKUP(C22,'All Series Entries'!$B$3:$C1615,2,FALSE), "") ->  | J22: 16 | L22: =IFERROR(VLOOKUP(K22,'All Series Entries'!$B$3:$C1615,2,FALSE), "") -> 
B23: 17 | D23: =IFERROR(VLOOKUP(C23,'All Series Entries'!$B$3:$C1616,2,FALSE), "") ->  | J23: 17 | L23: =IFERROR(VLOOKUP(K23,'All Series Entries'!$B$3:$C1616,2,FALSE), "") -> 
B24: 18 | D24: =IFERROR(VLOOKUP(C24,'All Series Entries'!$B$3:$C1617,2,FALSE), "") ->  | J24: 18 | L24: =IFERROR(VLOOKUP(K24,'All Series Entries'!$B$3:$C1617,2,FALSE), "") -> 
S27: Women | AC27: Men
C28: ='Set-Up'!G31 -> St Mary's | K28: ='Set-Up'!G31 -> St Mary's | S28: Extract unique athletes (based on name) and sum points. | AC28: Extract unique athletes (based on name) and sum points.
C29: Pos | D29: No. | E29: Name | F29: College | G29: Points | K29: Pos | L29: No. | M29: Name | N29: College | O29: Points | T29: Rank | V29: Stage 1 | W29: Stage 2 | X29: Stage 3 | Y29: Total | Z29: Rank | AD29: Rank | AF29: Stage 1 | AG29: Stage 2 | AH29: Stage 3 | AI29: Total | AJ29: Rank
C30: 1 | D30: =IFERROR(VLOOKUP(C30,'100H110H'!$AX$8:$AY$200,2,FALSE),"") ->  | E30: =IFERROR(VLOOKUP(D30,'Entries Stage 1'!$A$3:$B$502,2,FALSE),"") ->  | F30: =IFERROR(VLOOKUP(D30,'LUCA Calculator'!$A$3:$D$405,4,FALSE), "") ->  | G30: 7 | K30: 1 | L30: =IFERROR(VLOOKUP(K30, '100H110H'!$BH$8:$BI$119,2,FALSE),"") -> 56 | M30: =IFERROR(VLOOKUP(L30,'Entries Stage 1'!$A$3:$B$502,2,FALSE),"") -> Ruth Verhoeff | N30: =IFERROR(VLOOKUP(L30,'Entries Stage 1'!$A$3:$C$502,3,FALSE),"") -> King's | O30: 7 | S30: =M30 -> Ruth Verhoeff | AC30: =E30 -> 
C31: 2 | D31: =IFERROR(VLOOKUP(C31,'100H110H'!$AX$8:$AY$200,2,FALSE),"") ->  | E31: =IFERROR(VLOOKUP(D31,'Entries Stage 1'!$A$3:$B$502,2,FALSE),"") ->  | F31: =IFERROR(VLOOKUP(D31,'LUCA Calculator'!$A$3:$D$405,4,FALSE), "") ->  | G31: 5 | K31: 2 | L31: =IFERROR(VLOOKUP(K31, '100H110H'!$BH$8:$BI$119,2,FALSE),"") -> 174 | M31: =IFERROR(VLOOKUP(L31,'Entries Stage 1'!$A$3:$B$502,2,FALSE),"") -> Sarah Murphy | N31: =IFERROR(VLOOKUP(L31,'Entries Stage 1'!$A$3:$C$502,3,FALSE),"") -> UCL | O31: 5 | S31: Sarah Murphy | T31: =Z31 -> 1 | U31: =INDEX($S$30:$S$47, MATCH(0, COUNTIF($U$30:U30, $S$30:$S$47),0)) -> Ruth Verhoeff | V31: =IFERROR(VLOOKUP(U31,$M$30:$O$35,3,FALSE),0) -> 7 | W31: =IFERROR(VLOOKUP(U31,$M$39:$O$44,3,FALSE),0) -> 0 | X31: =IFERROR(VLOOKUP(U31,$M$48:$O$53,3,FALSE),0) -> 0 | Y31: =SUM(V31:X31) -> 7 | Z31: =IF(Y31>0,RANK(Y31,$Y$31:$Y$48)+COUNTIF($Y$31:Y31,Y31)-1,"") -> 1 | AA31: =U31 -> Ruth Verhoeff | AD31: =AJ31 ->  | AE31: =INDEX($AC$30:$AC$47, MATCH(0, COUNTIF($AE$30:AE30, $AC$30:$AC$47),0)) ->  | AF31: =IFERROR(VLOOKUP(AE31,$E$30:$G$35,3,FALSE),0) -> 0 | AG31: =IFERROR(VLOOKUP(AE31,$E$39:$G$44,3,FALSE),0) -> 0 | AH31: =IFERROR(VLOOKUP(AE31,$E$48:$G$53,3,FALSE),0) -> 0 | AI31: =SUM(AF31:AH31) -> 0 | AJ31: =IF(AI31>0,RANK(AI31,$AI$31:$AI$48)+COUNTIF($AI$31:AI31,AI31)-1,"") ->  | AK31: =AE31 -> 
C32: 3 | D32: =IFERROR(VLOOKUP(C32,'100H110H'!$AX$8:$AY$200,2,FALSE),"") ->  | E32: =IFERROR(VLOOKUP(D32,'Entries Stage 1'!$A$3:$B$502,2,FALSE),"") ->  | F32: =IFERROR(VLOOKUP(D32,'LUCA Calculator'!$A$3:$D$405,4,FALSE), "") ->  | G32: 4 | K32: 3 | L32: =IFERROR(VLOOKUP(K32, '100H110H'!$BH$8:$BI$119,2,FALSE),"") ->  | M32: =IFERROR(VLOOKUP(L32,'Entries Stage 1'!$A$3:$B$502,2,FALSE),"") ->  | N32: =IFERROR(VLOOKUP(L32,'Entries Stage 1'!$A$3:$C$502,3,FALSE),"") ->  | O32: 4 | T32: =Z32 -> 2 | U32: =INDEX($S$30:$S$47, MATCH(0, COUNTIF($U$30:U31, $S$30:$S$47),0)) -> Sarah Murphy | V32: 5 | W32: 0 | X32: 0 | Y32: =SUM(V32:X32) -> 5 | Z32: =IF(Y32>0,RANK(Y32,$Y$31:$Y$48)+COUNTIF($Y$31:Y32,Y32)-1,"") -> 2 | AA32: =U32 -> Sarah Murphy | AD32: =AJ32 ->  | AE32: =INDEX($AC$30:$AC$47, MATCH(0, COUNTIF($AE$30:AE31, $AC$30:$AC$47),0)) ->  | AF32: =IFERROR(VLOOKUP(AE32,$E$30:$G$35,3,FALSE),0) -> 0 | AG32: =IFERROR(VLOOKUP(AE32,$E$39:$G$44,3,FALSE),0) -> 0 | AH32: =IFERROR(VLOOKUP(AE32,$E$48:$G$53,3,FALSE),0) -> 0 | AI32: =SUM(AF32:AH32) -> 0 | AJ32: =IF(AI32>0,RANK(AI32,$AI$31:$AI$48)+COUNTIF($AI$31:AI32,AI32)-1,"") ->  | AK32: =AE32 -> 
C33: 4 | D33: =IFERROR(VLOOKUP(C33,'100H110H'!$AX$8:$AY$200,2,FALSE),"") ->  | E33: =IFERROR(VLOOKUP(D33,'Entries Stage 1'!$A$3:$B$502,2,FALSE),"") ->  | F33: =IFERROR(VLOOKUP(D33,'LUCA Calculator'!$A$3:$D$405,4,FALSE), "") ->  | G33: 3 | K33: 4 | L33: =IFERROR(VLOOKUP(K33, '100H110H'!$BH$8:$BI$119,2,FALSE),"") ->  | M33: =IFERROR(VLOOKUP(L33,'Entries Stage 1'!$A$3:$B$502,2,FALSE),"") ->  | N33: =IFERROR(VLOOKUP(L33,'Entries Stage 1'!$A$3:$C$502,3,FALSE),"") ->  | O33: 3 | U33: =INDEX($S$30:$S$47, MATCH(0, COUNTIF($U$30:U32, $S$30:$S$47),0)) ->  | V33: 0 | W33: 0 | X33: 0 | Y33: 0 | Z33: =IF(Y33>0,RANK(Y33,$Y$31:$Y$48)+COUNTIF($Y$31:Y33,Y33)-1,"") ->  | AE33: =INDEX($AC$30:$AC$47, MATCH(0, COUNTIF($AE$30:AE32, $AC$30:$AC$47),0)) ->  | AF33: 0 | AG33: 0 | AH33: 0 | AI33: 0 | AJ33: =IF(AI33>0,RANK(AI33,$AI$31:$AI$48)+COUNTIF($AI$31:AI33,AI33)-1,"") -> 
C34: 5 | D34: =IFERROR(VLOOKUP(C34,'100H110H'!$AX$8:$AY$200,2,FALSE),"") ->  | E34: =IFERROR(VLOOKUP(D34,'Entries Stage 1'!$A$3:$B$502,2,FALSE),"") ->  | F34: =IFERROR(VLOOKUP(D34,'LUCA Calculator'!$A$3:$D$405,4,FALSE), "") ->  | G34: 2 | K34: 5 | L34: =IFERROR(VLOOKUP(K34, '100H110H'!$BH$8:$BI$119,2,FALSE),"") ->  | M34: =IFERROR(VLOOKUP(L34,'Entries Stage 1'!$A$3:$B$502,2,FALSE),"") ->  | N34: =IFERROR(VLOOKUP(L34,'Entries Stage 1'!$A$3:$C$502,3,FALSE),"") ->  | O34: 2 | U34: =INDEX($S$30:$S$47, MATCH(0, COUNTIF($U$30:U33, $S$30:$S$47),0)) ->  | V34: 0 | W34: 0 | X34: 0 | Y34: 0 | Z34: =IF(Y34>0,RANK(Y34,$Y$31:$Y$48)+COUNTIF($Y$31:Y34,Y34)-1,"") ->  | AE34: =INDEX($AC$30:$AC$47, MATCH(0, COUNTIF($AE$30:AE33, $AC$30:$AC$47),0)) ->  | AF34: 0 | AG34: 0 | AH34: 0 | AI34: 0 | AJ34: =IF(AI34>0,RANK(AI34,$AI$31:$AI$48)+COUNTIF($AI$31:AI34,AI34)-1,"") -> 
C35: 6 | D35: =IFERROR(VLOOKUP(C35,'100H110H'!$AX$8:$AY$200,2,FALSE),"") ->  | E35: =IFERROR(VLOOKUP(D35,'Entries Stage 1'!$A$3:$B$502,2,FALSE),"") ->  | F35: =IFERROR(VLOOKUP(D35,'LUCA Calculator'!$A$3:$D$405,4,FALSE), "") ->  | G35: 1 | K35: 6 | L35: =IFERROR(VLOOKUP(K35, '100H110H'!$BH$8:$BI$119,2,FALSE),"") ->  | M35: =IFERROR(VLOOKUP(L35,'Entries Stage 1'!$A$3:$B$502,2,FALSE),"") ->  | N35: =IFERROR(VLOOKUP(L35,'Entries Stage 1'!$A$3:$C$502,3,FALSE),"") ->  | O35: 1 | U35: =INDEX($S$30:$S$47, MATCH(0, COUNTIF($U$30:U34, $S$30:$S$47),0)) ->  | V35: 0 | W35: 0 | X35: 0 | Y35: 0 | Z35: =IF(Y35>0,RANK(Y35,$Y$31:$Y$48)+COUNTIF($Y$31:Y35,Y35)-1,"") ->  | AE35: =INDEX($AC$30:$AC$47, MATCH(0, COUNTIF($AE$30:AE34, $AC$30:$AC$47),0)) ->  | AF35: 0 | AG35: 0 | AH35: 0 | AI35: 0 | AJ35: =IF(AI35>0,RANK(AI35,$AI$31:$AI$48)+COUNTIF($AI$31:AI35,AI35)-1,"") -> 
S36: =M39 ->  | U36: =INDEX($S$30:$S$47, MATCH(0, COUNTIF($U$30:U35, $S$30:$S$47),0)) ->  | V36: 0 | W36: 0 | X36: 0 | Y36: 0 | Z36: =IF(Y36>0,RANK(Y36,$Y$31:$Y$48)+COUNTIF($Y$31:Y36,Y36)-1,"") ->  | AC36: =E39 ->  | AE36: =INDEX($AC$30:$AC$47, MATCH(0, COUNTIF($AE$30:AE35, $AC$30:$AC$47),0)) ->  | AF36: 0 | AG36: 0 | AH36: 0 | AI36: 0 | AJ36: =IF(AI36>0,RANK(AI36,$AI$31:$AI$48)+COUNTIF($AI$31:AI36,AI36)-1,"") -> 
C37: ='Set-Up'!G32 -> Newham | K37: ='Set-Up'!G32 -> Newham | U37: =INDEX($S$30:$S$47, MATCH(0, COUNTIF($U$30:U36, $S$30:$S$47),0)) ->  | V37: 0 | W37: 0 | X37: 0 | Y37: 0 | Z37: =IF(Y37>0,RANK(Y37,$Y$31:$Y$48)+COUNTIF($Y$31:Y37,Y37)-1,"") ->  | AE37: =INDEX($AC$30:$AC$47, MATCH(0, COUNTIF($AE$30:AE36, $AC$30:$AC$47),0)) ->  | AF37: 0 | AG37: 0 | AH37: 0 | AI37: 0 | AJ37: =IF(AI37>0,RANK(AI37,$AI$31:$AI$48)+COUNTIF($AI$31:AI37,AI37)-1,"") -> 
C38: Pos | D38: No. | E38: Name | F38: College | G38: Points | K38: Pos | L38: No. | M38: Name | N38: College | O38: Points | U38: =INDEX($S$30:$S$47, MATCH(0, COUNTIF($U$30:U37, $S$30:$S$47),0)) ->  | V38: 0 | W38: 0 | X38: 0 | Y38: 0 | Z38: =IF(Y38>0,RANK(Y38,$Y$31:$Y$48)+COUNTIF($Y$31:Y38,Y38)-1,"") ->  | AE38: =INDEX($AC$30:$AC$47, MATCH(0, COUNTIF($AE$30:AE37, $AC$30:$AC$47),0)) ->  | AF38: 0 | AG38: 0 | AH38: 0 | AI38: 0 | AJ38: =IF(AI38>0,RANK(AI38,$AI$31:$AI$48)+COUNTIF($AI$31:AI38,AI38)-1,"") -> 
C39: 1 | D39: =IFERROR(VLOOKUP(C39,'100H110H'!$BP$7:$BQ$119,2,FALSE),"") ->  | E39: =IFERROR(VLOOKUP(D39,'Entries Stage 2'!$A$3:$B$502,2,FALSE),"") ->  | F39: =IFERROR(VLOOKUP(D39,'Entries Stage 2'!$A$3:$C$502,3,FALSE),"") ->  | G39: 7 | K39: 1 | L39: =IFERROR(VLOOKUP(K39,'100H110H'!$BZ$8:$CA$119,2,FALSE),"") ->  | M39: =IFERROR(VLOOKUP(L39,'Entries Stage 2'!$A$3:$B$502,2,FALSE),"") ->  | N39: =IFERROR(VLOOKUP(L39,'Entries Stage 2'!$A$3:$C$502,3,FALSE),"") ->  | O39: 7 | U39: =INDEX($S$30:$S$47, MATCH(0, COUNTIF($U$30:U38, $S$30:$S$47),0)) ->  | V39: 0 | W39: 0 | X39: 0 | Y39: 0 | Z39: =IF(Y39>0,RANK(Y39,$Y$31:$Y$48)+COUNTIF($Y$31:Y39,Y39)-1,"") ->  | AE39: =INDEX($AC$30:$AC$47, MATCH(0, COUNTIF($AE$30:AE38, $AC$30:$AC$47),0)) ->  | AF39: 0 | AG39: 0 | AH39: 0 | AI39: 0 | AJ39: =IF(AI39>0,RANK(AI39,$AI$31:$AI$48)+COUNTIF($AI$31:AI39,AI39)-1,"") -> 
C40: 2 | D40: =IFERROR(VLOOKUP(C40,'100H110H'!$BP$7:$BQ$119,2,FALSE),"") ->  | E40: =IFERROR(VLOOKUP(D40,'Entries Stage 2'!$A$3:$B$502,2,FALSE),"") ->  | F40: =IFERROR(VLOOKUP(D40,'Entries Stage 2'!$A$3:$C$502,3,FALSE),"") ->  | G40: 5 | K40: 2 | L40: =IFERROR(VLOOKUP(K40,'100H110H'!$BZ$8:$CA$119,2,FALSE),"") ->  | M40: =IFERROR(VLOOKUP(L40,'Entries Stage 2'!$A$3:$B$502,2,FALSE),"") ->  | N40: =IFERROR(VLOOKUP(L40,'Entries Stage 2'!$A$3:$C$502,3,FALSE),"") ->  | O40: 5 | U40: =INDEX($S$30:$S$47, MATCH(0, COUNTIF($U$30:U39, $S$30:$S$47),0)) ->  | V40: 0 | W40: 0 | X40: 0 | Y40: 0 | Z40: =IF(Y40>0,RANK(Y40,$Y$31:$Y$48)+COUNTIF($Y$31:Y40,Y40)-1,"") ->  | AE40: =INDEX($AC$30:$AC$47, MATCH(0, COUNTIF($AE$30:AE39, $AC$30:$AC$47),0)) ->  | AF40: 0 | AG40: 0 | AH40: 0 | AI40: 0 | AJ40: =IF(AI40>0,RANK(AI40,$AI$31:$AI$48)+COUNTIF($AI$31:AI40,AI40)-1,"") -> 
C41: 3 | D41: =IFERROR(VLOOKUP(C41,'100H110H'!$BP$7:$BQ$119,2,FALSE),"") ->  | E41: =IFERROR(VLOOKUP(D41,'Entries Stage 2'!$A$3:$B$502,2,FALSE),"") ->  | F41: =IFERROR(VLOOKUP(D41,'Entries Stage 2'!$A$3:$C$502,3,FALSE),"") ->  | G41: 4 | K41: 3 | L41: =IFERROR(VLOOKUP(K41,'100H110H'!$BZ$8:$CA$119,2,FALSE),"") ->  | M41: =IFERROR(VLOOKUP(L41,'Entries Stage 2'!$A$3:$B$502,2,FALSE),"") ->  | N41: =IFERROR(VLOOKUP(L41,'Entries Stage 2'!$A$3:$C$502,3,FALSE),"") ->  | O41: 4 | U41: =INDEX($S$30:$S$47, MATCH(0, COUNTIF($U$30:U40, $S$30:$S$47),0)) ->  | V41: 0 | W41: 0 | X41: 0 | Y41: 0 | Z41: =IF(Y41>0,RANK(Y41,$Y$31:$Y$48)+COUNTIF($Y$31:Y41,Y41)-1,"") ->  | AE41: =INDEX($AC$30:$AC$47, MATCH(0, COUNTIF($AE$30:AE40, $AC$30:$AC$47),0)) ->  | AF41: 0 | AG41: 0 | AH41: 0 | AI41: 0 | AJ41: =IF(AI41>0,RANK(AI41,$AI$31:$AI$48)+COUNTIF($AI$31:AI41,AI41)-1,"") -> 
C42: 4 | D42: =IFERROR(VLOOKUP(C42,'100H110H'!$BP$7:$BQ$119,2,FALSE),"") ->  | E42: =IFERROR(VLOOKUP(D42,'Entries Stage 2'!$A$3:$B$502,2,FALSE),"") ->  | F42: =IFERROR(VLOOKUP(D42,'Entries Stage 2'!$A$3:$C$502,3,FALSE),"") ->  | G42: 3 | K42: 4 | L42: =IFERROR(VLOOKUP(K42,'100H110H'!$BZ$8:$CA$119,2,FALSE),"") ->  | M42: =IFERROR(VLOOKUP(L42,'Entries Stage 2'!$A$3:$B$502,2,FALSE),"") ->  | N42: =IFERROR(VLOOKUP(L42,'Entries Stage 2'!$A$3:$C$502,3,FALSE),"") ->  | O42: 3 | S42: =M48 ->  | U42: =INDEX($S$30:$S$47, MATCH(0, COUNTIF($U$30:U41, $S$30:$S$47),0)) ->  | V42: 0 | W42: 0 | X42: 0 | Y42: 0 | Z42: =IF(Y42>0,RANK(Y42,$Y$31:$Y$48)+COUNTIF($Y$31:Y42,Y42)-1,"") ->  | AC42: =E48 ->  | AE42: =INDEX($AC$30:$AC$47, MATCH(0, COUNTIF($AE$30:AE41, $AC$30:$AC$47),0)) ->  | AF42: 0 | AG42: 0 | AH42: 0 | AI42: 0 | AJ42: =IF(AI42>0,RANK(AI42,$AI$31:$AI$48)+COUNTIF($AI$31:AI42,AI42)-1,"") -> 
C43: 5 | D43: =IFERROR(VLOOKUP(C43,'100H110H'!$BP$7:$BQ$119,2,FALSE),"") ->  | E43: =IFERROR(VLOOKUP(D43,'Entries Stage 2'!$A$3:$B$502,2,FALSE),"") ->  | F43: =IFERROR(VLOOKUP(D43,'Entries Stage 2'!$A$3:$C$502,3,FALSE),"") ->  | G43: 2 | K43: 5 | L43: =IFERROR(VLOOKUP(K43,'100H110H'!$BZ$8:$CA$119,2,FALSE),"") ->  | M43: =IFERROR(VLOOKUP(L43,'Entries Stage 2'!$A$3:$B$502,2,FALSE),"") ->  | N43: =IFERROR(VLOOKUP(L43,'Entries Stage 2'!$A$3:$C$502,3,FALSE),"") ->  | O43: 2 | U43: =INDEX($S$30:$S$47, MATCH(0, COUNTIF($U$30:U42, $S$30:$S$47),0)) ->  | V43: 0 | W43: 0 | X43: 0 | Y43: 0 | Z43: =IF(Y43>0,RANK(Y43,$Y$31:$Y$48)+COUNTIF($Y$31:Y43,Y43)-1,"") ->  | AE43: =INDEX($AC$30:$AC$47, MATCH(0, COUNTIF($AE$30:AE42, $AC$30:$AC$47),0)) ->  | AF43: 0 | AG43: 0 | AH43: 0 | AI43: 0 | AJ43: =IF(AI43>0,RANK(AI43,$AI$31:$AI$48)+COUNTIF($AI$31:AI43,AI43)-1,"") -> 
C44: 6 | D44: =IFERROR(VLOOKUP(C44,'100H110H'!$BP$7:$BQ$119,2,FALSE),"") ->  | E44: =IFERROR(VLOOKUP(D44,'Entries Stage 2'!$A$3:$B$502,2,FALSE),"") ->  | F44: =IFERROR(VLOOKUP(D44,'Entries Stage 2'!$A$3:$C$502,3,FALSE),"") ->  | G44: 1 | K44: 6 | L44: =IFERROR(VLOOKUP(K44,'100H110H'!$BZ$8:$CA$119,2,FALSE),"") ->  | M44: =IFERROR(VLOOKUP(L44,'Entries Stage 2'!$A$3:$B$502,2,FALSE),"") ->  | N44: =IFERROR(VLOOKUP(L44,'Entries Stage 2'!$A$3:$C$502,3,FALSE),"") ->  | O44: 1 | U44: =INDEX($S$30:$S$47, MATCH(0, COUNTIF($U$30:U43, $S$30:$S$47),0)) ->  | V44: 0 | W44: 0 | X44: 0 | Y44: 0 | Z44: =IF(Y44>0,RANK(Y44,$Y$31:$Y$48)+COUNTIF($Y$31:Y44,Y44)-1,"") ->  | AE44: =INDEX($AC$30:$AC$47, MATCH(0, COUNTIF($AE$30:AE43, $AC$30:$AC$47),0)) ->  | AF44: 0 | AG44: 0 | AH44: 0 | AI44: 0 | AJ44: =IF(AI44>0,RANK(AI44,$AI$31:$AI$48)+COUNTIF($AI$31:AI44,AI44)-1,"") -> 
U45: =INDEX($S$30:$S$47, MATCH(0, COUNTIF($U$30:U44, $S$30:$S$47),0)) ->  | V45: 0 | W45: 0 | X45: 0 | Y45: 0 | Z45: =IF(Y45>0,RANK(Y45,$Y$31:$Y$48)+COUNTIF($Y$31:Y45,Y45)-1,"") ->  | AE45: =INDEX($AC$30:$AC$47, MATCH(0, COUNTIF($AE$30:AE44, $AC$30:$AC$47),0)) ->  | AF45: 0 | AG45: 0 | AH45: 0 | AI45: 0 | AJ45: =IF(AI45>0,RANK(AI45,$AI$31:$AI$48)+COUNTIF($AI$31:AI45,AI45)-1,"") -> 
C46: ='Set-Up'!G33 -> Battersea | K46: ='Set-Up'!G33 -> Battersea | U46: =INDEX($S$30:$S$47, MATCH(0, COUNTIF($U$30:U45, $S$30:$S$47),0)) ->  | V46: 0 | W46: 0 | X46: 0 | Y46: 0 | Z46: =IF(Y46>0,RANK(Y46,$Y$31:$Y$48)+COUNTIF($Y$31:Y46,Y46)-1,"") ->  | AE46: =INDEX($AC$30:$AC$47, MATCH(0, COUNTIF($AE$30:AE45, $AC$30:$AC$47),0)) ->  | AF46: 0 | AG46: 0 | AH46: 0 | AI46: 0 | AJ46: =IF(AI46>0,RANK(AI46,$AI$31:$AI$48)+COUNTIF($AI$31:AI46,AI46)-1,"") -> 
C47: Pos | D47: No. | E47: Name | F47: College | G47: Points | K47: Pos | L47: No. | M47: Name | N47: College | O47: Points | U47: =INDEX($S$30:$S$47, MATCH(0, COUNTIF($U$30:U46, $S$30:$S$47),0)) ->  | V47: 0 | W47: 0 | X47: 0 | Y47: 0 | Z47: =IF(Y47>0,RANK(Y47,$Y$31:$Y$48)+COUNTIF($Y$31:Y47,Y47)-1,"") ->  | AE47: =INDEX($AC$30:$AC$47, MATCH(0, COUNTIF($AE$30:AE46, $AC$30:$AC$47),0)) ->  | AF47: 0 | AG47: 0 | AH47: 0 | AI47: 0 | AJ47: =IF(AI47>0,RANK(AI47,$AI$31:$AI$48)+COUNTIF($AI$31:AI47,AI47)-1,"") -> 
C48: 1 | D48: =IFERROR(VLOOKUP(C48,'100H110H'!$CH$8:$CI$120,2,FALSE),"") ->  | E48: =IFERROR(VLOOKUP(D48,'Entries Stage 3'!$A$3:$B$502,2,FALSE),"") ->  | F48: =IFERROR(VLOOKUP(D48,'Entries Stage 3'!$A$3:$C$502,3,FALSE),"") ->  | G48: 7 | K48: 1 | L48: =IFERROR(VLOOKUP(K48,'100H110H'!CR8:CS119,2,FALSE),"") ->  | M48: =IFERROR(VLOOKUP(L48,'Entries Stage 3'!$A$3:$B$502,2,FALSE),"") ->  | N48: =IFERROR(VLOOKUP(L48,'Entries Stage 3'!$A$3:$C$502,3,FALSE),"") ->  | O48: 7 | U48: =INDEX($S$30:$S$47, MATCH(0, COUNTIF($U$30:U47, $S$30:$S$47),0)) ->  | V48: 0 | W48: 0 | X48: 0 | Y48: 0 | Z48: =IF(Y48>0,RANK(Y48,$Y$31:$Y$48)+COUNTIF($Y$31:Y48,Y48)-1,"") ->  | AE48: =INDEX($AC$30:$AC$47, MATCH(0, COUNTIF($AE$30:AE47, $AC$30:$AC$47),0)) ->  | AF48: 0 | AG48: 0 | AH48: 0 | AI48: 0 | AJ48: =IF(AI48>0,RANK(AI48,$AI$31:$AI$48)+COUNTIF($AI$31:AI48,AI48)-1,"") -> 
C49: 2 | D49: =IFERROR(VLOOKUP(C49,'100H110H'!$CH$8:$CI$120,2,FALSE),"") ->  | E49: =IFERROR(VLOOKUP(D49,'Entries Stage 3'!$A$3:$B$502,2,FALSE),"") ->  | F49: =IFERROR(VLOOKUP(D49,'Entries Stage 3'!$A$3:$C$502,3,FALSE),"") ->  | G49: 5 | K49: 2 | L49: =IFERROR(VLOOKUP(K49,'100H110H'!CR9:CS120,2,FALSE),"") ->  | M49: =IFERROR(VLOOKUP(L49,'Entries Stage 3'!$A$3:$B$502,2,FALSE),"") ->  | N49: =IFERROR(VLOOKUP(L49,'Entries Stage 3'!$A$3:$C$502,3,FALSE),"") ->  | O49: 5
C50: 3 | D50: =IFERROR(VLOOKUP(C50,'100H110H'!$CH$8:$CI$120,2,FALSE),"") ->  | E50: =IFERROR(VLOOKUP(D50,'Entries Stage 3'!$A$3:$B$502,2,FALSE),"") ->  | F50: =IFERROR(VLOOKUP(D50,'Entries Stage 3'!$A$3:$C$502,3,FALSE),"") ->  | G50: 4 | K50: 3 | L50: =IFERROR(VLOOKUP(K50,'100H110H'!CR10:CS121,2,FALSE),"") ->  | M50: =IFERROR(VLOOKUP(L50,'Entries Stage 3'!$A$3:$B$502,2,FALSE),"") ->  | N50: =IFERROR(VLOOKUP(L50,'Entries Stage 3'!$A$3:$C$502,3,FALSE),"") ->  | O50: 4
C51: 4 | D51: =IFERROR(VLOOKUP(C51,'100H110H'!$CH$8:$CI$120,2,FALSE),"") ->  | E51: =IFERROR(VLOOKUP(D51,'Entries Stage 3'!$A$3:$B$502,2,FALSE),"") ->  | F51: =IFERROR(VLOOKUP(D51,'Entries Stage 3'!$A$3:$C$502,3,FALSE),"") ->  | G51: 3 | K51: 4 | L51: =IFERROR(VLOOKUP(K51,'100H110H'!CR11:CS122,2,FALSE),"") ->  | M51: =IFERROR(VLOOKUP(L51,'Entries Stage 3'!$A$3:$B$502,2,FALSE),"") ->  | N51: =IFERROR(VLOOKUP(L51,'Entries Stage 3'!$A$3:$C$502,3,FALSE),"") ->  | O51: 3
C52: 5 | D52: =IFERROR(VLOOKUP(C52,'100H110H'!$CH$8:$CI$120,2,FALSE),"") ->  | E52: =IFERROR(VLOOKUP(D52,'Entries Stage 3'!$A$3:$B$502,2,FALSE),"") ->  | F52: =IFERROR(VLOOKUP(D52,'Entries Stage 3'!$A$3:$C$502,3,FALSE),"") ->  | G52: 2 | K52: 5 | L52: =IFERROR(VLOOKUP(K52,'100H110H'!CR12:CS123,2,FALSE),"") ->  | M52: =IFERROR(VLOOKUP(L52,'Entries Stage 3'!$A$3:$B$502,2,FALSE),"") ->  | N52: =IFERROR(VLOOKUP(L52,'Entries Stage 3'!$A$3:$C$502,3,FALSE),"") ->  | O52: 2
C53: 6 | D53: =IFERROR(VLOOKUP(C53,'100H110H'!$CH$8:$CI$120,2,FALSE),"") ->  | E53: =IFERROR(VLOOKUP(D53,'Entries Stage 3'!$A$3:$B$502,2,FALSE),"") ->  | F53: =IFERROR(VLOOKUP(D53,'Entries Stage 3'!$A$3:$C$502,3,FALSE),"") ->  | G53: 1 | K53: 6 | L53: =IFERROR(VLOOKUP(K53,'100H110H'!CR13:CS124,2,FALSE),"") ->  | M53: =IFERROR(VLOOKUP(L53,'Entries Stage 3'!$A$3:$B$502,2,FALSE),"") ->  | N53: =IFERROR(VLOOKUP(L53,'Entries Stage 3'!$A$3:$C$502,3,FALSE),"") ->  | O53: 1
B57: 100m Men | J57: 100m Women
B59: Standings | J59: Standings
B60: Pos | C60: Name | D60: College | E60: =C82 -> St Mary's | F60: =C91 -> Newham | G60: =C100 -> Battersea | H60: Overall | J60: Pos | K60: Name | L60: College | M60: =K82 -> St Mary's | N60: =K91 -> Newham | O60: =K100 -> Battersea | P60: Overall
B61: 1 | C61: =IFERROR(VLOOKUP(B61,AJ85:AK102,2,FALSE),"") -> Clyde Anucha | D61: =IFERROR(VLOOKUP(C61,'All Series Entries'!$B$3:$C1654,2,FALSE), "") -> QMUL | E61: =IFERROR(VLOOKUP(B61,AD85:AI102,3,FALSE),"") -> 7 | F61: =IFERROR(VLOOKUP(B61,AD85:AI102,4,FALSE),"") -> 0 | G61: =IFERROR(VLOOKUP(B61,AD85:AI102,5,FALSE),"") -> 0 | H61: =IFERROR(VLOOKUP(B61,AD85:AI102,6,FALSE),"") -> 7 | J61: 1 | K61: =IFERROR(VLOOKUP(J61,Z85:AA102,2,FALSE),"") -> Yasmin Lakin | L61: =IFERROR(VLOOKUP(K61,'All Series Entries'!$B$3:$C1654,2,FALSE), "") -> LSE | M61: =IFERROR(VLOOKUP(J61,T85:Y102,3,FALSE),"") -> 7 | N61: =IFERROR(VLOOKUP(J61,T85:Y102,4,FALSE),"") -> 0 | O61: =IFERROR(VLOOKUP(J61,T85:Y102,5,FALSE),"") -> 0 | P61: =IFERROR(VLOOKUP(J61,T85:Y102,6,FALSE),"") -> 7
B62: 2 | C62: =IFERROR(VLOOKUP(B62,AJ85:AK102,2,FALSE),"") -> Mahmoud Barrie | D62: =IFERROR(VLOOKUP(C62,'All Series Entries'!$B$3:$C1655,2,FALSE), "") -> Imperial | E62: =IFERROR(VLOOKUP(B62,AD85:AI102,3,FALSE),"") -> 5 | F62: =IFERROR(VLOOKUP(B62,AD85:AI102,4,FALSE),"") -> 0 | G62: =IFERROR(VLOOKUP(B62,AD85:AI102,5,FALSE),"") -> 0 | H62: =IFERROR(VLOOKUP(B62,AD85:AI102,6,FALSE),"") -> 5 | J62: 2 | K62: =IFERROR(VLOOKUP(J62,Z85:AA102,2,FALSE),"") -> Danae Jeanclos | L62: =IFERROR(VLOOKUP(K62,'All Series Entries'!$B$3:$C1655,2,FALSE), "") -> Essex | M62: =IFERROR(VLOOKUP(J62,T85:Y102,3,FALSE),"") -> 5 | N62: =IFERROR(VLOOKUP(J62,T86:Y103,4,FALSE),"") -> 0 | O62: =IFERROR(VLOOKUP(J62,T86:Y103,5,FALSE),"") -> 0 | P62: =IFERROR(VLOOKUP(J62,T86:Y103,6,FALSE),"") -> 5
B63: 3 | C63: =IFERROR(VLOOKUP(B63,AJ85:AK102,2,FALSE),"") -> Hamish Mundell | D63: =IFERROR(VLOOKUP(C63,'All Series Entries'!$B$3:$C1656,2,FALSE), "") -> LSE | E63: =IFERROR(VLOOKUP(B63,AD85:AI102,3,FALSE),"") -> 4 | F63: =IFERROR(VLOOKUP(B63,AD85:AI102,4,FALSE),"") -> 0 | G63: =IFERROR(VLOOKUP(B63,AD85:AI102,5,FALSE),"") -> 0 | H63: =IFERROR(VLOOKUP(B63,AD85:AI102,6,FALSE),"") -> 4 | J63: 3 | K63: =IFERROR(VLOOKUP(J63,Z85:AA102,2,FALSE),"") -> Hannah Freeman | L63: =IFERROR(VLOOKUP(K63,'All Series Entries'!$B$3:$C1656,2,FALSE), "") -> RHUL | M63: =IFERROR(VLOOKUP(J63,T85:Y102,3,FALSE),"") -> 4 | N63: 0 | O63: 0 | P63: 4
B64: 4 | C64: =IFERROR(VLOOKUP(B64,AJ85:AK102,2,FALSE),"") -> Harry Browning | D64: =IFERROR(VLOOKUP(C64,'All Series Entries'!$B$3:$C1657,2,FALSE), "") -> King's | E64: =IFERROR(VLOOKUP(B64,AD85:AI102,3,FALSE),"") -> 3 | F64: =IFERROR(VLOOKUP(B64,AD85:AI102,4,FALSE),"") -> 0 | G64: =IFERROR(VLOOKUP(B64,AD85:AI102,5,FALSE),"") -> 0 | H64: =IFERROR(VLOOKUP(B64,AD85:AI102,6,FALSE),"") -> 3 | J64: 4 | K64: =IFERROR(VLOOKUP(J64,Z85:AA102,2,FALSE),"") -> Toyin Olufemi | L64: =IFERROR(VLOOKUP(K64,'All Series Entries'!$B$3:$C1657,2,FALSE), "") -> Essex | M64: =IFERROR(VLOOKUP(J64,T85:Y102,3,FALSE),"") -> 3 | N64: 0 | O64: 0 | P64: 3
B65: 5 | C65: =IFERROR(VLOOKUP(B65,AJ85:AK102,2,FALSE),"") -> Tolu Ojora | D65: =IFERROR(VLOOKUP(C65,'All Series Entries'!$B$3:$C1658,2,FALSE), "") -> QMUL | E65: =IFERROR(VLOOKUP(B65,AD85:AI102,3,FALSE),"") -> 2 | F65: =IFERROR(VLOOKUP(B65,AD85:AI102,4,FALSE),"") -> 0 | G65: =IFERROR(VLOOKUP(B65,AD85:AI102,5,FALSE),"") -> 0 | H65: =IFERROR(VLOOKUP(B65,AD85:AI102,6,FALSE),"") -> 2 | J65: 5 | K65: =IFERROR(VLOOKUP(J65,Z85:AA102,2,FALSE),"") -> Chloe Hocking | L65: =IFERROR(VLOOKUP(K65,'All Series Entries'!$B$3:$C1658,2,FALSE), "") -> King's | M65: =IFERROR(VLOOKUP(J65,T85:Y102,3,FALSE),"") -> 2 | N65: 0 | O65: 0 | P65: 2
B66: 6 | C66: =IFERROR(VLOOKUP(B66,AJ85:AK102,2,FALSE),"") -> Dan Richards | D66: =IFERROR(VLOOKUP(C66,'All Series Entries'!$B$3:$C1659,2,FALSE), "") -> King's | E66: =IFERROR(VLOOKUP(B66,AD85:AI102,3,FALSE),"") -> 1 | F66: =IFERROR(VLOOKUP(B66,AD85:AI102,4,FALSE),"") -> 0 | G66: =IFERROR(VLOOKUP(B66,AD85:AI102,5,FALSE),"") -> 0 | H66: =IFERROR(VLOOKUP(B66,AD85:AI102,6,FALSE),"") -> 1 | J66: 6 | K66: =IFERROR(VLOOKUP(J66,Z85:AA102,2,FALSE),"") -> Rhianna Madden-Hansle | L66: =IFERROR(VLOOKUP(K66,'All Series Entries'!$B$3:$C1659,2,FALSE), "") -> UCL | M66: =IFERROR(VLOOKUP(J66,T85:Y102,3,FALSE),"") -> 1 | N66: 0 | O66: 0 | P66: 1
B67: 7 | C67: =IFERROR(VLOOKUP(B67,AJ85:AK102,2,FALSE),"") ->  | D67: =IFERROR(VLOOKUP(C67,'All Series Entries'!$B$3:$C1660,2,FALSE), "") ->  | E67: =IFERROR(VLOOKUP(B67,AD85:AI102,3,FALSE),"") ->  | F67: =IFERROR(VLOOKUP(B67,AD85:AI102,4,FALSE),"") ->  | G67: =IFERROR(VLOOKUP(B67,AD85:AI102,5,FALSE),"") ->  | H67: =IFERROR(VLOOKUP(B67,AD85:AI102,6,FALSE),"") ->  | J67: 7 | K67: =IFERROR(VLOOKUP(J67,Z85:AA102,2,FALSE),"") ->  | L67: =IFERROR(VLOOKUP(K67,'All Series Entries'!$B$3:$C1660,2,FALSE), "") ->  | M67: =IFERROR(VLOOKUP(J67,T85:Y102,3,FALSE),"") -> 
B68: 8 | C68: =IFERROR(VLOOKUP(B68,AJ85:AK102,2,FALSE),"") ->  | D68: =IFERROR(VLOOKUP(C68,'All Series Entries'!$B$3:$C1661,2,FALSE), "") ->  | E68: =IFERROR(VLOOKUP(B68,AD85:AI102,3,FALSE),"") ->  | F68: =IFERROR(VLOOKUP(B68,AD85:AI102,4,FALSE),"") ->  | G68: =IFERROR(VLOOKUP(B68,AD85:AI102,5,FALSE),"") ->  | H68: =IFERROR(VLOOKUP(B68,AD85:AI102,6,FALSE),"") ->  | J68: 8 | K68: =IFERROR(VLOOKUP(J68,Z85:AA102,2,FALSE),"") ->  | L68: =IFERROR(VLOOKUP(K68,'All Series Entries'!$B$3:$C1661,2,FALSE), "") ->  | M68: =IFERROR(VLOOKUP(J68,T85:Y102,3,FALSE),"") -> 
B69: 9 | C69: =IFERROR(VLOOKUP(B69,AJ85:AK102,2,FALSE),"") ->  | D69: =IFERROR(VLOOKUP(C69,'All Series Entries'!$B$3:$C1662,2,FALSE), "") ->  | E69: =IFERROR(VLOOKUP(B69,AD85:AI102,3,FALSE),"") ->  | F69: =IFERROR(VLOOKUP(B69,AD85:AI102,4,FALSE),"") ->  | G69: =IFERROR(VLOOKUP(B69,AD85:AI102,5,FALSE),"") ->  | H69: =IFERROR(VLOOKUP(B69,AD85:AI102,6,FALSE),"") ->  | J69: 9 | K69: =IFERROR(VLOOKUP(J69,Z85:AA102,2,FALSE),"") ->  | L69: =IFERROR(VLOOKUP(K69,'All Series Entries'!$B$3:$C1662,2,FALSE), "") ->  | M69: =IFERROR(VLOOKUP(J69,T85:Y102,3,FALSE),"") -> 
B70: 10 | C70: =IFERROR(VLOOKUP(B70,AJ85:AK102,2,FALSE),"") ->  | D70: =IFERROR(VLOOKUP(C70,'All Series Entries'!$B$3:$C1663,2,FALSE), "") ->  | E70: =IFERROR(VLOOKUP(B70,AD85:AI102,3,FALSE),"") ->  | F70: =IFERROR(VLOOKUP(B70,AD85:AI102,4,FALSE),"") ->  | G70: =IFERROR(VLOOKUP(B70,AD85:AI102,5,FALSE),"") ->  | H70: =IFERROR(VLOOKUP(B70,AD85:AI102,6,FALSE),"") ->  | J70: 10 | K70: =IFERROR(VLOOKUP(J70,Z85:AA102,2,FALSE),"") ->  | L70: =IFERROR(VLOOKUP(K70,'All Series Entries'!$B$3:$C1663,2,FALSE), "") ->  | M70: =IFERROR(VLOOKUP(J70,T85:Y102,3,FALSE),"") -> 
B71: 11 | C71: =IFERROR(VLOOKUP(B71,AJ85:AK102,2,FALSE),"") ->  | D71: =IFERROR(VLOOKUP(C71,'All Series Entries'!$B$3:$C1664,2,FALSE), "") ->  | E71: =IFERROR(VLOOKUP(B71,AD85:AI102,3,FALSE),"") ->  | F71: =IFERROR(VLOOKUP(B71,AD85:AI102,4,FALSE),"") ->  | G71: =IFERROR(VLOOKUP(B71,AD85:AI102,5,FALSE),"") ->  | H71: =IFERROR(VLOOKUP(B71,AD85:AI102,6,FALSE),"") ->  | J71: 11 | K71: =IFERROR(VLOOKUP(J71,Z85:AA102,2,FALSE),"") ->  | L71: =IFERROR(VLOOKUP(K71,'All Series Entries'!$B$3:$C1664,2,FALSE), "") ->  | M71: =IFERROR(VLOOKUP(J71,T85:Y102,3,FALSE),"") -> 
B72: 12 | C72: =IFERROR(VLOOKUP(B72,AJ85:AK102,2,FALSE),"") ->  | D72: =IFERROR(VLOOKUP(C72,'All Series Entries'!$B$3:$C1665,2,FALSE), "") ->  | E72: =IFERROR(VLOOKUP(B72,AD85:AI102,3,FALSE),"") ->  | F72: =IFERROR(VLOOKUP(B72,AD85:AI102,4,FALSE),"") ->  | G72: =IFERROR(VLOOKUP(B72,AD85:AI102,5,FALSE),"") ->  | H72: =IFERROR(VLOOKUP(B72,AD85:AI102,6,FALSE),"") ->  | J72: 12 | K72: =IFERROR(VLOOKUP(J72,Z85:AA102,2,FALSE),"") ->  | L72: =IFERROR(VLOOKUP(K72,'All Series Entries'!$B$3:$C1665,2,FALSE), "") ->  | M72: =IFERROR(VLOOKUP(J72,T85:Y102,3,FALSE),"") -> 
B73: 13 | C73: =IFERROR(VLOOKUP(B73,AJ85:AK102,2,FALSE),"") ->  | D73: =IFERROR(VLOOKUP(C73,'All Series Entries'!$B$3:$C1666,2,FALSE), "") ->  | E73: =IFERROR(VLOOKUP(B73,AD85:AI102,3,FALSE),"") ->  | F73: =IFERROR(VLOOKUP(B73,AD85:AI102,4,FALSE),"") ->  | G73: =IFERROR(VLOOKUP(B73,AD85:AI102,5,FALSE),"") ->  | H73: =IFERROR(VLOOKUP(B73,AD85:AI102,6,FALSE),"") ->  | J73: 13 | K73: =IFERROR(VLOOKUP(J73,Z85:AA102,2,FALSE),"") ->  | L73: =IFERROR(VLOOKUP(K73,'All Series Entries'!$B$3:$C1666,2,FALSE), "") ->  | M73: =IFERROR(VLOOKUP(J73,T85:Y102,3,FALSE),"") -> 
B74: 14 | C74: =IFERROR(VLOOKUP(B74,AJ85:AK102,2,FALSE),"") ->  | D74: =IFERROR(VLOOKUP(C74,'All Series Entries'!$B$3:$C1667,2,FALSE), "") ->  | E74: =IFERROR(VLOOKUP(B74,AD85:AI102,3,FALSE),"") ->  | F74: =IFERROR(VLOOKUP(B74,AD85:AI102,4,FALSE),"") ->  | G74: =IFERROR(VLOOKUP(B74,AD85:AI102,5,FALSE),"") ->  | H74: =IFERROR(VLOOKUP(B74,AD85:AI102,6,FALSE),"") ->  | J74: 14 | K74: =IFERROR(VLOOKUP(J74,Z85:AA102,2,FALSE),"") ->  | L74: =IFERROR(VLOOKUP(K74,'All Series Entries'!$B$3:$C1667,2,FALSE), "") ->  | M74: =IFERROR(VLOOKUP(J74,T85:Y102,3,FALSE),"") -> 
B75: 15 | C75: =IFERROR(VLOOKUP(B75,AJ85:AK102,2,FALSE),"") ->  | D75: =IFERROR(VLOOKUP(C75,'All Series Entries'!$B$3:$C1668,2,FALSE), "") ->  | E75: =IFERROR(VLOOKUP(B75,AD85:AI102,3,FALSE),"") ->  | F75: =IFERROR(VLOOKUP(B75,AD85:AI102,4,FALSE),"") ->  | G75: =IFERROR(VLOOKUP(B75,AD85:AI102,5,FALSE),"") ->  | H75: =IFERROR(VLOOKUP(B75,AD85:AI102,6,FALSE),"") ->  | J75: 15 | K75: =IFERROR(VLOOKUP(J75,Z85:AA102,2,FALSE),"") ->  | L75: =IFERROR(VLOOKUP(K75,'All Series Entries'!$B$3:$C1668,2,FALSE), "") ->  | M75: =IFERROR(VLOOKUP(J75,T85:Y102,3,FALSE),"") -> 
B76: 16 | C76: =IFERROR(VLOOKUP(B76,AJ85:AK102,2,FALSE),"") ->  | D76: =IFERROR(VLOOKUP(C76,'All Series Entries'!$B$3:$C1669,2,FALSE), "") ->  | E76: =IFERROR(VLOOKUP(B76,AD85:AI102,3,FALSE),"") ->  | F76: =IFERROR(VLOOKUP(B76,AD85:AI102,4,FALSE),"") ->  | G76: =IFERROR(VLOOKUP(B76,AD85:AI102,5,FALSE),"") ->  | H76: =IFERROR(VLOOKUP(B76,AD85:AI102,6,FALSE),"") ->  | J76: 16 | K76: =IFERROR(VLOOKUP(J76,Z85:AA102,2,FALSE),"") ->  | L76: =IFERROR(VLOOKUP(K76,'All Series Entries'!$B$3:$C1669,2,FALSE), "") ->  | M76: =IFERROR(VLOOKUP(J76,T85:Y102,3,FALSE),"") -> 
B77: 17 | C77: =IFERROR(VLOOKUP(B77,AJ85:AK102,2,FALSE),"") ->  | D77: =IFERROR(VLOOKUP(C77,'All Series Entries'!$B$3:$C1670,2,FALSE), "") ->  | E77: =IFERROR(VLOOKUP(B77,AD85:AI102,3,FALSE),"") ->  | F77: =IFERROR(VLOOKUP(B77,AD85:AI102,4,FALSE),"") ->  | G77: =IFERROR(VLOOKUP(B77,AD85:AI102,5,FALSE),"") ->  | H77: =IFERROR(VLOOKUP(B77,AD85:AI102,6,FALSE),"") ->  | J77: 17 | K77: =IFERROR(VLOOKUP(J77,Z85:AA102,2,FALSE),"") ->  | L77: =IFERROR(VLOOKUP(K77,'All Series Entries'!$B$3:$C1670,2,FALSE), "") ->  | M77: =IFERROR(VLOOKUP(J77,T85:Y102,3,FALSE),"") -> 
B78: 18 | C78: =IFERROR(VLOOKUP(B78,AJ85:AK102,2,FALSE),"") ->  | D78: =IFERROR(VLOOKUP(C78,'All Series Entries'!$B$3:$C1671,2,FALSE), "") ->  | E78: =IFERROR(VLOOKUP(B78,AD85:AI102,3,FALSE),"") ->  | F78: =IFERROR(VLOOKUP(B78,AD85:AI102,4,FALSE),"") ->  | G78: =IFERROR(VLOOKUP(B78,AD85:AI102,5,FALSE),"") ->  | H78: =IFERROR(VLOOKUP(B78,AD85:AI102,6,FALSE),"") ->  | J78: 18 | K78: =IFERROR(VLOOKUP(J78,Z85:AA102,2,FALSE),"") ->  | L78: =IFERROR(VLOOKUP(K78,'All Series Entries'!$B$3:$C1671,2,FALSE), "") ->  | M78: =IFERROR(VLOOKUP(J78,T85:Y102,3,FALSE),"") -> 
E79: =IFERROR(VLOOKUP(B79,$AD$85:$AI$102,3,FALSE),"") ->  | F79: =IFERROR(VLOOKUP(B79,$AD$85:$AI$102,4,FALSE),"") ->  | G79: =IFERROR(VLOOKUP(B79,$AD$85:$AI$102,5,FALSE),"") ->  | H79: =IFERROR(VLOOKUP(B79,$AD$85:$AI$102,6,FALSE),"") ->  | M79: =IFERROR(VLOOKUP(J79,$T$85:$Y$102,3,FALSE),"") -> 
E80: =IFERROR(VLOOKUP(B80,$AD$85:$AI$102,3,FALSE),"") ->  | F80: =IFERROR(VLOOKUP(B80,$AD$85:$AI$102,4,FALSE),"") ->  | G80: =IFERROR(VLOOKUP(B80,$AD$85:$AI$102,5,FALSE),"") ->  | H80: =IFERROR(VLOOKUP(B80,$AD$85:$AI$102,6,FALSE),"") ->  | M80: =IFERROR(VLOOKUP(J80,$T$85:$Y$102,3,FALSE),"") -> 
S81: Women | AC81: Men
C82: ='Set-Up'!$G$31 -> St Mary's | K82: ='Set-Up'!$G$31 -> St Mary's | S82: Extract unique athletes (based on name) and sum points. | AC82: Extract unique athletes (based on name) and sum points.
C83: Pos | D83: No. | E83: Name | F83: College | G83: Points | K83: Pos | L83: No. | M83: Name | N83: College | O83: Points | T83: Rank | V83: Stage 1 | W83: Stage 2 | X83: Stage 3 | Y83: Total | Z83: Rank | AD83: Rank | AF83: Stage 1 | AG83: Stage 2 | AH83: Stage 3 | AI83: Total | AJ83: Rank
C84: 1 | D84: =IFERROR(VLOOKUP(C84,'100'!$AX$8:$AY$200,2,FALSE),"") -> 95 | E84: =IFERROR(VLOOKUP(D84,'Entries Stage 1'!$A$3:$B$502,2,FALSE),"") -> Clyde Anucha | F84: =IFERROR(VLOOKUP(D84,'LUCA Calculator'!$A$3:$D$405,4,FALSE), "") -> QMUL | G84: 7 | K84: 1 | L84: =IFERROR(VLOOKUP(K84, '100'!$BH$8:$BI$119,2,FALSE),"") -> 82 | M84: =IFERROR(VLOOKUP(L84,'Entries Stage 1'!$A$3:$B$502,2,FALSE),"") -> Yasmin Lakin | N84: =IFERROR(VLOOKUP(L84,'Entries Stage 1'!$A$3:$C$502,3,FALSE),"") -> LSE | O84: 7 | S84: =M84 -> Yasmin Lakin | AC84: =E84 -> Clyde Anucha
C85: 2 | D85: =IFERROR(VLOOKUP(C85,'100'!$AX$8:$AY$200,2,FALSE),"") -> 41 | E85: =IFERROR(VLOOKUP(D85,'Entries Stage 1'!$A$3:$B$502,2,FALSE),"") -> Mahmoud Barrie | F85: =IFERROR(VLOOKUP(D85,'LUCA Calculator'!$A$3:$D$405,4,FALSE), "") -> Imperial | G85: 5 | K85: 2 | L85: =IFERROR(VLOOKUP(K85, '100'!$BH$8:$BI$119,2,FALSE),"") -> 7 | M85: =IFERROR(VLOOKUP(L85,'Entries Stage 1'!$A$3:$B$502,2,FALSE),"") -> Danae Jeanclos | N85: =IFERROR(VLOOKUP(L85,'Entries Stage 1'!$A$3:$C$502,3,FALSE),"") -> Essex | O85: 5 | S85: Danae Jeanclos | T85: =Z85 -> 1 | U85: =INDEX(S84:S101, MATCH(0, COUNTIF(U84:U84, S84:S101),0)) -> Yasmin Lakin | V85: =IFERROR(VLOOKUP(U85,M84:O89,3,FALSE),0) -> 7 | W85: =IFERROR(VLOOKUP(U85,M93:O98,3,FALSE),0) -> 0 | X85: =IFERROR(VLOOKUP(U85,M102:O107,3,FALSE),0) -> 0 | Y85: =SUM(V85:X85) -> 7 | Z85: =IF(Y85>0,RANK(Y85,Y85:Y102)+COUNTIF(Y85:Y102,Y85)-1,"") -> 1 | AA85: =U85 -> Yasmin Lakin | AC85: Mahmoud Barrie | AD85: =AJ85 -> 1 | AE85: =INDEX(AC84:AC101, MATCH(0, COUNTIF(AE84:AE84, AC84:AC101),0)) -> Clyde Anucha | AF85: =IFERROR(VLOOKUP(AE85,E84:G89,3,FALSE),0) -> 7 | AG85: =IFERROR(VLOOKUP(AE85,E93:G98,3,FALSE),0) -> 0 | AH85: =IFERROR(VLOOKUP(AE85,E102:G107,3,FALSE),0) -> 0 | AI85: =SUM(AF85:AH85) -> 7 | AJ85: =IF(AI85>0,RANK(AI85,AI85:AI102)+COUNTIF(AI85:AI102,AI85)-1,"") -> 1 | AK85: =AE85 -> Clyde Anucha
C86: 3 | D86: =IFERROR(VLOOKUP(C86,'100'!$AX$8:$AY$200,2,FALSE),"") -> 90 | E86: =IFERROR(VLOOKUP(D86,'Entries Stage 1'!$A$3:$B$502,2,FALSE),"") -> Hamish Mundell | F86: =IFERROR(VLOOKUP(D86,'LUCA Calculator'!$A$3:$D$405,4,FALSE), "") -> LSE | G86: 4 | K86: 3 | L86: =IFERROR(VLOOKUP(K86, '100'!$BH$8:$BI$119,2,FALSE),"") -> 102 | M86: =IFERROR(VLOOKUP(L86,'Entries Stage 1'!$A$3:$B$502,2,FALSE),"") -> Hannah Freeman | N86: =IFERROR(VLOOKUP(L86,'Entries Stage 1'!$A$3:$C$502,3,FALSE),"") -> RHUL | O86: 4 | S86: Hannah Freeman | T86: =Z86 -> 2 | U86: =INDEX(S84:S101, MATCH(0, COUNTIF(U84:U85, S84:S101),0)) -> Danae Jeanclos | V86: =IFERROR(VLOOKUP(U86,M84:O89,3,FALSE),0) -> 5 | W86: =IFERROR(VLOOKUP(U86,M93:O98,3,FALSE),0) -> 0 | X86: =IFERROR(VLOOKUP(U86,M102:O107,3,FALSE),0) -> 0 | Y86: =SUM(V86:X86) -> 5 | Z86: =IF(Y86>0,RANK(Y86,Y85:Y102)+COUNTIF(Y85:Y103,Y86)-1,"") -> 2 | AA86: =U86 -> Danae Jeanclos | AC86: Hamish Mundell | AD86: =AJ86 -> 2 | AE86: =INDEX(AC84:AC101, MATCH(0, COUNTIF(AE84:AE85, AC84:AC101),0)) -> Mahmoud Barrie | AF86: =IFERROR(VLOOKUP(AE86,E84:G89,3,FALSE),0) -> 5 | AG86: =IFERROR(VLOOKUP(AE86,E93:G98,3,FALSE),0) -> 0 | AH86: =IFERROR(VLOOKUP(AE86,E102:G107,3,FALSE),0) -> 0 | AI86: =SUM(AF86:AH86) -> 5 | AJ86: =IF(AI86>0,RANK(AI86,AI85:AI102)+COUNTIF(AI85:AI103,AI86)-1,"") -> 2 | AK86: =AE86 -> Mahmoud Barrie
C87: 4 | D87: =IFERROR(VLOOKUP(C87,'100'!$AX$8:$AY$200,2,FALSE),"") -> 63 | E87: =IFERROR(VLOOKUP(D87,'Entries Stage 1'!$A$3:$B$502,2,FALSE),"") -> Harry Browning | F87: =IFERROR(VLOOKUP(D87,'LUCA Calculator'!$A$3:$D$405,4,FALSE), "") -> King's | G87: 3 | K87: 4 | L87: =IFERROR(VLOOKUP(K87, '100'!$BH$8:$BI$119,2,FALSE),"") -> 9 | M87: =IFERROR(VLOOKUP(L87,'Entries Stage 1'!$A$3:$B$502,2,FALSE),"") -> Toyin Olufemi | N87: =IFERROR(VLOOKUP(L87,'Entries Stage 1'!$A$3:$C$502,3,FALSE),"") -> Essex | O87: 3 | S87: Toyin Olufemi | T87: 3 | U87: =INDEX(S84:S101, MATCH(0, COUNTIF(U84:U86, S84:S101),0)) -> Hannah Freeman | V87: =IFERROR(VLOOKUP(U87,M84:O89,3,FALSE),0) -> 4 | W87: =IFERROR(VLOOKUP(U87,M93:O98,3,FALSE),0) -> 0 | X87: =IFERROR(VLOOKUP(U87,M102:O107,3,FALSE),0) -> 0 | Y87: 4 | Z87: =IF(Y87>0,RANK(Y87,Y85:Y102)+COUNTIF(Y85:Y104,Y87)-1,"") -> 3 | AA87: Hannah Freeman | AC87: Harry Browning | AD87: 3 | AE87: =INDEX(AC84:AC101, MATCH(0, COUNTIF(AE84:AE86, AC84:AC101),0)) -> Hamish Mundell | AF87: =IFERROR(VLOOKUP(AE87,E84:G89,3,FALSE),0) -> 4 | AG87: =IFERROR(VLOOKUP(AE87,E93:G98,3,FALSE),0) -> 0 | AH87: =IFERROR(VLOOKUP(AE87,E102:G107,3,FALSE),0) -> 0 | AI87: 4 | AJ87: =IF(AI87>0,RANK(AI87,AI85:AI102)+COUNTIF(AI85:AI104,AI87)-1,"") -> 3 | AK87: Hamish Mundell
C88: 5 | D88: =IFERROR(VLOOKUP(C88,'100'!$AX$8:$AY$200,2,FALSE),"") -> 100 | E88: =IFERROR(VLOOKUP(D88,'Entries Stage 1'!$A$3:$B$502,2,FALSE),"") -> Tolu Ojora | F88: =IFERROR(VLOOKUP(D88,'LUCA Calculator'!$A$3:$D$405,4,FALSE), "") -> QMUL | G88: 2 | K88: 5 | L88: =IFERROR(VLOOKUP(K88, '100'!$BH$8:$BI$119,2,FALSE),"") -> 49 | M88: =IFERROR(VLOOKUP(L88,'Entries Stage 1'!$A$3:$B$502,2,FALSE),"") -> Chloe Hocking | N88: =IFERROR(VLOOKUP(L88,'Entries Stage 1'!$A$3:$C$502,3,FALSE),"") -> King's | O88: 2 | S88: Chloe Hocking | T88: 4 | U88: =INDEX(S84:S101, MATCH(0, COUNTIF(U84:U87, S84:S101),0)) -> Toyin Olufemi | V88: =IFERROR(VLOOKUP(U88,M84:O89,3,FALSE),0) -> 3 | W88: =IFERROR(VLOOKUP(U88,M93:O98,3,FALSE),0) -> 0 | X88: =IFERROR(VLOOKUP(U88,M102:O107,3,FALSE),0) -> 0 | Y88: 3 | Z88: =IF(Y88>0,RANK(Y88,Y85:Y102)+COUNTIF(Y85:Y105,Y88)-1,"") -> 4 | AA88: Toyin Olufemi | AC88: Tolu Ojora | AD88: 4 | AE88: =INDEX(AC84:AC101, MATCH(0, COUNTIF(AE84:AE87, AC84:AC101),0)) -> Harry Browning | AF88: =IFERROR(VLOOKUP(AE88,E84:G89,3,FALSE),0) -> 3 | AG88: =IFERROR(VLOOKUP(AE88,E93:G98,3,FALSE),0) -> 0 | AH88: =IFERROR(VLOOKUP(AE88,E102:G107,3,FALSE),0) -> 0 | AI88: 3 | AJ88: =IF(AI88>0,RANK(AI88,AI85:AI102)+COUNTIF(AI85:AI105,AI88)-1,"") -> 4 | AK88: Harry Browning
C89: 6 | D89: =IFERROR(VLOOKUP(C89,'100'!$AX$8:$AY$200,2,FALSE),"") -> 60 | E89: =IFERROR(VLOOKUP(D89,'Entries Stage 1'!$A$3:$B$502,2,FALSE),"") -> Dan Richards | F89: =IFERROR(VLOOKUP(D89,'LUCA Calculator'!$A$3:$D$405,4,FALSE), "") -> King's | G89: 1 | K89: 6 | L89: =IFERROR(VLOOKUP(K89, '100'!$BH$8:$BI$119,2,FALSE),"") -> 173 | M89: =IFERROR(VLOOKUP(L89,'Entries Stage 1'!$A$3:$B$502,2,FALSE),"") -> Rhianna Madden-Hansle | N89: =IFERROR(VLOOKUP(L89,'Entries Stage 1'!$A$3:$C$502,3,FALSE),"") -> UCL | O89: 1 | S89: Rhianna Madden-Hansle | T89: 5 | U89: =INDEX(S84:S101, MATCH(0, COUNTIF(U84:U88, S84:S101),0)) -> Chloe Hocking | V89: =IFERROR(VLOOKUP(U89,M84:O89,3,FALSE),0) -> 2 | W89: =IFERROR(VLOOKUP(U89,M93:O98,3,FALSE),0) -> 0 | X89: =IFERROR(VLOOKUP(U89,M102:O107,3,FALSE),0) -> 0 | Y89: 2 | Z89: =IF(Y89>0,RANK(Y89,Y85:Y102)+COUNTIF(Y85:Y106,Y89)-1,"") -> 5 | AA89: Chloe Hocking | AC89: Dan Richards | AD89: 5 | AE89: =INDEX(AC84:AC101, MATCH(0, COUNTIF(AE84:AE88, AC84:AC101),0)) -> Tolu Ojora | AF89: =IFERROR(VLOOKUP(AE89,E84:G89,3,FALSE),0) -> 2 | AG89: =IFERROR(VLOOKUP(AE89,E93:G98,3,FALSE),0) -> 0 | AH89: =IFERROR(VLOOKUP(AE89,E102:G107,3,FALSE),0) -> 0 | AI89: 2 | AJ89: =IF(AI89>0,RANK(AI89,AI85:AI102)+COUNTIF(AI85:AI106,AI89)-1,"") -> 5 | AK89: Tolu Ojora
S90: =M93 ->  | T90: 6 | U90: =INDEX(S84:S101, MATCH(0, COUNTIF(U84:U89, S84:S101),0)) -> Rhianna Madden-Hansle | V90: =IFERROR(VLOOKUP(U90,M84:O89,3,FALSE),0) -> 1 | W90: =IFERROR(VLOOKUP(U90,M93:O98,3,FALSE),0) -> 0 | X90: =IFERROR(VLOOKUP(U90,M102:O107,3,FALSE),0) -> 0 | Y90: 1 | Z90: =IF(Y90>0,RANK(Y90,Y85:Y102)+COUNTIF(Y85:Y107,Y90)-1,"") -> 6 | AA90: Rhianna Madden-Hansle | AC90: =E93 ->  | AD90: 6 | AE90: =INDEX(AC84:AC101, MATCH(0, COUNTIF(AE84:AE89, AC84:AC101),0)) -> Dan Richards | AF90: =IFERROR(VLOOKUP(AE90,E84:G89,3,FALSE),0) -> 1 | AG90: =IFERROR(VLOOKUP(AE90,E93:G98,3,FALSE),0) -> 0 | AH90: =IFERROR(VLOOKUP(AE90,E102:G107,3,FALSE),0) -> 0 | AI90: 1 | AJ90: =IF(AI90>0,RANK(AI90,AI85:AI102)+COUNTIF(AI85:AI107,AI90)-1,"") -> 6 | AK90: Dan Richards
C91: ='Set-Up'!$G$32 -> Newham | K91: ='Set-Up'!$G$32 -> Newham | U91: =INDEX(S84:S101, MATCH(0, COUNTIF(U84:U90, S84:S101),0)) ->  | V91: =IFERROR(VLOOKUP(U91,M84:O89,3,FALSE),0) -> 0 | W91: =IFERROR(VLOOKUP(U91,M93:O98,3,FALSE),0) -> 0 | X91: =IFERROR(VLOOKUP(U91,M102:O107,3,FALSE),0) -> 0 | Y91: 0 | Z91: =IF(Y91>0,RANK(Y91,Y85:Y102)+COUNTIF(Y85:Y108,Y91)-1,"") ->  | AE91: =INDEX(AC84:AC101, MATCH(0, COUNTIF(AE84:AE90, AC84:AC101),0)) ->  | AF91: =IFERROR(VLOOKUP(AE91,E84:G89,3,FALSE),0) -> 0 | AG91: =IFERROR(VLOOKUP(AE91,E93:G98,3,FALSE),0) -> 0 | AH91: =IFERROR(VLOOKUP(AE91,E102:G107,3,FALSE),0) -> 0 | AI91: 0 | AJ91: =IF(AI91>0,RANK(AI91,AI85:AI102)+COUNTIF(AI85:AI108,AI91)-1,"") -> 
C92: Pos | D92: No. | E92: Name | F92: College | G92: Points | K92: Pos | L92: No. | M92: Name | N92: College | O92: Points | U92: =INDEX(S84:S101, MATCH(0, COUNTIF(U84:U91, S84:S101),0)) ->  | V92: =IFERROR(VLOOKUP(U92,M84:O89,3,FALSE),0) -> 0 | W92: =IFERROR(VLOOKUP(U92,M93:O98,3,FALSE),0) -> 0 | X92: =IFERROR(VLOOKUP(U92,M102:O107,3,FALSE),0) -> 0 | Y92: 0 | Z92: =IF(Y92>0,RANK(Y92,Y85:Y102)+COUNTIF(Y85:Y109,Y92)-1,"") ->  | AE92: =INDEX(AC84:AC101, MATCH(0, COUNTIF(AE84:AE91, AC84:AC101),0)) ->  | AF92: =IFERROR(VLOOKUP(AE92,E84:G89,3,FALSE),0) -> 0 | AG92: =IFERROR(VLOOKUP(AE92,E93:G98,3,FALSE),0) -> 0 | AH92: =IFERROR(VLOOKUP(AE92,E102:G107,3,FALSE),0) -> 0 | AI92: 0 | AJ92: =IF(AI92>0,RANK(AI92,AI85:AI102)+COUNTIF(AI85:AI109,AI92)-1,"") -> 
C93: 1 | D93: =IFERROR(VLOOKUP(C93,'100'!$BP$7:$BQ$119,2,FALSE),"") ->  | E93: =IFERROR(VLOOKUP(D93,'Entries Stage 2'!$A$3:$B$502,2,FALSE),"") ->  | F93: =IFERROR(VLOOKUP(D93,'Entries Stage 2'!$A$3:$C$502,3,FALSE),"") ->  | G93: 7 | K93: 1 | L93: =IFERROR(VLOOKUP(K93,'100'!$BZ$8:$CA$119,2,FALSE),"") ->  | M93: =IFERROR(VLOOKUP(L93,'Entries Stage 2'!$A$3:$B$502,2,FALSE),"") ->  | N93: =IFERROR(VLOOKUP(L93,'Entries Stage 2'!$A$3:$C$502,3,FALSE),"") ->  | O93: 7 | U93: =INDEX(S84:S101, MATCH(0, COUNTIF(U84:U92, S84:S101),0)) ->  | V93: =IFERROR(VLOOKUP(U93,M84:O89,3,FALSE),0) -> 0 | W93: =IFERROR(VLOOKUP(U93,M93:O98,3,FALSE),0) -> 0 | X93: =IFERROR(VLOOKUP(U93,M102:O107,3,FALSE),0) -> 0 | Y93: 0 | Z93: =IF(Y93>0,RANK(Y93,Y85:Y102)+COUNTIF(Y85:Y110,Y93)-1,"") ->  | AE93: =INDEX(AC84:AC101, MATCH(0, COUNTIF(AE84:AE92, AC84:AC101),0)) ->  | AF93: =IFERROR(VLOOKUP(AE93,E84:G89,3,FALSE),0) -> 0 | AG93: =IFERROR(VLOOKUP(AE93,E93:G98,3,FALSE),0) -> 0 | AH93: =IFERROR(VLOOKUP(AE93,E102:G107,3,FALSE),0) -> 0 | AI93: 0 | AJ93: =IF(AI93>0,RANK(AI93,AI85:AI102)+COUNTIF(AI85:AI110,AI93)-1,"") -> 
C94: 2 | D94: =IFERROR(VLOOKUP(C94,'100'!$BP$7:$BQ$119,2,FALSE),"") ->  | E94: =IFERROR(VLOOKUP(D94,'Entries Stage 2'!$A$3:$B$502,2,FALSE),"") ->  | F94: =IFERROR(VLOOKUP(D94,'Entries Stage 2'!$A$3:$C$502,3,FALSE),"") ->  | G94: 5 | K94: 2 | L94: =IFERROR(VLOOKUP(K94,'100'!$BZ$8:$CA$119,2,FALSE),"") ->  | M94: =IFERROR(VLOOKUP(L94,'Entries Stage 2'!$A$3:$B$502,2,FALSE),"") ->  | N94: =IFERROR(VLOOKUP(L94,'Entries Stage 2'!$A$3:$C$502,3,FALSE),"") ->  | O94: 5 | U94: =INDEX(S84:S101, MATCH(0, COUNTIF(U84:U93, S84:S101),0)) ->  | V94: =IFERROR(VLOOKUP(U94,M84:O89,3,FALSE),0) -> 0 | W94: =IFERROR(VLOOKUP(U94,M93:O98,3,FALSE),0) -> 0 | X94: =IFERROR(VLOOKUP(U94,M102:O107,3,FALSE),0) -> 0 | Y94: 0 | Z94: =IF(Y94>0,RANK(Y94,Y85:Y102)+COUNTIF(Y85:Y111,Y94)-1,"") ->  | AE94: =INDEX(AC84:AC101, MATCH(0, COUNTIF(AE84:AE93, AC84:AC101),0)) ->  | AF94: =IFERROR(VLOOKUP(AE94,E84:G89,3,FALSE),0) -> 0 | AG94: =IFERROR(VLOOKUP(AE94,E93:G98,3,FALSE),0) -> 0 | AH94: =IFERROR(VLOOKUP(AE94,E102:G107,3,FALSE),0) -> 0 | AI94: 0 | AJ94: =IF(AI94>0,RANK(AI94,AI85:AI102)+COUNTIF(AI85:AI111,AI94)-1,"") -> 
C95: 3 | D95: =IFERROR(VLOOKUP(C95,'100'!$BP$7:$BQ$119,2,FALSE),"") ->  | E95: =IFERROR(VLOOKUP(D95,'Entries Stage 2'!$A$3:$B$502,2,FALSE),"") ->  | F95: =IFERROR(VLOOKUP(D95,'Entries Stage 2'!$A$3:$C$502,3,FALSE),"") ->  | G95: 4 | K95: 3 | L95: =IFERROR(VLOOKUP(K95,'100'!$BZ$8:$CA$119,2,FALSE),"") ->  | M95: =IFERROR(VLOOKUP(L95,'Entries Stage 2'!$A$3:$B$502,2,FALSE),"") ->  | N95: =IFERROR(VLOOKUP(L95,'Entries Stage 2'!$A$3:$C$502,3,FALSE),"") ->  | O95: 4 | U95: =INDEX(S84:S101, MATCH(0, COUNTIF(U84:U94, S84:S101),0)) ->  | V95: =IFERROR(VLOOKUP(U95,M84:O89,3,FALSE),0) -> 0 | W95: =IFERROR(VLOOKUP(U95,M93:O98,3,FALSE),0) -> 0 | X95: =IFERROR(VLOOKUP(U95,M102:O107,3,FALSE),0) -> 0 | Y95: 0 | Z95: =IF(Y95>0,RANK(Y95,Y85:Y102)+COUNTIF(Y85:Y112,Y95)-1,"") ->  | AE95: =INDEX(AC84:AC101, MATCH(0, COUNTIF(AE84:AE94, AC84:AC101),0)) ->  | AF95: =IFERROR(VLOOKUP(AE95,E84:G89,3,FALSE),0) -> 0 | AG95: =IFERROR(VLOOKUP(AE95,E93:G98,3,FALSE),0) -> 0 | AH95: =IFERROR(VLOOKUP(AE95,E102:G107,3,FALSE),0) -> 0 | AI95: 0 | AJ95: =IF(AI95>0,RANK(AI95,AI85:AI102)+COUNTIF(AI85:AI112,AI95)-1,"") -> 
C96: 4 | D96: =IFERROR(VLOOKUP(C96,'100'!$BP$7:$BQ$119,2,FALSE),"") ->  | E96: =IFERROR(VLOOKUP(D96,'Entries Stage 2'!$A$3:$B$502,2,FALSE),"") ->  | F96: =IFERROR(VLOOKUP(D96,'Entries Stage 2'!$A$3:$C$502,3,FALSE),"") ->  | G96: 3 | K96: 4 | L96: =IFERROR(VLOOKUP(K96,'100'!$BZ$8:$CA$119,2,FALSE),"") ->  | M96: =IFERROR(VLOOKUP(L96,'Entries Stage 2'!$A$3:$B$502,2,FALSE),"") ->  | N96: =IFERROR(VLOOKUP(L96,'Entries Stage 2'!$A$3:$C$502,3,FALSE),"") ->  | O96: 3 | S96: =M102 ->  | U96: =INDEX(S84:S101, MATCH(0, COUNTIF(U84:U95, S84:S101),0)) ->  | V96: =IFERROR(VLOOKUP(U96,M84:O89,3,FALSE),0) -> 0 | W96: =IFERROR(VLOOKUP(U96,M93:O98,3,FALSE),0) -> 0 | X96: =IFERROR(VLOOKUP(U96,M102:O107,3,FALSE),0) -> 0 | Y96: 0 | Z96: =IF(Y96>0,RANK(Y96,Y85:Y102)+COUNTIF(Y85:Y113,Y96)-1,"") ->  | AC96: =E102 ->  | AE96: =INDEX(AC84:AC101, MATCH(0, COUNTIF(AE84:AE95, AC84:AC101),0)) ->  | AF96: =IFERROR(VLOOKUP(AE96,E84:G89,3,FALSE),0) -> 0 | AG96: =IFERROR(VLOOKUP(AE96,E93:G98,3,FALSE),0) -> 0 | AH96: =IFERROR(VLOOKUP(AE96,E102:G107,3,FALSE),0) -> 0 | AI96: 0 | AJ96: =IF(AI96>0,RANK(AI96,AI85:AI102)+COUNTIF(AI85:AI113,AI96)-1,"") -> 
C97: 5 | D97: =IFERROR(VLOOKUP(C97,'100'!$BP$7:$BQ$119,2,FALSE),"") ->  | E97: =IFERROR(VLOOKUP(D97,'Entries Stage 2'!$A$3:$B$502,2,FALSE),"") ->  | F97: =IFERROR(VLOOKUP(D97,'Entries Stage 2'!$A$3:$C$502,3,FALSE),"") ->  | G97: 2 | K97: 5 | L97: =IFERROR(VLOOKUP(K97,'100'!$BZ$8:$CA$119,2,FALSE),"") ->  | M97: =IFERROR(VLOOKUP(L97,'Entries Stage 2'!$A$3:$B$502,2,FALSE),"") ->  | N97: =IFERROR(VLOOKUP(L97,'Entries Stage 2'!$A$3:$C$502,3,FALSE),"") ->  | O97: 2 | U97: =INDEX(S84:S101, MATCH(0, COUNTIF(U84:U96, S84:S101),0)) ->  | V97: =IFERROR(VLOOKUP(U97,M84:O89,3,FALSE),0) -> 0 | W97: =IFERROR(VLOOKUP(U97,M93:O98,3,FALSE),0) -> 0 | X97: =IFERROR(VLOOKUP(U97,M102:O107,3,FALSE),0) -> 0 | Y97: 0 | Z97: =IF(Y97>0,RANK(Y97,Y85:Y102)+COUNTIF(Y85:Y114,Y97)-1,"") ->  | AE97: =INDEX(AC84:AC101, MATCH(0, COUNTIF(AE84:AE96, AC84:AC101),0)) ->  | AF97: =IFERROR(VLOOKUP(AE97,E84:G89,3,FALSE),0) -> 0 | AG97: =IFERROR(VLOOKUP(AE97,E93:G98,3,FALSE),0) -> 0 | AH97: =IFERROR(VLOOKUP(AE97,E102:G107,3,FALSE),0) -> 0 | AI97: 0 | AJ97: =IF(AI97>0,RANK(AI97,AI85:AI102)+COUNTIF(AI85:AI114,AI97)-1,"") -> 
C98: 6 | D98: =IFERROR(VLOOKUP(C98,'100'!$BP$7:$BQ$119,2,FALSE),"") ->  | E98: =IFERROR(VLOOKUP(D98,'Entries Stage 2'!$A$3:$B$502,2,FALSE),"") ->  | F98: =IFERROR(VLOOKUP(D98,'Entries Stage 2'!$A$3:$C$502,3,FALSE),"") ->  | G98: 1 | K98: 6 | L98: =IFERROR(VLOOKUP(K98,'100'!$BZ$8:$CA$119,2,FALSE),"") ->  | M98: =IFERROR(VLOOKUP(L98,'Entries Stage 2'!$A$3:$B$502,2,FALSE),"") ->  | N98: =IFERROR(VLOOKUP(L98,'Entries Stage 2'!$A$3:$C$502,3,FALSE),"") ->  | O98: 1 | U98: =INDEX(S84:S101, MATCH(0, COUNTIF(U84:U97, S84:S101),0)) ->  | V98: =IFERROR(VLOOKUP(U98,M84:O89,3,FALSE),0) -> 0 | W98: =IFERROR(VLOOKUP(U98,M93:O98,3,FALSE),0) -> 0 | X98: =IFERROR(VLOOKUP(U98,M102:O107,3,FALSE),0) -> 0 | Y98: 0 | Z98: =IF(Y98>0,RANK(Y98,Y85:Y102)+COUNTIF(Y85:Y115,Y98)-1,"") ->  | AE98: =INDEX(AC84:AC101, MATCH(0, COUNTIF(AE84:AE97, AC84:AC101),0)) ->  | AF98: =IFERROR(VLOOKUP(AE98,E84:G89,3,FALSE),0) -> 0 | AG98: =IFERROR(VLOOKUP(AE98,E93:G98,3,FALSE),0) -> 0 | AH98: =IFERROR(VLOOKUP(AE98,E102:G107,3,FALSE),0) -> 0 | AI98: 0 | AJ98: =IF(AI98>0,RANK(AI98,AI85:AI102)+COUNTIF(AI85:AI115,AI98)-1,"") -> 
U99: =INDEX(S84:S101, MATCH(0, COUNTIF(U84:U98, S84:S101),0)) ->  | V99: =IFERROR(VLOOKUP(U99,M84:O89,3,FALSE),0) -> 0 | W99: =IFERROR(VLOOKUP(U99,M93:O98,3,FALSE),0) -> 0 | X99: =IFERROR(VLOOKUP(U99,M102:O107,3,FALSE),0) -> 0 | Y99: 0 | Z99: =IF(Y99>0,RANK(Y99,Y85:Y102)+COUNTIF(Y85:Y116,Y99)-1,"") ->  | AE99: =INDEX(AC84:AC101, MATCH(0, COUNTIF(AE84:AE98, AC84:AC101),0)) ->  | AF99: =IFERROR(VLOOKUP(AE99,E84:G89,3,FALSE),0) -> 0 | AG99: =IFERROR(VLOOKUP(AE99,E93:G98,3,FALSE),0) -> 0 | AH99: =IFERROR(VLOOKUP(AE99,E102:G107,3,FALSE),0) -> 0 | AI99: 0 | AJ99: =IF(AI99>0,RANK(AI99,AI85:AI102)+COUNTIF(AI85:AI116,AI99)-1,"") -> 
C100: ='Set-Up'!$G$33 -> Battersea | K100: ='Set-Up'!$G$33 -> Battersea | U100: =INDEX(S84:S101, MATCH(0, COUNTIF(U84:U99, S84:S101),0)) ->  | V100: =IFERROR(VLOOKUP(U100,M84:O89,3,FALSE),0) -> 0 | W100: =IFERROR(VLOOKUP(U100,M93:O98,3,FALSE),0) -> 0 | X100: =IFERROR(VLOOKUP(U100,M102:O107,3,FALSE),0) -> 0 | Y100: 0 | Z100: =IF(Y100>0,RANK(Y100,Y85:Y102)+COUNTIF(Y85:Y117,Y100)-1,"") ->  | AE100: =INDEX(AC84:AC101, MATCH(0, COUNTIF(AE84:AE99, AC84:AC101),0)) ->  | AF100: =IFERROR(VLOOKUP(AE100,E84:G89,3,FALSE),0) -> 0 | AG100: =IFERROR(VLOOKUP(AE100,E93:G98,3,FALSE),0) -> 0 | AH100: =IFERROR(VLOOKUP(AE100,E102:G107,3,FALSE),0) -> 0 | AI100: 0 | AJ100: =IF(AI100>0,RANK(AI100,AI85:AI102)+COUNTIF(AI85:AI117,AI100)-1,"") -> 
C101: Pos | D101: No. | E101: Name | F101: College | G101: Points | K101: Pos | L101: No. | M101: Name | N101: College | O101: Points | U101: =INDEX(S84:S101, MATCH(0, COUNTIF(U84:U100, S84:S101),0)) ->  | V101: =IFERROR(VLOOKUP(U101,M84:O89,3,FALSE),0) -> 0 | W101: =IFERROR(VLOOKUP(U101,M93:O98,3,FALSE),0) -> 0 | X101: =IFERROR(VLOOKUP(U101,M102:O107,3,FALSE),0) -> 0 | Y101: 0 | Z101: =IF(Y101>0,RANK(Y101,Y85:Y102)+COUNTIF(Y85:Y118,Y101)-1,"") ->  | AE101: =INDEX(AC84:AC101, MATCH(0, COUNTIF(AE84:AE100, AC84:AC101),0)) ->  | AF101: =IFERROR(VLOOKUP(AE101,E84:G89,3,FALSE),0) -> 0 | AG101: =IFERROR(VLOOKUP(AE101,E93:G98,3,FALSE),0) -> 0 | AH101: =IFERROR(VLOOKUP(AE101,E102:G107,3,FALSE),0) -> 0 | AI101: 0 | AJ101: =IF(AI101>0,RANK(AI101,AI85:AI102)+COUNTIF(AI85:AI118,AI101)-1,"") -> 
C102: 1 | D102: =IFERROR(VLOOKUP(C102,'100'!$CH$8:$CI$120,2,FALSE),"") ->  | E102: =IFERROR(VLOOKUP(D102,'Entries Stage 3'!$A$3:$B$502,2,FALSE),"") ->  | F102: =IFERROR(VLOOKUP(D102,'Entries Stage 3'!$A$3:$C$502,3,FALSE),"") ->  | G102: 7 | K102: 1 | L102: =IFERROR(VLOOKUP(K102,'100'!CR62:CS173,2,FALSE),"") ->  | M102: =IFERROR(VLOOKUP(L102,'Entries Stage 3'!$A$3:$B$502,2,FALSE),"") ->  | N102: =IFERROR(VLOOKUP(L102,'Entries Stage 3'!$A$3:$C$502,3,FALSE),"") ->  | O102: 7 | U102: =INDEX(S84:S101, MATCH(0, COUNTIF(U84:U101, S84:S101),0)) ->  | V102: =IFERROR(VLOOKUP(U102,M84:O89,3,FALSE),0) -> 0 | W102: =IFERROR(VLOOKUP(U102,M93:O98,3,FALSE),0) -> 0 | X102: =IFERROR(VLOOKUP(U102,M102:O107,3,FALSE),0) -> 0 | Y102: 0 | Z102: =IF(Y102>0,RANK(Y102,Y85:Y102)+COUNTIF(Y85:Y119,Y102)-1,"") ->  | AE102: =INDEX(AC84:AC101, MATCH(0, COUNTIF(AE84:AE101, AC84:AC101),0)) ->  | AF102: =IFERROR(VLOOKUP(AE102,E84:G89,3,FALSE),0) -> 0 | AG102: =IFERROR(VLOOKUP(AE102,E93:G98,3,FALSE),0) -> 0 | AH102: =IFERROR(VLOOKUP(AE102,E102:G107,3,FALSE),0) -> 0 | AI102: 0 | AJ102: =IF(AI102>0,RANK(AI102,AI85:AI102)+COUNTIF(AI85:AI119,AI102)-1,"") -> 
C103: 2 | D103: =IFERROR(VLOOKUP(C103,'100'!$CH$8:$CI$120,2,FALSE),"") ->  | E103: =IFERROR(VLOOKUP(D103,'Entries Stage 3'!$A$3:$B$502,2,FALSE),"") ->  | F103: =IFERROR(VLOOKUP(D103,'Entries Stage 3'!$A$3:$C$502,3,FALSE),"") ->  | G103: 5 | K103: 2 | L103: =IFERROR(VLOOKUP(K103,'100'!CR63:CS174,2,FALSE),"") ->  | M103: =IFERROR(VLOOKUP(L103,'Entries Stage 3'!$A$3:$B$502,2,FALSE),"") ->  | N103: =IFERROR(VLOOKUP(L103,'Entries Stage 3'!$A$3:$C$502,3,FALSE),"") ->  | O103: 5
C104: 3 | D104: =IFERROR(VLOOKUP(C104,'100'!$CH$8:$CI$120,2,FALSE),"") ->  | E104: =IFERROR(VLOOKUP(D104,'Entries Stage 3'!$A$3:$B$502,2,FALSE),"") ->  | F104: =IFERROR(VLOOKUP(D104,'Entries Stage 3'!$A$3:$C$502,3,FALSE),"") ->  | G104: 4 | K104: 3 | L104: =IFERROR(VLOOKUP(K104,'100'!CR64:CS175,2,FALSE),"") ->  | M104: =IFERROR(VLOOKUP(L104,'Entries Stage 3'!$A$3:$B$502,2,FALSE),"") ->  | N104: =IFERROR(VLOOKUP(L104,'Entries Stage 3'!$A$3:$C$502,3,FALSE),"") ->  | O104: 4
C105: 4 | D105: =IFERROR(VLOOKUP(C105,'100'!$CH$8:$CI$120,2,FALSE),"") ->  | E105: =IFERROR(VLOOKUP(D105,'Entries Stage 3'!$A$3:$B$502,2,FALSE),"") ->  | F105: =IFERROR(VLOOKUP(D105,'Entries Stage 3'!$A$3:$C$502,3,FALSE),"") ->  | G105: 3 | K105: 4 | L105: =IFERROR(VLOOKUP(K105,'100'!CR65:CS176,2,FALSE),"") ->  | M105: =IFERROR(VLOOKUP(L105,'Entries Stage 3'!$A$3:$B$502,2,FALSE),"") ->  | N105: =IFERROR(VLOOKUP(L105,'Entries Stage 3'!$A$3:$C$502,3,FALSE),"") ->  | O105: 3
C106: 5 | D106: =IFERROR(VLOOKUP(C106,'100'!$CH$8:$CI$120,2,FALSE),"") ->  | E106: =IFERROR(VLOOKUP(D106,'Entries Stage 3'!$A$3:$B$502,2,FALSE),"") ->  | F106: =IFERROR(VLOOKUP(D106,'Entries Stage 3'!$A$3:$C$502,3,FALSE),"") ->  | G106: 2 | K106: 5 | L106: =IFERROR(VLOOKUP(K106,'100'!CR66:CS177,2,FALSE),"") ->  | M106: =IFERROR(VLOOKUP(L106,'Entries Stage 3'!$A$3:$B$502,2,FALSE),"") ->  | N106: =IFERROR(VLOOKUP(L106,'Entries Stage 3'!$A$3:$C$502,3,FALSE),"") ->  | O106: 2
C107: 6 | D107: =IFERROR(VLOOKUP(C107,'100'!$CH$8:$CI$120,2,FALSE),"") ->  | E107: =IFERROR(VLOOKUP(D107,'Entries Stage 3'!$A$3:$B$502,2,FALSE),"") ->  | F107: =IFERROR(VLOOKUP(D107,'Entries Stage 3'!$A$3:$C$502,3,FALSE),"") ->  | G107: 1 | K107: 6 | L107: =IFERROR(VLOOKUP(K107,'100'!CR67:CS178,2,FALSE),"") ->  | M107: =IFERROR(VLOOKUP(L107,'Entries Stage 3'!$A$3:$B$502,2,FALSE),"") ->  | N107: =IFERROR(VLOOKUP(L107,'Entries Stage 3'!$A$3:$C$502,3,FALSE),"") ->  | O107: 1
B110: 200m Men | J110: 200m Women
B112: Standings | J112: Standings
B113: Pos | C113: Name | D113: College | E113: =C135 -> St Mary's | F113: =C144 -> Newham | G113: =C153 -> Battersea | H113: Overall | J113: Pos | K113: Name | L113: College | M113: =K135 -> St Mary's | N113: =K144 -> Newham | O113: =K153 -> Battersea | P113: Overall
B114: 1 | C114: =IFERROR(VLOOKUP(B114,AJ138:AK155,2,FALSE),"") -> Tolu Ojora | D114: =IFERROR(VLOOKUP(C114,'All Series Entries'!$B$3:$C1707,2,FALSE), "") -> QMUL | E114: =IFERROR(VLOOKUP(B114,AD138:AI155,3,FALSE),"") -> 7 | F114: =IFERROR(VLOOKUP(B114,AD138:AI155,4,FALSE),"") -> 0 | G114: =IFERROR(VLOOKUP(B114,AD138:AI155,5,FALSE),"") -> 0 | H114: =IFERROR(VLOOKUP(B114,AD138:AI155,6,FALSE),"") -> 7 | J114: 1 | K114: =IFERROR(VLOOKUP(J114,Z138:AA155,2,FALSE),"") -> Sian Wyn Jones | L114: =IFERROR(VLOOKUP(K114,'All Series Entries'!$B$3:$C1707,2,FALSE), "") -> Brunel | M114: =IFERROR(VLOOKUP(J114,T138:Y155,3,FALSE),"") -> 7 | N114: =IFERROR(VLOOKUP(J114,T138:Y155,4,FALSE),"") -> 0 | O114: =IFERROR(VLOOKUP(J114,T138:Y155,5,FALSE),"") -> 0 | P114: =IFERROR(VLOOKUP(J114,T138:Y155,6,FALSE),"") -> 7
B115: 2 | C115: =IFERROR(VLOOKUP(B115,AJ138:AK155,2,FALSE),"") -> Harry Browning | D115: =IFERROR(VLOOKUP(C115,'All Series Entries'!$B$3:$C1708,2,FALSE), "") -> King's | E115: =IFERROR(VLOOKUP(B115,AD138:AI155,3,FALSE),"") -> 5 | F115: =IFERROR(VLOOKUP(B115,AD138:AI155,4,FALSE),"") -> 0 | G115: =IFERROR(VLOOKUP(B115,AD138:AI155,5,FALSE),"") -> 0 | H115: =IFERROR(VLOOKUP(B115,AD138:AI155,6,FALSE),"") -> 5 | J115: 2 | K115: =IFERROR(VLOOKUP(J115,Z138:AA155,2,FALSE),"") -> Berenice van Moere | L115: =IFERROR(VLOOKUP(K115,'All Series Entries'!$B$3:$C1708,2,FALSE), "") -> King's | M115: =IFERROR(VLOOKUP(J115,T138:Y155,3,FALSE),"") -> 5 | N115: =IFERROR(VLOOKUP(J115,T139:Y156,4,FALSE),"") -> 0 | O115: =IFERROR(VLOOKUP(J115,T139:Y156,5,FALSE),"") -> 0 | P115: =IFERROR(VLOOKUP(J115,T139:Y156,6,FALSE),"") -> 5
B116: 3 | C116: =IFERROR(VLOOKUP(B116,AJ138:AK155,2,FALSE),"") -> Paul Singleton | D116: =IFERROR(VLOOKUP(C116,'All Series Entries'!$B$3:$C1709,2,FALSE), "") -> Essex | E116: =IFERROR(VLOOKUP(B116,AD138:AI155,3,FALSE),"") -> 4 | F116: =IFERROR(VLOOKUP(B116,AD138:AI155,4,FALSE),"") -> 0 | G116: =IFERROR(VLOOKUP(B116,AD138:AI155,5,FALSE),"") -> 0 | H116: =IFERROR(VLOOKUP(B116,AD138:AI155,6,FALSE),"") -> 4 | J116: 3 | K116: =IFERROR(VLOOKUP(J116,Z138:AA155,2,FALSE),"") -> Chloe Hocking | L116: =IFERROR(VLOOKUP(K116,'All Series Entries'!$B$3:$C1709,2,FALSE), "") -> King's | M116: =IFERROR(VLOOKUP(J116,T138:Y155,3,FALSE),"") -> 4 | N116: 0 | O116: 0 | P116: 4
B117: 4 | C117: =IFERROR(VLOOKUP(B117,AJ138:AK155,2,FALSE),"") -> Rahmiah Ellington | D117: =IFERROR(VLOOKUP(C117,'All Series Entries'!$B$3:$C1710,2,FALSE), "") -> Essex | E117: =IFERROR(VLOOKUP(B117,AD138:AI155,3,FALSE),"") -> 3 | F117: =IFERROR(VLOOKUP(B117,AD138:AI155,4,FALSE),"") -> 0 | G117: =IFERROR(VLOOKUP(B117,AD138:AI155,5,FALSE),"") -> 0 | H117: =IFERROR(VLOOKUP(B117,AD138:AI155,6,FALSE),"") -> 3 | J117: 4 | K117: =IFERROR(VLOOKUP(J117,Z138:AA155,2,FALSE),"") -> Toyin Olufemi | L117: =IFERROR(VLOOKUP(K117,'All Series Entries'!$B$3:$C1710,2,FALSE), "") -> Essex | M117: =IFERROR(VLOOKUP(J117,T138:Y155,3,FALSE),"") -> 3 | N117: 0 | O117: 0 | P117: 3
B118: 5 | C118: =IFERROR(VLOOKUP(B118,AJ138:AK155,2,FALSE),"") -> Tom Sanders | D118: =IFERROR(VLOOKUP(C118,'All Series Entries'!$B$3:$C1711,2,FALSE), "") -> RHUL | E118: =IFERROR(VLOOKUP(B118,AD138:AI155,3,FALSE),"") -> 2 | F118: =IFERROR(VLOOKUP(B118,AD138:AI155,4,FALSE),"") -> 0 | G118: =IFERROR(VLOOKUP(B118,AD138:AI155,5,FALSE),"") -> 0 | H118: =IFERROR(VLOOKUP(B118,AD138:AI155,6,FALSE),"") -> 2 | J118: 5 | K118: =IFERROR(VLOOKUP(J118,Z138:AA155,2,FALSE),"") -> Amy Mat | L118: =IFERROR(VLOOKUP(K118,'All Series Entries'!$B$3:$C1711,2,FALSE), "") -> King's | M118: =IFERROR(VLOOKUP(J118,T138:Y155,3,FALSE),"") -> 2 | N118: 0 | O118: 0 | P118: 2
B119: 6 | C119: =IFERROR(VLOOKUP(B119,AJ138:AK155,2,FALSE),"") -> Dan Richards | D119: =IFERROR(VLOOKUP(C119,'All Series Entries'!$B$3:$C1712,2,FALSE), "") -> King's | E119: =IFERROR(VLOOKUP(B119,AD138:AI155,3,FALSE),"") -> 1 | F119: =IFERROR(VLOOKUP(B119,AD138:AI155,4,FALSE),"") -> 0 | G119: =IFERROR(VLOOKUP(B119,AD138:AI155,5,FALSE),"") -> 0 | H119: =IFERROR(VLOOKUP(B119,AD138:AI155,6,FALSE),"") -> 1 | J119: 6 | K119: =IFERROR(VLOOKUP(J119,Z138:AA155,2,FALSE),"") -> Leilani Stacy | L119: =IFERROR(VLOOKUP(K119,'All Series Entries'!$B$3:$C1712,2,FALSE), "") -> LSE | M119: =IFERROR(VLOOKUP(J119,T138:Y155,3,FALSE),"") -> 1 | N119: 0 | O119: 0 | P119: 1
B120: 7 | C120: =IFERROR(VLOOKUP(B120,AJ138:AK155,2,FALSE),"") ->  | D120: =IFERROR(VLOOKUP(C120,'All Series Entries'!$B$3:$C1713,2,FALSE), "") ->  | E120: =IFERROR(VLOOKUP(B120,AD138:AI155,3,FALSE),"") ->  | F120: =IFERROR(VLOOKUP(B120,AD138:AI155,4,FALSE),"") ->  | G120: =IFERROR(VLOOKUP(B120,AD138:AI155,5,FALSE),"") ->  | H120: =IFERROR(VLOOKUP(B120,AD138:AI155,6,FALSE),"") ->  | J120: 7 | K120: =IFERROR(VLOOKUP(J120,Z138:AA155,2,FALSE),"") ->  | L120: =IFERROR(VLOOKUP(K120,'All Series Entries'!$B$3:$C1713,2,FALSE), "") ->  | M120: =IFERROR(VLOOKUP(J120,T138:Y155,3,FALSE),"") -> 
B121: 8 | C121: =IFERROR(VLOOKUP(B121,AJ138:AK155,2,FALSE),"") ->  | D121: =IFERROR(VLOOKUP(C121,'All Series Entries'!$B$3:$C1714,2,FALSE), "") ->  | E121: =IFERROR(VLOOKUP(B121,AD138:AI155,3,FALSE),"") ->  | F121: =IFERROR(VLOOKUP(B121,AD138:AI155,4,FALSE),"") ->  | G121: =IFERROR(VLOOKUP(B121,AD138:AI155,5,FALSE),"") ->  | H121: =IFERROR(VLOOKUP(B121,AD138:AI155,6,FALSE),"") ->  | J121: 8 | K121: =IFERROR(VLOOKUP(J121,Z138:AA155,2,FALSE),"") ->  | L121: =IFERROR(VLOOKUP(K121,'All Series Entries'!$B$3:$C1714,2,FALSE), "") ->  | M121: =IFERROR(VLOOKUP(J121,T138:Y155,3,FALSE),"") -> 
B122: 9 | C122: =IFERROR(VLOOKUP(B122,AJ138:AK155,2,FALSE),"") ->  | D122: =IFERROR(VLOOKUP(C122,'All Series Entries'!$B$3:$C1715,2,FALSE), "") ->  | E122: =IFERROR(VLOOKUP(B122,AD138:AI155,3,FALSE),"") ->  | F122: =IFERROR(VLOOKUP(B122,AD138:AI155,4,FALSE),"") ->  | G122: =IFERROR(VLOOKUP(B122,AD138:AI155,5,FALSE),"") ->  | H122: =IFERROR(VLOOKUP(B122,AD138:AI155,6,FALSE),"") ->  | J122: 9 | K122: =IFERROR(VLOOKUP(J122,Z138:AA155,2,FALSE),"") ->  | L122: =IFERROR(VLOOKUP(K122,'All Series Entries'!$B$3:$C1715,2,FALSE), "") ->  | M122: =IFERROR(VLOOKUP(J122,T138:Y155,3,FALSE),"") -> 
B123: 10 | C123: =IFERROR(VLOOKUP(B123,AJ138:AK155,2,FALSE),"") ->  | D123: =IFERROR(VLOOKUP(C123,'All Series Entries'!$B$3:$C1716,2,FALSE), "") ->  | E123: =IFERROR(VLOOKUP(B123,AD138:AI155,3,FALSE),"") ->  | F123: =IFERROR(VLOOKUP(B123,AD138:AI155,4,FALSE),"") ->  | G123: =IFERROR(VLOOKUP(B123,AD138:AI155,5,FALSE),"") ->  | H123: =IFERROR(VLOOKUP(B123,AD138:AI155,6,FALSE),"") ->  | J123: 10 | K123: =IFERROR(VLOOKUP(J123,Z138:AA155,2,FALSE),"") ->  | L123: =IFERROR(VLOOKUP(K123,'All Series Entries'!$B$3:$C1716,2,FALSE), "") ->  | M123: =IFERROR(VLOOKUP(J123,T138:Y155,3,FALSE),"") -> 
B124: 11 | C124: =IFERROR(VLOOKUP(B124,AJ138:AK155,2,FALSE),"") ->  | D124: =IFERROR(VLOOKUP(C124,'All Series Entries'!$B$3:$C1717,2,FALSE), "") ->  | E124: =IFERROR(VLOOKUP(B124,AD138:AI155,3,FALSE),"") ->  | F124: =IFERROR(VLOOKUP(B124,AD138:AI155,4,FALSE),"") ->  | G124: =IFERROR(VLOOKUP(B124,AD138:AI155,5,FALSE),"") ->  | H124: =IFERROR(VLOOKUP(B124,AD138:AI155,6,FALSE),"") ->  | J124: 11 | K124: =IFERROR(VLOOKUP(J124,Z138:AA155,2,FALSE),"") ->  | L124: =IFERROR(VLOOKUP(K124,'All Series Entries'!$B$3:$C1717,2,FALSE), "") ->  | M124: =IFERROR(VLOOKUP(J124,T138:Y155,3,FALSE),"") -> 
B125: 12 | C125: =IFERROR(VLOOKUP(B125,AJ138:AK155,2,FALSE),"") ->  | D125: =IFERROR(VLOOKUP(C125,'All Series Entries'!$B$3:$C1718,2,FALSE), "") ->  | E125: =IFERROR(VLOOKUP(B125,AD138:AI155,3,FALSE),"") ->  | F125: =IFERROR(VLOOKUP(B125,AD138:AI155,4,FALSE),"") ->  | G125: =IFERROR(VLOOKUP(B125,AD138:AI155,5,FALSE),"") ->  | H125: =IFERROR(VLOOKUP(B125,AD138:AI155,6,FALSE),"") ->  | J125: 12 | K125: =IFERROR(VLOOKUP(J125,Z138:AA155,2,FALSE),"") ->  | L125: =IFERROR(VLOOKUP(K125,'All Series Entries'!$B$3:$C1718,2,FALSE), "") ->  | M125: =IFERROR(VLOOKUP(J125,T138:Y155,3,FALSE),"") -> 
... 144 more rows

Sheet All Series Entries
A1: Number | B1: Name | C1: College | D1: Gender | E1: Event 1 | F1: Expected Result | G1: Event 2 | H1: Expected Result | I1: Event 3 | J1: Expected Result | K1: Event 4 | L1: Expected Result | M1: Event 5 | N1: Expected Result | O1: Event 6 | P1: Expected Result
E2: 60-400 write as nn.nn 800+ write as mm:ss:ff Field events write as nn.nn
A3: 1 | B3: ='Entries Stage 1'!B3 -> Sian Wyn Jones | C3: ='Entries Stage 1'!C3 -> Brunel | D3: ='Entries Stage 1'!D3 -> F
A4: 2 | B4: ='Entries Stage 1'!B4 -> Shannon Kennedy | C4: ='Entries Stage 1'!C4 -> Brunel | D4: ='Entries Stage 1'!D4 -> F
A5: 3 | B5: ='Entries Stage 1'!B5 -> Ainsley James Lazar | C5: ='Entries Stage 1'!C5 -> Brunel | D5: ='Entries Stage 1'!D5 -> M
A6: 4 | B6: ='Entries Stage 1'!B6 -> Alex Williams-Baffoe | C6: ='Entries Stage 1'!C6 -> Brunel | D6: ='Entries Stage 1'!D6 -> M
A7: 5 | B7: ='Entries Stage 1'!B7 -> George Loveday | C7: ='Entries Stage 1'!C7 -> Brunel | D7: ='Entries Stage 1'!D7 -> M
A8: 6 | B8: ='Entries Stage 1'!B8 -> Jacob McAdam | C8: ='Entries Stage 1'!C8 -> Brunel | D8: ='Entries Stage 1'!D8 -> M
A9: 7 | B9: ='Entries Stage 1'!B9 -> Danae Jeanclos | C9: ='Entries Stage 1'!C9 -> Essex | D9: ='Entries Stage 1'!D9 -> F
A10: 8 | B10: ='Entries Stage 1'!B10 -> Filipa Mcqueen | C10: ='Entries Stage 1'!C10 -> Essex | D10: ='Entries Stage 1'!D10 -> F
A11: 9 | B11: ='Entries Stage 1'!B11 -> Toyin Olufemi | C11: ='Entries Stage 1'!C11 -> Essex | D11: ='Entries Stage 1'!D11 -> F
A12: 10 | B12: ='Entries Stage 1'!B12 -> Vanessa Fitchett | C12: ='Entries Stage 1'!C12 -> Essex | D12: ='Entries Stage 1'!D12 -> F
A13: 11 | B13: ='Entries Stage 1'!B13 -> Benjamin Abbott | C13: ='Entries Stage 1'!C13 -> Essex | D13: ='Entries Stage 1'!D13 -> M
A14: 12 | B14: ='Entries Stage 1'!B14 -> Cathal Holloway | C14: ='Entries Stage 1'!C14 -> Essex | D14: ='Entries Stage 1'!D14 -> M
A15: 13 | B15: ='Entries Stage 1'!B15 -> Christopher Moore | C15: ='Entries Stage 1'!C15 -> Essex | D15: ='Entries Stage 1'!D15 -> M
A16: 14 | B16: ='Entries Stage 1'!B16 -> Christopher Morton | C16: ='Entries Stage 1'!C16 -> Essex | D16: ='Entries Stage 1'!D16 -> M
A17: 15 | B17: ='Entries Stage 1'!B17 -> Connor Oliver | C17: ='Entries Stage 1'!C17 -> Essex | D17: ='Entries Stage 1'!D17 -> M
A18: 16 | B18: ='Entries Stage 1'!B18 -> Daniel Nwonu | C18: ='Entries Stage 1'!C18 -> Essex | D18: ='Entries Stage 1'!D18 -> M
A19: 17 | B19: ='Entries Stage 1'!B19 -> Hiromichi Otake | C19: ='Entries Stage 1'!C19 -> Essex | D19: ='Entries Stage 1'!D19 -> M
A20: 18 | B20: ='Entries Stage 1'!B20 -> Karl Johnston | C20: ='Entries Stage 1'!C20 -> Essex | D20: ='Entries Stage 1'!D20 -> M
A21: 19 | B21: ='Entries Stage 1'!B21 -> Kojo Sakyi-Prah | C21: ='Entries Stage 1'!C21 -> Essex | D21: ='Entries Stage 1'!D21 -> M
A22: 20 | B22: ='Entries Stage 1'!B22 -> Paul Singleton | C22: ='Entries Stage 1'!C22 -> Essex | D22: ='Entries Stage 1'!D22 -> M
A23: 21 | B23: ='Entries Stage 1'!B23 -> Rahmiah Ellington | C23: ='Entries Stage 1'!C23 -> Essex | D23: ='Entries Stage 1'!D23 -> M
A24: 22 | B24: ='Entries Stage 1'!B24 -> Gemma Hillier-Moses | C24: ='Entries Stage 1'!C24 -> Guests | D24: ='Entries Stage 1'!D24 -> F
A25: 23 | B25: ='Entries Stage 1'!B25 -> Hollie Fudge | C25: ='Entries Stage 1'!C25 -> Guests | D25: ='Entries Stage 1'!D25 -> F
A26: 24 | B26: ='Entries Stage 1'!B26 -> Alex Lepetre | C26: ='Entries Stage 1'!C26 -> Guests | D26: ='Entries Stage 1'!D26 -> M
A27: 25 | B27: ='Entries Stage 1'!B27 -> Josh Trigwell | C27: ='Entries Stage 1'!C27 -> Guests | D27: ='Entries Stage 1'!D27 -> M
A28: 26 | B28: ='Entries Stage 1'!B28 -> Michael McBrinn | C28: ='Entries Stage 1'!C28 -> Guests | D28: ='Entries Stage 1'!D28 -> M
A29: 27 | B29: ='Entries Stage 1'!B29 -> Richard Bell | C29: ='Entries Stage 1'!C29 -> Guests | D29: ='Entries Stage 1'!D29 -> M
A30: 28 | B30: ='Entries Stage 1'!B30 -> Rowan Axe | C30: ='Entries Stage 1'!C30 -> Guests | D30: ='Entries Stage 1'!D30 -> M
A31: 29 | B31: ='Entries Stage 1'!B31 -> Sam Harry | C31: ='Entries Stage 1'!C31 -> Guests | D31: ='Entries Stage 1'!D31 -> M
A32: 30 | B32: ='Entries Stage 1'!B32 -> Alex Mundell | C32: ='Entries Stage 1'!C32 -> Imperial | D32: ='Entries Stage 1'!D32 -> F
A33: 31 | B33: ='Entries Stage 1'!B33 -> Jessica Prior | C33: ='Entries Stage 1'!C33 -> Imperial | D33: ='Entries Stage 1'!D33 -> F
A34: 32 | B34: ='Entries Stage 1'!B34 -> Katie Olding | C34: ='Entries Stage 1'!C34 -> Imperial | D34: ='Entries Stage 1'!D34 -> F
A35: 33 | B35: ='Entries Stage 1'!B35 -> Liv Papaioannou | C35: ='Entries Stage 1'!C35 -> Imperial | D35: ='Entries Stage 1'!D35 -> F
A36: 34 | B36: ='Entries Stage 1'!B36 -> Sarah Johnson | C36: ='Entries Stage 1'!C36 -> Imperial | D36: ='Entries Stage 1'!D36 -> F
A37: 35 | B37: ='Entries Stage 1'!B37 -> Callum Matthews | C37: ='Entries Stage 1'!C37 -> Imperial | D37: ='Entries Stage 1'!D37 -> M
A38: 36 | B38: ='Entries Stage 1'!B38 -> Christopher Allison | C38: ='Entries Stage 1'!C38 -> Imperial | D38: ='Entries Stage 1'!D38 -> M
A39: 37 | B39: ='Entries Stage 1'!B39 -> Daniel Garcia Rasines | C39: ='Entries Stage 1'!C39 -> Imperial | D39: ='Entries Stage 1'!D39 -> M
A40: 38 | B40: ='Entries Stage 1'!B40 -> David Weng Wei Fong | C40: ='Entries Stage 1'!C40 -> Imperial | D40: ='Entries Stage 1'!D40 -> M
A41: 39 | B41: ='Entries Stage 1'!B41 -> Duncan Ingram | C41: ='Entries Stage 1'!C41 -> Imperial | D41: ='Entries Stage 1'!D41 -> M
A42: 40 | B42: ='Entries Stage 1'!B42 -> Harry Scriven | C42: ='Entries Stage 1'!C42 -> Imperial | D42: ='Entries Stage 1'!D42 -> M
A43: 41 | B43: ='Entries Stage 1'!B43 -> Mahmoud Barrie | C43: ='Entries Stage 1'!C43 -> Imperial | D43: ='Entries Stage 1'!D43 -> M
A44: 42 | B44: ='Entries Stage 1'!B44 -> Max Thorp | C44: ='Entries Stage 1'!C44 -> Imperial | D44: ='Entries Stage 1'!D44 -> M
A45: 43 | B45: ='Entries Stage 1'!B45 -> Munos Heinen Luis | C45: ='Entries Stage 1'!C45 -> Imperial | D45: ='Entries Stage 1'!D45 -> M
A46: 44 | B46: ='Entries Stage 1'!B46 -> Raul Rinken | C46: ='Entries Stage 1'!C46 -> Imperial | D46: ='Entries Stage 1'!D46 -> M
A47: 45 | B47: ='Entries Stage 1'!B47 -> Victor Yu | C47: ='Entries Stage 1'!C47 -> Imperial | D47: ='Entries Stage 1'!D47 -> M
A48: 46 | B48: ='Entries Stage 1'!B48 -> Amy Mat | C48: ='Entries Stage 1'!C48 -> King's | D48: ='Entries Stage 1'!D48 -> F
A49: 47 | B49: ='Entries Stage 1'!B49 -> Berenice van Moere | C49: ='Entries Stage 1'!C49 -> King's | D49: ='Entries Stage 1'!D49 -> F
A50: 48 | B50: ='Entries Stage 1'!B50 -> Calvi Thompson | C50: ='Entries Stage 1'!C50 -> King's | D50: ='Entries Stage 1'!D50 -> F
A51: 49 | B51: ='Entries Stage 1'!B51 -> Chloe Hocking | C51: ='Entries Stage 1'!C51 -> King's | D51: ='Entries Stage 1'!D51 -> F
A52: 50 | B52: ='Entries Stage 1'!B52 -> Debbie Chown | C52: ='Entries Stage 1'!C52 -> King's | D52: ='Entries Stage 1'!D52 -> F
A53: 51 | B53: ='Entries Stage 1'!B53 -> Freddie Neal | C53: ='Entries Stage 1'!C53 -> King's | D53: ='Entries Stage 1'!D53 -> F
A54: 52 | B54: ='Entries Stage 1'!B54 -> Freddie Neal | C54: ='Entries Stage 1'!C54 -> King's | D54: ='Entries Stage 1'!D54 -> F
A55: 53 | B55: ='Entries Stage 1'!B55 -> Jasmeet Kaur | C55: ='Entries Stage 1'!C55 -> King's | D55: ='Entries Stage 1'!D55 -> F
A56: 54 | B56: ='Entries Stage 1'!B56 -> Kirsty Benham | C56: ='Entries Stage 1'!C56 -> King's | D56: ='Entries Stage 1'!D56 -> F
A57: 55 | B57: ='Entries Stage 1'!B57 -> Louise Pech | C57: ='Entries Stage 1'!C57 -> King's | D57: ='Entries Stage 1'!D57 -> F
A58: 56 | B58: ='Entries Stage 1'!B58 -> Ruth Verhoeff | C58: ='Entries Stage 1'!C58 -> King's | D58: ='Entries Stage 1'!D58 -> F
A59: 57 | B59: ='Entries Stage 1'!B59 -> Sacha Noor Aymond | C59: ='Entries Stage 1'!C59 -> King's | D59: ='Entries Stage 1'!D59 -> F
A60: 58 | B60: ='Entries Stage 1'!B60 -> Alex Russo | C60: ='Entries Stage 1'!C60 -> King's | D60: ='Entries Stage 1'!D60 -> M
A61: 59 | B61: ='Entries Stage 1'!B61 -> Borjan Venovski | C61: ='Entries Stage 1'!C61 -> King's | D61: ='Entries Stage 1'!D61 -> M
A62: 60 | B62: ='Entries Stage 1'!B62 -> Dan Richards | C62: ='Entries Stage 1'!C62 -> King's | D62: ='Entries Stage 1'!D62 -> M
A63: 61 | B63: ='Entries Stage 1'!B63 -> Dan Tang | C63: ='Entries Stage 1'!C63 -> King's | D63: ='Entries Stage 1'!D63 -> M
A64: 62 | B64: ='Entries Stage 1'!B64 -> Dougie Morgan | C64: ='Entries Stage 1'!C64 -> King's | D64: ='Entries Stage 1'!D64 -> M
A65: 63 | B65: ='Entries Stage 1'!B65 -> Harry Browning | C65: ='Entries Stage 1'!C65 -> King's | D65: ='Entries Stage 1'!D65 -> M
A66: 64 | B66: ='Entries Stage 1'!B66 -> Henry DiStasio | C66: ='Entries Stage 1'!C66 -> King's | D66: ='Entries Stage 1'!D66 -> M
A67: 65 | B67: ='Entries Stage 1'!B67 -> Iyaz Butt | C67: ='Entries Stage 1'!C67 -> King's | D67: ='Entries Stage 1'!D67 -> M
A68: 66 | B68: ='Entries Stage 1'!B68 -> James Findon | C68: ='Entries Stage 1'!C68 -> King's | D68: ='Entries Stage 1'!D68 -> M
A69: 67 | B69: ='Entries Stage 1'!B69 -> Jonathan Burton | C69: ='Entries Stage 1'!C69 -> King's | D69: ='Entries Stage 1'!D69 -> M
A70: 68 | B70: ='Entries Stage 1'!B70 -> Joseph Shaw | C70: ='Entries Stage 1'!C70 -> King's | D70: ='Entries Stage 1'!D70 -> M
A71: 69 | B71: ='Entries Stage 1'!B71 -> Kishore Kanna Ravi | C71: ='Entries Stage 1'!C71 -> King's | D71: ='Entries Stage 1'!D71 -> M
A72: 70 | B72: ='Entries Stage 1'!B72 -> Kulwinder Singh | C72: ='Entries Stage 1'!C72 -> King's | D72: ='Entries Stage 1'!D72 -> M
A73: 71 | B73: ='Entries Stage 1'!B73 -> Kuran Kumar Pathak | C73: ='Entries Stage 1'!C73 -> King's | D73: ='Entries Stage 1'!D73 -> M
A74: 72 | B74: ='Entries Stage 1'!B74 -> Lionel Kashila | C74: ='Entries Stage 1'!C74 -> King's | D74: ='Entries Stage 1'!D74 -> M
A75: 73 | B75: ='Entries Stage 1'!B75 -> Mattia Pinto | C75: ='Entries Stage 1'!C75 -> King's | D75: ='Entries Stage 1'!D75 -> M
A76: 74 | B76: ='Entries Stage 1'!B76 -> Mohamed S. Fdal | C76: ='Entries Stage 1'!C76 -> King's | D76: ='Entries Stage 1'!D76 -> M
A77: 75 | B77: ='Entries Stage 1'!B77 -> Randall Thomas Prentice | C77: ='Entries Stage 1'!C77 -> King's | D77: ='Entries Stage 1'!D77 -> M
A78: 76 | B78: ='Entries Stage 1'!B78 -> Rayan Tabet-Aoul | C78: ='Entries Stage 1'!C78 -> King's | D78: ='Entries Stage 1'!D78 -> M
A79: 77 | B79: ='Entries Stage 1'!B79 -> Temitope Fisayo | C79: ='Entries Stage 1'!C79 -> King's | D79: ='Entries Stage 1'!D79 -> M
A80: 78 | B80: ='Entries Stage 1'!B80 -> Thomas Boutelle | C80: ='Entries Stage 1'!C80 -> King's | D80: ='Entries Stage 1'!D80 -> M
A81: 79 | B81: ='Entries Stage 1'!B81 -> Thomas Cavailhes | C81: ='Entries Stage 1'!C81 -> King's | D81: ='Entries Stage 1'!D81 -> M
A82: 80 | B82: ='Entries Stage 1'!B82 -> Anna Barnreuther | C82: ='Entries Stage 1'!C82 -> LSE | D82: ='Entries Stage 1'!D82 -> F
A83: 81 | B83: ='Entries Stage 1'!B83 -> Leilani Stacy | C83: ='Entries Stage 1'!C83 -> LSE | D83: ='Entries Stage 1'!D83 -> F
A84: 82 | B84: ='Entries Stage 1'!B84 -> Yasmin Lakin | C84: ='Entries Stage 1'!C84 -> LSE | D84: ='Entries Stage 1'!D84 -> F
A85: 83 | B85: ='Entries Stage 1'!B85 -> Akanni Ade | C85: ='Entries Stage 1'!C85 -> LSE | D85: ='Entries Stage 1'!D85 -> M
A86: 84 | B86: ='Entries Stage 1'!B86 -> Amrik Gill | C86: ='Entries Stage 1'!C86 -> LSE | D86: ='Entries Stage 1'!D86 -> M
A87: 85 | B87: ='Entries Stage 1'!B87 -> Antonin Boissin | C87: ='Entries Stage 1'!C87 -> LSE | D87: ='Entries Stage 1'!D87 -> M
A88: 86 | B88: ='Entries Stage 1'!B88 -> Aymeric Faure | C88: ='Entries Stage 1'!C88 -> LSE | D88: ='Entries Stage 1'!D88 -> M
A89: 87 | B89: ='Entries Stage 1'!B89 -> Ben Thomas | C89: ='Entries Stage 1'!C89 -> LSE | D89: ='Entries Stage 1'!D89 -> M
A90: 88 | B90: ='Entries Stage 1'!B90 -> Davide De Santis | C90: ='Entries Stage 1'!C90 -> LSE | D90: ='Entries Stage 1'!D90 -> M
A91: 89 | B91: ='Entries Stage 1'!B91 -> George Bettsworth | C91: ='Entries Stage 1'!C91 -> LSE | D91: ='Entries Stage 1'!D91 -> M
A92: 90 | B92: ='Entries Stage 1'!B92 -> Hamish Mundell | C92: ='Entries Stage 1'!C92 -> LSE | D92: ='Entries Stage 1'!D92 -> M
A93: 91 | B93: ='Entries Stage 1'!B93 -> Michael McGagh | C93: ='Entries Stage 1'!C93 -> LSE | D93: ='Entries Stage 1'!D93 -> M
A94: 92 | B94: ='Entries Stage 1'!B94 -> Miles Kershaw | C94: ='Entries Stage 1'!C94 -> Guests | D94: ='Entries Stage 1'!D94 -> M
A95: 93 | B95: ='Entries Stage 1'!B95 -> Charles Waters | C95: ='Entries Stage 1'!C95 -> Guests | D95: ='Entries Stage 1'!D95 -> M
A96: 94 | B96: ='Entries Stage 1'!B96 -> Miles Kershaw | C96: ='Entries Stage 1'!C96 -> Guests | D96: ='Entries Stage 1'!D96 -> M
A97: 95 | B97: ='Entries Stage 1'!B97 -> Clyde Anucha | C97: ='Entries Stage 1'!C97 -> QMUL | D97: ='Entries Stage 1'!D97 -> M
A98: 96 | B98: ='Entries Stage 1'!B98 -> Harry Cole | C98: ='Entries Stage 1'!C98 -> QMUL | D98: ='Entries Stage 1'!D98 -> M
A99: 97 | B99: ='Entries Stage 1'!B99 -> Matthew Jones | C99: ='Entries Stage 1'!C99 -> QMUL | D99: ='Entries Stage 1'!D99 -> M
A100: 98 | B100: ='Entries Stage 1'!B100 -> Mopati Ramotsetsi | C100: ='Entries Stage 1'!C100 -> QMUL | D100: ='Entries Stage 1'!D100 -> M
A101: 99 | B101: ='Entries Stage 1'!B101 -> Richard Sun | C101: ='Entries Stage 1'!C101 -> QMUL | D101: ='Entries Stage 1'!D101 -> M
A102: 100 | B102: ='Entries Stage 1'!B102 -> Tolu Ojora | C102: ='Entries Stage 1'!C102 -> QMUL | D102: ='Entries Stage 1'!D102 -> M
A103: 101 | B103: ='Entries Stage 1'!B103 -> Chloe Dearman | C103: ='Entries Stage 1'!C103 -> Reading | D103: ='Entries Stage 1'!D103 -> F
A104: 102 | B104: ='Entries Stage 1'!B104 -> Hannah Freeman | C104: ='Entries Stage 1'!C104 -> RHUL | D104: ='Entries Stage 1'!D104 -> F
A105: 103 | B105: ='Entries Stage 1'!B105 -> Hannah Parrott | C105: ='Entries Stage 1'!C105 -> RHUL | D105: ='Entries Stage 1'!D105 -> F
A106: 104 | B106: ='Entries Stage 1'!B106 -> Jade Anderson-Busby | C106: ='Entries Stage 1'!C106 -> RHUL | D106: ='Entries Stage 1'!D106 -> F
A107: 105 | B107: ='Entries Stage 1'!B107 -> Keelin Scholes | C107: ='Entries Stage 1'!C107 -> RHUL | D107: ='Entries Stage 1'!D107 -> F
A108: 106 | B108: ='Entries Stage 1'!B108 -> Lucy Hemmings | C108: ='Entries Stage 1'!C108 -> RHUL | D108: ='Entries Stage 1'!D108 -> F
A109: 107 | B109: ='Entries Stage 1'!B109 -> Valentina Rojas | C109: ='Entries Stage 1'!C109 -> RHUL | D109: ='Entries Stage 1'!D109 -> F
A110: 108 | B110: ='Entries Stage 1'!B110 -> Aiden Poles | C110: ='Entries Stage 1'!C110 -> RHUL | D110: ='Entries Stage 1'!D110 -> M
A111: 109 | B111: ='Entries Stage 1'!B111 -> Simon Williams | C111: ='Entries Stage 1'!C111 -> RHUL | D111: ='Entries Stage 1'!D111 -> M
A112: 110 | B112: ='Entries Stage 1'!B112 -> Tom Sanders | C112: ='Entries Stage 1'!C112 -> RHUL | D112: ='Entries Stage 1'!D112 -> M
A113: 111 | B113: ='Entries Stage 1'!B113 -> Jack Dickenson | C113: ='Entries Stage 1'!C113 -> STG | D113: ='Entries Stage 1'!D113 -> M
A114: 112 | B114: ='Entries Stage 1'!B114 -> Anna Weston | C114: ='Entries Stage 1'!C114 -> SMU | D114: ='Entries Stage 1'!D114 -> F
A115: 113 | B115: ='Entries Stage 1'!B115 -> Emily Hosker-Thornhill | C115: ='Entries Stage 1'!C115 -> SMU | D115: ='Entries Stage 1'!D115 -> F
A116: 114 | B116: ='Entries Stage 1'!B116 -> Emily Moyes | C116: ='Entries Stage 1'!C116 -> SMU | D116: ='Entries Stage 1'!D116 -> F
A117: 115 | B117: ='Entries Stage 1'!B117 -> Katie Austin | C117: ='Entries Stage 1'!C117 -> SMU | D117: ='Entries Stage 1'!D117 -> F
A118: 116 | B118: ='Entries Stage 1'!B118 -> Kirsty Bateman-Foley | C118: ='Entries Stage 1'!C118 -> SMU | D118: ='Entries Stage 1'!D118 -> F
A119: 117 | B119: ='Entries Stage 1'!B119 -> Lilly Coward | C119: ='Entries Stage 1'!C119 -> SMU | D119: ='Entries Stage 1'!D119 -> F
A120: 118 | B120: ='Entries Stage 1'!B120 -> Melanie Wood | C120: ='Entries Stage 1'!C120 -> SMU | D120: ='Entries Stage 1'!D120 -> F
A121: 119 | B121: ='Entries Stage 1'!B121 -> Rebecca Howard | C121: ='Entries Stage 1'!C121 -> SMU | D121: ='Entries Stage 1'!D121 -> F
A122: 120 | B122: ='Entries Stage 1'!B122 -> Shannon Anderson | C122: ='Entries Stage 1'!C122 -> SMU | D122: ='Entries Stage 1'!D122 -> F
A123: 121 | B123: ='Entries Stage 1'!B123 -> Sophie Riches | C123: ='Entries Stage 1'!C123 -> SMU | D123: ='Entries Stage 1'!D123 -> F
A124: 122 | B124: ='Entries Stage 1'!B124 -> Abdulqani Sharif | C124: ='Entries Stage 1'!C124 -> SMU | D124: ='Entries Stage 1'!D124 -> M
A125: 123 | B125: ='Entries Stage 1'!B125 -> Adam Moore | C125: ='Entries Stage 1'!C125 -> SMU | D125: ='Entries Stage 1'!D125 -> M
... 156 more rows

Sheet Relays
A1: 4X100 | Q1: 4X400
A3: Men | I3: Women | Q3: Men | Y3: Women
A4: Club | B4: Relay Abbr. | C4: Team Entered? (enter team letter) | D4: Team (Bib) | E4: Club | F4: Stage 1? | G4: Stage 2? | H4: Stage 3? | I4: Club | J4: Relay Abbr. | K4: Team Entered? (enter team letter) | L4: Team (Bib) | M4: Club | N4: Stage 1? | O4: Stage 2? | P4: Stage 3? | Q4: Club | R4: Relay Abbr. | S4: Team Entered? (enter team letter) | T4: Team (Bib) | U4: Club | V4: Stage 1? | W4: Stage 2? | X4: Stage 3? | Y4: Club | Z4: Relay Abbr. | AA4: Team Entered? (enter team letter) | AB4: Team (Bib) | AC4: Club | AD4: Stage 1? | AE4: Stage 2? | AF4: Stage 3?
A5: ='Set-Up'!$C$7 -> LSE | B5: ='Set-Up'!$D$7 -> LSE | C5: A | D5: =IF(C5="","",IF(C5="A",B5,(CONCATENATE($C$5," ",B5)))) -> LSE | E5: =IF(D5<>"",A5,"") -> LSE | I5: ='Set-Up'!$C$7 -> LSE | J5: ='Set-Up'!$D$7 -> LSE | L5: =IF(K5="","",IF(K5="A",J5,(CONCATENATE($C$5," ",J5)))) ->  | M5: =IF(L5<>"",I5,"") ->  | Q5: ='Set-Up'!$C$7 -> LSE | R5: ='Set-Up'!$D$7 -> LSE | S5: A | T5: =IF(S5="","",IF(S5="A",R5,(CONCATENATE($C$5," ",R5)))) -> LSE | U5: =IF(T5<>"",Q5,"") -> LSE | Y5: ='Set-Up'!$C$7 -> LSE | Z5: ='Set-Up'!$D$7 -> LSE | AB5: =IF(AA5="","",IF(AA5="A",Z5,(CONCATENATE($C$5," ",Z5)))) ->  | AC5: =IF(AB5<>"",Y5,"") -> 
A6: ='Set-Up'!$C$7 -> LSE | B6: ='Set-Up'!$D$7 -> LSE | D6: =IF(C6="","",IF(C6="A",B6,(CONCATENATE(B6," ",C6)))) ->  | E6: =IF(D6<>"",A6,"") ->  | I6: ='Set-Up'!$C$7 -> LSE | J6: ='Set-Up'!$D$7 -> LSE | L6: =IF(K6="","",IF(K6="A",J6,(CONCATENATE(J6," ",K6)))) ->  | M6: =IF(L6<>"",I6,"") ->  | Q6: ='Set-Up'!$C$7 -> LSE | R6: ='Set-Up'!$D$7 -> LSE | T6: =IF(S6="","",IF(S6="A",R6,(CONCATENATE(R6," ",S6)))) ->  | U6: =IF(T6<>"",Q6,"") ->  | Y6: ='Set-Up'!$C$7 -> LSE | Z6: ='Set-Up'!$D$7 -> LSE | AB6: =IF(AA6="","",IF(AA6="A",Z6,(CONCATENATE(Z6," ",AA6)))) ->  | AC6: =IF(AB6<>"",Y6,"") -> 
A7: ='Set-Up'!$C$7 -> LSE | B7: ='Set-Up'!$D$7 -> LSE | D7: =IF(C7="","",IF(C7="A",B7,(CONCATENATE(B7," ",C7)))) ->  | I7: ='Set-Up'!$C$7 -> LSE | J7: ='Set-Up'!$D$7 -> LSE | L7: =IF(K7="","",IF(K7="A",J7,(CONCATENATE(J7," ",K7)))) ->  | Q7: ='Set-Up'!$C$7 -> LSE | R7: ='Set-Up'!$D$7 -> LSE | T7: =IF(S7="","",IF(S7="A",R7,(CONCATENATE(R7," ",S7)))) ->  | Y7: ='Set-Up'!$C$7 -> LSE | Z7: ='Set-Up'!$D$7 -> LSE | AB7: =IF(AA7="","",IF(AA7="A",Z7,(CONCATENATE(Z7," ",AA7)))) -> 
A8: ='Set-Up'!$C$7 -> LSE | B8: ='Set-Up'!$D$7 -> LSE | I8: ='Set-Up'!$C$7 -> LSE | J8: ='Set-Up'!$D$7 -> LSE | Q8: ='Set-Up'!$C$7 -> LSE | R8: ='Set-Up'!$D$7 -> LSE | Y8: ='Set-Up'!$C$7 -> LSE | Z8: ='Set-Up'!$D$7 -> LSE
A9: ='Set-Up'!$C$7 -> LSE | B9: ='Set-Up'!$D$7 -> LSE | I9: ='Set-Up'!$C$7 -> LSE | J9: ='Set-Up'!$D$7 -> LSE | Q9: ='Set-Up'!$C$7 -> LSE | R9: ='Set-Up'!$D$7 -> LSE | Y9: ='Set-Up'!$C$7 -> LSE | Z9: ='Set-Up'!$D$7 -> LSE
A10: ='Set-Up'!$C$7 -> LSE | B10: ='Set-Up'!$D$7 -> LSE | I10: ='Set-Up'!$C$7 -> LSE | J10: ='Set-Up'!$D$7 -> LSE | Q10: ='Set-Up'!$C$7 -> LSE | R10: ='Set-Up'!$D$7 -> LSE | Y10: ='Set-Up'!$C$7 -> LSE | Z10: ='Set-Up'!$D$7 -> LSE
A11: ='Set-Up'!$C$8 -> King's | B11: ='Set-Up'!$D$8 -> KCL | C11: A | D11: KCL | E11: King's | I11: ='Set-Up'!$C$8 -> King's | J11: ='Set-Up'!$D$8 -> KCL | K11: A | L11: KCL | M11: King's | Q11: ='Set-Up'!$C$8 -> King's | R11: ='Set-Up'!$D$8 -> KCL | S11: A | T11: KCL | U11: King's | Y11: ='Set-Up'!$C$8 -> King's | Z11: ='Set-Up'!$D$8 -> KCL | AA11: A | AB11: KCL | AC11: King's
A12: ='Set-Up'!$C$8 -> King's | B12: ='Set-Up'!$D$8 -> KCL | I12: ='Set-Up'!$C$8 -> King's | J12: ='Set-Up'!$D$8 -> KCL | Q12: ='Set-Up'!$C$8 -> King's | R12: ='Set-Up'!$D$8 -> KCL | Y12: ='Set-Up'!$C$8 -> King's | Z12: ='Set-Up'!$D$8 -> KCL
A13: ='Set-Up'!$C$8 -> King's | B13: ='Set-Up'!$D$8 -> KCL | I13: ='Set-Up'!$C$8 -> King's | J13: ='Set-Up'!$D$8 -> KCL | Q13: ='Set-Up'!$C$8 -> King's | R13: ='Set-Up'!$D$8 -> KCL | Y13: ='Set-Up'!$C$8 -> King's | Z13: ='Set-Up'!$D$8 -> KCL
A14: ='Set-Up'!$C$8 -> King's | B14: ='Set-Up'!$D$8 -> KCL | I14: ='Set-Up'!$C$8 -> King's | J14: ='Set-Up'!$D$8 -> KCL | Q14: ='Set-Up'!$C$8 -> King's | R14: ='Set-Up'!$D$8 -> KCL | Y14: ='Set-Up'!$C$8 -> King's | Z14: ='Set-Up'!$D$8 -> KCL
A15: ='Set-Up'!$C$8 -> King's | B15: ='Set-Up'!$D$8 -> KCL | I15: ='Set-Up'!$C$8 -> King's | J15: ='Set-Up'!$D$8 -> KCL | Q15: ='Set-Up'!$C$8 -> King's | R15: ='Set-Up'!$D$8 -> KCL | Y15: ='Set-Up'!$C$8 -> King's | Z15: ='Set-Up'!$D$8 -> KCL
A16: ='Set-Up'!$C$8 -> King's | B16: ='Set-Up'!$D$8 -> KCL | I16: ='Set-Up'!$C$8 -> King's | J16: ='Set-Up'!$D$8 -> KCL | Q16: ='Set-Up'!$C$8 -> King's | R16: ='Set-Up'!$D$8 -> KCL | Y16: ='Set-Up'!$C$8 -> King's | Z16: ='Set-Up'!$D$8 -> KCL
A17: ='Set-Up'!$C$9 -> Essex | B17: ='Set-Up'!$D$9 -> ESSX | C17: A | D17: ESSX | E17: Essex | I17: ='Set-Up'!$C$9 -> Essex | J17: ='Set-Up'!$D$9 -> ESSX | Q17: ='Set-Up'!$C$9 -> Essex | R17: ='Set-Up'!$D$9 -> ESSX | Y17: ='Set-Up'!$C$9 -> Essex | Z17: ='Set-Up'!$D$9 -> ESSX
A18: ='Set-Up'!$C$9 -> Essex | B18: ='Set-Up'!$D$9 -> ESSX | I18: ='Set-Up'!$C$9 -> Essex | J18: ='Set-Up'!$D$9 -> ESSX | Q18: ='Set-Up'!$C$9 -> Essex | R18: ='Set-Up'!$D$9 -> ESSX | Y18: ='Set-Up'!$C$9 -> Essex | Z18: ='Set-Up'!$D$9 -> ESSX
A19: ='Set-Up'!$C$9 -> Essex | B19: ='Set-Up'!$D$9 -> ESSX | I19: ='Set-Up'!$C$9 -> Essex | J19: ='Set-Up'!$D$9 -> ESSX | Q19: ='Set-Up'!$C$9 -> Essex | R19: ='Set-Up'!$D$9 -> ESSX | Y19: ='Set-Up'!$C$9 -> Essex | Z19: ='Set-Up'!$D$9 -> ESSX
A20: ='Set-Up'!$C$9 -> Essex | B20: ='Set-Up'!$D$9 -> ESSX | I20: ='Set-Up'!$C$9 -> Essex | J20: ='Set-Up'!$D$9 -> ESSX | Q20: ='Set-Up'!$C$9 -> Essex | R20: ='Set-Up'!$D$9 -> ESSX | Y20: ='Set-Up'!$C$9 -> Essex | Z20: ='Set-Up'!$D$9 -> ESSX
A21: ='Set-Up'!$C$9 -> Essex | B21: ='Set-Up'!$D$9 -> ESSX | I21: ='Set-Up'!$C$9 -> Essex | J21: ='Set-Up'!$D$9 -> ESSX | Q21: ='Set-Up'!$C$9 -> Essex | R21: ='Set-Up'!$D$9 -> ESSX | Y21: ='Set-Up'!$C$9 -> Essex | Z21: ='Set-Up'!$D$9 -> ESSX
A22: ='Set-Up'!$C$9 -> Essex | B22: ='Set-Up'!$D$9 -> ESSX | I22: ='Set-Up'!$C$9 -> Essex | J22: ='Set-Up'!$D$9 -> ESSX | Q22: ='Set-Up'!$C$9 -> Essex | R22: ='Set-Up'!$D$9 -> ESSX | Y22: ='Set-Up'!$C$9 -> Essex | Z22: ='Set-Up'!$D$9 -> ESSX
A23: ='Set-Up'!$C$10 -> RHUL | B23: ='Set-Up'!$D$10 -> RHUL | I23: ='Set-Up'!$C$10 -> RHUL | J23: ='Set-Up'!$D$10 -> RHUL | Q23: ='Set-Up'!$C$10 -> RHUL | R23: ='Set-Up'!$D$10 -> RHUL | Y23: ='Set-Up'!$C$10 -> RHUL | Z23: ='Set-Up'!$D$10 -> RHUL
A24: ='Set-Up'!$C$10 -> RHUL | B24: ='Set-Up'!$D$10 -> RHUL | I24: ='Set-Up'!$C$10 -> RHUL | J24: ='Set-Up'!$D$10 -> RHUL | Q24: ='Set-Up'!$C$10 -> RHUL | R24: ='Set-Up'!$D$10 -> RHUL | Y24: ='Set-Up'!$C$10 -> RHUL | Z24: ='Set-Up'!$D$10 -> RHUL
A25: ='Set-Up'!$C$10 -> RHUL | B25: ='Set-Up'!$D$10 -> RHUL | I25: ='Set-Up'!$C$10 -> RHUL | J25: ='Set-Up'!$D$10 -> RHUL | Q25: ='Set-Up'!$C$10 -> RHUL | R25: ='Set-Up'!$D$10 -> RHUL | Y25: ='Set-Up'!$C$10 -> RHUL | Z25: ='Set-Up'!$D$10 -> RHUL
A26: ='Set-Up'!$C$10 -> RHUL | B26: ='Set-Up'!$D$10 -> RHUL | I26: ='Set-Up'!$C$10 -> RHUL | J26: ='Set-Up'!$D$10 -> RHUL | Q26: ='Set-Up'!$C$10 -> RHUL | R26: ='Set-Up'!$D$10 -> RHUL | Y26: ='Set-Up'!$C$10 -> RHUL | Z26: ='Set-Up'!$D$10 -> RHUL
A27: ='Set-Up'!$C$10 -> RHUL | B27: ='Set-Up'!$D$10 -> RHUL | I27: ='Set-Up'!$C$10 -> RHUL | J27: ='Set-Up'!$D$10 -> RHUL | Q27: ='Set-Up'!$C$10 -> RHUL | R27: ='Set-Up'!$D$10 -> RHUL | Y27: ='Set-Up'!$C$10 -> RHUL | Z27: ='Set-Up'!$D$10 -> RHUL
A28: ='Set-Up'!$C$10 -> RHUL | B28: ='Set-Up'!$D$10 -> RHUL | I28: ='Set-Up'!$C$10 -> RHUL | J28: ='Set-Up'!$D$10 -> RHUL | Q28: ='Set-Up'!$C$10 -> RHUL | R28: ='Set-Up'!$D$10 -> RHUL | Y28: ='Set-Up'!$C$10 -> RHUL | Z28: ='Set-Up'!$D$10 -> RHUL
A29: ='Set-Up'!$C$11 -> UCL | B29: ='Set-Up'!$D$11 -> UCL | C29: A | D29: UCL | E29: UCL | I29: ='Set-Up'!$C$11 -> UCL | J29: ='Set-Up'!$D$11 -> UCL | K29: A | L29: UCL | M29: UCL | Q29: ='Set-Up'!$C$11 -> UCL | R29: ='Set-Up'!$D$11 -> UCL | S29: A | T29: UCL | U29: UCL | Y29: ='Set-Up'!$C$11 -> UCL | Z29: ='Set-Up'!$D$11 -> UCL | AA29: A | AB29: UCL | AC29: UCL
A30: ='Set-Up'!$C$11 -> UCL | B30: ='Set-Up'!$D$11 -> UCL | I30: ='Set-Up'!$C$11 -> UCL | J30: ='Set-Up'!$D$11 -> UCL | Q30: ='Set-Up'!$C$11 -> UCL | R30: ='Set-Up'!$D$11 -> UCL | Y30: ='Set-Up'!$C$11 -> UCL | Z30: ='Set-Up'!$D$11 -> UCL
A31: ='Set-Up'!$C$11 -> UCL | B31: ='Set-Up'!$D$11 -> UCL | I31: ='Set-Up'!$C$11 -> UCL | J31: ='Set-Up'!$D$11 -> UCL | Q31: ='Set-Up'!$C$11 -> UCL | R31: ='Set-Up'!$D$11 -> UCL | Y31: ='Set-Up'!$C$11 -> UCL | Z31: ='Set-Up'!$D$11 -> UCL
A32: ='Set-Up'!$C$11 -> UCL | B32: ='Set-Up'!$D$11 -> UCL | I32: ='Set-Up'!$C$11 -> UCL | J32: ='Set-Up'!$D$11 -> UCL | Q32: ='Set-Up'!$C$11 -> UCL | R32: ='Set-Up'!$D$11 -> UCL | Y32: ='Set-Up'!$C$11 -> UCL | Z32: ='Set-Up'!$D$11 -> UCL
A33: ='Set-Up'!$C$11 -> UCL | B33: ='Set-Up'!$D$11 -> UCL | I33: ='Set-Up'!$C$11 -> UCL | J33: ='Set-Up'!$D$11 -> UCL | Q33: ='Set-Up'!$C$11 -> UCL | R33: ='Set-Up'!$D$11 -> UCL | Y33: ='Set-Up'!$C$11 -> UCL | Z33: ='Set-Up'!$D$11 -> UCL
A34: ='Set-Up'!$C$11 -> UCL | B34: ='Set-Up'!$D$11 -> UCL | I34: ='Set-Up'!$C$11 -> UCL | J34: ='Set-Up'!$D$11 -> UCL | Q34: ='Set-Up'!$C$11 -> UCL | R34: ='Set-Up'!$D$11 -> UCL | Y34: ='Set-Up'!$C$11 -> UCL | Z34: ='Set-Up'!$D$11 -> UCL
A35: ='Set-Up'!$C$12 -> Imperial | B35: ='Set-Up'!$D$12 -> ICL | C35: A | D35: ICL | E35: Imperial | I35: ='Set-Up'!$C$12 -> Imperial | J35: ='Set-Up'!$D$12 -> ICL | Q35: ='Set-Up'!$C$12 -> Imperial | R35: ='Set-Up'!$D$12 -> ICL | Y35: ='Set-Up'!$C$12 -> Imperial | Z35: ='Set-Up'!$D$12 -> ICL
A36: ='Set-Up'!$C$12 -> Imperial | B36: ='Set-Up'!$D$12 -> ICL | I36: ='Set-Up'!$C$12 -> Imperial | J36: ='Set-Up'!$D$12 -> ICL | Q36: ='Set-Up'!$C$12 -> Imperial | R36: ='Set-Up'!$D$12 -> ICL | Y36: ='Set-Up'!$C$12 -> Imperial | Z36: ='Set-Up'!$D$12 -> ICL
A37: ='Set-Up'!$C$12 -> Imperial | B37: ='Set-Up'!$D$12 -> ICL | I37: ='Set-Up'!$C$12 -> Imperial | J37: ='Set-Up'!$D$12 -> ICL | Q37: ='Set-Up'!$C$12 -> Imperial | R37: ='Set-Up'!$D$12 -> ICL | Y37: ='Set-Up'!$C$12 -> Imperial | Z37: ='Set-Up'!$D$12 -> ICL
A38: ='Set-Up'!$C$12 -> Imperial | B38: ='Set-Up'!$D$12 -> ICL | I38: ='Set-Up'!$C$12 -> Imperial | J38: ='Set-Up'!$D$12 -> ICL | Q38: ='Set-Up'!$C$12 -> Imperial | R38: ='Set-Up'!$D$12 -> ICL | Y38: ='Set-Up'!$C$12 -> Imperial | Z38: ='Set-Up'!$D$12 -> ICL
A39: ='Set-Up'!$C$12 -> Imperial | B39: ='Set-Up'!$D$12 -> ICL | I39: ='Set-Up'!$C$12 -> Imperial | J39: ='Set-Up'!$D$12 -> ICL | Q39: ='Set-Up'!$C$12 -> Imperial | R39: ='Set-Up'!$D$12 -> ICL | Y39: ='Set-Up'!$C$12 -> Imperial | Z39: ='Set-Up'!$D$12 -> ICL
A40: ='Set-Up'!$C$12 -> Imperial | B40: ='Set-Up'!$D$12 -> ICL | I40: ='Set-Up'!$C$12 -> Imperial | J40: ='Set-Up'!$D$12 -> ICL | Q40: ='Set-Up'!$C$12 -> Imperial | R40: ='Set-Up'!$D$12 -> ICL | Y40: ='Set-Up'!$C$12 -> Imperial | Z40: ='Set-Up'!$D$12 -> ICL
A41: ='Set-Up'!$C$13 -> QMUL | B41: ='Set-Up'!$D$13 -> QMUL | C41: A | D41: QMUL | E41: QMUL | I41: ='Set-Up'!$C$13 -> QMUL | J41: ='Set-Up'!$D$13 -> QMUL | Q41: ='Set-Up'!$C$13 -> QMUL | R41: ='Set-Up'!$D$13 -> QMUL | Y41: ='Set-Up'!$C$13 -> QMUL | Z41: ='Set-Up'!$D$13 -> QMUL
A42: ='Set-Up'!$C$13 -> QMUL | B42: ='Set-Up'!$D$13 -> QMUL | I42: ='Set-Up'!$C$13 -> QMUL | J42: ='Set-Up'!$D$13 -> QMUL | Q42: ='Set-Up'!$C$13 -> QMUL | R42: ='Set-Up'!$D$13 -> QMUL | Y42: ='Set-Up'!$C$13 -> QMUL | Z42: ='Set-Up'!$D$13 -> QMUL
A43: ='Set-Up'!$C$13 -> QMUL | B43: ='Set-Up'!$D$13 -> QMUL | I43: ='Set-Up'!$C$13 -> QMUL | J43: ='Set-Up'!$D$13 -> QMUL | Q43: ='Set-Up'!$C$13 -> QMUL | R43: ='Set-Up'!$D$13 -> QMUL | Y43: ='Set-Up'!$C$13 -> QMUL | Z43: ='Set-Up'!$D$13 -> QMUL
A44: ='Set-Up'!$C$13 -> QMUL | B44: ='Set-Up'!$D$13 -> QMUL | I44: ='Set-Up'!$C$13 -> QMUL | J44: ='Set-Up'!$D$13 -> QMUL | Q44: ='Set-Up'!$C$13 -> QMUL | R44: ='Set-Up'!$D$13 -> QMUL | Y44: ='Set-Up'!$C$13 -> QMUL | Z44: ='Set-Up'!$D$13 -> QMUL
A45: ='Set-Up'!$C$13 -> QMUL | B45: ='Set-Up'!$D$13 -> QMUL | I45: ='Set-Up'!$C$13 -> QMUL | J45: ='Set-Up'!$D$13 -> QMUL | Q45: ='Set-Up'!$C$13 -> QMUL | R45: ='Set-Up'!$D$13 -> QMUL | Y45: ='Set-Up'!$C$13 -> QMUL | Z45: ='Set-Up'!$D$13 -> QMUL
A46: ='Set-Up'!$C$13 -> QMUL | B46: ='Set-Up'!$D$13 -> QMUL | I46: ='Set-Up'!$C$13 -> QMUL | J46: ='Set-Up'!$D$13 -> QMUL | Q46: ='Set-Up'!$C$13 -> QMUL | R46: ='Set-Up'!$D$13 -> QMUL | Y46: ='Set-Up'!$C$13 -> QMUL | Z46: ='Set-Up'!$D$13 -> QMUL
A47: ='Set-Up'!$C$14 -> SMU | B47: ='Set-Up'!$D$14 -> SMU | I47: ='Set-Up'!$C$14 -> SMU | J47: ='Set-Up'!$D$14 -> SMU | Q47: ='Set-Up'!$C$14 -> SMU | R47: ='Set-Up'!$D$14 -> SMU | Y47: ='Set-Up'!$C$14 -> SMU | Z47: ='Set-Up'!$D$14 -> SMU
A48: ='Set-Up'!$C$14 -> SMU | B48: ='Set-Up'!$D$14 -> SMU | I48: ='Set-Up'!$C$14 -> SMU | J48: ='Set-Up'!$D$14 -> SMU | Q48: ='Set-Up'!$C$14 -> SMU | R48: ='Set-Up'!$D$14 -> SMU | Y48: ='Set-Up'!$C$14 -> SMU | Z48: ='Set-Up'!$D$14 -> SMU
A49: ='Set-Up'!$C$14 -> SMU | B49: ='Set-Up'!$D$14 -> SMU | I49: ='Set-Up'!$C$14 -> SMU | J49: ='Set-Up'!$D$14 -> SMU | Q49: ='Set-Up'!$C$14 -> SMU | R49: ='Set-Up'!$D$14 -> SMU | Y49: ='Set-Up'!$C$14 -> SMU | Z49: ='Set-Up'!$D$14 -> SMU
A50: ='Set-Up'!$C$14 -> SMU | B50: ='Set-Up'!$D$14 -> SMU | I50: ='Set-Up'!$C$14 -> SMU | J50: ='Set-Up'!$D$14 -> SMU | Q50: ='Set-Up'!$C$14 -> SMU | R50: ='Set-Up'!$D$14 -> SMU | Y50: ='Set-Up'!$C$14 -> SMU | Z50: ='Set-Up'!$D$14 -> SMU
A51: ='Set-Up'!$C$14 -> SMU | B51: ='Set-Up'!$D$14 -> SMU | I51: ='Set-Up'!$C$14 -> SMU | J51: ='Set-Up'!$D$14 -> SMU | Q51: ='Set-Up'!$C$14 -> SMU | R51: ='Set-Up'!$D$14 -> SMU | Y51: ='Set-Up'!$C$14 -> SMU | Z51: ='Set-Up'!$D$14 -> SMU
A52: ='Set-Up'!$C$14 -> SMU | B52: ='Set-Up'!$D$14 -> SMU | I52: ='Set-Up'!$C$14 -> SMU | J52: ='Set-Up'!$D$14 -> SMU | Q52: ='Set-Up'!$C$14 -> SMU | R52: ='Set-Up'!$D$14 -> SMU | Y52: ='Set-Up'!$C$14 -> SMU | Z52: ='Set-Up'!$D$14 -> SMU
A53: ='Set-Up'!$C$15 -> Brunel | B53: ='Set-Up'!$D$15 -> BRU | I53: ='Set-Up'!$C$15 -> Brunel | J53: ='Set-Up'!$D$15 -> BRU | Q53: ='Set-Up'!$C$15 -> Brunel | R53: ='Set-Up'!$D$15 -> BRU | Y53: ='Set-Up'!$C$15 -> Brunel | Z53: ='Set-Up'!$D$15 -> BRU
A54: ='Set-Up'!$C$15 -> Brunel | B54: ='Set-Up'!$D$15 -> BRU | I54: ='Set-Up'!$C$15 -> Brunel | J54: ='Set-Up'!$D$15 -> BRU | Q54: ='Set-Up'!$C$15 -> Brunel | R54: ='Set-Up'!$D$15 -> BRU | Y54: ='Set-Up'!$C$15 -> Brunel | Z54: ='Set-Up'!$D$15 -> BRU
A55: ='Set-Up'!$C$15 -> Brunel | B55: ='Set-Up'!$D$15 -> BRU | I55: ='Set-Up'!$C$15 -> Brunel | J55: ='Set-Up'!$D$15 -> BRU | Q55: ='Set-Up'!$C$15 -> Brunel | R55: ='Set-Up'!$D$15 -> BRU | Y55: ='Set-Up'!$C$15 -> Brunel | Z55: ='Set-Up'!$D$15 -> BRU
A56: ='Set-Up'!$C$15 -> Brunel | B56: ='Set-Up'!$D$15 -> BRU | I56: ='Set-Up'!$C$15 -> Brunel | J56: ='Set-Up'!$D$15 -> BRU | Q56: ='Set-Up'!$C$15 -> Brunel | R56: ='Set-Up'!$D$15 -> BRU | Y56: ='Set-Up'!$C$15 -> Brunel | Z56: ='Set-Up'!$D$15 -> BRU
A57: ='Set-Up'!$C$15 -> Brunel | B57: ='Set-Up'!$D$15 -> BRU | I57: ='Set-Up'!$C$15 -> Brunel | J57: ='Set-Up'!$D$15 -> BRU | Q57: ='Set-Up'!$C$15 -> Brunel | R57: ='Set-Up'!$D$15 -> BRU | Y57: ='Set-Up'!$C$15 -> Brunel | Z57: ='Set-Up'!$D$15 -> BRU
A58: ='Set-Up'!$C$15 -> Brunel | B58: ='Set-Up'!$D$15 -> BRU | I58: ='Set-Up'!$C$15 -> Brunel | J58: ='Set-Up'!$D$15 -> BRU | Q58: ='Set-Up'!$C$15 -> Brunel | R58: ='Set-Up'!$D$15 -> BRU | Y58: ='Set-Up'!$C$15 -> Brunel | Z58: ='Set-Up'!$D$15 -> BRU
A59: ='Set-Up'!$C$16 -> Guests | B59: ='Set-Up'!$D$16 -> GUEST | I59: ='Set-Up'!$C$16 -> Guests | J59: ='Set-Up'!$D$16 -> GUEST | Q59: ='Set-Up'!$C$16 -> Guests | R59: ='Set-Up'!$D$16 -> GUEST | Y59: ='Set-Up'!$C$16 -> Guests | Z59: ='Set-Up'!$D$16 -> GUEST
A60: ='Set-Up'!$C$16 -> Guests | B60: ='Set-Up'!$D$16 -> GUEST | I60: ='Set-Up'!$C$16 -> Guests | J60: ='Set-Up'!$D$16 -> GUEST | Q60: ='Set-Up'!$C$16 -> Guests | R60: ='Set-Up'!$D$16 -> GUEST | Y60: ='Set-Up'!$C$16 -> Guests | Z60: ='Set-Up'!$D$16 -> GUEST
A61: ='Set-Up'!$C$16 -> Guests | B61: ='Set-Up'!$D$16 -> GUEST | I61: ='Set-Up'!$C$16 -> Guests | J61: ='Set-Up'!$D$16 -> GUEST | Q61: ='Set-Up'!$C$16 -> Guests | R61: ='Set-Up'!$D$16 -> GUEST | Y61: ='Set-Up'!$C$16 -> Guests | Z61: ='Set-Up'!$D$16 -> GUEST
A62: ='Set-Up'!$C$16 -> Guests | B62: ='Set-Up'!$D$16 -> GUEST | I62: ='Set-Up'!$C$16 -> Guests | J62: ='Set-Up'!$D$16 -> GUEST | Q62: ='Set-Up'!$C$16 -> Guests | R62: ='Set-Up'!$D$16 -> GUEST | Y62: ='Set-Up'!$C$16 -> Guests | Z62: ='Set-Up'!$D$16 -> GUEST
A63: ='Set-Up'!$C$16 -> Guests | B63: ='Set-Up'!$D$16 -> GUEST | I63: ='Set-Up'!$C$16 -> Guests | J63: ='Set-Up'!$D$16 -> GUEST | Q63: ='Set-Up'!$C$16 -> Guests | R63: ='Set-Up'!$D$16 -> GUEST | Y63: ='Set-Up'!$C$16 -> Guests | Z63: ='Set-Up'!$D$16 -> GUEST
A64: ='Set-Up'!$C$16 -> Guests | B64: ='Set-Up'!$D$16 -> GUEST | I64: ='Set-Up'!$C$16 -> Guests | J64: ='Set-Up'!$D$16 -> GUEST | Q64: ='Set-Up'!$C$16 -> Guests | R64: ='Set-Up'!$D$16 -> GUEST | Y64: ='Set-Up'!$C$16 -> Guests | Z64: ='Set-Up'!$D$16 -> GUEST
A65: ='Set-Up'!#REF! ->  | B65: ='Set-Up'!#REF! ->  | I65: ='Set-Up'!#REF! ->  | J65: ='Set-Up'!#REF! ->  | Q65: ='Set-Up'!#REF! ->  | R65: ='Set-Up'!#REF! ->  | Y65: ='Set-Up'!#REF! ->  | Z65: ='Set-Up'!#REF! -> 
A66: ='Set-Up'!#REF! ->  | B66: ='Set-Up'!#REF! ->  | I66: ='Set-Up'!#REF! ->  | J66: ='Set-Up'!#REF! ->  | Q66: ='Set-Up'!#REF! ->  | R66: ='Set-Up'!#REF! ->  | Y66: ='Set-Up'!#REF! ->  | Z66: ='Set-Up'!#REF! -> 
A67: ='Set-Up'!#REF! ->  | B67: ='Set-Up'!#REF! ->  | I67: ='Set-Up'!#REF! ->  | J67: ='Set-Up'!#REF! ->  | Q67: ='Set-Up'!#REF! ->  | R67: ='Set-Up'!#REF! ->  | Y67: ='Set-Up'!#REF! ->  | Z67: ='Set-Up'!#REF! -> 
A68: ='Set-Up'!#REF! ->  | B68: ='Set-Up'!#REF! ->  | I68: ='Set-Up'!#REF! ->  | J68: ='Set-Up'!#REF! ->  | Q68: ='Set-Up'!#REF! ->  | R68: ='Set-Up'!#REF! ->  | Y68: ='Set-Up'!#REF! ->  | Z68: ='Set-Up'!#REF! -> 
A69: ='Set-Up'!#REF! ->  | B69: ='Set-Up'!#REF! ->  | I69: ='Set-Up'!#REF! ->  | J69: ='Set-Up'!#REF! ->  | Q69: ='Set-Up'!#REF! ->  | R69: ='Set-Up'!#REF! ->  | Y69: ='Set-Up'!#REF! ->  | Z69: ='Set-Up'!#REF! -> 
A70: ='Set-Up'!#REF! ->  | B70: ='Set-Up'!#REF! ->  | E70: =IF(D70<>"",A70,"") ->  | I70: ='Set-Up'!#REF! ->  | J70: ='Set-Up'!#REF! ->  | M70: =IF(L70<>"",I70,"") ->  | Q70: ='Set-Up'!#REF! ->  | R70: ='Set-Up'!#REF! ->  | U70: =IF(T70<>"",Q70,"") ->  | Y70: ='Set-Up'!#REF! ->  | Z70: ='Set-Up'!#REF! ->  | AC70: =IF(AB70<>"",Y70,"") -> 
A71: ='Set-Up'!#REF! ->  | B71: ='Set-Up'!#REF! ->  | D71: =IF(C71="","",IF(C71="A",B71,(CONCATENATE(B71," ",C71)))) ->  | I71: ='Set-Up'!#REF! ->  | J71: ='Set-Up'!#REF! ->  | L71: =IF(K71="","",IF(K71="A",J71,(CONCATENATE(J71," ",K71)))) ->  | Q71: ='Set-Up'!#REF! ->  | R71: ='Set-Up'!#REF! ->  | T71: =IF(S71="","",IF(S71="A",R71,(CONCATENATE(R71," ",S71)))) ->  | Y71: ='Set-Up'!#REF! ->  | Z71: ='Set-Up'!#REF! ->  | AB71: =IF(AA71="","",IF(AA71="A",Z71,(CONCATENATE(Z71," ",AA71)))) -> 
A72: ='Set-Up'!#REF! ->  | B72: ='Set-Up'!#REF! ->  | I72: ='Set-Up'!#REF! ->  | J72: ='Set-Up'!#REF! ->  | Q72: ='Set-Up'!#REF! ->  | R72: ='Set-Up'!#REF! ->  | Y72: ='Set-Up'!#REF! ->  | Z72: ='Set-Up'!#REF! -> 
A73: ='Set-Up'!#REF! ->  | B73: ='Set-Up'!#REF! ->  | I73: ='Set-Up'!#REF! ->  | J73: ='Set-Up'!#REF! ->  | Q73: ='Set-Up'!#REF! ->  | R73: ='Set-Up'!#REF! ->  | Y73: ='Set-Up'!#REF! ->  | Z73: ='Set-Up'!#REF! -> 
A74: ='Set-Up'!#REF! ->  | B74: ='Set-Up'!#REF! ->  | I74: ='Set-Up'!#REF! ->  | J74: ='Set-Up'!#REF! ->  | Q74: ='Set-Up'!#REF! ->  | R74: ='Set-Up'!#REF! ->  | Y74: ='Set-Up'!#REF! ->  | Z74: ='Set-Up'!#REF! -> 
A75: ='Set-Up'!#REF! ->  | B75: ='Set-Up'!#REF! ->  | I75: ='Set-Up'!#REF! ->  | J75: ='Set-Up'!#REF! ->  | Q75: ='Set-Up'!#REF! ->  | R75: ='Set-Up'!#REF! ->  | Y75: ='Set-Up'!#REF! ->  | Z75: ='Set-Up'!#REF! -> 
A76: ='Set-Up'!#REF! ->  | B76: ='Set-Up'!#REF! ->  | I76: ='Set-Up'!#REF! ->  | J76: ='Set-Up'!#REF! ->  | Q76: ='Set-Up'!#REF! ->  | R76: ='Set-Up'!#REF! ->  | Y76: ='Set-Up'!#REF! ->  | Z76: ='Set-Up'!#REF! -> 
A77: ='Set-Up'!$C$17 -> UEL | B77: ='Set-Up'!$D$17 -> UEL | I77: ='Set-Up'!$C$17 -> UEL | J77: ='Set-Up'!$D$17 -> UEL | Q77: ='Set-Up'!$C$17 -> UEL | R77: ='Set-Up'!$D$17 -> UEL | Y77: ='Set-Up'!$C$17 -> UEL | Z77: ='Set-Up'!$D$17 -> UEL
A78: ='Set-Up'!$C$17 -> UEL | B78: ='Set-Up'!$D$17 -> UEL | I78: ='Set-Up'!$C$17 -> UEL | J78: ='Set-Up'!$D$17 -> UEL | Q78: ='Set-Up'!$C$17 -> UEL | R78: ='Set-Up'!$D$17 -> UEL | Y78: ='Set-Up'!$C$17 -> UEL | Z78: ='Set-Up'!$D$17 -> UEL
A79: ='Set-Up'!$C$17 -> UEL | B79: ='Set-Up'!$D$17 -> UEL | I79: ='Set-Up'!$C$17 -> UEL | J79: ='Set-Up'!$D$17 -> UEL | Q79: ='Set-Up'!$C$17 -> UEL | R79: ='Set-Up'!$D$17 -> UEL | Y79: ='Set-Up'!$C$17 -> UEL | Z79: ='Set-Up'!$D$17 -> UEL
A80: ='Set-Up'!$C$17 -> UEL | B80: ='Set-Up'!$D$17 -> UEL | I80: ='Set-Up'!$C$17 -> UEL | J80: ='Set-Up'!$D$17 -> UEL | Q80: ='Set-Up'!$C$17 -> UEL | R80: ='Set-Up'!$D$17 -> UEL | Y80: ='Set-Up'!$C$17 -> UEL | Z80: ='Set-Up'!$D$17 -> UEL
A81: ='Set-Up'!$C$17 -> UEL | B81: ='Set-Up'!$D$17 -> UEL | I81: ='Set-Up'!$C$17 -> UEL | J81: ='Set-Up'!$D$17 -> UEL | Q81: ='Set-Up'!$C$17 -> UEL | R81: ='Set-Up'!$D$17 -> UEL | Y81: ='Set-Up'!$C$17 -> UEL | Z81: ='Set-Up'!$D$17 -> UEL
A82: ='Set-Up'!$C$17 -> UEL | B82: ='Set-Up'!$D$17 -> UEL | I82: ='Set-Up'!$C$17 -> UEL | J82: ='Set-Up'!$D$17 -> UEL | Q82: ='Set-Up'!$C$17 -> UEL | R82: ='Set-Up'!$D$17 -> UEL | Y82: ='Set-Up'!$C$17 -> UEL | Z82: ='Set-Up'!$D$17 -> UEL
A83: ='Set-Up'!$C$20 -> STG | B83: ='Set-Up'!$D$20 -> STG | I83: ='Set-Up'!$C$20 -> STG | J83: ='Set-Up'!$D$20 -> STG | Q83: ='Set-Up'!$C$20 -> STG | R83: ='Set-Up'!$D$20 -> STG | Y83: ='Set-Up'!$C$20 -> STG | Z83: ='Set-Up'!$D$20 -> STG
A84: ='Set-Up'!$C$20 -> STG | B84: ='Set-Up'!$D$20 -> STG | I84: ='Set-Up'!$C$20 -> STG | J84: ='Set-Up'!$D$20 -> STG | Q84: ='Set-Up'!$C$20 -> STG | R84: ='Set-Up'!$D$20 -> STG | Y84: ='Set-Up'!$C$20 -> STG | Z84: ='Set-Up'!$D$20 -> STG
A85: ='Set-Up'!$C$20 -> STG | B85: ='Set-Up'!$D$20 -> STG | I85: ='Set-Up'!$C$20 -> STG | J85: ='Set-Up'!$D$20 -> STG | Q85: ='Set-Up'!$C$20 -> STG | R85: ='Set-Up'!$D$20 -> STG | Y85: ='Set-Up'!$C$20 -> STG | Z85: ='Set-Up'!$D$20 -> STG
A86: ='Set-Up'!$C$20 -> STG | B86: ='Set-Up'!$D$20 -> STG | I86: ='Set-Up'!$C$20 -> STG | J86: ='Set-Up'!$D$20 -> STG | Q86: ='Set-Up'!$C$20 -> STG | R86: ='Set-Up'!$D$20 -> STG | Y86: ='Set-Up'!$C$20 -> STG | Z86: ='Set-Up'!$D$20 -> STG
A87: ='Set-Up'!$C$20 -> STG | B87: ='Set-Up'!$D$20 -> STG | I87: ='Set-Up'!$C$20 -> STG | J87: ='Set-Up'!$D$20 -> STG | Q87: ='Set-Up'!$C$20 -> STG | R87: ='Set-Up'!$D$20 -> STG | Y87: ='Set-Up'!$C$20 -> STG | Z87: ='Set-Up'!$D$20 -> STG
A88: ='Set-Up'!$C$20 -> STG | B88: ='Set-Up'!$D$20 -> STG | I88: ='Set-Up'!$C$20 -> STG | J88: ='Set-Up'!$D$20 -> STG | Q88: ='Set-Up'!$C$20 -> STG | R88: ='Set-Up'!$D$20 -> STG | Y88: ='Set-Up'!$C$20 -> STG | Z88: ='Set-Up'!$D$20 -> STG
A89: ='Set-Up'!$C$18 -> UofL | B89: ='Set-Up'!$D$18 -> UL | I89: ='Set-Up'!$C$18 -> UofL | J89: ='Set-Up'!$D$18 -> UL | Q89: ='Set-Up'!$C$18 -> UofL | R89: ='Set-Up'!$D$18 -> UL | Y89: ='Set-Up'!$C$18 -> UofL | Z89: ='Set-Up'!$D$18 -> UL
A90: ='Set-Up'!$C$18 -> UofL | B90: ='Set-Up'!$D$18 -> UL | I90: ='Set-Up'!$C$18 -> UofL | J90: ='Set-Up'!$D$18 -> UL | Q90: ='Set-Up'!$C$18 -> UofL | R90: ='Set-Up'!$D$18 -> UL | Y90: ='Set-Up'!$C$18 -> UofL | Z90: ='Set-Up'!$D$18 -> UL
A91: ='Set-Up'!$C$18 -> UofL | B91: ='Set-Up'!$D$18 -> UL | I91: ='Set-Up'!$C$18 -> UofL | J91: ='Set-Up'!$D$18 -> UL | Q91: ='Set-Up'!$C$18 -> UofL | R91: ='Set-Up'!$D$18 -> UL | Y91: ='Set-Up'!$C$18 -> UofL | Z91: ='Set-Up'!$D$18 -> UL
A92: ='Set-Up'!$C$18 -> UofL | B92: ='Set-Up'!$D$18 -> UL | I92: ='Set-Up'!$C$18 -> UofL | J92: ='Set-Up'!$D$18 -> UL | Q92: ='Set-Up'!$C$18 -> UofL | R92: ='Set-Up'!$D$18 -> UL | Y92: ='Set-Up'!$C$18 -> UofL | Z92: ='Set-Up'!$D$18 -> UL
A93: ='Set-Up'!$C$18 -> UofL | B93: ='Set-Up'!$D$18 -> UL | I93: ='Set-Up'!$C$18 -> UofL | J93: ='Set-Up'!$D$18 -> UL | Q93: ='Set-Up'!$C$18 -> UofL | R93: ='Set-Up'!$D$18 -> UL | Y93: ='Set-Up'!$C$18 -> UofL | Z93: ='Set-Up'!$D$18 -> UL
A94: ='Set-Up'!$C$18 -> UofL | B94: ='Set-Up'!$D$18 -> UL | I94: ='Set-Up'!$C$18 -> UofL | J94: ='Set-Up'!$D$18 -> UL | Q94: ='Set-Up'!$C$18 -> UofL | R94: ='Set-Up'!$D$18 -> UL | Y94: ='Set-Up'!$C$18 -> UofL | Z94: ='Set-Up'!$D$18 -> UL
A95: ='Set-Up'!$C$22 -> 0 | B95: ='Set-Up'!$D$22 -> 0 | I95: ='Set-Up'!$C$22 -> 0 | J95: ='Set-Up'!$D$22 -> 0 | Q95: ='Set-Up'!$C$22 -> 0 | R95: ='Set-Up'!$D$22 -> 0 | Y95: ='Set-Up'!$C$22 -> 0 | Z95: ='Set-Up'!$D$22 -> 0
A96: ='Set-Up'!$C$22 -> 0 | B96: ='Set-Up'!$D$22 -> 0 | I96: ='Set-Up'!$C$22 -> 0 | J96: ='Set-Up'!$D$22 -> 0 | Q96: ='Set-Up'!$C$22 -> 0 | R96: ='Set-Up'!$D$22 -> 0 | Y96: ='Set-Up'!$C$22 -> 0 | Z96: ='Set-Up'!$D$22 -> 0
A97: ='Set-Up'!$C$22 -> 0 | B97: ='Set-Up'!$D$22 -> 0 | I97: ='Set-Up'!$C$22 -> 0 | J97: ='Set-Up'!$D$22 -> 0 | Q97: ='Set-Up'!$C$22 -> 0 | R97: ='Set-Up'!$D$22 -> 0 | Y97: ='Set-Up'!$C$22 -> 0 | Z97: ='Set-Up'!$D$22 -> 0
A98: ='Set-Up'!$C$22 -> 0 | B98: ='Set-Up'!$D$22 -> 0 | I98: ='Set-Up'!$C$22 -> 0 | J98: ='Set-Up'!$D$22 -> 0 | Q98: ='Set-Up'!$C$22 -> 0 | R98: ='Set-Up'!$D$22 -> 0 | Y98: ='Set-Up'!$C$22 -> 0 | Z98: ='Set-Up'!$D$22 -> 0
A99: ='Set-Up'!$C$22 -> 0 | B99: ='Set-Up'!$D$22 -> 0 | I99: ='Set-Up'!$C$22 -> 0 | J99: ='Set-Up'!$D$22 -> 0 | Q99: ='Set-Up'!$C$22 -> 0 | R99: ='Set-Up'!$D$22 -> 0 | Y99: ='Set-Up'!$C$22 -> 0 | Z99: ='Set-Up'!$D$22 -> 0
A100: ='Set-Up'!$C$22 -> 0 | B100: ='Set-Up'!$D$22 -> 0 | I100: ='Set-Up'!$C$22 -> 0 | J100: ='Set-Up'!$D$22 -> 0 | Q100: ='Set-Up'!$C$22 -> 0 | R100: ='Set-Up'!$D$22 -> 0 | Y100: ='Set-Up'!$C$22 -> 0 | Z100: ='Set-Up'!$D$22 -> 0
A101: ='Set-Up'!$C$23 -> 0 | B101: ='Set-Up'!$D$23 -> 0 | I101: ='Set-Up'!$C$23 -> 0 | J101: ='Set-Up'!$D$23 -> 0 | Q101: ='Set-Up'!$C$23 -> 0 | R101: ='Set-Up'!$D$23 -> 0 | Y101: ='Set-Up'!$C$23 -> 0 | Z101: ='Set-Up'!$D$23 -> 0
A102: ='Set-Up'!$C$23 -> 0 | B102: ='Set-Up'!$D$23 -> 0 | I102: ='Set-Up'!$C$23 -> 0 | J102: ='Set-Up'!$D$23 -> 0 | Q102: ='Set-Up'!$C$23 -> 0 | R102: ='Set-Up'!$D$23 -> 0 | Y102: ='Set-Up'!$C$23 -> 0 | Z102: ='Set-Up'!$D$23 -> 0
A103: ='Set-Up'!$C$23 -> 0 | B103: ='Set-Up'!$D$23 -> 0 | I103: ='Set-Up'!$C$23 -> 0 | J103: ='Set-Up'!$D$23 -> 0 | Q103: ='Set-Up'!$C$23 -> 0 | R103: ='Set-Up'!$D$23 -> 0 | Y103: ='Set-Up'!$C$23 -> 0 | Z103: ='Set-Up'!$D$23 -> 0
A104: ='Set-Up'!$C$23 -> 0 | B104: ='Set-Up'!$D$23 -> 0 | I104: ='Set-Up'!$C$23 -> 0 | J104: ='Set-Up'!$D$23 -> 0 | Q104: ='Set-Up'!$C$23 -> 0 | R104: ='Set-Up'!$D$23 -> 0 | Y104: ='Set-Up'!$C$23 -> 0 | Z104: ='Set-Up'!$D$23 -> 0
A105: ='Set-Up'!$C$23 -> 0 | B105: ='Set-Up'!$D$23 -> 0 | I105: ='Set-Up'!$C$23 -> 0 | J105: ='Set-Up'!$D$23 -> 0 | Q105: ='Set-Up'!$C$23 -> 0 | R105: ='Set-Up'!$D$23 -> 0 | Y105: ='Set-Up'!$C$23 -> 0 | Z105: ='Set-Up'!$D$23 -> 0
A106: ='Set-Up'!$C$23 -> 0 | B106: ='Set-Up'!$D$23 -> 0 | I106: ='Set-Up'!$C$23 -> 0 | J106: ='Set-Up'!$D$23 -> 0 | Q106: ='Set-Up'!$C$23 -> 0 | R106: ='Set-Up'!$D$23 -> 0 | Y106: ='Set-Up'!$C$23 -> 0 | Z106: ='Set-Up'!$D$23 -> 0
A107: ='Set-Up'!$C$24 -> 0 | B107: ='Set-Up'!$D$24 -> 0 | I107: ='Set-Up'!$C$24 -> 0 | J107: ='Set-Up'!$D$24 -> 0 | Q107: ='Set-Up'!$C$24 -> 0 | R107: ='Set-Up'!$D$24 -> 0 | Y107: ='Set-Up'!$C$24 -> 0 | Z107: ='Set-Up'!$D$24 -> 0
A108: ='Set-Up'!$C$24 -> 0 | B108: ='Set-Up'!$D$24 -> 0 | I108: ='Set-Up'!$C$24 -> 0 | J108: ='Set-Up'!$D$24 -> 0 | Q108: ='Set-Up'!$C$24 -> 0 | R108: ='Set-Up'!$D$24 -> 0 | Y108: ='Set-Up'!$C$24 -> 0 | Z108: ='Set-Up'!$D$24 -> 0
A109: ='Set-Up'!$C$24 -> 0 | B109: ='Set-Up'!$D$24 -> 0 | I109: ='Set-Up'!$C$24 -> 0 | J109: ='Set-Up'!$D$24 -> 0 | Q109: ='Set-Up'!$C$24 -> 0 | R109: ='Set-Up'!$D$24 -> 0 | Y109: ='Set-Up'!$C$24 -> 0 | Z109: ='Set-Up'!$D$24 -> 0
A110: ='Set-Up'!$C$24 -> 0 | B110: ='Set-Up'!$D$24 -> 0 | I110: ='Set-Up'!$C$24 -> 0 | J110: ='Set-Up'!$D$24 -> 0 | Q110: ='Set-Up'!$C$24 -> 0 | R110: ='Set-Up'!$D$24 -> 0 | Y110: ='Set-Up'!$C$24 -> 0 | Z110: ='Set-Up'!$D$24 -> 0
A111: ='Set-Up'!$C$24 -> 0 | B111: ='Set-Up'!$D$24 -> 0 | I111: ='Set-Up'!$C$24 -> 0 | J111: ='Set-Up'!$D$24 -> 0 | Q111: ='Set-Up'!$C$24 -> 0 | R111: ='Set-Up'!$D$24 -> 0 | Y111: ='Set-Up'!$C$24 -> 0 | Z111: ='Set-Up'!$D$24 -> 0
A112: ='Set-Up'!$C$24 -> 0 | B112: ='Set-Up'!$D$24 -> 0 | I112: ='Set-Up'!$C$24 -> 0 | J112: ='Set-Up'!$D$24 -> 0 | Q112: ='Set-Up'!$C$24 -> 0 | R112: ='Set-Up'!$D$24 -> 0 | Y112: ='Set-Up'!$C$24 -> 0 | Z112: ='Set-Up'!$D$24 -> 0
A113: ='Set-Up'!$C$25 -> 0 | B113: ='Set-Up'!$D$25 -> 0 | I113: ='Set-Up'!$C$25 -> 0 | J113: ='Set-Up'!$D$25 -> 0 | Q113: ='Set-Up'!$C$25 -> 0 | R113: ='Set-Up'!$D$25 -> 0 | Y113: ='Set-Up'!$C$25 -> 0 | Z113: ='Set-Up'!$D$25 -> 0
A114: ='Set-Up'!$C$25 -> 0 | B114: ='Set-Up'!$D$25 -> 0 | I114: ='Set-Up'!$C$25 -> 0 | J114: ='Set-Up'!$D$25 -> 0 | Q114: ='Set-Up'!$C$25 -> 0 | R114: ='Set-Up'!$D$25 -> 0 | Y114: ='Set-Up'!$C$25 -> 0 | Z114: ='Set-Up'!$D$25 -> 0
A115: ='Set-Up'!$C$25 -> 0 | B115: ='Set-Up'!$D$25 -> 0 | I115: ='Set-Up'!$C$25 -> 0 | J115: ='Set-Up'!$D$25 -> 0 | Q115: ='Set-Up'!$C$25 -> 0 | R115: ='Set-Up'!$D$25 -> 0 | Y115: ='Set-Up'!$C$25 -> 0 | Z115: ='Set-Up'!$D$25 -> 0
A116: ='Set-Up'!$C$25 -> 0 | B116: ='Set-Up'!$D$25 -> 0 | I116: ='Set-Up'!$C$25 -> 0 | J116: ='Set-Up'!$D$25 -> 0 | Q116: ='Set-Up'!$C$25 -> 0 | R116: ='Set-Up'!$D$25 -> 0 | Y116: ='Set-Up'!$C$25 -> 0 | Z116: ='Set-Up'!$D$25 -> 0
A117: ='Set-Up'!$C$25 -> 0 | B117: ='Set-Up'!$D$25 -> 0 | I117: ='Set-Up'!$C$25 -> 0 | J117: ='Set-Up'!$D$25 -> 0 | Q117: ='Set-Up'!$C$25 -> 0 | R117: ='Set-Up'!$D$25 -> 0 | Y117: ='Set-Up'!$C$25 -> 0 | Z117: ='Set-Up'!$D$25 -> 0
A118: ='Set-Up'!$C$25 -> 0 | B118: ='Set-Up'!$D$25 -> 0 | I118: ='Set-Up'!$C$25 -> 0 | J118: ='Set-Up'!$D$25 -> 0 | Q118: ='Set-Up'!$C$25 -> 0 | R118: ='Set-Up'!$D$25 -> 0 | Y118: ='Set-Up'!$C$25 -> 0 | Z118: ='Set-Up'!$D$25 -> 0
A119: ='Set-Up'!$C$26 -> 0 | B119: ='Set-Up'!$D$26 -> 0 | I119: ='Set-Up'!$C$26 -> 0 | J119: ='Set-Up'!$D$26 -> 0 | Q119: ='Set-Up'!$C$26 -> 0 | R119: ='Set-Up'!$D$26 -> 0 | Y119: ='Set-Up'!$C$26 -> 0 | Z119: ='Set-Up'!$D$26 -> 0
A120: ='Set-Up'!$C$26 -> 0 | B120: ='Set-Up'!$D$26 -> 0 | I120: ='Set-Up'!$C$26 -> 0 | J120: ='Set-Up'!$D$26 -> 0 | Q120: ='Set-Up'!$C$26 -> 0 | R120: ='Set-Up'!$D$26 -> 0 | Y120: ='Set-Up'!$C$26 -> 0 | Z120: ='Set-Up'!$D$26 -> 0
A121: ='Set-Up'!$C$26 -> 0 | B121: ='Set-Up'!$D$26 -> 0 | I121: ='Set-Up'!$C$26 -> 0 | J121: ='Set-Up'!$D$26 -> 0 | Q121: ='Set-Up'!$C$26 -> 0 | R121: ='Set-Up'!$D$26 -> 0 | Y121: ='Set-Up'!$C$26 -> 0 | Z121: ='Set-Up'!$D$26 -> 0
A122: ='Set-Up'!$C$26 -> 0 | B122: ='Set-Up'!$D$26 -> 0 | I122: ='Set-Up'!$C$26 -> 0 | J122: ='Set-Up'!$D$26 -> 0 | Q122: ='Set-Up'!$C$26 -> 0 | R122: ='Set-Up'!$D$26 -> 0 | Y122: ='Set-Up'!$C$26 -> 0 | Z122: ='Set-Up'!$D$26 -> 0
A123: ='Set-Up'!$C$26 -> 0 | B123: ='Set-Up'!$D$26 -> 0 | I123: ='Set-Up'!$C$26 -> 0 | J123: ='Set-Up'!$D$26 -> 0 | Q123: ='Set-Up'!$C$26 -> 0 | R123: ='Set-Up'!$D$26 -> 0 | Y123: ='Set-Up'!$C$26 -> 0 | Z123: ='Set-Up'!$D$26 -> 0
A124: ='Set-Up'!$C$26 -> 0 | B124: ='Set-Up'!$D$26 -> 0 | I124: ='Set-Up'!$C$26 -> 0 | J124: ='Set-Up'!$D$26 -> 0 | Q124: ='Set-Up'!$C$26 -> 0 | R124: ='Set-Up'!$D$26 -> 0 | Y124: ='Set-Up'!$C$26 -> 0 | Z124: ='Set-Up'!$D$26 -> 0
A125: ='Set-Up'!$C$27 -> 0 | B125: ='Set-Up'!$D$27 -> 0 | I125: ='Set-Up'!$C$27 -> 0 | J125: ='Set-Up'!$D$27 -> 0 | Q125: ='Set-Up'!$C$27 -> 0 | R125: ='Set-Up'!$D$27 -> 0 | Y125: ='Set-Up'!$C$27 -> 0 | Z125: ='Set-Up'!$D$27 -> 0
A126: ='Set-Up'!$C$27 -> 0 | B126: ='Set-Up'!$D$27 -> 0 | I126: ='Set-Up'!$C$27 -> 0 | J126: ='Set-Up'!$D$27 -> 0 | Q126: ='Set-Up'!$C$27 -> 0 | R126: ='Set-Up'!$D$27 -> 0 | Y126: ='Set-Up'!$C$27 -> 0 | Z126: ='Set-Up'!$D$27 -> 0
A127: ='Set-Up'!$C$27 -> 0 | B127: ='Set-Up'!$D$27 -> 0 | I127: ='Set-Up'!$C$27 -> 0 | J127: ='Set-Up'!$D$27 -> 0 | Q127: ='Set-Up'!$C$27 -> 0 | R127: ='Set-Up'!$D$27 -> 0 | Y127: ='Set-Up'!$C$27 -> 0 | Z127: ='Set-Up'!$D$27 -> 0
A128: ='Set-Up'!$C$27 -> 0 | B128: ='Set-Up'!$D$27 -> 0 | I128: ='Set-Up'!$C$27 -> 0 | J128: ='Set-Up'!$D$27 -> 0 | Q128: ='Set-Up'!$C$27 -> 0 | R128: ='Set-Up'!$D$27 -> 0 | Y128: ='Set-Up'!$C$27 -> 0 | Z128: ='Set-Up'!$D$27 -> 0
A129: ='Set-Up'!$C$27 -> 0 | B129: ='Set-Up'!$D$27 -> 0 | I129: ='Set-Up'!$C$27 -> 0 | J129: ='Set-Up'!$D$27 -> 0 | Q129: ='Set-Up'!$C$27 -> 0 | R129: ='Set-Up'!$D$27 -> 0 | Y129: ='Set-Up'!$C$27 -> 0 | Z129: ='Set-Up'!$D$27 -> 0
A130: ='Set-Up'!$C$27 -> 0 | B130: ='Set-Up'!$D$27 -> 0 | I130: ='Set-Up'!$C$27 -> 0 | J130: ='Set-Up'!$D$27 -> 0 | Q130: ='Set-Up'!$C$27 -> 0 | R130: ='Set-Up'!$D$27 -> 0 | Y130: ='Set-Up'!$C$27 -> 0 | Z130: ='Set-Up'!$D$27 -> 0

Sheet Entries Stage 1
A1: Number | B1: Name | C1: College | D1: Gender | E1: Event 1 | F1: Expected Result | G1: Event 2 | H1: Expected Result | I1: Event 3 | J1: Expected Result | K1: Event 4 | L1: Expected Result | M1: Event 5 | N1: Expected Result | O1: Event 6 | P1: Expected Result | Q1: =S1 -> 100 | R1: No. | S1: ='Set-Up'!M7 -> 100 | T1: =V1 -> 100H | U1: No. | V1: ='Set-Up'!F9 -> 100H | W1: =Y1 -> 110H | X1: No. | Y1: ='Set-Up'!M9 -> 110H | Z1: =AB1 -> 200 | AA1: No. | AB1: ='Set-Up'!M10 -> 200 | AC1: =AE1 -> 400 | AD1: No. | AE1: ='Set-Up'!M11 -> 400 | AF1: =AH1 -> 400H | AG1: No. | AH1: ='Set-Up'!M12 -> 400H | AI1: =AK1 -> 800 | AJ1: No. | AK1: ='Set-Up'!M13 -> 800 | AL1: =AN1 -> 1500 | AM1: No. | AN1: ='Set-Up'!M14 -> 1500 | AO1: =AQ1 -> 2000SC | AP1: No. | AQ1: ='Set-Up'!M15 -> 2000SC | AR1: =AT1 -> 3000SC | AS1: No. | AT1: ='Set-Up'!M16 -> 3000SC | AU1: =AW1 -> 5000 | AV1: No. | AW1: ='Set-Up'!M17 -> 5000 | AX1: =AZ1 -> 10000 | AY1: No. | AZ1: ='Set-Up'!M18 -> 10000 | BA1: =BC1 -> 4X100 | BB1: No. | BC1: ='Set-Up'!M19 -> 4X100 | BD1: =BF1 -> 4X400 | BE1: No. | BF1: ='Set-Up'!M20 -> 4X400 | BG1: =BI1 -> Medley | BH1: No. | BI1: ='Set-Up'!M21 -> Medley | BJ1: =BL1 -> HJ | BK1: No. | BL1: ='Set-Up'!M22 -> HJ | BM1: =BO1 -> TJ | BN1: No. | BO1: ='Set-Up'!M23 -> TJ | BP1: =BR1 -> LJ | BQ1: No. | BR1: ='Set-Up'!M24 -> LJ | BS1: =BU1 -> SP | BT1: No. | BU1: ='Set-Up'!M25 -> SP | BV1: =BX1 -> JT | BW1: No. | BX1: ='Set-Up'!M26 -> JT | BY1: =CA1 -> Discus | BZ1: No. | CA1: ='Set-Up'!M27 -> Discus | CB1: =CD1 ->  | CC1: No. | CD1: ='Set-Up'!M28 ->  | CE1: =CG1 ->  | CF1: No. | CG1: ='Set-Up'!M29 ->  | CH1: =CJ1 ->  | CI1: No. | CJ1: ='Set-Up'!M30 ->  | CK1: =CM1 ->  | CL1: No. | CM1: ='Set-Up'!M31 ->  | CN1: =CP1 ->  | CO1: No. | CP1: ='Set-Up'!M32 ->  | CQ1: =CS1 ->  | CR1: No. | CS1: ='Set-Up'!M33 ->  | CT1: =CV1 ->  | CU1: No. | CV1: ='Set-Up'!M34 ->  | CW1: =CY1 ->  | CX1: No. | CY1: ='Set-Up'!M35 ->  | CZ1: =DB1 ->  | DA1: No. | DB1: ='Set-Up'!M36 ->  | DC1: =DE1 ->  | DD1: No. | DE1: ='Set-Up'!M37 ->  | DF1: =DH1 ->  | DG1: No. | DH1: ='Set-Up'!M38 ->  | DI1: =DK1 ->  | DJ1: No. | DK1: ='Set-Up'!M39 ->  | DL1: =DN1 ->  | DM1: No. | DN1: ='Set-Up'!M40 ->  | DO1: =DQ1 ->  | DP1: No. | DQ1: ='Set-Up'!M41 -> 
E2: 100-400 write as nn.nn 800+ write as mm:ss.00 Field events write as nn.nn
A3: 1 | B3: Sian Wyn Jones | C3: Brunel | D3: F | E3: 400 | F3: 62.7 | G3: 200 | H3: 26.8 | Q3: =IF($E3=$S$1,"Y",IF($G3=$S$1,"Y",IF($I3=$S$1,"Y",IF($K3=$S$1,"Y",IF($M3=$S$1,"Y",IF($O3=$S$1,"Y","")))))) ->  | R3: =A3 -> 1 | S3: =IF($E3=$S$1,$F3,IF($G3=$S$1,$H3,IF($I3=$S$1,$J3,IF($K3=$S$1,$L3,IF($M3=$S$1,$N3,IF($O3=$S$1,$P3,"")))))) ->  | T3: =IF($E3=$V$1,"Y",IF($G3=$V$1,"Y",IF($I3=$V$1,"Y",IF($K3=$V$1,"Y",IF($M3=$V$1,"Y",IF($O3=$V$1,"Y","")))))) ->  | U3: =A3 -> 1 | V3: =IF($E3=$V$1,$F3,IF($G3=$V$1,$H3,IF($I3=$V$1,$J3,IF($K3=$V$1,$L3,IF($M3=$V$1,$N3,IF($O3=$V$1,$P3,"")))))) ->  | W3: =IF($E3=$Y$1,"Y",IF($G3=$Y$1,"Y",IF($I3=$Y$1,"Y",IF($K3=$Y$1,"Y",IF($M3=$Y$1,"Y",IF($O3=$Y$1,"Y","")))))) ->  | X3: =A3 -> 1 | Y3: =IF($E3=$Y$1,$F3,IF($G3=$Y$1,$H3,IF($I3=$Y$1,$J3,IF($K3=$Y$1,$L3,IF($M3=$Y$1,$N3,IF($O3=$Y$1,$P3,"")))))) ->  | Z3: =IF($E3=$AB$1,"Y",IF($G3=$AB$1,"Y",IF($I3=$AB$1,"Y",IF($K3=$AB$1,"Y",IF($M3=$AB$1,"Y",IF($O3=$AB$1,"Y","")))))) -> Y | AA3: =A3 -> 1 | AB3: =IF($E3=$AB$1,$F3,IF($G3=$AB$1,$H3,IF($I3=$AB$1,$J3,IF($K3=$AB$1,$L3,IF($M3=$AB$1,$N3,IF($O3=$AB$1,$P3,"")))))) -> 26.8 | AC3: =IF($E3=$AE$1,"Y",IF($G3=$AE$1,"Y",IF($I3=$AE$1,"Y",IF($K3=$AE$1,"Y",IF($M3=$AE$1,"Y",IF($O3=$AE$1,"Y","")))))) -> Y | AD3: =A3 -> 1 | AE3: =IF($E3=$AE$1,$F3,IF($G3=$AE$1,$H3,IF($I3=$AE$1,$J3,IF($K3=$AE$1,$L3,IF($M3=$AE$1,$N3,IF($O3=$AE$1,$P3,"")))))) -> 62.7 | AF3: =IF($E3=$AH$1,"Y",IF($G3=$AH$1,"Y",IF($I3=$AH$1,"Y",IF($K3=$AH$1,"Y",IF($M3=$AH$1,"Y",IF($O3=$AH$1,"Y","")))))) ->  | AG3: =A3 -> 1 | AH3: =IF($E3=$AH$1,$F3,IF($G3=$AH$1,$H3,IF($I3=$AH$1,$J3,IF($K3=$AH$1,$L3,IF($M3=$AH$1,$N3,IF($O3=$AH$1,$P3,"")))))) ->  | AI3: =IF($E3=$AK$1,"Y",IF($G3=$AK$1,"Y",IF($I3=$AK$1,"Y",IF($K3=$AK$1,"Y",IF($M3=$AK$1,"Y",IF($O3=$AK$1,"Y","")))))) ->  | AJ3: =A3 -> 1 | AK3: =IF($E3=$AK$1,$F3,IF($G3=$AK$1,$H3,IF($I3=$AK$1,$J3,IF($K3=$AK$1,$L3,IF($M3=$AK$1,$N3,IF($O3=$AK$1,$P3,"")))))) ->  | AL3: =IF($E3=$AN$1,"Y",IF($G3=$AN$1,"Y",IF($I3=$AN$1,"Y",IF($K3=$AN$1,"Y",IF($M3=$AN$1,"Y",IF($O3=$AN$1,"Y","")))))) ->  | AM3: =$A$3 -> 1 | AN3: =IF($E3=$AN$1,$F3,IF($G3=$AN$1,$H3,IF($I3=$AN$1,$J3,IF($K3=$AN$1,$L3,IF($M3=$AN$1,$N3,IF($O3=$AN$1,$P3,"")))))) ->  | AO3: =IF($E3=$AQ$1,"Y",IF($G3=$AQ$1,"Y",IF($I3=$AQ$1,"Y",IF($K3=$AQ$1,"Y",IF($M3=$AQ$1,"Y",IF($O3=$AQ$1,"Y","")))))) ->  | AP3: =$A$3 -> 1 | AQ3: =IF($E3=$AQ$1,$F3,IF($G3=$AQ$1,$H3,IF($I3=$AQ$1,$J3,IF($K3=$AQ$1,$L3,IF($M3=$AQ$1,$N3,IF($O3=$AQ$1,$P3,"")))))) ->  | AR3: =IF($E3=AR1,"Y",IF($G3=AR1,"Y",IF($I3=AR1,"Y",IF($K3=AR1,"Y",IF($M3=AR1,"Y",IF($O3=AR1,"Y","")))))) ->  | AS3: =$A$3 -> 1 | AT3: =IF($E3=AT1,$F3,IF($G3=AT1,$H3,IF($I3=AT1,$J3,IF($K3=AT1,$L3,IF($M3=AT1,$N3,IF($O3=AT1,$P3,"")))))) ->  | AU3: =IF($E3=AU1,"Y",IF($G3=AU1,"Y",IF($I3=AU1,"Y",IF($K3=AU1,"Y",IF($M3=AU1,"Y",IF($O3=AU1,"Y","")))))) ->  | AV3: =$A$3 -> 1 | AW3: =IF($E3=AW1,$F3,IF($G3=AW1,$H3,IF($I3=AW1,$J3,IF($K3=AW1,$L3,IF($M3=AW1,$N3,IF($O3=AW1,$P3,"")))))) ->  | AX3: =IF($E3=AX1,"Y",IF($G3=AX1,"Y",IF($I3=AX1,"Y",IF($K3=AX1,"Y",IF($M3=AX1,"Y",IF($O3=AX1,"Y","")))))) ->  | AY3: =$A$3 -> 1 | AZ3: =IF($E3=AZ1,$F3,IF($G3=AZ1,$H3,IF($I3=AZ1,$J3,IF($K3=AZ1,$L3,IF($M3=AZ1,$N3,IF($O3=AZ1,$P3,"")))))) ->  | BA3: =IF($E3=BA1,"Y",IF($G3=BA1,"Y",IF($I3=BA1,"Y",IF($K3=BA1,"Y",IF($M3=BA1,"Y",IF($O3=BA1,"Y","")))))) ->  | BB3: =$A$3 -> 1 | BC3: =IF($E3=BC1,$F3,IF($G3=BC1,$H3,IF($I3=BC1,$J3,IF($K3=BC1,$L3,IF($M3=BC1,$N3,IF($O3=BC1,$P3,"")))))) ->  | BD3: =IF($E3=BD1,"Y",IF($G3=BD1,"Y",IF($I3=BD1,"Y",IF($K3=BD1,"Y",IF($M3=BD1,"Y",IF($O3=BD1,"Y","")))))) ->  | BE3: =$A$3 -> 1 | BF3: =IF($E3=BF1,$F3,IF($G3=BF1,$H3,IF($I3=BF1,$J3,IF($K3=BF1,$L3,IF($M3=BF1,$N3,IF($O3=BF1,$P3,"")))))) ->  | BG3: =IF($E3=BG1,"Y",IF($G3=BG1,"Y",IF($I3=BG1,"Y",IF($K3=BG1,"Y",IF($M3=BG1,"Y",IF($O3=BG1,"Y","")))))) ->  | BH3: =$A$3 -> 1 | BI3: =IF($E3=BI1,$F3,IF($G3=BI1,$H3,IF($I3=BI1,$J3,IF($K3=BI1,$L3,IF($M3=BI1,$N3,IF($O3=BI1,$P3,"")))))) ->  | BJ3: =IF($E3=BJ1,"Y",IF($G3=BJ1,"Y",IF($I3=BJ1,"Y",IF($K3=BJ1,"Y",IF($M3=BJ1,"Y",IF($O3=BJ1,"Y","")))))) ->  | BK3: =$A$3 -> 1 | BL3: =IF($E3=BL1,$F3,IF($G3=BL1,$H3,IF($I3=BL1,$J3,IF($K3=BL1,$L3,IF($M3=BL1,$N3,IF($O3=BL1,$P3,"")))))) ->  | BM3: =IF($E3=BM1,"Y",IF($G3=BM1,"Y",IF($I3=BM1,"Y",IF($K3=BM1,"Y",IF($M3=BM1,"Y",IF($O3=BM1,"Y","")))))) ->  | BN3: =$A$3 -> 1 | BO3: =IF($E3=BO1,$F3,IF($G3=BO1,$H3,IF($I3=BO1,$J3,IF($K3=BO1,$L3,IF($M3=BO1,$N3,IF($O3=BO1,$P3,"")))))) ->  | BP3: =IF($E3=BP1,"Y",IF($G3=BP1,"Y",IF($I3=BP1,"Y",IF($K3=BP1,"Y",IF($M3=BP1,"Y",IF($O3=BP1,"Y","")))))) ->  | BQ3: =$A$3 -> 1 | BR3: =IF($E3=BR1,$F3,IF($G3=BR1,$H3,IF($I3=BR1,$J3,IF($K3=BR1,$L3,IF($M3=BR1,$N3,IF($O3=BR1,$P3,"")))))) ->  | BS3: =IF($E3=BS1,"Y",IF($G3=BS1,"Y",IF($I3=BS1,"Y",IF($K3=BS1,"Y",IF($M3=BS1,"Y",IF($O3=BS1,"Y","")))))) ->  | BT3: =$A$3 -> 1 | BU3: =IF($E3=BU1,$F3,IF($G3=BU1,$H3,IF($I3=BU1,$J3,IF($K3=BU1,$L3,IF($M3=BU1,$N3,IF($O3=BU1,$P3,"")))))) ->  | BV3: =IF($E3=BV1,"Y",IF($G3=BV1,"Y",IF($I3=BV1,"Y",IF($K3=BV1,"Y",IF($M3=BV1,"Y",IF($O3=BV1,"Y","")))))) ->  | BW3: =$A$3 -> 1 | BX3: =IF($E3=BX1,$F3,IF($G3=BX1,$H3,IF($I3=BX1,$J3,IF($K3=BX1,$L3,IF($M3=BX1,$N3,IF($O3=BX1,$P3,"")))))) ->  | BY3: =IF($E3=BY1,"Y",IF($G3=BY1,"Y",IF($I3=BY1,"Y",IF($K3=BY1,"Y",IF($M3=BY1,"Y",IF($O3=BY1,"Y","")))))) ->  | BZ3: =$A$3 -> 1 | CA3: =IF($E3=CA1,$F3,IF($G3=CA1,$H3,IF($I3=CA1,$J3,IF($K3=CA1,$L3,IF($M3=CA1,$N3,IF($O3=CA1,$P3,"")))))) ->  | CB3: =IF($E3=CB1,"Y",IF($G3=CB1,"Y",IF($I3=CB1,"Y",IF($K3=CB1,"Y",IF($M3=CB1,"Y",IF($O3=CB1,"Y","")))))) -> Y | CC3: =$A$3 -> 1 | CD3: =IF($E3=CD1,$F3,IF($G3=CD1,$H3,IF($I3=CD1,$J3,IF($K3=CD1,$L3,IF($M3=CD1,$N3,IF($O3=CD1,$P3,"")))))) -> 0 | CE3: =IF($E3=CE1,"Y",IF($G3=CE1,"Y",IF($I3=CE1,"Y",IF($K3=CE1,"Y",IF($M3=CE1,"Y",IF($O3=CE1,"Y","")))))) -> Y | CF3: =$A$3 -> 1 | CG3: =IF($E3=CG1,$F3,IF($G3=CG1,$H3,IF($I3=CG1,$J3,IF($K3=CG1,$L3,IF($M3=CG1,$N3,IF($O3=CG1,$P3,"")))))) -> 0 | CH3: =IF($E3=CH1,"Y",IF($G3=CH1,"Y",IF($I3=CH1,"Y",IF($K3=CH1,"Y",IF($M3=CH1,"Y",IF($O3=CH1,"Y","")))))) -> Y | CI3: =$A$3 -> 1 | CJ3: =IF($E3=CJ1,$F3,IF($G3=CJ1,$H3,IF($I3=CJ1,$J3,IF($K3=CJ1,$L3,IF($M3=CJ1,$N3,IF($O3=CJ1,$P3,"")))))) -> 0 | CK3: =IF($E3=CK1,"Y",IF($G3=CK1,"Y",IF($I3=CK1,"Y",IF($K3=CK1,"Y",IF($M3=CK1,"Y",IF($O3=CK1,"Y","")))))) -> Y | CL3: =$A$3 -> 1 | CM3: =IF($E3=CM1,$F3,IF($G3=CM1,$H3,IF($I3=CM1,$J3,IF($K3=CM1,$L3,IF($M3=CM1,$N3,IF($O3=CM1,$P3,"")))))) -> 0 | CN3: =IF($E3=CN1,"Y",IF($G3=CN1,"Y",IF($I3=CN1,"Y",IF($K3=CN1,"Y",IF($M3=CN1,"Y",IF($O3=CN1,"Y","")))))) -> Y | CO3: =$A$3 -> 1 | CP3: =IF($E3=CP1,$F3,IF($G3=CP1,$H3,IF($I3=CP1,$J3,IF($K3=CP1,$L3,IF($M3=CP1,$N3,IF($O3=CP1,$P3,"")))))) -> 0 | CQ3: =IF($E3=CQ1,"Y",IF($G3=CQ1,"Y",IF($I3=CQ1,"Y",IF($K3=CQ1,"Y",IF($M3=CQ1,"Y",IF($O3=CQ1,"Y","")))))) -> Y | CR3: =$A$3 -> 1 | CS3: =IF($E3=CS1,$F3,IF($G3=CS1,$H3,IF($I3=CS1,$J3,IF($K3=CS1,$L3,IF($M3=CS1,$N3,IF($O3=CS1,$P3,"")))))) -> 0 | CT3: =IF($E3=CT1,"Y",IF($G3=CT1,"Y",IF($I3=CT1,"Y",IF($K3=CT1,"Y",IF($M3=CT1,"Y",IF($O3=CT1,"Y","")))))) -> Y | CU3: =$A$3 -> 1 | CV3: =IF($E3=CV1,$F3,IF($G3=CV1,$H3,IF($I3=CV1,$J3,IF($K3=CV1,$L3,IF($M3=CV1,$N3,IF($O3=CV1,$P3,"")))))) -> 0 | CW3: =IF($E3=CW1,"Y",IF($G3=CW1,"Y",IF($I3=CW1,"Y",IF($K3=CW1,"Y",IF($M3=CW1,"Y",IF($O3=CW1,"Y","")))))) -> Y | CX3: =$A$3 -> 1 | CY3: =IF($E3=CY1,$F3,IF($G3=CY1,$H3,IF($I3=CY1,$J3,IF($K3=CY1,$L3,IF($M3=CY1,$N3,IF($O3=CY1,$P3,"")))))) -> 0 | CZ3: =IF($E3=CZ1,"Y",IF($G3=CZ1,"Y",IF($I3=CZ1,"Y",IF($K3=CZ1,"Y",IF($M3=CZ1,"Y",IF($O3=CZ1,"Y","")))))) -> Y | DA3: =$A$3 -> 1 | DB3: =IF($E3=DB1,$F3,IF($G3=DB1,$H3,IF($I3=DB1,$J3,IF($K3=DB1,$L3,IF($M3=DB1,$N3,IF($O3=DB1,$P3,"")))))) -> 0 | DC3: =IF($E3=DC1,"Y",IF($G3=DC1,"Y",IF($I3=DC1,"Y",IF($K3=DC1,"Y",IF($M3=DC1,"Y",IF($O3=DC1,"Y","")))))) -> Y | DD3: =$A$3 -> 1 | DE3: =IF($E3=DE1,$F3,IF($G3=DE1,$H3,IF($I3=DE1,$J3,IF($K3=DE1,$L3,IF($M3=DE1,$N3,IF($O3=DE1,$P3,"")))))) -> 0 | DF3: =IF($E3=DF1,"Y",IF($G3=DF1,"Y",IF($I3=DF1,"Y",IF($K3=DF1,"Y",IF($M3=DF1,"Y",IF($O3=DF1,"Y","")))))) -> Y | DG3: =$A$3 -> 1 | DH3: =IF($E3=DH1,$F3,IF($G3=DH1,$H3,IF($I3=DH1,$J3,IF($K3=DH1,$L3,IF($M3=DH1,$N3,IF($O3=DH1,$P3,"")))))) -> 0 | DI3: =IF($E3=DI1,"Y",IF($G3=DI1,"Y",IF($I3=DI1,"Y",IF($K3=DI1,"Y",IF($M3=DI1,"Y",IF($O3=DI1,"Y","")))))) -> Y | DJ3: =$A$3 -> 1 | DK3: =IF($E3=DK1,$F3,IF($G3=DK1,$H3,IF($I3=DK1,$J3,IF($K3=DK1,$L3,IF($M3=DK1,$N3,IF($O3=DK1,$P3,"")))))) -> 0 | DL3: =IF($E3=DL1,"Y",IF($G3=DL1,"Y",IF($I3=DL1,"Y",IF($K3=DL1,"Y",IF($M3=DL1,"Y",IF($O3=DL1,"Y","")))))) -> Y | DM3: =$A$3 -> 1 | DN3: =IF($E3=DN1,$F3,IF($G3=DN1,$H3,IF($I3=DN1,$J3,IF($K3=DN1,$L3,IF($M3=DN1,$N3,IF($O3=DN1,$P3,"")))))) -> 0 | DO3: =IF($E3=DO1,"Y",IF($G3=DO1,"Y",IF($I3=DO1,"Y",IF($K3=DO1,"Y",IF($M3=DO1,"Y",IF($O3=DO1,"Y","")))))) -> Y | DP3: =$A$3 -> 1 | DQ3: =IF($E3=DQ1,$F3,IF($G3=DQ1,$H3,IF($I3=DQ1,$J3,IF($K3=DQ1,$L3,IF($M3=DQ1,$N3,IF($O3=DQ1,$P3,"")))))) -> 0
A4: 2 | B4: Shannon Kennedy | C4: Brunel | D4: F | E4: 400 | F4: 61.5 | G4: 200 | H4: 27 | Q4: =IF($E4=$S$1,"Y",IF($G4=$S$1,"Y",IF($I4=$S$1,"Y",IF($K4=$S$1,"Y",IF($M4=$S$1,"Y",IF($O4=$S$1,"Y","")))))) ->  | R4: 2 | S4: =IF($E4=$S$1,$F4,IF($G4=$S$1,$H4,IF($I4=$S$1,$J4,IF($K4=$S$1,$L4,IF($M4=$S$1,$N4,IF($O4=$S$1,$P4,"")))))) ->  | T4: =IF($E4=$V$1,"Y",IF($G4=$V$1,"Y",IF($I4=$V$1,"Y",IF($K4=$V$1,"Y",IF($M4=$V$1,"Y",IF($O4=$V$1,"Y","")))))) ->  | U4: 2 | V4: =IF($E4=$V$1,$F4,IF($G4=$V$1,$H4,IF($I4=$V$1,$J4,IF($K4=$V$1,$L4,IF($M4=$V$1,$N4,IF($O4=$V$1,$P4,"")))))) ->  | W4: =IF($E4=$Y$1,"Y",IF($G4=$Y$1,"Y",IF($I4=$Y$1,"Y",IF($K4=$Y$1,"Y",IF($M4=$Y$1,"Y",IF($O4=$Y$1,"Y","")))))) ->  | X4: 2 | Y4: =IF($E4=$Y$1,$F4,IF($G4=$Y$1,$H4,IF($I4=$Y$1,$J4,IF($K4=$Y$1,$L4,IF($M4=$Y$1,$N4,IF($O4=$Y$1,$P4,"")))))) ->  | Z4: =IF($E4=$AB$1,"Y",IF($G4=$AB$1,"Y",IF($I4=$AB$1,"Y",IF($K4=$AB$1,"Y",IF($M4=$AB$1,"Y",IF($O4=$AB$1,"Y","")))))) -> Y | AA4: 2 | AB4: =IF($E4=$AB$1,$F4,IF($G4=$AB$1,$H4,IF($I4=$AB$1,$J4,IF($K4=$AB$1,$L4,IF($M4=$AB$1,$N4,IF($O4=$AB$1,$P4,"")))))) -> 27 | AC4: =IF($E4=$AE$1,"Y",IF($G4=$AE$1,"Y",IF($I4=$AE$1,"Y",IF($K4=$AE$1,"Y",IF($M4=$AE$1,"Y",IF($O4=$AE$1,"Y","")))))) -> Y | AD4: 2 | AE4: =IF($E4=$AE$1,$F4,IF($G4=$AE$1,$H4,IF($I4=$AE$1,$J4,IF($K4=$AE$1,$L4,IF($M4=$AE$1,$N4,IF($O4=$AE$1,$P4,"")))))) -> 61.5 | AF4: =IF($E4=$AH$1,"Y",IF($G4=$AH$1,"Y",IF($I4=$AH$1,"Y",IF($K4=$AH$1,"Y",IF($M4=$AH$1,"Y",IF($O4=$AH$1,"Y","")))))) ->  | AG4: 2 | AH4: =IF($E4=$AH$1,$F4,IF($G4=$AH$1,$H4,IF($I4=$AH$1,$J4,IF($K4=$AH$1,$L4,IF($M4=$AH$1,$N4,IF($O4=$AH$1,$P4,"")))))) ->  | AI4: =IF($E4=$AK$1,"Y",IF($G4=$AK$1,"Y",IF($I4=$AK$1,"Y",IF($K4=$AK$1,"Y",IF($M4=$AK$1,"Y",IF($O4=$AK$1,"Y","")))))) ->  | AJ4: 2 | AK4: =IF($E4=$AK$1,$F4,IF($G4=$AK$1,$H4,IF($I4=$AK$1,$J4,IF($K4=$AK$1,$L4,IF($M4=$AK$1,$N4,IF($O4=$AK$1,$P4,"")))))) ->  | AL4: =IF($E4=$AN$1,"Y",IF($G4=$AN$1,"Y",IF($I4=$AN$1,"Y",IF($K4=$AN$1,"Y",IF($M4=$AN$1,"Y",IF($O4=$AN$1,"Y","")))))) ->  | AM4: =$A$4 -> 2 | AN4: =IF($E4=$AN$1,$F4,IF($G4=$AN$1,$H4,IF($I4=$AN$1,$J4,IF($K4=$AN$1,$L4,IF($M4=$AN$1,$N4,IF($O4=$AN$1,$P4,"")))))) ->  | AO4: =IF($E4=$AQ$1,"Y",IF($G4=$AQ$1,"Y",IF($I4=$AQ$1,"Y",IF($K4=$AQ$1,"Y",IF($M4=$AQ$1,"Y",IF($O4=$AQ$1,"Y","")))))) ->  | AP4: =$A$4 -> 2 | AQ4: =IF($E4=$AQ$1,$F4,IF($G4=$AQ$1,$H4,IF($I4=$AQ$1,$J4,IF($K4=$AQ$1,$L4,IF($M4=$AQ$1,$N4,IF($O4=$AQ$1,$P4,"")))))) ->  | AR4: =IF($E4=AR1,"Y",IF($G4=AR1,"Y",IF($I4=AR1,"Y",IF($K4=AR1,"Y",IF($M4=AR1,"Y",IF($O4=AR1,"Y","")))))) ->  | AS4: =$A$4 -> 2 | AT4: =IF($E4=AT1,$F4,IF($G4=AT1,$H4,IF($I4=AT1,$J4,IF($K4=AT1,$L4,IF($M4=AT1,$N4,IF($O4=AT1,$P4,"")))))) ->  | AU4: =IF($E4=AU1,"Y",IF($G4=AU1,"Y",IF($I4=AU1,"Y",IF($K4=AU1,"Y",IF($M4=AU1,"Y",IF($O4=AU1,"Y","")))))) ->  | AV4: =$A$4 -> 2 | AW4: =IF($E4=AW1,$F4,IF($G4=AW1,$H4,IF($I4=AW1,$J4,IF($K4=AW1,$L4,IF($M4=AW1,$N4,IF($O4=AW1,$P4,"")))))) ->  | AX4: =IF($E4=AX1,"Y",IF($G4=AX1,"Y",IF($I4=AX1,"Y",IF($K4=AX1,"Y",IF($M4=AX1,"Y",IF($O4=AX1,"Y","")))))) ->  | AY4: =$A$4 -> 2 | AZ4: =IF($E4=AZ1,$F4,IF($G4=AZ1,$H4,IF($I4=AZ1,$J4,IF($K4=AZ1,$L4,IF($M4=AZ1,$N4,IF($O4=AZ1,$P4,"")))))) ->  | BA4: =IF($E4=BA1,"Y",IF($G4=BA1,"Y",IF($I4=BA1,"Y",IF($K4=BA1,"Y",IF($M4=BA1,"Y",IF($O4=BA1,"Y","")))))) ->  | BB4: =$A$4 -> 2 | BC4: =IF($E4=BC1,$F4,IF($G4=BC1,$H4,IF($I4=BC1,$J4,IF($K4=BC1,$L4,IF($M4=BC1,$N4,IF($O4=BC1,$P4,"")))))) ->  | BD4: =IF($E4=BD1,"Y",IF($G4=BD1,"Y",IF($I4=BD1,"Y",IF($K4=BD1,"Y",IF($M4=BD1,"Y",IF($O4=BD1,"Y","")))))) ->  | BE4: =$A$4 -> 2 | BF4: =IF($E4=BF1,$F4,IF($G4=BF1,$H4,IF($I4=BF1,$J4,IF($K4=BF1,$L4,IF($M4=BF1,$N4,IF($O4=BF1,$P4,"")))))) ->  | BG4: =IF($E4=BG1,"Y",IF($G4=BG1,"Y",IF($I4=BG1,"Y",IF($K4=BG1,"Y",IF($M4=BG1,"Y",IF($O4=BG1,"Y","")))))) ->  | BH4: =$A$4 -> 2 | BI4: =IF($E4=BI1,$F4,IF($G4=BI1,$H4,IF($I4=BI1,$J4,IF($K4=BI1,$L4,IF($M4=BI1,$N4,IF($O4=BI1,$P4,"")))))) ->  | BJ4: =IF($E4=BJ1,"Y",IF($G4=BJ1,"Y",IF($I4=BJ1,"Y",IF($K4=BJ1,"Y",IF($M4=BJ1,"Y",IF($O4=BJ1,"Y","")))))) ->  | BK4: =$A$4 -> 2 | BL4: =IF($E4=BL1,$F4,IF($G4=BL1,$H4,IF($I4=BL1,$J4,IF($K4=BL1,$L4,IF($M4=BL1,$N4,IF($O4=BL1,$P4,"")))))) ->  | BM4: =IF($E4=BM1,"Y",IF($G4=BM1,"Y",IF($I4=BM1,"Y",IF($K4=BM1,"Y",IF($M4=BM1,"Y",IF($O4=BM1,"Y","")))))) ->  | BN4: =$A$4 -> 2 | BO4: =IF($E4=BO1,$F4,IF($G4=BO1,$H4,IF($I4=BO1,$J4,IF($K4=BO1,$L4,IF($M4=BO1,$N4,IF($O4=BO1,$P4,"")))))) ->  | BP4: =IF($E4=BP1,"Y",IF($G4=BP1,"Y",IF($I4=BP1,"Y",IF($K4=BP1,"Y",IF($M4=BP1,"Y",IF($O4=BP1,"Y","")))))) ->  | BQ4: =$A$4 -> 2 | BR4: =IF($E4=BR1,$F4,IF($G4=BR1,$H4,IF($I4=BR1,$J4,IF($K4=BR1,$L4,IF($M4=BR1,$N4,IF($O4=BR1,$P4,"")))))) ->  | BS4: =IF($E4=BS1,"Y",IF($G4=BS1,"Y",IF($I4=BS1,"Y",IF($K4=BS1,"Y",IF($M4=BS1,"Y",IF($O4=BS1,"Y","")))))) ->  | BT4: =$A$4 -> 2 | BU4: =IF($E4=BU1,$F4,IF($G4=BU1,$H4,IF($I4=BU1,$J4,IF($K4=BU1,$L4,IF($M4=BU1,$N4,IF($O4=BU1,$P4,"")))))) ->  | BV4: =IF($E4=BV1,"Y",IF($G4=BV1,"Y",IF($I4=BV1,"Y",IF($K4=BV1,"Y",IF($M4=BV1,"Y",IF($O4=BV1,"Y","")))))) ->  | BW4: =$A$4 -> 2 | BX4: =IF($E4=BX1,$F4,IF($G4=BX1,$H4,IF($I4=BX1,$J4,IF($K4=BX1,$L4,IF($M4=BX1,$N4,IF($O4=BX1,$P4,"")))))) ->  | BY4: =IF($E4=BY1,"Y",IF($G4=BY1,"Y",IF($I4=BY1,"Y",IF($K4=BY1,"Y",IF($M4=BY1,"Y",IF($O4=BY1,"Y","")))))) ->  | BZ4: =$A$4 -> 2 | CA4: =IF($E4=CA1,$F4,IF($G4=CA1,$H4,IF($I4=CA1,$J4,IF($K4=CA1,$L4,IF($M4=CA1,$N4,IF($O4=CA1,$P4,"")))))) ->  | CB4: =IF($E4=CB1,"Y",IF($G4=CB1,"Y",IF($I4=CB1,"Y",IF($K4=CB1,"Y",IF($M4=CB1,"Y",IF($O4=CB1,"Y","")))))) -> Y | CC4: =$A$4 -> 2 | CD4: =IF($E4=CD1,$F4,IF($G4=CD1,$H4,IF($I4=CD1,$J4,IF($K4=CD1,$L4,IF($M4=CD1,$N4,IF($O4=CD1,$P4,"")))))) -> 0 | CE4: =IF($E4=CE1,"Y",IF($G4=CE1,"Y",IF($I4=CE1,"Y",IF($K4=CE1,"Y",IF($M4=CE1,"Y",IF($O4=CE1,"Y","")))))) -> Y | CF4: =$A$4 -> 2 | CG4: =IF($E4=CG1,$F4,IF($G4=CG1,$H4,IF($I4=CG1,$J4,IF($K4=CG1,$L4,IF($M4=CG1,$N4,IF($O4=CG1,$P4,"")))))) -> 0 | CH4: =IF($E4=CH1,"Y",IF($G4=CH1,"Y",IF($I4=CH1,"Y",IF($K4=CH1,"Y",IF($M4=CH1,"Y",IF($O4=CH1,"Y","")))))) -> Y | CI4: =$A$4 -> 2 | CJ4: =IF($E4=CJ1,$F4,IF($G4=CJ1,$H4,IF($I4=CJ1,$J4,IF($K4=CJ1,$L4,IF($M4=CJ1,$N4,IF($O4=CJ1,$P4,"")))))) -> 0 | CK4: =IF($E4=CK1,"Y",IF($G4=CK1,"Y",IF($I4=CK1,"Y",IF($K4=CK1,"Y",IF($M4=CK1,"Y",IF($O4=CK1,"Y","")))))) -> Y | CL4: =$A$4 -> 2 | CM4: =IF($E4=CM1,$F4,IF($G4=CM1,$H4,IF($I4=CM1,$J4,IF($K4=CM1,$L4,IF($M4=CM1,$N4,IF($O4=CM1,$P4,"")))))) -> 0 | CN4: =IF($E4=CN1,"Y",IF($G4=CN1,"Y",IF($I4=CN1,"Y",IF($K4=CN1,"Y",IF($M4=CN1,"Y",IF($O4=CN1,"Y","")))))) -> Y | CO4: =$A$4 -> 2 | CP4: =IF($E4=CP1,$F4,IF($G4=CP1,$H4,IF($I4=CP1,$J4,IF($K4=CP1,$L4,IF($M4=CP1,$N4,IF($O4=CP1,$P4,"")))))) -> 0 | CQ4: =IF($E4=CQ1,"Y",IF($G4=CQ1,"Y",IF($I4=CQ1,"Y",IF($K4=CQ1,"Y",IF($M4=CQ1,"Y",IF($O4=CQ1,"Y","")))))) -> Y | CR4: =$A$4 -> 2 | CS4: =IF($E4=CS1,$F4,IF($G4=CS1,$H4,IF($I4=CS1,$J4,IF($K4=CS1,$L4,IF($M4=CS1,$N4,IF($O4=CS1,$P4,"")))))) -> 0 | CT4: =IF($E4=CT1,"Y",IF($G4=CT1,"Y",IF($I4=CT1,"Y",IF($K4=CT1,"Y",IF($M4=CT1,"Y",IF($O4=CT1,"Y","")))))) -> Y | CU4: =$A$4 -> 2 | CV4: =IF($E4=CV1,$F4,IF($G4=CV1,$H4,IF($I4=CV1,$J4,IF($K4=CV1,$L4,IF($M4=CV1,$N4,IF($O4=CV1,$P4,"")))))) -> 0 | CW4: =IF($E4=CW1,"Y",IF($G4=CW1,"Y",IF($I4=CW1,"Y",IF($K4=CW1,"Y",IF($M4=CW1,"Y",IF($O4=CW1,"Y","")))))) -> Y | CX4: =$A$4 -> 2 | CY4: =IF($E4=CY1,$F4,IF($G4=CY1,$H4,IF($I4=CY1,$J4,IF($K4=CY1,$L4,IF($M4=CY1,$N4,IF($O4=CY1,$P4,"")))))) -> 0 | CZ4: =IF($E4=CZ1,"Y",IF($G4=CZ1,"Y",IF($I4=CZ1,"Y",IF($K4=CZ1,"Y",IF($M4=CZ1,"Y",IF($O4=CZ1,"Y","")))))) -> Y | DA4: =$A$4 -> 2 | DB4: =IF($E4=DB1,$F4,IF($G4=DB1,$H4,IF($I4=DB1,$J4,IF($K4=DB1,$L4,IF($M4=DB1,$N4,IF($O4=DB1,$P4,"")))))) -> 0 | DC4: =IF($E4=DC1,"Y",IF($G4=DC1,"Y",IF($I4=DC1,"Y",IF($K4=DC1,"Y",IF($M4=DC1,"Y",IF($O4=DC1,"Y","")))))) -> Y | DD4: =$A$4 -> 2 | DE4: =IF($E4=DE1,$F4,IF($G4=DE1,$H4,IF($I4=DE1,$J4,IF($K4=DE1,$L4,IF($M4=DE1,$N4,IF($O4=DE1,$P4,"")))))) -> 0 | DF4: =IF($E4=DF1,"Y",IF($G4=DF1,"Y",IF($I4=DF1,"Y",IF($K4=DF1,"Y",IF($M4=DF1,"Y",IF($O4=DF1,"Y","")))))) -> Y | DG4: =$A$4 -> 2 | DH4: =IF($E4=DH1,$F4,IF($G4=DH1,$H4,IF($I4=DH1,$J4,IF($K4=DH1,$L4,IF($M4=DH1,$N4,IF($O4=DH1,$P4,"")))))) -> 0 | DI4: =IF($E4=DI1,"Y",IF($G4=DI1,"Y",IF($I4=DI1,"Y",IF($K4=DI1,"Y",IF($M4=DI1,"Y",IF($O4=DI1,"Y","")))))) -> Y | DJ4: =$A$4 -> 2 | DK4: =IF($E4=DK1,$F4,IF($G4=DK1,$H4,IF($I4=DK1,$J4,IF($K4=DK1,$L4,IF($M4=DK1,$N4,IF($O4=DK1,$P4,"")))))) -> 0 | DL4: =IF($E4=DL1,"Y",IF($G4=DL1,"Y",IF($I4=DL1,"Y",IF($K4=DL1,"Y",IF($M4=DL1,"Y",IF($O4=DL1,"Y","")))))) -> Y | DM4: =$A$4 -> 2 | DN4: =IF($E4=DN1,$F4,IF($G4=DN1,$H4,IF($I4=DN1,$J4,IF($K4=DN1,$L4,IF($M4=DN1,$N4,IF($O4=DN1,$P4,"")))))) -> 0 | DO4: =IF($E4=DO1,"Y",IF($G4=DO1,"Y",IF($I4=DO1,"Y",IF($K4=DO1,"Y",IF($M4=DO1,"Y",IF($O4=DO1,"Y","")))))) -> Y | DP4: =$A$4 -> 2 | DQ4: =IF($E4=DQ1,$F4,IF($G4=DQ1,$H4,IF($I4=DQ1,$J4,IF($K4=DQ1,$L4,IF($M4=DQ1,$N4,IF($O4=DQ1,$P4,"")))))) -> 0
A5: 3 | B5: Ainsley James Lazar | C5: Brunel | D5: M | E5: 5000 | F5: 00:20:22 | R5: 3 | T5: =IF($E5=$V$1,"Y",IF($G5=$V$1,"Y",IF($I5=$V$1,"Y",IF($K5=$V$1,"Y",IF($M5=$V$1,"Y",IF($O5=$V$1,"Y","")))))) ->  | U5: 3 | V5: =IF($E5=$V$1,$F5,IF($G5=$V$1,$H5,IF($I5=$V$1,$J5,IF($K5=$V$1,$L5,IF($M5=$V$1,$N5,IF($O5=$V$1,$P5,"")))))) ->  | W5: =IF($E5=$Y$1,"Y",IF($G5=$Y$1,"Y",IF($I5=$Y$1,"Y",IF($K5=$Y$1,"Y",IF($M5=$Y$1,"Y",IF($O5=$Y$1,"Y","")))))) ->  | X5: 3 | Y5: =IF($E5=$Y$1,$F5,IF($G5=$Y$1,$H5,IF($I5=$Y$1,$J5,IF($K5=$Y$1,$L5,IF($M5=$Y$1,$N5,IF($O5=$Y$1,$P5,"")))))) ->  | Z5: =IF($E5=$AB$1,"Y",IF($G5=$AB$1,"Y",IF($I5=$AB$1,"Y",IF($K5=$AB$1,"Y",IF($M5=$AB$1,"Y",IF($O5=$AB$1,"Y","")))))) ->  | AA5: 3 | AB5: =IF($E5=$AB$1,$F5,IF($G5=$AB$1,$H5,IF($I5=$AB$1,$J5,IF($K5=$AB$1,$L5,IF($M5=$AB$1,$N5,IF($O5=$AB$1,$P5,"")))))) ->  | AC5: =IF($E5=$AE$1,"Y",IF($G5=$AE$1,"Y",IF($I5=$AE$1,"Y",IF($K5=$AE$1,"Y",IF($M5=$AE$1,"Y",IF($O5=$AE$1,"Y","")))))) ->  | AD5: 3 | AE5: =IF($E5=$AE$1,$F5,IF($G5=$AE$1,$H5,IF($I5=$AE$1,$J5,IF($K5=$AE$1,$L5,IF($M5=$AE$1,$N5,IF($O5=$AE$1,$P5,"")))))) ->  | AF5: =IF($E5=$AH$1,"Y",IF($G5=$AH$1,"Y",IF($I5=$AH$1,"Y",IF($K5=$AH$1,"Y",IF($M5=$AH$1,"Y",IF($O5=$AH$1,"Y","")))))) ->  | AG5: 3 | AH5: =IF($E5=$AH$1,$F5,IF($G5=$AH$1,$H5,IF($I5=$AH$1,$J5,IF($K5=$AH$1,$L5,IF($M5=$AH$1,$N5,IF($O5=$AH$1,$P5,"")))))) ->  | AJ5: 3 | AK5: =IF($E5=$AK$1,$F5,IF($G5=$AK$1,$H5,IF($I5=$AK$1,$J5,IF($K5=$AK$1,$L5,IF($M5=$AK$1,$N5,IF($O5=$AK$1,$P5,"")))))) ->  | AM5: =$A$5 -> 3 | AP5: =$A$5 -> 3 | AR5: =IF($E5=AR1,"Y",IF($G5=AR1,"Y",IF($I5=AR1,"Y",IF($K5=AR1,"Y",IF($M5=AR1,"Y",IF($O5=AR1,"Y","")))))) ->  | AS5: =$A$5 -> 3 | AT5: =IF($E5=AT1,$F5,IF($G5=AT1,$H5,IF($I5=AT1,$J5,IF($K5=AT1,$L5,IF($M5=AT1,$N5,IF($O5=AT1,$P5,"")))))) ->  | AU5: =IF($E5=AU1,"Y",IF($G5=AU1,"Y",IF($I5=AU1,"Y",IF($K5=AU1,"Y",IF($M5=AU1,"Y",IF($O5=AU1,"Y","")))))) -> Y | AV5: =$A$5 -> 3 | AW5: =IF($E5=AW1,$F5,IF($G5=AW1,$H5,IF($I5=AW1,$J5,IF($K5=AW1,$L5,IF($M5=AW1,$N5,IF($O5=AW1,$P5,"")))))) -> 00:20:22 | AX5: =IF($E5=AX1,"Y",IF($G5=AX1,"Y",IF($I5=AX1,"Y",IF($K5=AX1,"Y",IF($M5=AX1,"Y",IF($O5=AX1,"Y","")))))) ->  | AY5: =$A$5 -> 3 | AZ5: =IF($E5=AZ1,$F5,IF($G5=AZ1,$H5,IF($I5=AZ1,$J5,IF($K5=AZ1,$L5,IF($M5=AZ1,$N5,IF($O5=AZ1,$P5,"")))))) ->  | BA5: =IF($E5=BA1,"Y",IF($G5=BA1,"Y",IF($I5=BA1,"Y",IF($K5=BA1,"Y",IF($M5=BA1,"Y",IF($O5=BA1,"Y","")))))) ->  | BB5: =$A$5 -> 3 | BC5: =IF($E5=BC1,$F5,IF($G5=BC1,$H5,IF($I5=BC1,$J5,IF($K5=BC1,$L5,IF($M5=BC1,$N5,IF($O5=BC1,$P5,"")))))) ->  | BD5: =IF($E5=BD1,"Y",IF($G5=BD1,"Y",IF($I5=BD1,"Y",IF($K5=BD1,"Y",IF($M5=BD1,"Y",IF($O5=BD1,"Y","")))))) ->  | BE5: =$A$5 -> 3 | BF5: =IF($E5=BF1,$F5,IF($G5=BF1,$H5,IF($I5=BF1,$J5,IF($K5=BF1,$L5,IF($M5=BF1,$N5,IF($O5=BF1,$P5,"")))))) ->  | BG5: =IF($E5=BG1,"Y",IF($G5=BG1,"Y",IF($I5=BG1,"Y",IF($K5=BG1,"Y",IF($M5=BG1,"Y",IF($O5=BG1,"Y","")))))) ->  | BH5: =$A$5 -> 3 | BI5: =IF($E5=BI1,$F5,IF($G5=BI1,$H5,IF($I5=BI1,$J5,IF($K5=BI1,$L5,IF($M5=BI1,$N5,IF($O5=BI1,$P5,"")))))) ->  | BJ5: =IF($E5=BJ1,"Y",IF($G5=BJ1,"Y",IF($I5=BJ1,"Y",IF($K5=BJ1,"Y",IF($M5=BJ1,"Y",IF($O5=BJ1,"Y","")))))) ->  | BK5: =$A$5 -> 3 | BL5: =IF($E5=BL1,$F5,IF($G5=BL1,$H5,IF($I5=BL1,$J5,IF($K5=BL1,$L5,IF($M5=BL1,$N5,IF($O5=BL1,$P5,"")))))) ->  | BM5: =IF($E5=BM1,"Y",IF($G5=BM1,"Y",IF($I5=BM1,"Y",IF($K5=BM1,"Y",IF($M5=BM1,"Y",IF($O5=BM1,"Y","")))))) ->  | BN5: =$A$5 -> 3 | BO5: =IF($E5=BO1,$F5,IF($G5=BO1,$H5,IF($I5=BO1,$J5,IF($K5=BO1,$L5,IF($M5=BO1,$N5,IF($O5=BO1,$P5,"")))))) ->  | BP5: =IF($E5=BP1,"Y",IF($G5=BP1,"Y",IF($I5=BP1,"Y",IF($K5=BP1,"Y",IF($M5=BP1,"Y",IF($O5=BP1,"Y","")))))) ->  | BQ5: =$A$5 -> 3 | BR5: =IF($E5=BR1,$F5,IF($G5=BR1,$H5,IF($I5=BR1,$J5,IF($K5=BR1,$L5,IF($M5=BR1,$N5,IF($O5=BR1,$P5,"")))))) ->  | BS5: =IF($E5=BS1,"Y",IF($G5=BS1,"Y",IF($I5=BS1,"Y",IF($K5=BS1,"Y",IF($M5=BS1,"Y",IF($O5=BS1,"Y","")))))) ->  | BT5: =$A$5 -> 3 | BU5: =IF($E5=BU1,$F5,IF($G5=BU1,$H5,IF($I5=BU1,$J5,IF($K5=BU1,$L5,IF($M5=BU1,$N5,IF($O5=BU1,$P5,"")))))) ->  | BV5: =IF($E5=BV1,"Y",IF($G5=BV1,"Y",IF($I5=BV1,"Y",IF($K5=BV1,"Y",IF($M5=BV1,"Y",IF($O5=BV1,"Y","")))))) ->  | BW5: =$A$5 -> 3 | BX5: =IF($E5=BX1,$F5,IF($G5=BX1,$H5,IF($I5=BX1,$J5,IF($K5=BX1,$L5,IF($M5=BX1,$N5,IF($O5=BX1,$P5,"")))))) ->  | BY5: =IF($E5=BY1,"Y",IF($G5=BY1,"Y",IF($I5=BY1,"Y",IF($K5=BY1,"Y",IF($M5=BY1,"Y",IF($O5=BY1,"Y","")))))) ->  | BZ5: =$A$5 -> 3 | CA5: =IF($E5=CA1,$F5,IF($G5=CA1,$H5,IF($I5=CA1,$J5,IF($K5=CA1,$L5,IF($M5=CA1,$N5,IF($O5=CA1,$P5,"")))))) ->  | CB5: =IF($E5=CB1,"Y",IF($G5=CB1,"Y",IF($I5=CB1,"Y",IF($K5=CB1,"Y",IF($M5=CB1,"Y",IF($O5=CB1,"Y","")))))) -> Y | CC5: =$A$5 -> 3 | CD5: =IF($E5=CD1,$F5,IF($G5=CD1,$H5,IF($I5=CD1,$J5,IF($K5=CD1,$L5,IF($M5=CD1,$N5,IF($O5=CD1,$P5,"")))))) -> 0 | CE5: =IF($E5=CE1,"Y",IF($G5=CE1,"Y",IF($I5=CE1,"Y",IF($K5=CE1,"Y",IF($M5=CE1,"Y",IF($O5=CE1,"Y","")))))) -> Y | CF5: =$A$5 -> 3 | CG5: =IF($E5=CG1,$F5,IF($G5=CG1,$H5,IF($I5=CG1,$J5,IF($K5=CG1,$L5,IF($M5=CG1,$N5,IF($O5=CG1,$P5,"")))))) -> 0 | CH5: =IF($E5=CH1,"Y",IF($G5=CH1,"Y",IF($I5=CH1,"Y",IF($K5=CH1,"Y",IF($M5=CH1,"Y",IF($O5=CH1,"Y","")))))) -> Y | CI5: =$A$5 -> 3 | CJ5: =IF($E5=CJ1,$F5,IF($G5=CJ1,$H5,IF($I5=CJ1,$J5,IF($K5=CJ1,$L5,IF($M5=CJ1,$N5,IF($O5=CJ1,$P5,"")))))) -> 0 | CK5: =IF($E5=CK1,"Y",IF($G5=CK1,"Y",IF($I5=CK1,"Y",IF($K5=CK1,"Y",IF($M5=CK1,"Y",IF($O5=CK1,"Y","")))))) -> Y | CL5: =$A$5 -> 3 | CM5: =IF($E5=CM1,$F5,IF($G5=CM1,$H5,IF($I5=CM1,$J5,IF($K5=CM1,$L5,IF($M5=CM1,$N5,IF($O5=CM1,$P5,"")))))) -> 0 | CN5: =IF($E5=CN1,"Y",IF($G5=CN1,"Y",IF($I5=CN1,"Y",IF($K5=CN1,"Y",IF($M5=CN1,"Y",IF($O5=CN1,"Y","")))))) -> Y | CO5: =$A$5 -> 3 | CP5: =IF($E5=CP1,$F5,IF($G5=CP1,$H5,IF($I5=CP1,$J5,IF($K5=CP1,$L5,IF($M5=CP1,$N5,IF($O5=CP1,$P5,"")))))) -> 0 | CQ5: =IF($E5=CQ1,"Y",IF($G5=CQ1,"Y",IF($I5=CQ1,"Y",IF($K5=CQ1,"Y",IF($M5=CQ1,"Y",IF($O5=CQ1,"Y","")))))) -> Y | CR5: =$A$5 -> 3 | CS5: =IF($E5=CS1,$F5,IF($G5=CS1,$H5,IF($I5=CS1,$J5,IF($K5=CS1,$L5,IF($M5=CS1,$N5,IF($O5=CS1,$P5,"")))))) -> 0 | CT5: =IF($E5=CT1,"Y",IF($G5=CT1,"Y",IF($I5=CT1,"Y",IF($K5=CT1,"Y",IF($M5=CT1,"Y",IF($O5=CT1,"Y","")))))) -> Y | CU5: =$A$5 -> 3 | CV5: =IF($E5=CV1,$F5,IF($G5=CV1,$H5,IF($I5=CV1,$J5,IF($K5=CV1,$L5,IF($M5=CV1,$N5,IF($O5=CV1,$P5,"")))))) -> 0 | CW5: =IF($E5=CW1,"Y",IF($G5=CW1,"Y",IF($I5=CW1,"Y",IF($K5=CW1,"Y",IF($M5=CW1,"Y",IF($O5=CW1,"Y","")))))) -> Y | CX5: =$A$5 -> 3 | CY5: =IF($E5=CY1,$F5,IF($G5=CY1,$H5,IF($I5=CY1,$J5,IF($K5=CY1,$L5,IF($M5=CY1,$N5,IF($O5=CY1,$P5,"")))))) -> 0 | CZ5: =IF($E5=CZ1,"Y",IF($G5=CZ1,"Y",IF($I5=CZ1,"Y",IF($K5=CZ1,"Y",IF($M5=CZ1,"Y",IF($O5=CZ1,"Y","")))))) -> Y | DA5: =$A$5 -> 3 | DB5: =IF($E5=DB1,$F5,IF($G5=DB1,$H5,IF($I5=DB1,$J5,IF($K5=DB1,$L5,IF($M5=DB1,$N5,IF($O5=DB1,$P5,"")))))) -> 0 | DC5: =IF($E5=DC1,"Y",IF($G5=DC1,"Y",IF($I5=DC1,"Y",IF($K5=DC1,"Y",IF($M5=DC1,"Y",IF($O5=DC1,"Y","")))))) -> Y | DD5: =$A$5 -> 3 | DE5: =IF($E5=DE1,$F5,IF($G5=DE1,$H5,IF($I5=DE1,$J5,IF($K5=DE1,$L5,IF($M5=DE1,$N5,IF($O5=DE1,$P5,"")))))) -> 0 | DF5: =IF($E5=DF1,"Y",IF($G5=DF1,"Y",IF($I5=DF1,"Y",IF($K5=DF1,"Y",IF($M5=DF1,"Y",IF($O5=DF1,"Y","")))))) -> Y | DG5: =$A$5 -> 3 | DH5: =IF($E5=DH1,$F5,IF($G5=DH1,$H5,IF($I5=DH1,$J5,IF($K5=DH1,$L5,IF($M5=DH1,$N5,IF($O5=DH1,$P5,"")))))) -> 0 | DI5: =IF($E5=DI1,"Y",IF($G5=DI1,"Y",IF($I5=DI1,"Y",IF($K5=DI1,"Y",IF($M5=DI1,"Y",IF($O5=DI1,"Y","")))))) -> Y | DJ5: =$A$5 -> 3 | DK5: =IF($E5=DK1,$F5,IF($G5=DK1,$H5,IF($I5=DK1,$J5,IF($K5=DK1,$L5,IF($M5=DK1,$N5,IF($O5=DK1,$P5,"")))))) -> 0 | DL5: =IF($E5=DL1,"Y",IF($G5=DL1,"Y",IF($I5=DL1,"Y",IF($K5=DL1,"Y",IF($M5=DL1,"Y",IF($O5=DL1,"Y","")))))) -> Y | DM5: =$A$5 -> 3 | DN5: =IF($E5=DN1,$F5,IF($G5=DN1,$H5,IF($I5=DN1,$J5,IF($K5=DN1,$L5,IF($M5=DN1,$N5,IF($O5=DN1,$P5,"")))))) -> 0 | DO5: =IF($E5=DO1,"Y",IF($G5=DO1,"Y",IF($I5=DO1,"Y",IF($K5=DO1,"Y",IF($M5=DO1,"Y",IF($O5=DO1,"Y","")))))) -> Y | DP5: =$A$5 -> 3 | DQ5: =IF($E5=DQ1,$F5,IF($G5=DQ1,$H5,IF($I5=DQ1,$J5,IF($K5=DQ1,$L5,IF($M5=DQ1,$N5,IF($O5=DQ1,$P5,"")))))) -> 0
A6: 4 | B6: Alex Williams-Baffoe | C6: Brunel | D6: M | E6: TJ | F6: 12.75 | G6: 400 | H6: 53 | R6: 4 | T6: =IF($E6=$V$1,"Y",IF($G6=$V$1,"Y",IF($I6=$V$1,"Y",IF($K6=$V$1,"Y",IF($M6=$V$1,"Y",IF($O6=$V$1,"Y","")))))) ->  | U6: 4 | V6: =IF($E6=$V$1,$F6,IF($G6=$V$1,$H6,IF($I6=$V$1,$J6,IF($K6=$V$1,$L6,IF($M6=$V$1,$N6,IF($O6=$V$1,$P6,"")))))) ->  | W6: =IF($E6=$Y$1,"Y",IF($G6=$Y$1,"Y",IF($I6=$Y$1,"Y",IF($K6=$Y$1,"Y",IF($M6=$Y$1,"Y",IF($O6=$Y$1,"Y","")))))) ->  | X6: 4 | Y6: =IF($E6=$Y$1,$F6,IF($G6=$Y$1,$H6,IF($I6=$Y$1,$J6,IF($K6=$Y$1,$L6,IF($M6=$Y$1,$N6,IF($O6=$Y$1,$P6,"")))))) ->  | Z6: =IF($E6=$AB$1,"Y",IF($G6=$AB$1,"Y",IF($I6=$AB$1,"Y",IF($K6=$AB$1,"Y",IF($M6=$AB$1,"Y",IF($O6=$AB$1,"Y","")))))) ->  | AA6: 4 | AB6: =IF($E6=$AB$1,$F6,IF($G6=$AB$1,$H6,IF($I6=$AB$1,$J6,IF($K6=$AB$1,$L6,IF($M6=$AB$1,$N6,IF($O6=$AB$1,$P6,"")))))) ->  | AC6: =IF($E6=$AE$1,"Y",IF($G6=$AE$1,"Y",IF($I6=$AE$1,"Y",IF($K6=$AE$1,"Y",IF($M6=$AE$1,"Y",IF($O6=$AE$1,"Y","")))))) -> Y | AD6: 4 | AE6: =IF($E6=$AE$1,$F6,IF($G6=$AE$1,$H6,IF($I6=$AE$1,$J6,IF($K6=$AE$1,$L6,IF($M6=$AE$1,$N6,IF($O6=$AE$1,$P6,"")))))) -> 53 | AF6: =IF($E6=$AH$1,"Y",IF($G6=$AH$1,"Y",IF($I6=$AH$1,"Y",IF($K6=$AH$1,"Y",IF($M6=$AH$1,"Y",IF($O6=$AH$1,"Y","")))))) ->  | AG6: 4 | AH6: =IF($E6=$AH$1,$F6,IF($G6=$AH$1,$H6,IF($I6=$AH$1,$J6,IF($K6=$AH$1,$L6,IF($M6=$AH$1,$N6,IF($O6=$AH$1,$P6,"")))))) ->  | AJ6: 4 | AK6: =IF($E6=$AK$1,$F6,IF($G6=$AK$1,$H6,IF($I6=$AK$1,$J6,IF($K6=$AK$1,$L6,IF($M6=$AK$1,$N6,IF($O6=$AK$1,$P6,"")))))) ->  | AM6: =$A$6 -> 4 | AP6: =$A$6 -> 4 | AR6: =IF($E6=AR1,"Y",IF($G6=AR1,"Y",IF($I6=AR1,"Y",IF($K6=AR1,"Y",IF($M6=AR1,"Y",IF($O6=AR1,"Y","")))))) ->  | AS6: =$A$6 -> 4 | AT6: =IF($E6=AT1,$F6,IF($G6=AT1,$H6,IF($I6=AT1,$J6,IF($K6=AT1,$L6,IF($M6=AT1,$N6,IF($O6=AT1,$P6,"")))))) ->  | AU6: =IF($E6=AU1,"Y",IF($G6=AU1,"Y",IF($I6=AU1,"Y",IF($K6=AU1,"Y",IF($M6=AU1,"Y",IF($O6=AU1,"Y","")))))) ->  | AV6: =$A$6 -> 4 | AW6: =IF($E6=AW1,$F6,IF($G6=AW1,$H6,IF($I6=AW1,$J6,IF($K6=AW1,$L6,IF($M6=AW1,$N6,IF($O6=AW1,$P6,"")))))) ->  | AX6: =IF($E6=AX1,"Y",IF($G6=AX1,"Y",IF($I6=AX1,"Y",IF($K6=AX1,"Y",IF($M6=AX1,"Y",IF($O6=AX1,"Y","")))))) ->  | AY6: =$A$6 -> 4 | AZ6: =IF($E6=AZ1,$F6,IF($G6=AZ1,$H6,IF($I6=AZ1,$J6,IF($K6=AZ1,$L6,IF($M6=AZ1,$N6,IF($O6=AZ1,$P6,"")))))) ->  | BA6: =IF($E6=BA1,"Y",IF($G6=BA1,"Y",IF($I6=BA1,"Y",IF($K6=BA1,"Y",IF($M6=BA1,"Y",IF($O6=BA1,"Y","")))))) ->  | BB6: =$A$6 -> 4 | BC6: =IF($E6=BC1,$F6,IF($G6=BC1,$H6,IF($I6=BC1,$J6,IF($K6=BC1,$L6,IF($M6=BC1,$N6,IF($O6=BC1,$P6,"")))))) ->  | BD6: =IF($E6=BD1,"Y",IF($G6=BD1,"Y",IF($I6=BD1,"Y",IF($K6=BD1,"Y",IF($M6=BD1,"Y",IF($O6=BD1,"Y","")))))) ->  | BE6: =$A$6 -> 4 | BF6: =IF($E6=BF1,$F6,IF($G6=BF1,$H6,IF($I6=BF1,$J6,IF($K6=BF1,$L6,IF($M6=BF1,$N6,IF($O6=BF1,$P6,"")))))) ->  | BG6: =IF($E6=BG1,"Y",IF($G6=BG1,"Y",IF($I6=BG1,"Y",IF($K6=BG1,"Y",IF($M6=BG1,"Y",IF($O6=BG1,"Y","")))))) ->  | BH6: =$A$6 -> 4 | BI6: =IF($E6=BI1,$F6,IF($G6=BI1,$H6,IF($I6=BI1,$J6,IF($K6=BI1,$L6,IF($M6=BI1,$N6,IF($O6=BI1,$P6,"")))))) ->  | BJ6: =IF($E6=BJ1,"Y",IF($G6=BJ1,"Y",IF($I6=BJ1,"Y",IF($K6=BJ1,"Y",IF($M6=BJ1,"Y",IF($O6=BJ1,"Y","")))))) ->  | BK6: =$A$6 -> 4 | BL6: =IF($E6=BL1,$F6,IF($G6=BL1,$H6,IF($I6=BL1,$J6,IF($K6=BL1,$L6,IF($M6=BL1,$N6,IF($O6=BL1,$P6,"")))))) ->  | BM6: =IF($E6=BM1,"Y",IF($G6=BM1,"Y",IF($I6=BM1,"Y",IF($K6=BM1,"Y",IF($M6=BM1,"Y",IF($O6=BM1,"Y","")))))) -> Y | BN6: =$A$6 -> 4 | BO6: =IF($E6=BO1,$F6,IF($G6=BO1,$H6,IF($I6=BO1,$J6,IF($K6=BO1,$L6,IF($M6=BO1,$N6,IF($O6=BO1,$P6,"")))))) -> 12.75 | BP6: =IF($E6=BP1,"Y",IF($G6=BP1,"Y",IF($I6=BP1,"Y",IF($K6=BP1,"Y",IF($M6=BP1,"Y",IF($O6=BP1,"Y","")))))) ->  | BQ6: =$A$6 -> 4 | BR6: =IF($E6=BR1,$F6,IF($G6=BR1,$H6,IF($I6=BR1,$J6,IF($K6=BR1,$L6,IF($M6=BR1,$N6,IF($O6=BR1,$P6,"")))))) ->  | BS6: =IF($E6=BS1,"Y",IF($G6=BS1,"Y",IF($I6=BS1,"Y",IF($K6=BS1,"Y",IF($M6=BS1,"Y",IF($O6=BS1,"Y","")))))) ->  | BT6: =$A$6 -> 4 | BU6: =IF($E6=BU1,$F6,IF($G6=BU1,$H6,IF($I6=BU1,$J6,IF($K6=BU1,$L6,IF($M6=BU1,$N6,IF($O6=BU1,$P6,"")))))) ->  | BV6: =IF($E6=BV1,"Y",IF($G6=BV1,"Y",IF($I6=BV1,"Y",IF($K6=BV1,"Y",IF($M6=BV1,"Y",IF($O6=BV1,"Y","")))))) ->  | BW6: =$A$6 -> 4 | BX6: =IF($E6=BX1,$F6,IF($G6=BX1,$H6,IF($I6=BX1,$J6,IF($K6=BX1,$L6,IF($M6=BX1,$N6,IF($O6=BX1,$P6,"")))))) ->  | BY6: =IF($E6=BY1,"Y",IF($G6=BY1,"Y",IF($I6=BY1,"Y",IF($K6=BY1,"Y",IF($M6=BY1,"Y",IF($O6=BY1,"Y","")))))) ->  | BZ6: =$A$6 -> 4 | CA6: =IF($E6=CA1,$F6,IF($G6=CA1,$H6,IF($I6=CA1,$J6,IF($K6=CA1,$L6,IF($M6=CA1,$N6,IF($O6=CA1,$P6,"")))))) ->  | CB6: =IF($E6=CB1,"Y",IF($G6=CB1,"Y",IF($I6=CB1,"Y",IF($K6=CB1,"Y",IF($M6=CB1,"Y",IF($O6=CB1,"Y","")))))) -> Y | CC6: =$A$6 -> 4 | CD6: =IF($E6=CD1,$F6,IF($G6=CD1,$H6,IF($I6=CD1,$J6,IF($K6=CD1,$L6,IF($M6=CD1,$N6,IF($O6=CD1,$P6,"")))))) -> 0 | CE6: =IF($E6=CE1,"Y",IF($G6=CE1,"Y",IF($I6=CE1,"Y",IF($K6=CE1,"Y",IF($M6=CE1,"Y",IF($O6=CE1,"Y","")))))) -> Y | CF6: =$A$6 -> 4 | CG6: =IF($E6=CG1,$F6,IF($G6=CG1,$H6,IF($I6=CG1,$J6,IF($K6=CG1,$L6,IF($M6=CG1,$N6,IF($O6=CG1,$P6,"")))))) -> 0 | CH6: =IF($E6=CH1,"Y",IF($G6=CH1,"Y",IF($I6=CH1,"Y",IF($K6=CH1,"Y",IF($M6=CH1,"Y",IF($O6=CH1,"Y","")))))) -> Y | CI6: =$A$6 -> 4 | CJ6: =IF($E6=CJ1,$F6,IF($G6=CJ1,$H6,IF($I6=CJ1,$J6,IF($K6=CJ1,$L6,IF($M6=CJ1,$N6,IF($O6=CJ1,$P6,"")))))) -> 0 | CK6: =IF($E6=CK1,"Y",IF($G6=CK1,"Y",IF($I6=CK1,"Y",IF($K6=CK1,"Y",IF($M6=CK1,"Y",IF($O6=CK1,"Y","")))))) -> Y | CL6: =$A$6 -> 4 | CM6: =IF($E6=CM1,$F6,IF($G6=CM1,$H6,IF($I6=CM1,$J6,IF($K6=CM1,$L6,IF($M6=CM1,$N6,IF($O6=CM1,$P6,"")))))) -> 0 | CN6: =IF($E6=CN1,"Y",IF($G6=CN1,"Y",IF($I6=CN1,"Y",IF($K6=CN1,"Y",IF($M6=CN1,"Y",IF($O6=CN1,"Y","")))))) -> Y | CO6: =$A$6 -> 4 | CP6: =IF($E6=CP1,$F6,IF($G6=CP1,$H6,IF($I6=CP1,$J6,IF($K6=CP1,$L6,IF($M6=CP1,$N6,IF($O6=CP1,$P6,"")))))) -> 0 | CQ6: =IF($E6=CQ1,"Y",IF($G6=CQ1,"Y",IF($I6=CQ1,"Y",IF($K6=CQ1,"Y",IF($M6=CQ1,"Y",IF($O6=CQ1,"Y","")))))) -> Y | CR6: =$A$6 -> 4 | CS6: =IF($E6=CS1,$F6,IF($G6=CS1,$H6,IF($I6=CS1,$J6,IF($K6=CS1,$L6,IF($M6=CS1,$N6,IF($O6=CS1,$P6,"")))))) -> 0 | CT6: =IF($E6=CT1,"Y",IF($G6=CT1,"Y",IF($I6=CT1,"Y",IF($K6=CT1,"Y",IF($M6=CT1,"Y",IF($O6=CT1,"Y","")))))) -> Y | CU6: =$A$6 -> 4 | CV6: =IF($E6=CV1,$F6,IF($G6=CV1,$H6,IF($I6=CV1,$J6,IF($K6=CV1,$L6,IF($M6=CV1,$N6,IF($O6=CV1,$P6,"")))))) -> 0 | CW6: =IF($E6=CW1,"Y",IF($G6=CW1,"Y",IF($I6=CW1,"Y",IF($K6=CW1,"Y",IF($M6=CW1,"Y",IF($O6=CW1,"Y","")))))) -> Y | CX6: =$A$6 -> 4 | CY6: =IF($E6=CY1,$F6,IF($G6=CY1,$H6,IF($I6=CY1,$J6,IF($K6=CY1,$L6,IF($M6=CY1,$N6,IF($O6=CY1,$P6,"")))))) -> 0 | CZ6: =IF($E6=CZ1,"Y",IF($G6=CZ1,"Y",IF($I6=CZ1,"Y",IF($K6=CZ1,"Y",IF($M6=CZ1,"Y",IF($O6=CZ1,"Y","")))))) -> Y | DA6: =$A$6 -> 4 | DB6: =IF($E6=DB1,$F6,IF($G6=DB1,$H6,IF($I6=DB1,$J6,IF($K6=DB1,$L6,IF($M6=DB1,$N6,IF($O6=DB1,$P6,"")))))) -> 0 | DC6: =IF($E6=DC1,"Y",IF($G6=DC1,"Y",IF($I6=DC1,"Y",IF($K6=DC1,"Y",IF($M6=DC1,"Y",IF($O6=DC1,"Y","")))))) -> Y | DD6: =$A$6 -> 4 | DE6: =IF($E6=DE1,$F6,IF($G6=DE1,$H6,IF($I6=DE1,$J6,IF($K6=DE1,$L6,IF($M6=DE1,$N6,IF($O6=DE1,$P6,"")))))) -> 0 | DF6: =IF($E6=DF1,"Y",IF($G6=DF1,"Y",IF($I6=DF1,"Y",IF($K6=DF1,"Y",IF($M6=DF1,"Y",IF($O6=DF1,"Y","")))))) -> Y | DG6: =$A$6 -> 4 | DH6: =IF($E6=DH1,$F6,IF($G6=DH1,$H6,IF($I6=DH1,$J6,IF($K6=DH1,$L6,IF($M6=DH1,$N6,IF($O6=DH1,$P6,"")))))) -> 0 | DI6: =IF($E6=DI1,"Y",IF($G6=DI1,"Y",IF($I6=DI1,"Y",IF($K6=DI1,"Y",IF($M6=DI1,"Y",IF($O6=DI1,"Y","")))))) -> Y | DJ6: =$A$6 -> 4 | DK6: =IF($E6=DK1,$F6,IF($G6=DK1,$H6,IF($I6=DK1,$J6,IF($K6=DK1,$L6,IF($M6=DK1,$N6,IF($O6=DK1,$P6,"")))))) -> 0 | DL6: =IF($E6=DL1,"Y",IF($G6=DL1,"Y",IF($I6=DL1,"Y",IF($K6=DL1,"Y",IF($M6=DL1,"Y",IF($O6=DL1,"Y","")))))) -> Y | DM6: =$A$6 -> 4 | DN6: =IF($E6=DN1,$F6,IF($G6=DN1,$H6,IF($I6=DN1,$J6,IF($K6=DN1,$L6,IF($M6=DN1,$N6,IF($O6=DN1,$P6,"")))))) -> 0 | DO6: =IF($E6=DO1,"Y",IF($G6=DO1,"Y",IF($I6=DO1,"Y",IF($K6=DO1,"Y",IF($M6=DO1,"Y",IF($O6=DO1,"Y","")))))) -> Y | DP6: =$A$6 -> 4 | DQ6: =IF($E6=DQ1,$F6,IF($G6=DQ1,$H6,IF($I6=DQ1,$J6,IF($K6=DQ1,$L6,IF($M6=DQ1,$N6,IF($O6=DQ1,$P6,"")))))) -> 0
A7: 5 | B7: George Loveday | C7: Brunel | D7: M | E7: 5000 | F7: 00:16:10 | R7: 5 | T7: =IF($E7=$V$1,"Y",IF($G7=$V$1,"Y",IF($I7=$V$1,"Y",IF($K7=$V$1,"Y",IF($M7=$V$1,"Y",IF($O7=$V$1,"Y","")))))) ->  | U7: 5 | V7: =IF($E7=$V$1,$F7,IF($G7=$V$1,$H7,IF($I7=$V$1,$J7,IF($K7=$V$1,$L7,IF($M7=$V$1,$N7,IF($O7=$V$1,$P7,"")))))) ->  | W7: =IF($E7=$Y$1,"Y",IF($G7=$Y$1,"Y",IF($I7=$Y$1,"Y",IF($K7=$Y$1,"Y",IF($M7=$Y$1,"Y",IF($O7=$Y$1,"Y","")))))) ->  | X7: 5 | Y7: =IF($E7=$Y$1,$F7,IF($G7=$Y$1,$H7,IF($I7=$Y$1,$J7,IF($K7=$Y$1,$L7,IF($M7=$Y$1,$N7,IF($O7=$Y$1,$P7,"")))))) ->  | Z7: =IF($E7=$AB$1,"Y",IF($G7=$AB$1,"Y",IF($I7=$AB$1,"Y",IF($K7=$AB$1,"Y",IF($M7=$AB$1,"Y",IF($O7=$AB$1,"Y","")))))) ->  | AA7: 5 | AB7: =IF($E7=$AB$1,$F7,IF($G7=$AB$1,$H7,IF($I7=$AB$1,$J7,IF($K7=$AB$1,$L7,IF($M7=$AB$1,$N7,IF($O7=$AB$1,$P7,"")))))) ->  | AC7: =IF($E7=$AE$1,"Y",IF($G7=$AE$1,"Y",IF($I7=$AE$1,"Y",IF($K7=$AE$1,"Y",IF($M7=$AE$1,"Y",IF($O7=$AE$1,"Y","")))))) ->  | AD7: 5 | AE7: =IF($E7=$AE$1,$F7,IF($G7=$AE$1,$H7,IF($I7=$AE$1,$J7,IF($K7=$AE$1,$L7,IF($M7=$AE$1,$N7,IF($O7=$AE$1,$P7,"")))))) ->  | AF7: =IF($E7=$AH$1,"Y",IF($G7=$AH$1,"Y",IF($I7=$AH$1,"Y",IF($K7=$AH$1,"Y",IF($M7=$AH$1,"Y",IF($O7=$AH$1,"Y","")))))) ->  | AG7: 5 | AH7: =IF($E7=$AH$1,$F7,IF($G7=$AH$1,$H7,IF($I7=$AH$1,$J7,IF($K7=$AH$1,$L7,IF($M7=$AH$1,$N7,IF($O7=$AH$1,$P7,"")))))) ->  | AJ7: 5 | AK7: =IF($E7=$AK$1,$F7,IF($G7=$AK$1,$H7,IF($I7=$AK$1,$J7,IF($K7=$AK$1,$L7,IF($M7=$AK$1,$N7,IF($O7=$AK$1,$P7,"")))))) ->  | AM7: =$A$7 -> 5 | AP7: =$A$7 -> 5 | AR7: =IF($E7=AR1,"Y",IF($G7=AR1,"Y",IF($I7=AR1,"Y",IF($K7=AR1,"Y",IF($M7=AR1,"Y",IF($O7=AR1,"Y","")))))) ->  | AS7: =$A$7 -> 5 | AT7: =IF($E7=AT1,$F7,IF($G7=AT1,$H7,IF($I7=AT1,$J7,IF($K7=AT1,$L7,IF($M7=AT1,$N7,IF($O7=AT1,$P7,"")))))) ->  | AU7: =IF($E7=AU1,"Y",IF($G7=AU1,"Y",IF($I7=AU1,"Y",IF($K7=AU1,"Y",IF($M7=AU1,"Y",IF($O7=AU1,"Y","")))))) -> Y | AV7: =$A$7 -> 5 | AW7: =IF($E7=AW1,$F7,IF($G7=AW1,$H7,IF($I7=AW1,$J7,IF($K7=AW1,$L7,IF($M7=AW1,$N7,IF($O7=AW1,$P7,"")))))) -> 00:16:10 | AX7: =IF($E7=AX1,"Y",IF($G7=AX1,"Y",IF($I7=AX1,"Y",IF($K7=AX1,"Y",IF($M7=AX1,"Y",IF($O7=AX1,"Y","")))))) ->  | AY7: =$A$7 -> 5 | AZ7: =IF($E7=AZ1,$F7,IF($G7=AZ1,$H7,IF($I7=AZ1,$J7,IF($K7=AZ1,$L7,IF($M7=AZ1,$N7,IF($O7=AZ1,$P7,"")))))) ->  | BA7: =IF($E7=BA1,"Y",IF($G7=BA1,"Y",IF($I7=BA1,"Y",IF($K7=BA1,"Y",IF($M7=BA1,"Y",IF($O7=BA1,"Y","")))))) ->  | BB7: =$A$7 -> 5 | BC7: =IF($E7=BC1,$F7,IF($G7=BC1,$H7,IF($I7=BC1,$J7,IF($K7=BC1,$L7,IF($M7=BC1,$N7,IF($O7=BC1,$P7,"")))))) ->  | BD7: =IF($E7=BD1,"Y",IF($G7=BD1,"Y",IF($I7=BD1,"Y",IF($K7=BD1,"Y",IF($M7=BD1,"Y",IF($O7=BD1,"Y","")))))) ->  | BE7: =$A$7 -> 5 | BF7: =IF($E7=BF1,$F7,IF($G7=BF1,$H7,IF($I7=BF1,$J7,IF($K7=BF1,$L7,IF($M7=BF1,$N7,IF($O7=BF1,$P7,"")))))) ->  | BG7: =IF($E7=BG1,"Y",IF($G7=BG1,"Y",IF($I7=BG1,"Y",IF($K7=BG1,"Y",IF($M7=BG1,"Y",IF($O7=BG1,"Y","")))))) ->  | BH7: =$A$7 -> 5 | BI7: =IF($E7=BI1,$F7,IF($G7=BI1,$H7,IF($I7=BI1,$J7,IF($K7=BI1,$L7,IF($M7=BI1,$N7,IF($O7=BI1,$P7,"")))))) ->  | BJ7: =IF($E7=BJ1,"Y",IF($G7=BJ1,"Y",IF($I7=BJ1,"Y",IF($K7=BJ1,"Y",IF($M7=BJ1,"Y",IF($O7=BJ1,"Y","")))))) ->  | BK7: =$A$7 -> 5 | BL7: =IF($E7=BL1,$F7,IF($G7=BL1,$H7,IF($I7=BL1,$J7,IF($K7=BL1,$L7,IF($M7=BL1,$N7,IF($O7=BL1,$P7,"")))))) ->  | BM7: =IF($E7=BM1,"Y",IF($G7=BM1,"Y",IF($I7=BM1,"Y",IF($K7=BM1,"Y",IF($M7=BM1,"Y",IF($O7=BM1,"Y","")))))) ->  | BN7: =$A$7 -> 5 | BO7: =IF($E7=BO1,$F7,IF($G7=BO1,$H7,IF($I7=BO1,$J7,IF($K7=BO1,$L7,IF($M7=BO1,$N7,IF($O7=BO1,$P7,"")))))) ->  | BP7: =IF($E7=BP1,"Y",IF($G7=BP1,"Y",IF($I7=BP1,"Y",IF($K7=BP1,"Y",IF($M7=BP1,"Y",IF($O7=BP1,"Y","")))))) ->  | BQ7: =$A$7 -> 5 | BR7: =IF($E7=BR1,$F7,IF($G7=BR1,$H7,IF($I7=BR1,$J7,IF($K7=BR1,$L7,IF($M7=BR1,$N7,IF($O7=BR1,$P7,"")))))) ->  | BS7: =IF($E7=BS1,"Y",IF($G7=BS1,"Y",IF($I7=BS1,"Y",IF($K7=BS1,"Y",IF($M7=BS1,"Y",IF($O7=BS1,"Y","")))))) ->  | BT7: =$A$7 -> 5 | BU7: =IF($E7=BU1,$F7,IF($G7=BU1,$H7,IF($I7=BU1,$J7,IF($K7=BU1,$L7,IF($M7=BU1,$N7,IF($O7=BU1,$P7,"")))))) ->  | BV7: =IF($E7=BV1,"Y",IF($G7=BV1,"Y",IF($I7=BV1,"Y",IF($K7=BV1,"Y",IF($M7=BV1,"Y",IF($O7=BV1,"Y","")))))) ->  | BW7: =$A$7 -> 5 | BX7: =IF($E7=BX1,$F7,IF($G7=BX1,$H7,IF($I7=BX1,$J7,IF($K7=BX1,$L7,IF($M7=BX1,$N7,IF($O7=BX1,$P7,"")))))) ->  | BY7: =IF($E7=BY1,"Y",IF($G7=BY1,"Y",IF($I7=BY1,"Y",IF($K7=BY1,"Y",IF($M7=BY1,"Y",IF($O7=BY1,"Y","")))))) ->  | BZ7: =$A$7 -> 5 | CA7: =IF($E7=CA1,$F7,IF($G7=CA1,$H7,IF($I7=CA1,$J7,IF($K7=CA1,$L7,IF($M7=CA1,$N7,IF($O7=CA1,$P7,"")))))) ->  | CB7: =IF($E7=CB1,"Y",IF($G7=CB1,"Y",IF($I7=CB1,"Y",IF($K7=CB1,"Y",IF($M7=CB1,"Y",IF($O7=CB1,"Y","")))))) -> Y | CC7: =$A$7 -> 5 | CD7: =IF($E7=CD1,$F7,IF($G7=CD1,$H7,IF($I7=CD1,$J7,IF($K7=CD1,$L7,IF($M7=CD1,$N7,IF($O7=CD1,$P7,"")))))) -> 0 | CE7: =IF($E7=CE1,"Y",IF($G7=CE1,"Y",IF($I7=CE1,"Y",IF($K7=CE1,"Y",IF($M7=CE1,"Y",IF($O7=CE1,"Y","")))))) -> Y | CF7: =$A$7 -> 5 | CG7: =IF($E7=CG1,$F7,IF($G7=CG1,$H7,IF($I7=CG1,$J7,IF($K7=CG1,$L7,IF($M7=CG1,$N7,IF($O7=CG1,$P7,"")))))) -> 0 | CH7: =IF($E7=CH1,"Y",IF($G7=CH1,"Y",IF($I7=CH1,"Y",IF($K7=CH1,"Y",IF($M7=CH1,"Y",IF($O7=CH1,"Y","")))))) -> Y | CI7: =$A$7 -> 5 | CJ7: =IF($E7=CJ1,$F7,IF($G7=CJ1,$H7,IF($I7=CJ1,$J7,IF($K7=CJ1,$L7,IF($M7=CJ1,$N7,IF($O7=CJ1,$P7,"")))))) -> 0 | CK7: =IF($E7=CK1,"Y",IF($G7=CK1,"Y",IF($I7=CK1,"Y",IF($K7=CK1,"Y",IF($M7=CK1,"Y",IF($O7=CK1,"Y","")))))) -> Y | CL7: =$A$7 -> 5 | CM7: =IF($E7=CM1,$F7,IF($G7=CM1,$H7,IF($I7=CM1,$J7,IF($K7=CM1,$L7,IF($M7=CM1,$N7,IF($O7=CM1,$P7,"")))))) -> 0 | CN7: =IF($E7=CN1,"Y",IF($G7=CN1,"Y",IF($I7=CN1,"Y",IF($K7=CN1,"Y",IF($M7=CN1,"Y",IF($O7=CN1,"Y","")))))) -> Y | CO7: =$A$7 -> 5 | CP7: =IF($E7=CP1,$F7,IF($G7=CP1,$H7,IF($I7=CP1,$J7,IF($K7=CP1,$L7,IF($M7=CP1,$N7,IF($O7=CP1,$P7,"")))))) -> 0 | CQ7: =IF($E7=CQ1,"Y",IF($G7=CQ1,"Y",IF($I7=CQ1,"Y",IF($K7=CQ1,"Y",IF($M7=CQ1,"Y",IF($O7=CQ1,"Y","")))))) -> Y | CR7: =$A$7 -> 5 | CS7: =IF($E7=CS1,$F7,IF($G7=CS1,$H7,IF($I7=CS1,$J7,IF($K7=CS1,$L7,IF($M7=CS1,$N7,IF($O7=CS1,$P7,"")))))) -> 0 | CT7: =IF($E7=CT1,"Y",IF($G7=CT1,"Y",IF($I7=CT1,"Y",IF($K7=CT1,"Y",IF($M7=CT1,"Y",IF($O7=CT1,"Y","")))))) -> Y | CU7: =$A$7 -> 5 | CV7: =IF($E7=CV1,$F7,IF($G7=CV1,$H7,IF($I7=CV1,$J7,IF($K7=CV1,$L7,IF($M7=CV1,$N7,IF($O7=CV1,$P7,"")))))) -> 0 | CW7: =IF($E7=CW1,"Y",IF($G7=CW1,"Y",IF($I7=CW1,"Y",IF($K7=CW1,"Y",IF($M7=CW1,"Y",IF($O7=CW1,"Y","")))))) -> Y | CX7: =$A$7 -> 5 | CY7: =IF($E7=CY1,$F7,IF($G7=CY1,$H7,IF($I7=CY1,$J7,IF($K7=CY1,$L7,IF($M7=CY1,$N7,IF($O7=CY1,$P7,"")))))) -> 0 | CZ7: =IF($E7=CZ1,"Y",IF($G7=CZ1,"Y",IF($I7=CZ1,"Y",IF($K7=CZ1,"Y",IF($M7=CZ1,"Y",IF($O7=CZ1,"Y","")))))) -> Y | DA7: =$A$7 -> 5 | DB7: =IF($E7=DB1,$F7,IF($G7=DB1,$H7,IF($I7=DB1,$J7,IF($K7=DB1,$L7,IF($M7=DB1,$N7,IF($O7=DB1,$P7,"")))))) -> 0 | DC7: =IF($E7=DC1,"Y",IF($G7=DC1,"Y",IF($I7=DC1,"Y",IF($K7=DC1,"Y",IF($M7=DC1,"Y",IF($O7=DC1,"Y","")))))) -> Y | DD7: =$A$7 -> 5 | DE7: =IF($E7=DE1,$F7,IF($G7=DE1,$H7,IF($I7=DE1,$J7,IF($K7=DE1,$L7,IF($M7=DE1,$N7,IF($O7=DE1,$P7,"")))))) -> 0 | DF7: =IF($E7=DF1,"Y",IF($G7=DF1,"Y",IF($I7=DF1,"Y",IF($K7=DF1,"Y",IF($M7=DF1,"Y",IF($O7=DF1,"Y","")))))) -> Y | DG7: =$A$7 -> 5 | DH7: =IF($E7=DH1,$F7,IF($G7=DH1,$H7,IF($I7=DH1,$J7,IF($K7=DH1,$L7,IF($M7=DH1,$N7,IF($O7=DH1,$P7,"")))))) -> 0 | DI7: =IF($E7=DI1,"Y",IF($G7=DI1,"Y",IF($I7=DI1,"Y",IF($K7=DI1,"Y",IF($M7=DI1,"Y",IF($O7=DI1,"Y","")))))) -> Y | DJ7: =$A$7 -> 5 | DK7: =IF($E7=DK1,$F7,IF($G7=DK1,$H7,IF($I7=DK1,$J7,IF($K7=DK1,$L7,IF($M7=DK1,$N7,IF($O7=DK1,$P7,"")))))) -> 0 | DL7: =IF($E7=DL1,"Y",IF($G7=DL1,"Y",IF($I7=DL1,"Y",IF($K7=DL1,"Y",IF($M7=DL1,"Y",IF($O7=DL1,"Y","")))))) -> Y | DM7: =$A$7 -> 5 | DN7: =IF($E7=DN1,$F7,IF($G7=DN1,$H7,IF($I7=DN1,$J7,IF($K7=DN1,$L7,IF($M7=DN1,$N7,IF($O7=DN1,$P7,"")))))) -> 0 | DO7: =IF($E7=DO1,"Y",IF($G7=DO1,"Y",IF($I7=DO1,"Y",IF($K7=DO1,"Y",IF($M7=DO1,"Y",IF($O7=DO1,"Y","")))))) -> Y | DP7: =$A$7 -> 5 | DQ7: =IF($E7=DQ1,$F7,IF($G7=DQ1,$H7,IF($I7=DQ1,$J7,IF($K7=DQ1,$L7,IF($M7=DQ1,$N7,IF($O7=DQ1,$P7,"")))))) -> 0
A8: 6 | B8: Jacob McAdam | C8: Brunel | D8: M | E8: 5000 | F8: 00:17:30 | R8: 6 | T8: =IF($E8=$V$1,"Y",IF($G8=$V$1,"Y",IF($I8=$V$1,"Y",IF($K8=$V$1,"Y",IF($M8=$V$1,"Y",IF($O8=$V$1,"Y","")))))) ->  | U8: 6 | V8: =IF($E8=$V$1,$F8,IF($G8=$V$1,$H8,IF($I8=$V$1,$J8,IF($K8=$V$1,$L8,IF($M8=$V$1,$N8,IF($O8=$V$1,$P8,"")))))) ->  | W8: =IF($E8=$Y$1,"Y",IF($G8=$Y$1,"Y",IF($I8=$Y$1,"Y",IF($K8=$Y$1,"Y",IF($M8=$Y$1,"Y",IF($O8=$Y$1,"Y","")))))) ->  | X8: 6 | Y8: =IF($E8=$Y$1,$F8,IF($G8=$Y$1,$H8,IF($I8=$Y$1,$J8,IF($K8=$Y$1,$L8,IF($M8=$Y$1,$N8,IF($O8=$Y$1,$P8,"")))))) ->  | Z8: =IF($E8=$AB$1,"Y",IF($G8=$AB$1,"Y",IF($I8=$AB$1,"Y",IF($K8=$AB$1,"Y",IF($M8=$AB$1,"Y",IF($O8=$AB$1,"Y","")))))) ->  | AA8: 6 | AB8: =IF($E8=$AB$1,$F8,IF($G8=$AB$1,$H8,IF($I8=$AB$1,$J8,IF($K8=$AB$1,$L8,IF($M8=$AB$1,$N8,IF($O8=$AB$1,$P8,"")))))) ->  | AC8: =IF($E8=$AE$1,"Y",IF($G8=$AE$1,"Y",IF($I8=$AE$1,"Y",IF($K8=$AE$1,"Y",IF($M8=$AE$1,"Y",IF($O8=$AE$1,"Y","")))))) ->  | AD8: 6 | AE8: =IF($E8=$AE$1,$F8,IF($G8=$AE$1,$H8,IF($I8=$AE$1,$J8,IF($K8=$AE$1,$L8,IF($M8=$AE$1,$N8,IF($O8=$AE$1,$P8,"")))))) ->  | AF8: =IF($E8=$AH$1,"Y",IF($G8=$AH$1,"Y",IF($I8=$AH$1,"Y",IF($K8=$AH$1,"Y",IF($M8=$AH$1,"Y",IF($O8=$AH$1,"Y","")))))) ->  | AG8: 6 | AH8: =IF($E8=$AH$1,$F8,IF($G8=$AH$1,$H8,IF($I8=$AH$1,$J8,IF($K8=$AH$1,$L8,IF($M8=$AH$1,$N8,IF($O8=$AH$1,$P8,"")))))) ->  | AJ8: 6 | AK8: =IF($E8=$AK$1,$F8,IF($G8=$AK$1,$H8,IF($I8=$AK$1,$J8,IF($K8=$AK$1,$L8,IF($M8=$AK$1,$N8,IF($O8=$AK$1,$P8,"")))))) ->  | AM8: =$A$8 -> 6 | AP8: =$A$8 -> 6 | AR8: =IF($E8=AR1,"Y",IF($G8=AR1,"Y",IF($I8=AR1,"Y",IF($K8=AR1,"Y",IF($M8=AR1,"Y",IF($O8=AR1,"Y","")))))) ->  | AS8: =$A$8 -> 6 | AT8: =IF($E8=AT1,$F8,IF($G8=AT1,$H8,IF($I8=AT1,$J8,IF($K8=AT1,$L8,IF($M8=AT1,$N8,IF($O8=AT1,$P8,"")))))) ->  | AU8: =IF($E8=AU1,"Y",IF($G8=AU1,"Y",IF($I8=AU1,"Y",IF($K8=AU1,"Y",IF($M8=AU1,"Y",IF($O8=AU1,"Y","")))))) -> Y | AV8: =$A$8 -> 6 | AW8: =IF($E8=AW1,$F8,IF($G8=AW1,$H8,IF($I8=AW1,$J8,IF($K8=AW1,$L8,IF($M8=AW1,$N8,IF($O8=AW1,$P8,"")))))) -> 00:17:30 | AX8: =IF($E8=AX1,"Y",IF($G8=AX1,"Y",IF($I8=AX1,"Y",IF($K8=AX1,"Y",IF($M8=AX1,"Y",IF($O8=AX1,"Y","")))))) ->  | AY8: =$A$8 -> 6 | AZ8: =IF($E8=AZ1,$F8,IF($G8=AZ1,$H8,IF($I8=AZ1,$J8,IF($K8=AZ1,$L8,IF($M8=AZ1,$N8,IF($O8=AZ1,$P8,"")))))) ->  | BA8: =IF($E8=BA1,"Y",IF($G8=BA1,"Y",IF($I8=BA1,"Y",IF($K8=BA1,"Y",IF($M8=BA1,"Y",IF($O8=BA1,"Y","")))))) ->  | BB8: =$A$8 -> 6 | BC8: =IF($E8=BC1,$F8,IF($G8=BC1,$H8,IF($I8=BC1,$J8,IF($K8=BC1,$L8,IF($M8=BC1,$N8,IF($O8=BC1,$P8,"")))))) ->  | BD8: =IF($E8=BD1,"Y",IF($G8=BD1,"Y",IF($I8=BD1,"Y",IF($K8=BD1,"Y",IF($M8=BD1,"Y",IF($O8=BD1,"Y","")))))) ->  | BE8: =$A$8 -> 6 | BF8: =IF($E8=BF1,$F8,IF($G8=BF1,$H8,IF($I8=BF1,$J8,IF($K8=BF1,$L8,IF($M8=BF1,$N8,IF($O8=BF1,$P8,"")))))) ->  | BG8: =IF($E8=BG1,"Y",IF($G8=BG1,"Y",IF($I8=BG1,"Y",IF($K8=BG1,"Y",IF($M8=BG1,"Y",IF($O8=BG1,"Y","")))))) ->  | BH8: =$A$8 -> 6 | BI8: =IF($E8=BI1,$F8,IF($G8=BI1,$H8,IF($I8=BI1,$J8,IF($K8=BI1,$L8,IF($M8=BI1,$N8,IF($O8=BI1,$P8,"")))))) ->  | BJ8: =IF($E8=BJ1,"Y",IF($G8=BJ1,"Y",IF($I8=BJ1,"Y",IF($K8=BJ1,"Y",IF($M8=BJ1,"Y",IF($O8=BJ1,"Y","")))))) ->  | BK8: =$A$8 -> 6 | BL8: =IF($E8=BL1,$F8,IF($G8=BL1,$H8,IF($I8=BL1,$J8,IF($K8=BL1,$L8,IF($M8=BL1,$N8,IF($O8=BL1,$P8,"")))))) ->  | BM8: =IF($E8=BM1,"Y",IF($G8=BM1,"Y",IF($I8=BM1,"Y",IF($K8=BM1,"Y",IF($M8=BM1,"Y",IF($O8=BM1,"Y","")))))) ->  | BN8: =$A$8 -> 6 | BO8: =IF($E8=BO1,$F8,IF($G8=BO1,$H8,IF($I8=BO1,$J8,IF($K8=BO1,$L8,IF($M8=BO1,$N8,IF($O8=BO1,$P8,"")))))) ->  | BP8: =IF($E8=BP1,"Y",IF($G8=BP1,"Y",IF($I8=BP1,"Y",IF($K8=BP1,"Y",IF($M8=BP1,"Y",IF($O8=BP1,"Y","")))))) ->  | BQ8: =$A$8 -> 6 | BR8: =IF($E8=BR1,$F8,IF($G8=BR1,$H8,IF($I8=BR1,$J8,IF($K8=BR1,$L8,IF($M8=BR1,$N8,IF($O8=BR1,$P8,"")))))) ->  | BS8: =IF($E8=BS1,"Y",IF($G8=BS1,"Y",IF($I8=BS1,"Y",IF($K8=BS1,"Y",IF($M8=BS1,"Y",IF($O8=BS1,"Y","")))))) ->  | BT8: =$A$8 -> 6 | BU8: =IF($E8=BU1,$F8,IF($G8=BU1,$H8,IF($I8=BU1,$J8,IF($K8=BU1,$L8,IF($M8=BU1,$N8,IF($O8=BU1,$P8,"")))))) ->  | BV8: =IF($E8=BV1,"Y",IF($G8=BV1,"Y",IF($I8=BV1,"Y",IF($K8=BV1,"Y",IF($M8=BV1,"Y",IF($O8=BV1,"Y","")))))) ->  | BW8: =$A$8 -> 6 | BX8: =IF($E8=BX1,$F8,IF($G8=BX1,$H8,IF($I8=BX1,$J8,IF($K8=BX1,$L8,IF($M8=BX1,$N8,IF($O8=BX1,$P8,"")))))) ->  | BY8: =IF($E8=BY1,"Y",IF($G8=BY1,"Y",IF($I8=BY1,"Y",IF($K8=BY1,"Y",IF($M8=BY1,"Y",IF($O8=BY1,"Y","")))))) ->  | BZ8: =$A$8 -> 6 | CA8: =IF($E8=CA1,$F8,IF($G8=CA1,$H8,IF($I8=CA1,$J8,IF($K8=CA1,$L8,IF($M8=CA1,$N8,IF($O8=CA1,$P8,"")))))) ->  | CB8: =IF($E8=CB1,"Y",IF($G8=CB1,"Y",IF($I8=CB1,"Y",IF($K8=CB1,"Y",IF($M8=CB1,"Y",IF($O8=CB1,"Y","")))))) -> Y | CC8: =$A$8 -> 6 | CD8: =IF($E8=CD1,$F8,IF($G8=CD1,$H8,IF($I8=CD1,$J8,IF($K8=CD1,$L8,IF($M8=CD1,$N8,IF($O8=CD1,$P8,"")))))) -> 0 | CE8: =IF($E8=CE1,"Y",IF($G8=CE1,"Y",IF($I8=CE1,"Y",IF($K8=CE1,"Y",IF($M8=CE1,"Y",IF($O8=CE1,"Y","")))))) -> Y | CF8: =$A$8 -> 6 | CG8: =IF($E8=CG1,$F8,IF($G8=CG1,$H8,IF($I8=CG1,$J8,IF($K8=CG1,$L8,IF($M8=CG1,$N8,IF($O8=CG1,$P8,"")))))) -> 0 | CH8: =IF($E8=CH1,"Y",IF($G8=CH1,"Y",IF($I8=CH1,"Y",IF($K8=CH1,"Y",IF($M8=CH1,"Y",IF($O8=CH1,"Y","")))))) -> Y | CI8: =$A$8 -> 6 | CJ8: =IF($E8=CJ1,$F8,IF($G8=CJ1,$H8,IF($I8=CJ1,$J8,IF($K8=CJ1,$L8,IF($M8=CJ1,$N8,IF($O8=CJ1,$P8,"")))))) -> 0 | CK8: =IF($E8=CK1,"Y",IF($G8=CK1,"Y",IF($I8=CK1,"Y",IF($K8=CK1,"Y",IF($M8=CK1,"Y",IF($O8=CK1,"Y","")))))) -> Y | CL8: =$A$8 -> 6 | CM8: =IF($E8=CM1,$F8,IF($G8=CM1,$H8,IF($I8=CM1,$J8,IF($K8=CM1,$L8,IF($M8=CM1,$N8,IF($O8=CM1,$P8,"")))))) -> 0 | CN8: =IF($E8=CN1,"Y",IF($G8=CN1,"Y",IF($I8=CN1,"Y",IF($K8=CN1,"Y",IF($M8=CN1,"Y",IF($O8=CN1,"Y","")))))) -> Y | CO8: =$A$8 -> 6 | CP8: =IF($E8=CP1,$F8,IF($G8=CP1,$H8,IF($I8=CP1,$J8,IF($K8=CP1,$L8,IF($M8=CP1,$N8,IF($O8=CP1,$P8,"")))))) -> 0 | CQ8: =IF($E8=CQ1,"Y",IF($G8=CQ1,"Y",IF($I8=CQ1,"Y",IF($K8=CQ1,"Y",IF($M8=CQ1,"Y",IF($O8=CQ1,"Y","")))))) -> Y | CR8: =$A$8 -> 6 | CS8: =IF($E8=CS1,$F8,IF($G8=CS1,$H8,IF($I8=CS1,$J8,IF($K8=CS1,$L8,IF($M8=CS1,$N8,IF($O8=CS1,$P8,"")))))) -> 0 | CT8: =IF($E8=CT1,"Y",IF($G8=CT1,"Y",IF($I8=CT1,"Y",IF($K8=CT1,"Y",IF($M8=CT1,"Y",IF($O8=CT1,"Y","")))))) -> Y | CU8: =$A$8 -> 6 | CV8: =IF($E8=CV1,$F8,IF($G8=CV1,$H8,IF($I8=CV1,$J8,IF($K8=CV1,$L8,IF($M8=CV1,$N8,IF($O8=CV1,$P8,"")))))) -> 0 | CW8: =IF($E8=CW1,"Y",IF($G8=CW1,"Y",IF($I8=CW1,"Y",IF($K8=CW1,"Y",IF($M8=CW1,"Y",IF($O8=CW1,"Y","")))))) -> Y | CX8: =$A$8 -> 6 | CY8: =IF($E8=CY1,$F8,IF($G8=CY1,$H8,IF($I8=CY1,$J8,IF($K8=CY1,$L8,IF($M8=CY1,$N8,IF($O8=CY1,$P8,"")))))) -> 0 | CZ8: =IF($E8=CZ1,"Y",IF($G8=CZ1,"Y",IF($I8=CZ1,"Y",IF($K8=CZ1,"Y",IF($M8=CZ1,"Y",IF($O8=CZ1,"Y","")))))) -> Y | DA8: =$A$8 -> 6 | DB8: =IF($E8=DB1,$F8,IF($G8=DB1,$H8,IF($I8=DB1,$J8,IF($K8=DB1,$L8,IF($M8=DB1,$N8,IF($O8=DB1,$P8,"")))))) -> 0 | DC8: =IF($E8=DC1,"Y",IF($G8=DC1,"Y",IF($I8=DC1,"Y",IF($K8=DC1,"Y",IF($M8=DC1,"Y",IF($O8=DC1,"Y","")))))) -> Y | DD8: =$A$8 -> 6 | DE8: =IF($E8=DE1,$F8,IF($G8=DE1,$H8,IF($I8=DE1,$J8,IF($K8=DE1,$L8,IF($M8=DE1,$N8,IF($O8=DE1,$P8,"")))))) -> 0 | DF8: =IF($E8=DF1,"Y",IF($G8=DF1,"Y",IF($I8=DF1,"Y",IF($K8=DF1,"Y",IF($M8=DF1,"Y",IF($O8=DF1,"Y","")))))) -> Y | DG8: =$A$8 -> 6 | DH8: =IF($E8=DH1,$F8,IF($G8=DH1,$H8,IF($I8=DH1,$J8,IF($K8=DH1,$L8,IF($M8=DH1,$N8,IF($O8=DH1,$P8,"")))))) -> 0 | DI8: =IF($E8=DI1,"Y",IF($G8=DI1,"Y",IF($I8=DI1,"Y",IF($K8=DI1,"Y",IF($M8=DI1,"Y",IF($O8=DI1,"Y","")))))) -> Y | DJ8: =$A$8 -> 6 | DK8: =IF($E8=DK1,$F8,IF($G8=DK1,$H8,IF($I8=DK1,$J8,IF($K8=DK1,$L8,IF($M8=DK1,$N8,IF($O8=DK1,$P8,"")))))) -> 0 | DL8: =IF($E8=DL1,"Y",IF($G8=DL1,"Y",IF($I8=DL1,"Y",IF($K8=DL1,"Y",IF($M8=DL1,"Y",IF($O8=DL1,"Y","")))))) -> Y | DM8: =$A$8 -> 6 | DN8: =IF($E8=DN1,$F8,IF($G8=DN1,$H8,IF($I8=DN1,$J8,IF($K8=DN1,$L8,IF($M8=DN1,$N8,IF($O8=DN1,$P8,"")))))) -> 0 | DO8: =IF($E8=DO1,"Y",IF($G8=DO1,"Y",IF($I8=DO1,"Y",IF($K8=DO1,"Y",IF($M8=DO1,"Y",IF($O8=DO1,"Y","")))))) -> Y | DP8: =$A$8 -> 6 | DQ8: =IF($E8=DQ1,$F8,IF($G8=DQ1,$H8,IF($I8=DQ1,$J8,IF($K8=DQ1,$L8,IF($M8=DQ1,$N8,IF($O8=DQ1,$P8,"")))))) -> 0
A9: 7 | B9: Danae Jeanclos | C9: Essex | D9: F | E9: 100 | F9: 13.5 | Q9: Y | R9: 7 | S9: 13.5 | T9: =IF($E9=$V$1,"Y",IF($G9=$V$1,"Y",IF($I9=$V$1,"Y",IF($K9=$V$1,"Y",IF($M9=$V$1,"Y",IF($O9=$V$1,"Y","")))))) ->  | U9: 7 | V9: =IF($E9=$V$1,$F9,IF($G9=$V$1,$H9,IF($I9=$V$1,$J9,IF($K9=$V$1,$L9,IF($M9=$V$1,$N9,IF($O9=$V$1,$P9,"")))))) ->  | W9: =IF($E9=$Y$1,"Y",IF($G9=$Y$1,"Y",IF($I9=$Y$1,"Y",IF($K9=$Y$1,"Y",IF($M9=$Y$1,"Y",IF($O9=$Y$1,"Y","")))))) ->  | X9: 7 | Y9: =IF($E9=$Y$1,$F9,IF($G9=$Y$1,$H9,IF($I9=$Y$1,$J9,IF($K9=$Y$1,$L9,IF($M9=$Y$1,$N9,IF($O9=$Y$1,$P9,"")))))) ->  | Z9: =IF($E9=$AB$1,"Y",IF($G9=$AB$1,"Y",IF($I9=$AB$1,"Y",IF($K9=$AB$1,"Y",IF($M9=$AB$1,"Y",IF($O9=$AB$1,"Y","")))))) ->  | AA9: 7 | AB9: =IF($E9=$AB$1,$F9,IF($G9=$AB$1,$H9,IF($I9=$AB$1,$J9,IF($K9=$AB$1,$L9,IF($M9=$AB$1,$N9,IF($O9=$AB$1,$P9,"")))))) ->  | AC9: =IF($E9=$AE$1,"Y",IF($G9=$AE$1,"Y",IF($I9=$AE$1,"Y",IF($K9=$AE$1,"Y",IF($M9=$AE$1,"Y",IF($O9=$AE$1,"Y","")))))) ->  | AD9: 7 | AE9: =IF($E9=$AE$1,$F9,IF($G9=$AE$1,$H9,IF($I9=$AE$1,$J9,IF($K9=$AE$1,$L9,IF($M9=$AE$1,$N9,IF($O9=$AE$1,$P9,"")))))) ->  | AF9: =IF($E9=$AH$1,"Y",IF($G9=$AH$1,"Y",IF($I9=$AH$1,"Y",IF($K9=$AH$1,"Y",IF($M9=$AH$1,"Y",IF($O9=$AH$1,"Y","")))))) ->  | AG9: 7 | AH9: =IF($E9=$AH$1,$F9,IF($G9=$AH$1,$H9,IF($I9=$AH$1,$J9,IF($K9=$AH$1,$L9,IF($M9=$AH$1,$N9,IF($O9=$AH$1,$P9,"")))))) ->  | AJ9: 7 | AK9: =IF($E9=$AK$1,$F9,IF($G9=$AK$1,$H9,IF($I9=$AK$1,$J9,IF($K9=$AK$1,$L9,IF($M9=$AK$1,$N9,IF($O9=$AK$1,$P9,"")))))) ->  | AM9: =$A$9 -> 7 | AP9: =$A$9 -> 7 | AR9: =IF($E9=AR1,"Y",IF($G9=AR1,"Y",IF($I9=AR1,"Y",IF($K9=AR1,"Y",IF($M9=AR1,"Y",IF($O9=AR1,"Y","")))))) ->  | AS9: =$A$9 -> 7 | AT9: =IF($E9=AT1,$F9,IF($G9=AT1,$H9,IF($I9=AT1,$J9,IF($K9=AT1,$L9,IF($M9=AT1,$N9,IF($O9=AT1,$P9,"")))))) ->  | AU9: =IF($E9=AU1,"Y",IF($G9=AU1,"Y",IF($I9=AU1,"Y",IF($K9=AU1,"Y",IF($M9=AU1,"Y",IF($O9=AU1,"Y","")))))) ->  | AV9: =$A$9 -> 7 | AW9: =IF($E9=AW1,$F9,IF($G9=AW1,$H9,IF($I9=AW1,$J9,IF($K9=AW1,$L9,IF($M9=AW1,$N9,IF($O9=AW1,$P9,"")))))) ->  | AX9: =IF($E9=AX1,"Y",IF($G9=AX1,"Y",IF($I9=AX1,"Y",IF($K9=AX1,"Y",IF($M9=AX1,"Y",IF($O9=AX1,"Y","")))))) ->  | AY9: =$A$9 -> 7 | AZ9: =IF($E9=AZ1,$F9,IF($G9=AZ1,$H9,IF($I9=AZ1,$J9,IF($K9=AZ1,$L9,IF($M9=AZ1,$N9,IF($O9=AZ1,$P9,"")))))) ->  | BA9: =IF($E9=BA1,"Y",IF($G9=BA1,"Y",IF($I9=BA1,"Y",IF($K9=BA1,"Y",IF($M9=BA1,"Y",IF($O9=BA1,"Y","")))))) ->  | BB9: =$A$9 -> 7 | BC9: =IF($E9=BC1,$F9,IF($G9=BC1,$H9,IF($I9=BC1,$J9,IF($K9=BC1,$L9,IF($M9=BC1,$N9,IF($O9=BC1,$P9,"")))))) ->  | BD9: =IF($E9=BD1,"Y",IF($G9=BD1,"Y",IF($I9=BD1,"Y",IF($K9=BD1,"Y",IF($M9=BD1,"Y",IF($O9=BD1,"Y","")))))) ->  | BE9: =$A$9 -> 7 | BF9: =IF($E9=BF1,$F9,IF($G9=BF1,$H9,IF($I9=BF1,$J9,IF($K9=BF1,$L9,IF($M9=BF1,$N9,IF($O9=BF1,$P9,"")))))) ->  | BG9: =IF($E9=BG1,"Y",IF($G9=BG1,"Y",IF($I9=BG1,"Y",IF($K9=BG1,"Y",IF($M9=BG1,"Y",IF($O9=BG1,"Y","")))))) ->  | BH9: =$A$9 -> 7 | BI9: =IF($E9=BI1,$F9,IF($G9=BI1,$H9,IF($I9=BI1,$J9,IF($K9=BI1,$L9,IF($M9=BI1,$N9,IF($O9=BI1,$P9,"")))))) ->  | BJ9: =IF($E9=BJ1,"Y",IF($G9=BJ1,"Y",IF($I9=BJ1,"Y",IF($K9=BJ1,"Y",IF($M9=BJ1,"Y",IF($O9=BJ1,"Y","")))))) ->  | BK9: =$A$9 -> 7 | BL9: =IF($E9=BL1,$F9,IF($G9=BL1,$H9,IF($I9=BL1,$J9,IF($K9=BL1,$L9,IF($M9=BL1,$N9,IF($O9=BL1,$P9,"")))))) ->  | BM9: =IF($E9=BM1,"Y",IF($G9=BM1,"Y",IF($I9=BM1,"Y",IF($K9=BM1,"Y",IF($M9=BM1,"Y",IF($O9=BM1,"Y","")))))) ->  | BN9: =$A$9 -> 7 | BO9: =IF($E9=BO1,$F9,IF($G9=BO1,$H9,IF($I9=BO1,$J9,IF($K9=BO1,$L9,IF($M9=BO1,$N9,IF($O9=BO1,$P9,"")))))) ->  | BP9: =IF($E9=BP1,"Y",IF($G9=BP1,"Y",IF($I9=BP1,"Y",IF($K9=BP1,"Y",IF($M9=BP1,"Y",IF($O9=BP1,"Y","")))))) ->  | BQ9: =$A$9 -> 7 | BR9: =IF($E9=BR1,$F9,IF($G9=BR1,$H9,IF($I9=BR1,$J9,IF($K9=BR1,$L9,IF($M9=BR1,$N9,IF($O9=BR1,$P9,"")))))) ->  | BS9: =IF($E9=BS1,"Y",IF($G9=BS1,"Y",IF($I9=BS1,"Y",IF($K9=BS1,"Y",IF($M9=BS1,"Y",IF($O9=BS1,"Y","")))))) ->  | BT9: =$A$9 -> 7 | BU9: =IF($E9=BU1,$F9,IF($G9=BU1,$H9,IF($I9=BU1,$J9,IF($K9=BU1,$L9,IF($M9=BU1,$N9,IF($O9=BU1,$P9,"")))))) ->  | BV9: =IF($E9=BV1,"Y",IF($G9=BV1,"Y",IF($I9=BV1,"Y",IF($K9=BV1,"Y",IF($M9=BV1,"Y",IF($O9=BV1,"Y","")))))) ->  | BW9: =$A$9 -> 7 | BX9: =IF($E9=BX1,$F9,IF($G9=BX1,$H9,IF($I9=BX1,$J9,IF($K9=BX1,$L9,IF($M9=BX1,$N9,IF($O9=BX1,$P9,"")))))) ->  | BY9: =IF($E9=BY1,"Y",IF($G9=BY1,"Y",IF($I9=BY1,"Y",IF($K9=BY1,"Y",IF($M9=BY1,"Y",IF($O9=BY1,"Y","")))))) ->  | BZ9: =$A$9 -> 7 | CA9: =IF($E9=CA1,$F9,IF($G9=CA1,$H9,IF($I9=CA1,$J9,IF($K9=CA1,$L9,IF($M9=CA1,$N9,IF($O9=CA1,$P9,"")))))) ->  | CB9: =IF($E9=CB1,"Y",IF($G9=CB1,"Y",IF($I9=CB1,"Y",IF($K9=CB1,"Y",IF($M9=CB1,"Y",IF($O9=CB1,"Y","")))))) -> Y | CC9: =$A$9 -> 7 | CD9: =IF($E9=CD1,$F9,IF($G9=CD1,$H9,IF($I9=CD1,$J9,IF($K9=CD1,$L9,IF($M9=CD1,$N9,IF($O9=CD1,$P9,"")))))) -> 0 | CE9: =IF($E9=CE1,"Y",IF($G9=CE1,"Y",IF($I9=CE1,"Y",IF($K9=CE1,"Y",IF($M9=CE1,"Y",IF($O9=CE1,"Y","")))))) -> Y | CF9: =$A$9 -> 7 | CG9: =IF($E9=CG1,$F9,IF($G9=CG1,$H9,IF($I9=CG1,$J9,IF($K9=CG1,$L9,IF($M9=CG1,$N9,IF($O9=CG1,$P9,"")))))) -> 0 | CH9: =IF($E9=CH1,"Y",IF($G9=CH1,"Y",IF($I9=CH1,"Y",IF($K9=CH1,"Y",IF($M9=CH1,"Y",IF($O9=CH1,"Y","")))))) -> Y | CI9: =$A$9 -> 7 | CJ9: =IF($E9=CJ1,$F9,IF($G9=CJ1,$H9,IF($I9=CJ1,$J9,IF($K9=CJ1,$L9,IF($M9=CJ1,$N9,IF($O9=CJ1,$P9,"")))))) -> 0 | CK9: =IF($E9=CK1,"Y",IF($G9=CK1,"Y",IF($I9=CK1,"Y",IF($K9=CK1,"Y",IF($M9=CK1,"Y",IF($O9=CK1,"Y","")))))) -> Y | CL9: =$A$9 -> 7 | CM9: =IF($E9=CM1,$F9,IF($G9=CM1,$H9,IF($I9=CM1,$J9,IF($K9=CM1,$L9,IF($M9=CM1,$N9,IF($O9=CM1,$P9,"")))))) -> 0 | CN9: =IF($E9=CN1,"Y",IF($G9=CN1,"Y",IF($I9=CN1,"Y",IF($K9=CN1,"Y",IF($M9=CN1,"Y",IF($O9=CN1,"Y","")))))) -> Y | CO9: =$A$9 -> 7 | CP9: =IF($E9=CP1,$F9,IF($G9=CP1,$H9,IF($I9=CP1,$J9,IF($K9=CP1,$L9,IF($M9=CP1,$N9,IF($O9=CP1,$P9,"")))))) -> 0 | CQ9: =IF($E9=CQ1,"Y",IF($G9=CQ1,"Y",IF($I9=CQ1,"Y",IF($K9=CQ1,"Y",IF($M9=CQ1,"Y",IF($O9=CQ1,"Y","")))))) -> Y | CR9: =$A$9 -> 7 | CS9: =IF($E9=CS1,$F9,IF($G9=CS1,$H9,IF($I9=CS1,$J9,IF($K9=CS1,$L9,IF($M9=CS1,$N9,IF($O9=CS1,$P9,"")))))) -> 0 | CT9: =IF($E9=CT1,"Y",IF($G9=CT1,"Y",IF($I9=CT1,"Y",IF($K9=CT1,"Y",IF($M9=CT1,"Y",IF($O9=CT1,"Y","")))))) -> Y | CU9: =$A$9 -> 7 | CV9: =IF($E9=CV1,$F9,IF($G9=CV1,$H9,IF($I9=CV1,$J9,IF($K9=CV1,$L9,IF($M9=CV1,$N9,IF($O9=CV1,$P9,"")))))) -> 0 | CW9: =IF($E9=CW1,"Y",IF($G9=CW1,"Y",IF($I9=CW1,"Y",IF($K9=CW1,"Y",IF($M9=CW1,"Y",IF($O9=CW1,"Y","")))))) -> Y | CX9: =$A$9 -> 7 | CY9: =IF($E9=CY1,$F9,IF($G9=CY1,$H9,IF($I9=CY1,$J9,IF($K9=CY1,$L9,IF($M9=CY1,$N9,IF($O9=CY1,$P9,"")))))) -> 0 | CZ9: =IF($E9=CZ1,"Y",IF($G9=CZ1,"Y",IF($I9=CZ1,"Y",IF($K9=CZ1,"Y",IF($M9=CZ1,"Y",IF($O9=CZ1,"Y","")))))) -> Y | DA9: =$A$9 -> 7 | DB9: =IF($E9=DB1,$F9,IF($G9=DB1,$H9,IF($I9=DB1,$J9,IF($K9=DB1,$L9,IF($M9=DB1,$N9,IF($O9=DB1,$P9,"")))))) -> 0 | DC9: =IF($E9=DC1,"Y",IF($G9=DC1,"Y",IF($I9=DC1,"Y",IF($K9=DC1,"Y",IF($M9=DC1,"Y",IF($O9=DC1,"Y","")))))) -> Y | DD9: =$A$9 -> 7 | DE9: =IF($E9=DE1,$F9,IF($G9=DE1,$H9,IF($I9=DE1,$J9,IF($K9=DE1,$L9,IF($M9=DE1,$N9,IF($O9=DE1,$P9,"")))))) -> 0 | DF9: =IF($E9=DF1,"Y",IF($G9=DF1,"Y",IF($I9=DF1,"Y",IF($K9=DF1,"Y",IF($M9=DF1,"Y",IF($O9=DF1,"Y","")))))) -> Y | DG9: =$A$9 -> 7 | DH9: =IF($E9=DH1,$F9,IF($G9=DH1,$H9,IF($I9=DH1,$J9,IF($K9=DH1,$L9,IF($M9=DH1,$N9,IF($O9=DH1,$P9,"")))))) -> 0 | DI9: =IF($E9=DI1,"Y",IF($G9=DI1,"Y",IF($I9=DI1,"Y",IF($K9=DI1,"Y",IF($M9=DI1,"Y",IF($O9=DI1,"Y","")))))) -> Y | DJ9: =$A$9 -> 7 | DK9: =IF($E9=DK1,$F9,IF($G9=DK1,$H9,IF($I9=DK1,$J9,IF($K9=DK1,$L9,IF($M9=DK1,$N9,IF($O9=DK1,$P9,"")))))) -> 0 | DL9: =IF($E9=DL1,"Y",IF($G9=DL1,"Y",IF($I9=DL1,"Y",IF($K9=DL1,"Y",IF($M9=DL1,"Y",IF($O9=DL1,"Y","")))))) -> Y | DM9: =$A$9 -> 7 | DN9: =IF($E9=DN1,$F9,IF($G9=DN1,$H9,IF($I9=DN1,$J9,IF($K9=DN1,$L9,IF($M9=DN1,$N9,IF($O9=DN1,$P9,"")))))) -> 0 | DO9: =IF($E9=DO1,"Y",IF($G9=DO1,"Y",IF($I9=DO1,"Y",IF($K9=DO1,"Y",IF($M9=DO1,"Y",IF($O9=DO1,"Y","")))))) -> Y | DP9: =$A$9 -> 7 | DQ9: =IF($E9=DQ1,$F9,IF($G9=DQ1,$H9,IF($I9=DQ1,$J9,IF($K9=DQ1,$L9,IF($M9=DQ1,$N9,IF($O9=DQ1,$P9,"")))))) -> 0
A10: 8 | B10: Filipa Mcqueen | C10: Essex | D10: F | R10: 8 | T10: =IF($E10=$V$1,"Y",IF($G10=$V$1,"Y",IF($I10=$V$1,"Y",IF($K10=$V$1,"Y",IF($M10=$V$1,"Y",IF($O10=$V$1,"Y","")))))) ->  | U10: 8 | V10: =IF($E10=$V$1,$F10,IF($G10=$V$1,$H10,IF($I10=$V$1,$J10,IF($K10=$V$1,$L10,IF($M10=$V$1,$N10,IF($O10=$V$1,$P10,"")))))) ->  | W10: =IF($E10=$Y$1,"Y",IF($G10=$Y$1,"Y",IF($I10=$Y$1,"Y",IF($K10=$Y$1,"Y",IF($M10=$Y$1,"Y",IF($O10=$Y$1,"Y","")))))) ->  | X10: 8 | Y10: =IF($E10=$Y$1,$F10,IF($G10=$Y$1,$H10,IF($I10=$Y$1,$J10,IF($K10=$Y$1,$L10,IF($M10=$Y$1,$N10,IF($O10=$Y$1,$P10,"")))))) ->  | Z10: =IF($E10=$AB$1,"Y",IF($G10=$AB$1,"Y",IF($I10=$AB$1,"Y",IF($K10=$AB$1,"Y",IF($M10=$AB$1,"Y",IF($O10=$AB$1,"Y","")))))) ->  | AA10: 8 | AB10: =IF($E10=$AB$1,$F10,IF($G10=$AB$1,$H10,IF($I10=$AB$1,$J10,IF($K10=$AB$1,$L10,IF($M10=$AB$1,$N10,IF($O10=$AB$1,$P10,"")))))) ->  | AC10: =IF($E10=$AE$1,"Y",IF($G10=$AE$1,"Y",IF($I10=$AE$1,"Y",IF($K10=$AE$1,"Y",IF($M10=$AE$1,"Y",IF($O10=$AE$1,"Y","")))))) ->  | AD10: 8 | AE10: =IF($E10=$AE$1,$F10,IF($G10=$AE$1,$H10,IF($I10=$AE$1,$J10,IF($K10=$AE$1,$L10,IF($M10=$AE$1,$N10,IF($O10=$AE$1,$P10,"")))))) ->  | AF10: =IF($E10=$AH$1,"Y",IF($G10=$AH$1,"Y",IF($I10=$AH$1,"Y",IF($K10=$AH$1,"Y",IF($M10=$AH$1,"Y",IF($O10=$AH$1,"Y","")))))) ->  | AG10: 8 | AH10: =IF($E10=$AH$1,$F10,IF($G10=$AH$1,$H10,IF($I10=$AH$1,$J10,IF($K10=$AH$1,$L10,IF($M10=$AH$1,$N10,IF($O10=$AH$1,$P10,"")))))) ->  | AJ10: 8 | AK10: =IF($E10=$AK$1,$F10,IF($G10=$AK$1,$H10,IF($I10=$AK$1,$J10,IF($K10=$AK$1,$L10,IF($M10=$AK$1,$N10,IF($O10=$AK$1,$P10,"")))))) ->  | AM10: =$A$10 -> 8 | AP10: =$A$10 -> 8 | AR10: =IF($E10=AR1,"Y",IF($G10=AR1,"Y",IF($I10=AR1,"Y",IF($K10=AR1,"Y",IF($M10=AR1,"Y",IF($O10=AR1,"Y","")))))) ->  | AS10: =$A$10 -> 8 | AT10: =IF($E10=AT1,$F10,IF($G10=AT1,$H10,IF($I10=AT1,$J10,IF($K10=AT1,$L10,IF($M10=AT1,$N10,IF($O10=AT1,$P10,"")))))) ->  | AU10: =IF($E10=AU1,"Y",IF($G10=AU1,"Y",IF($I10=AU1,"Y",IF($K10=AU1,"Y",IF($M10=AU1,"Y",IF($O10=AU1,"Y","")))))) ->  | AV10: =$A$10 -> 8 | AW10: =IF($E10=AW1,$F10,IF($G10=AW1,$H10,IF($I10=AW1,$J10,IF($K10=AW1,$L10,IF($M10=AW1,$N10,IF($O10=AW1,$P10,"")))))) ->  | AX10: =IF($E10=AX1,"Y",IF($G10=AX1,"Y",IF($I10=AX1,"Y",IF($K10=AX1,"Y",IF($M10=AX1,"Y",IF($O10=AX1,"Y","")))))) ->  | AY10: =$A$10 -> 8 | AZ10: =IF($E10=AZ1,$F10,IF($G10=AZ1,$H10,IF($I10=AZ1,$J10,IF($K10=AZ1,$L10,IF($M10=AZ1,$N10,IF($O10=AZ1,$P10,"")))))) ->  | BA10: =IF($E10=BA1,"Y",IF($G10=BA1,"Y",IF($I10=BA1,"Y",IF($K10=BA1,"Y",IF($M10=BA1,"Y",IF($O10=BA1,"Y","")))))) ->  | BB10: =$A$10 -> 8 | BC10: =IF($E10=BC1,$F10,IF($G10=BC1,$H10,IF($I10=BC1,$J10,IF($K10=BC1,$L10,IF($M10=BC1,$N10,IF($O10=BC1,$P10,"")))))) ->  | BD10: =IF($E10=BD1,"Y",IF($G10=BD1,"Y",IF($I10=BD1,"Y",IF($K10=BD1,"Y",IF($M10=BD1,"Y",IF($O10=BD1,"Y","")))))) ->  | BE10: =$A$10 -> 8 | BF10: =IF($E10=BF1,$F10,IF($G10=BF1,$H10,IF($I10=BF1,$J10,IF($K10=BF1,$L10,IF($M10=BF1,$N10,IF($O10=BF1,$P10,"")))))) ->  | BG10: =IF($E10=BG1,"Y",IF($G10=BG1,"Y",IF($I10=BG1,"Y",IF($K10=BG1,"Y",IF($M10=BG1,"Y",IF($O10=BG1,"Y","")))))) ->  | BH10: =$A$10 -> 8 | BI10: =IF($E10=BI1,$F10,IF($G10=BI1,$H10,IF($I10=BI1,$J10,IF($K10=BI1,$L10,IF($M10=BI1,$N10,IF($O10=BI1,$P10,"")))))) ->  | BJ10: =IF($E10=BJ1,"Y",IF($G10=BJ1,"Y",IF($I10=BJ1,"Y",IF($K10=BJ1,"Y",IF($M10=BJ1,"Y",IF($O10=BJ1,"Y","")))))) ->  | BK10: =$A$10 -> 8 | BL10: =IF($E10=BL1,$F10,IF($G10=BL1,$H10,IF($I10=BL1,$J10,IF($K10=BL1,$L10,IF($M10=BL1,$N10,IF($O10=BL1,$P10,"")))))) ->  | BM10: =IF($E10=BM1,"Y",IF($G10=BM1,"Y",IF($I10=BM1,"Y",IF($K10=BM1,"Y",IF($M10=BM1,"Y",IF($O10=BM1,"Y","")))))) ->  | BN10: =$A$10 -> 8 | BO10: =IF($E10=BO1,$F10,IF($G10=BO1,$H10,IF($I10=BO1,$J10,IF($K10=BO1,$L10,IF($M10=BO1,$N10,IF($O10=BO1,$P10,"")))))) ->  | BP10: =IF($E10=BP1,"Y",IF($G10=BP1,"Y",IF($I10=BP1,"Y",IF($K10=BP1,"Y",IF($M10=BP1,"Y",IF($O10=BP1,"Y","")))))) ->  | BQ10: =$A$10 -> 8 | BR10: =IF($E10=BR1,$F10,IF($G10=BR1,$H10,IF($I10=BR1,$J10,IF($K10=BR1,$L10,IF($M10=BR1,$N10,IF($O10=BR1,$P10,"")))))) ->  | BS10: =IF($E10=BS1,"Y",IF($G10=BS1,"Y",IF($I10=BS1,"Y",IF($K10=BS1,"Y",IF($M10=BS1,"Y",IF($O10=BS1,"Y","")))))) ->  | BT10: =$A$10 -> 8 | BU10: =IF($E10=BU1,$F10,IF($G10=BU1,$H10,IF($I10=BU1,$J10,IF($K10=BU1,$L10,IF($M10=BU1,$N10,IF($O10=BU1,$P10,"")))))) ->  | BV10: =IF($E10=BV1,"Y",IF($G10=BV1,"Y",IF($I10=BV1,"Y",IF($K10=BV1,"Y",IF($M10=BV1,"Y",IF($O10=BV1,"Y","")))))) ->  | BW10: =$A$10 -> 8 | BX10: =IF($E10=BX1,$F10,IF($G10=BX1,$H10,IF($I10=BX1,$J10,IF($K10=BX1,$L10,IF($M10=BX1,$N10,IF($O10=BX1,$P10,"")))))) ->  | BY10: =IF($E10=BY1,"Y",IF($G10=BY1,"Y",IF($I10=BY1,"Y",IF($K10=BY1,"Y",IF($M10=BY1,"Y",IF($O10=BY1,"Y","")))))) ->  | BZ10: =$A$10 -> 8 | CA10: =IF($E10=CA1,$F10,IF($G10=CA1,$H10,IF($I10=CA1,$J10,IF($K10=CA1,$L10,IF($M10=CA1,$N10,IF($O10=CA1,$P10,"")))))) ->  | CB10: =IF($E10=CB1,"Y",IF($G10=CB1,"Y",IF($I10=CB1,"Y",IF($K10=CB1,"Y",IF($M10=CB1,"Y",IF($O10=CB1,"Y","")))))) -> Y | CC10: =$A$10 -> 8 | CD10: =IF($E10=CD1,$F10,IF($G10=CD1,$H10,IF($I10=CD1,$J10,IF($K10=CD1,$L10,IF($M10=CD1,$N10,IF($O10=CD1,$P10,"")))))) -> 0 | CE10: =IF($E10=CE1,"Y",IF($G10=CE1,"Y",IF($I10=CE1,"Y",IF($K10=CE1,"Y",IF($M10=CE1,"Y",IF($O10=CE1,"Y","")))))) -> Y | CF10: =$A$10 -> 8 | CG10: =IF($E10=CG1,$F10,IF($G10=CG1,$H10,IF($I10=CG1,$J10,IF($K10=CG1,$L10,IF($M10=CG1,$N10,IF($O10=CG1,$P10,"")))))) -> 0 | CH10: =IF($E10=CH1,"Y",IF($G10=CH1,"Y",IF($I10=CH1,"Y",IF($K10=CH1,"Y",IF($M10=CH1,"Y",IF($O10=CH1,"Y","")))))) -> Y | CI10: =$A$10 -> 8 | CJ10: =IF($E10=CJ1,$F10,IF($G10=CJ1,$H10,IF($I10=CJ1,$J10,IF($K10=CJ1,$L10,IF($M10=CJ1,$N10,IF($O10=CJ1,$P10,"")))))) -> 0 | CK10: =IF($E10=CK1,"Y",IF($G10=CK1,"Y",IF($I10=CK1,"Y",IF($K10=CK1,"Y",IF($M10=CK1,"Y",IF($O10=CK1,"Y","")))))) -> Y | CL10: =$A$10 -> 8 | CM10: =IF($E10=CM1,$F10,IF($G10=CM1,$H10,IF($I10=CM1,$J10,IF($K10=CM1,$L10,IF($M10=CM1,$N10,IF($O10=CM1,$P10,"")))))) -> 0 | CN10: =IF($E10=CN1,"Y",IF($G10=CN1,"Y",IF($I10=CN1,"Y",IF($K10=CN1,"Y",IF($M10=CN1,"Y",IF($O10=CN1,"Y","")))))) -> Y | CO10: =$A$10 -> 8 | CP10: =IF($E10=CP1,$F10,IF($G10=CP1,$H10,IF($I10=CP1,$J10,IF($K10=CP1,$L10,IF($M10=CP1,$N10,IF($O10=CP1,$P10,"")))))) -> 0 | CQ10: =IF($E10=CQ1,"Y",IF($G10=CQ1,"Y",IF($I10=CQ1,"Y",IF($K10=CQ1,"Y",IF($M10=CQ1,"Y",IF($O10=CQ1,"Y","")))))) -> Y | CR10: =$A$10 -> 8 | CS10: =IF($E10=CS1,$F10,IF($G10=CS1,$H10,IF($I10=CS1,$J10,IF($K10=CS1,$L10,IF($M10=CS1,$N10,IF($O10=CS1,$P10,"")))))) -> 0 | CT10: =IF($E10=CT1,"Y",IF($G10=CT1,"Y",IF($I10=CT1,"Y",IF($K10=CT1,"Y",IF($M10=CT1,"Y",IF($O10=CT1,"Y","")))))) -> Y | CU10: =$A$10 -> 8 | CV10: =IF($E10=CV1,$F10,IF($G10=CV1,$H10,IF($I10=CV1,$J10,IF($K10=CV1,$L10,IF($M10=CV1,$N10,IF($O10=CV1,$P10,"")))))) -> 0 | CW10: =IF($E10=CW1,"Y",IF($G10=CW1,"Y",IF($I10=CW1,"Y",IF($K10=CW1,"Y",IF($M10=CW1,"Y",IF($O10=CW1,"Y","")))))) -> Y | CX10: =$A$10 -> 8 | CY10: =IF($E10=CY1,$F10,IF($G10=CY1,$H10,IF($I10=CY1,$J10,IF($K10=CY1,$L10,IF($M10=CY1,$N10,IF($O10=CY1,$P10,"")))))) -> 0 | CZ10: =IF($E10=CZ1,"Y",IF($G10=CZ1,"Y",IF($I10=CZ1,"Y",IF($K10=CZ1,"Y",IF($M10=CZ1,"Y",IF($O10=CZ1,"Y","")))))) -> Y | DA10: =$A$10 -> 8 | DB10: =IF($E10=DB1,$F10,IF($G10=DB1,$H10,IF($I10=DB1,$J10,IF($K10=DB1,$L10,IF($M10=DB1,$N10,IF($O10=DB1,$P10,"")))))) -> 0 | DC10: =IF($E10=DC1,"Y",IF($G10=DC1,"Y",IF($I10=DC1,"Y",IF($K10=DC1,"Y",IF($M10=DC1,"Y",IF($O10=DC1,"Y","")))))) -> Y | DD10: =$A$10 -> 8 | DE10: =IF($E10=DE1,$F10,IF($G10=DE1,$H10,IF($I10=DE1,$J10,IF($K10=DE1,$L10,IF($M10=DE1,$N10,IF($O10=DE1,$P10,"")))))) -> 0 | DF10: =IF($E10=DF1,"Y",IF($G10=DF1,"Y",IF($I10=DF1,"Y",IF($K10=DF1,"Y",IF($M10=DF1,"Y",IF($O10=DF1,"Y","")))))) -> Y | DG10: =$A$10 -> 8 | DH10: =IF($E10=DH1,$F10,IF($G10=DH1,$H10,IF($I10=DH1,$J10,IF($K10=DH1,$L10,IF($M10=DH1,$N10,IF($O10=DH1,$P10,"")))))) -> 0 | DI10: =IF($E10=DI1,"Y",IF($G10=DI1,"Y",IF($I10=DI1,"Y",IF($K10=DI1,"Y",IF($M10=DI1,"Y",IF($O10=DI1,"Y","")))))) -> Y | DJ10: =$A$10 -> 8 | DK10: =IF($E10=DK1,$F10,IF($G10=DK1,$H10,IF($I10=DK1,$J10,IF($K10=DK1,$L10,IF($M10=DK1,$N10,IF($O10=DK1,$P10,"")))))) -> 0 | DL10: =IF($E10=DL1,"Y",IF($G10=DL1,"Y",IF($I10=DL1,"Y",IF($K10=DL1,"Y",IF($M10=DL1,"Y",IF($O10=DL1,"Y","")))))) -> Y | DM10: =$A$10 -> 8 | DN10: =IF($E10=DN1,$F10,IF($G10=DN1,$H10,IF($I10=DN1,$J10,IF($K10=DN1,$L10,IF($M10=DN1,$N10,IF($O10=DN1,$P10,"")))))) -> 0 | DO10: =IF($E10=DO1,"Y",IF($G10=DO1,"Y",IF($I10=DO1,"Y",IF($K10=DO1,"Y",IF($M10=DO1,"Y",IF($O10=DO1,"Y","")))))) -> Y | DP10: =$A$10 -> 8 | DQ10: =IF($E10=DQ1,$F10,IF($G10=DQ1,$H10,IF($I10=DQ1,$J10,IF($K10=DQ1,$L10,IF($M10=DQ1,$N10,IF($O10=DQ1,$P10,"")))))) -> 0
